Workbook

Sheet START
F11: =INDIRECT("START!I25") -> START | I11: =INDIRECT("START!K25") -> Описание методологии финмодели
I13: лист | K13: описание листа/столбца/строки/ячейки/блока ячеек
D14: =INDIRECT("Cntrl!M17") -> 0 | E14: =SUM($F14:$PL14) -> 0 | F14: =IFERROR(_xlfn.SHEET($A$1)-SUMIFS(Cntrl!O$15:O$100000,Cntrl!I$15:I$100000,$F$11),1) -> 0
A15: =ROW() -> 15 | I15: разработка финмоделей: https://mngmnt.ru/
A16: =ROW() -> 16 | H16: ФИНАНСОВАЯ МОДЕЛЬ
A17: =ROW() -> 17
A18: =ROW() -> 18
A19: =ROW() -> 19 | H19: МОДЕЛИРОВАНИЕ - БЮДЖЕТИРОВАНИЕ - УПРАВЛЕНЧЕСКИЙ УЧЕТ - КОНТРОЛЬ
A20: =ROW() -> 20
A21: =ROW() -> 21
A22: =ROW() -> 22
A23: =ROW() -> 23 | H23: Методология. Список и предназначение листов настоящей финансовой модели
A24: =ROW() -> 24
A25: =ROW() -> 25 | I25: START | K25: Описание методологии финмодели
A26: =ROW() -> 26 | I26: Cntrl | K26: Общий контроль финансовой модели
A27: =ROW() -> 27 | I27: Periods | K27: Периоды и горизонты моделирования фактических и прогнозных данных
A28: =ROW() -> 28 | I28: Lists | K28: Выпадающие списки финансовой модели
A29: =ROW() -> 29 | I29: Macro | K29: Макропоказатели внешней среды
A30: =ROW() -> 30 | I30: Items | K30: Справочники статей доходов и расходов и т.д.
A31: =ROW() -> 31 | I31: KPI | K31: Справочники ключевых показателей эффективности
A32: =ROW() -> 32 | I32: Mrkting | K32: Маркетинг. Параметры рынков сбыта и каналов привлечения клиентов
A33: =ROW() -> 33 | I33: CapEx | K33: Календарный план-график капитальных затрат
A34: =ROW() -> 34 | I34: Sales | K34: Параметры бюджета продаж
A35: =ROW() -> 35 | I35: Prdction | K35: Технологическая карта производственного процесса
A36: =ROW() -> 36 | I36: HR | K36: Штатное расписание
A37: =ROW() -> 37 | I37: Exp | K37: Прочие расходы бизнес-проекта
A38: =ROW() -> 38 | I38: Credits | K38: Источники финансирования и их условия
A39: =ROW() -> 39 | I39: PL | K39: Итоговый отчет о прибылях и убытках
A40: =ROW() -> 40 | I40: CF | K40: Итоговый отчет о движении денежных средств
A41: =ROW() -> 41 | I41: BS | K41: Итоговый баланс
A42: =ROW() -> 42 | I42: MAIN | K42: Ключевые параметры управления и результаты финансовой модели
A43: =ROW() -> 43 | I43: PLd | K43: Детализированный отчет о прибылях и убытках
A44: =ROW() -> 44 | I44: CFd | K44: Детализированный отчет о движении денежных средств
A45: =ROW() -> 45 | I45: BSd | K45: Детализированный баланс
A46: =ROW() -> 46 | I46: Sens | K46: Анализ чувствительности финмодели
A47: =ROW() -> 47 | I47: UnitEc | K47: Расчет юнит-экономики бизнес-проекта
A48: =ROW() -> 48 | I48: CFind | K48: Анализ финансового потока косвенным методом
A49: =ROW() -> 49 | I49: FinEcAn | K49: Финансово-экономический анализ проекта
A50: =ROW() -> 50 | I50: InvAn | K50: Инвестиционный анализ проекта
A51: =ROW() -> 51 | I51: EBITDA | K51: Анализ собственной операционной деят-сти. Точки безубыточности
A52: =ROW() -> 52 | I52: Rep | K52: Укрупненное формирование всей отчетности финмодели
A53: =ROW() -> 53 | I53: Repd | K53: Детализированное формирование всей отчетности финмодели
A54: =ROW() -> 54 | I54: Calc | K54: Функционал финансовой модели. Все расчеты
A55: =ROW() -> 55 | I55: PLplan | K55: Бюджет доходов и расходов (План PL)
A56: =ROW() -> 56 | I56: PLfact | K56: Факт + Прогноз отчета о прибылях и убытках
A57: =ROW() -> 57 | I57: PLplnfct | K57: План-Факт отчет о прибылях и убытках
A58: =ROW() -> 58 | I58: CRM | K58: Интерфейс CRM
A59: =ROW() -> 59 | I59: BDCRM | K59: База учетных данных CRM
A60: =ROW() -> 60 | I60: CFplan | K60: Бюджет движения денежных средств (план ДДС-CF)
A61: =ROW() -> 61 | I61: CFfact | K61: Факт + Прогноз отчета о движении денежных средств
A62: =ROW() -> 62 | I62: CFplnfct | K62: План-Факт отчет о движении денежных средств
... 76 more rows

Sheet Cntrl
F11: =INDIRECT("START!I26") -> Cntrl | I11: =INDIRECT("START!K26") -> Общий контроль финансовой модели
I13: лист | K13: ячейка с контролем | M13: контроль | O13: номер листа | Q13: =Lists!$U$13 -> тип листа | V13: точность
D14: =INDIRECT("Cntrl!M17") -> 0 | E14: =SUM($F14:$PL14) -> 0 | F14: =IFERROR(_xlfn.SHEET($A$1)-SUMIFS(Cntrl!O$15:O$100000,Cntrl!I$15:I$100000,$F$11),1) -> 0 | G14: =SUM(G$15:G$100000) -> 0 | S14: =SUM(S$15:S$100000) -> 0
A15: =ROW() -> 15 | I15: разработка финмоделей: https://mngmnt.ru/
A16: =ROW() -> 16
A17: =ROW() -> 17 | G17: =IF($R17="^",IF(COUNTIF(Lists!$13:$13,H17)=1,0,1),0) -> 0 | H17: Общий контроль | M17: =SUM(M$18:M$100000) -> 0
A18: =ROW() -> 18
A19: =ROW() -> 19 | G19: =IF($R19="^",IF(COUNTIF(Lists!$13:$13,H19)=1,0,1),0) -> 0 | H19: =Lists!$U$13 -> тип листа | I19: =START!I25 -> START | K19: E14 | M19: =IFERROR(INDIRECT($I19&"!"&$K19),1) -> 0 | O19: =_xlfn.SHEET(INDIRECT($I19&"!"&$K19)) -> 1 | P19: * | Q19: технический | R19: ^ | S19: =IF(G19<>0,1,IF(OR($Q19="",$Q19=0),0,IF($R19="^",IF(COUNTIF(INDIRECT(INDEX(Lists!$15:$15,SUMIFS(Lists!$1:$1,Lists!$13:$13,$H19))),$Q19)=1,0,1),0))) -> 0 | U19: * | V19: 0
A20: =ROW() -> 20 | G20: =IF($R20="^",IF(COUNTIF(Lists!$13:$13,H20)=1,0,1),0) -> 0 | H20: =Lists!$U$13 -> тип листа | I20: =START!I26 -> Cntrl | K20: E14 | M20: 0 | O20: 2 | P20: * | Q20: технический | R20: ^ | S20: =IF(G20<>0,1,IF(OR($Q20="",$Q20=0),0,IF($R20="^",IF(COUNTIF(INDIRECT(INDEX(Lists!$15:$15,SUMIFS(Lists!$1:$1,Lists!$13:$13,$H20))),$Q20)=1,0,1),0))) -> 0 | U20: * | V20: 0
A21: =ROW() -> 21 | G21: =IF($R21="^",IF(COUNTIF(Lists!$13:$13,H21)=1,0,1),0) -> 0 | H21: =Lists!$U$13 -> тип листа | I21: =START!I27 -> Periods | K21: E14 | M21: 0 | O21: 3 | P21: * | Q21: расчетный | R21: ^ | S21: =IF(G21<>0,1,IF(OR($Q21="",$Q21=0),0,IF($R21="^",IF(COUNTIF(INDIRECT(INDEX(Lists!$15:$15,SUMIFS(Lists!$1:$1,Lists!$13:$13,$H21))),$Q21)=1,0,1),0))) -> 0 | U21: * | V21: 0
A22: =ROW() -> 22 | G22: =IF($R22="^",IF(COUNTIF(Lists!$13:$13,H22)=1,0,1),0) -> 0 | H22: =Lists!$U$13 -> тип листа | I22: =START!I28 -> Lists | K22: E14 | M22: 0 | O22: 4 | P22: * | Q22: технический | R22: ^ | S22: =IF(G22<>0,1,IF(OR($Q22="",$Q22=0),0,IF($R22="^",IF(COUNTIF(INDIRECT(INDEX(Lists!$15:$15,SUMIFS(Lists!$1:$1,Lists!$13:$13,$H22))),$Q22)=1,0,1),0))) -> 0 | U22: * | V22: 0
A23: =ROW() -> 23 | G23: =IF($R23="^",IF(COUNTIF(Lists!$13:$13,H23)=1,0,1),0) -> 0 | H23: =Lists!$U$13 -> тип листа | I23: =START!I29 -> Macro | K23: E14 | M23: 0 | O23: 5 | P23: * | Q23: расчетный | R23: ^ | S23: =IF(G23<>0,1,IF(OR($Q23="",$Q23=0),0,IF($R23="^",IF(COUNTIF(INDIRECT(INDEX(Lists!$15:$15,SUMIFS(Lists!$1:$1,Lists!$13:$13,$H23))),$Q23)=1,0,1),0))) -> 0 | U23: * | V23: 0
A24: =ROW() -> 24 | G24: =IF($R24="^",IF(COUNTIF(Lists!$13:$13,H24)=1,0,1),0) -> 0 | H24: =Lists!$U$13 -> тип листа | I24: =START!I30 -> Items | K24: E14 | M24: 0 | O24: 6 | P24: * | Q24: технический | R24: ^ | S24: =IF(G24<>0,1,IF(OR($Q24="",$Q24=0),0,IF($R24="^",IF(COUNTIF(INDIRECT(INDEX(Lists!$15:$15,SUMIFS(Lists!$1:$1,Lists!$13:$13,$H24))),$Q24)=1,0,1),0))) -> 0 | U24: * | V24: 0
A25: =ROW() -> 25 | G25: =IF($R25="^",IF(COUNTIF(Lists!$13:$13,H25)=1,0,1),0) -> 0 | H25: =Lists!$U$13 -> тип листа | I25: =START!I31 -> KPI | K25: E14 | M25: 0 | O25: 7 | P25: * | Q25: технический | R25: ^ | S25: =IF(G25<>0,1,IF(OR($Q25="",$Q25=0),0,IF($R25="^",IF(COUNTIF(INDIRECT(INDEX(Lists!$15:$15,SUMIFS(Lists!$1:$1,Lists!$13:$13,$H25))),$Q25)=1,0,1),0))) -> 0 | U25: * | V25: 0
A26: =ROW() -> 26 | G26: =IF($R26="^",IF(COUNTIF(Lists!$13:$13,H26)=1,0,1),0) -> 0 | H26: =Lists!$U$13 -> тип листа | I26: =START!I32 -> Mrkting | K26: E14 | M26: =IFERROR(INDIRECT($I26&"!"&$K26),1) -> 0 | O26: =_xlfn.SHEET(INDIRECT($I26&"!"&$K26)) -> 8 | P26: * | Q26: расчетный | R26: ^ | S26: =IF(G26<>0,1,IF(OR($Q26="",$Q26=0),0,IF($R26="^",IF(COUNTIF(INDIRECT(INDEX(Lists!$15:$15,SUMIFS(Lists!$1:$1,Lists!$13:$13,$H26))),$Q26)=1,0,1),0))) -> 0 | U26: * | V26: 1e-05
A27: =ROW() -> 27 | G27: =IF($R27="^",IF(COUNTIF(Lists!$13:$13,H27)=1,0,1),0) -> 0 | H27: =Lists!$U$13 -> тип листа | I27: =START!I33 -> CapEx | K27: E14 | M27: 0 | O27: 9 | P27: * | Q27: расчетный | R27: ^ | S27: =IF(G27<>0,1,IF(OR($Q27="",$Q27=0),0,IF($R27="^",IF(COUNTIF(INDIRECT(INDEX(Lists!$15:$15,SUMIFS(Lists!$1:$1,Lists!$13:$13,$H27))),$Q27)=1,0,1),0))) -> 0 | U27: * | V27: 1e-05
A28: =ROW() -> 28 | G28: =IF($R28="^",IF(COUNTIF(Lists!$13:$13,H28)=1,0,1),0) -> 0 | H28: =Lists!$U$13 -> тип листа | I28: =START!I34 -> Sales | K28: E14 | M28: 0 | O28: 10 | P28: * | Q28: расчетный | R28: ^ | S28: =IF(G28<>0,1,IF(OR($Q28="",$Q28=0),0,IF($R28="^",IF(COUNTIF(INDIRECT(INDEX(Lists!$15:$15,SUMIFS(Lists!$1:$1,Lists!$13:$13,$H28))),$Q28)=1,0,1),0))) -> 0 | U28: * | V28: 1e-05
A29: =ROW() -> 29 | G29: =IF($R29="^",IF(COUNTIF(Lists!$13:$13,H29)=1,0,1),0) -> 0 | H29: =Lists!$U$13 -> тип листа | I29: =START!I35 -> Prdction | K29: E14 | M29: 0 | O29: 11 | P29: * | Q29: расчетный | R29: ^ | S29: =IF(G29<>0,1,IF(OR($Q29="",$Q29=0),0,IF($R29="^",IF(COUNTIF(INDIRECT(INDEX(Lists!$15:$15,SUMIFS(Lists!$1:$1,Lists!$13:$13,$H29))),$Q29)=1,0,1),0))) -> 0 | U29: * | V29: 1e-05
A30: =ROW() -> 30 | G30: =IF($R30="^",IF(COUNTIF(Lists!$13:$13,H30)=1,0,1),0) -> 0 | H30: =Lists!$U$13 -> тип листа | I30: =START!I36 -> HR | K30: E14 | M30: 0 | O30: 12 | P30: * | Q30: расчетный | R30: ^ | S30: =IF(G30<>0,1,IF(OR($Q30="",$Q30=0),0,IF($R30="^",IF(COUNTIF(INDIRECT(INDEX(Lists!$15:$15,SUMIFS(Lists!$1:$1,Lists!$13:$13,$H30))),$Q30)=1,0,1),0))) -> 0 | U30: * | V30: 1e-05
A31: =ROW() -> 31 | G31: =IF($R31="^",IF(COUNTIF(Lists!$13:$13,H31)=1,0,1),0) -> 0 | H31: =Lists!$U$13 -> тип листа | I31: =START!I37 -> Exp | K31: E14 | M31: 0 | O31: 13 | P31: * | Q31: расчетный | R31: ^ | S31: =IF(G31<>0,1,IF(OR($Q31="",$Q31=0),0,IF($R31="^",IF(COUNTIF(INDIRECT(INDEX(Lists!$15:$15,SUMIFS(Lists!$1:$1,Lists!$13:$13,$H31))),$Q31)=1,0,1),0))) -> 0 | U31: * | V31: 1e-05
A32: =ROW() -> 32 | G32: =IF($R32="^",IF(COUNTIF(Lists!$13:$13,H32)=1,0,1),0) -> 0 | H32: =Lists!$U$13 -> тип листа | I32: =START!I38 -> Credits | K32: E14 | M32: 0 | O32: 14 | P32: * | Q32: расчетный | R32: ^ | S32: =IF(G32<>0,1,IF(OR($Q32="",$Q32=0),0,IF($R32="^",IF(COUNTIF(INDIRECT(INDEX(Lists!$15:$15,SUMIFS(Lists!$1:$1,Lists!$13:$13,$H32))),$Q32)=1,0,1),0))) -> 0 | U32: * | V32: 1e-05
A33: =ROW() -> 33 | G33: =IF($R33="^",IF(COUNTIF(Lists!$13:$13,H33)=1,0,1),0) -> 0 | H33: =Lists!$U$13 -> тип листа | I33: =START!I39 -> PL | K33: E14 | M33: 0 | O33: 15 | P33: * | Q33: отчетный | R33: ^ | S33: =IF(G33<>0,1,IF(OR($Q33="",$Q33=0),0,IF($R33="^",IF(COUNTIF(INDIRECT(INDEX(Lists!$15:$15,SUMIFS(Lists!$1:$1,Lists!$13:$13,$H33))),$Q33)=1,0,1),0))) -> 0 | U33: * | V33: 1e-05
A34: =ROW() -> 34 | G34: =IF($R34="^",IF(COUNTIF(Lists!$13:$13,H34)=1,0,1),0) -> 0 | H34: =Lists!$U$13 -> тип листа | I34: =START!I40 -> CF | K34: E14 | M34: 0 | O34: 16 | P34: * | Q34: отчетный | R34: ^ | S34: =IF(G34<>0,1,IF(OR($Q34="",$Q34=0),0,IF($R34="^",IF(COUNTIF(INDIRECT(INDEX(Lists!$15:$15,SUMIFS(Lists!$1:$1,Lists!$13:$13,$H34))),$Q34)=1,0,1),0))) -> 0 | U34: * | V34: 1e-05
A35: =ROW() -> 35 | G35: =IF($R35="^",IF(COUNTIF(Lists!$13:$13,H35)=1,0,1),0) -> 0 | H35: =Lists!$U$13 -> тип листа | I35: =START!I41 -> BS | K35: E14 | M35: 0 | O35: 17 | P35: * | Q35: отчетный | R35: ^ | S35: =IF(G35<>0,1,IF(OR($Q35="",$Q35=0),0,IF($R35="^",IF(COUNTIF(INDIRECT(INDEX(Lists!$15:$15,SUMIFS(Lists!$1:$1,Lists!$13:$13,$H35))),$Q35)=1,0,1),0))) -> 0 | U35: * | V35: 1e-05
A36: =ROW() -> 36 | G36: =IF($R36="^",IF(COUNTIF(Lists!$13:$13,H36)=1,0,1),0) -> 0 | H36: =Lists!$U$13 -> тип листа | I36: =START!I42 -> MAIN | K36: E14 | M36: 0 | O36: 18 | P36: * | Q36: отчетный | R36: ^ | S36: =IF(G36<>0,1,IF(OR($Q36="",$Q36=0),0,IF($R36="^",IF(COUNTIF(INDIRECT(INDEX(Lists!$15:$15,SUMIFS(Lists!$1:$1,Lists!$13:$13,$H36))),$Q36)=1,0,1),0))) -> 0 | U36: * | V36: 1e-05
A37: =ROW() -> 37 | G37: =IF($R37="^",IF(COUNTIF(Lists!$13:$13,H37)=1,0,1),0) -> 0 | H37: =Lists!$U$13 -> тип листа | I37: =START!I43 -> PLd | K37: E14 | M37: 0 | O37: 19 | P37: * | Q37: расчетный | R37: ^ | S37: =IF(G37<>0,1,IF(OR($Q37="",$Q37=0),0,IF($R37="^",IF(COUNTIF(INDIRECT(INDEX(Lists!$15:$15,SUMIFS(Lists!$1:$1,Lists!$13:$13,$H37))),$Q37)=1,0,1),0))) -> 0 | U37: * | V37: 1e-05
A38: =ROW() -> 38 | G38: =IF($R38="^",IF(COUNTIF(Lists!$13:$13,H38)=1,0,1),0) -> 0 | H38: =Lists!$U$13 -> тип листа | I38: =START!I44 -> CFd | K38: E14 | M38: 0 | O38: 20 | P38: * | Q38: расчетный | R38: ^ | S38: =IF(G38<>0,1,IF(OR($Q38="",$Q38=0),0,IF($R38="^",IF(COUNTIF(INDIRECT(INDEX(Lists!$15:$15,SUMIFS(Lists!$1:$1,Lists!$13:$13,$H38))),$Q38)=1,0,1),0))) -> 0 | U38: * | V38: 1e-05
A39: =ROW() -> 39 | G39: =IF($R39="^",IF(COUNTIF(Lists!$13:$13,H39)=1,0,1),0) -> 0 | H39: =Lists!$U$13 -> тип листа | I39: =START!I45 -> BSd | K39: E14 | M39: 0 | O39: 21 | P39: * | Q39: расчетный | R39: ^ | S39: =IF(G39<>0,1,IF(OR($Q39="",$Q39=0),0,IF($R39="^",IF(COUNTIF(INDIRECT(INDEX(Lists!$15:$15,SUMIFS(Lists!$1:$1,Lists!$13:$13,$H39))),$Q39)=1,0,1),0))) -> 0 | U39: * | V39: 0.001
A40: =ROW() -> 40 | G40: =IF($R40="^",IF(COUNTIF(Lists!$13:$13,H40)=1,0,1),0) -> 0 | H40: =Lists!$U$13 -> тип листа | I40: =START!I46 -> Sens | K40: E14 | M40: 0 | O40: 22 | P40: * | Q40: отчетный | R40: ^ | S40: =IF(G40<>0,1,IF(OR($Q40="",$Q40=0),0,IF($R40="^",IF(COUNTIF(INDIRECT(INDEX(Lists!$15:$15,SUMIFS(Lists!$1:$1,Lists!$13:$13,$H40))),$Q40)=1,0,1),0))) -> 0 | U40: * | V40: 1e-05
A41: =ROW() -> 41 | G41: =IF($R41="^",IF(COUNTIF(Lists!$13:$13,H41)=1,0,1),0) -> 0 | H41: =Lists!$U$13 -> тип листа | I41: =START!I47 -> UnitEc | K41: E14 | M41: 0 | O41: 23 | P41: * | Q41: отчетный | R41: ^ | S41: =IF(G41<>0,1,IF(OR($Q41="",$Q41=0),0,IF($R41="^",IF(COUNTIF(INDIRECT(INDEX(Lists!$15:$15,SUMIFS(Lists!$1:$1,Lists!$13:$13,$H41))),$Q41)=1,0,1),0))) -> 0 | U41: * | V41: 1e-05
A42: =ROW() -> 42 | G42: =IF($R42="^",IF(COUNTIF(Lists!$13:$13,H42)=1,0,1),0) -> 0 | H42: =Lists!$U$13 -> тип листа | I42: =START!I48 -> CFind | K42: E14 | M42: 0 | O42: 24 | P42: * | Q42: отчетный | R42: ^ | S42: =IF(G42<>0,1,IF(OR($Q42="",$Q42=0),0,IF($R42="^",IF(COUNTIF(INDIRECT(INDEX(Lists!$15:$15,SUMIFS(Lists!$1:$1,Lists!$13:$13,$H42))),$Q42)=1,0,1),0))) -> 0 | U42: * | V42: 1e-05
A43: =ROW() -> 43 | G43: =IF($R43="^",IF(COUNTIF(Lists!$13:$13,H43)=1,0,1),0) -> 0 | H43: =Lists!$U$13 -> тип листа | I43: =START!I49 -> FinEcAn | K43: E14 | M43: 0 | O43: 25 | P43: * | Q43: отчетный | R43: ^ | S43: =IF(G43<>0,1,IF(OR($Q43="",$Q43=0),0,IF($R43="^",IF(COUNTIF(INDIRECT(INDEX(Lists!$15:$15,SUMIFS(Lists!$1:$1,Lists!$13:$13,$H43))),$Q43)=1,0,1),0))) -> 0 | U43: * | V43: 1e-05
A44: =ROW() -> 44 | G44: =IF($R44="^",IF(COUNTIF(Lists!$13:$13,H44)=1,0,1),0) -> 0 | H44: =Lists!$U$13 -> тип листа | I44: =START!I50 -> InvAn | K44: E14 | M44: 0 | O44: 26 | P44: * | Q44: отчетный | R44: ^ | S44: =IF(G44<>0,1,IF(OR($Q44="",$Q44=0),0,IF($R44="^",IF(COUNTIF(INDIRECT(INDEX(Lists!$15:$15,SUMIFS(Lists!$1:$1,Lists!$13:$13,$H44))),$Q44)=1,0,1),0))) -> 0 | U44: * | V44: 1e-05
A45: =ROW() -> 45 | G45: =IF($R45="^",IF(COUNTIF(Lists!$13:$13,H45)=1,0,1),0) -> 0 | H45: =Lists!$U$13 -> тип листа | I45: =START!I51 -> EBITDA | K45: E14 | M45: =IFERROR(INDIRECT($I45&"!"&$K45),1) -> 0 | O45: =_xlfn.SHEET(INDIRECT($I45&"!"&$K45)) -> 27 | P45: * | Q45: отчетный | R45: ^ | S45: =IF(G45<>0,1,IF(OR($Q45="",$Q45=0),0,IF($R45="^",IF(COUNTIF(INDIRECT(INDEX(Lists!$15:$15,SUMIFS(Lists!$1:$1,Lists!$13:$13,$H45))),$Q45)=1,0,1),0))) -> 0 | U45: * | V45: 1e-05
A46: =ROW() -> 46 | G46: =IF($R46="^",IF(COUNTIF(Lists!$13:$13,H46)=1,0,1),0) -> 0 | H46: =Lists!$U$13 -> тип листа | I46: =START!I52 -> Rep | K46: E14 | M46: 0 | O46: 28 | P46: * | Q46: отчетный | R46: ^ | S46: =IF(G46<>0,1,IF(OR($Q46="",$Q46=0),0,IF($R46="^",IF(COUNTIF(INDIRECT(INDEX(Lists!$15:$15,SUMIFS(Lists!$1:$1,Lists!$13:$13,$H46))),$Q46)=1,0,1),0))) -> 0 | U46: * | V46: 1e-05
A47: =ROW() -> 47 | G47: =IF($R47="^",IF(COUNTIF(Lists!$13:$13,H47)=1,0,1),0) -> 0 | H47: =Lists!$U$13 -> тип листа | I47: =START!I53 -> Repd | K47: E14 | M47: 0 | O47: 29 | P47: * | Q47: расчетный | R47: ^ | S47: =IF(G47<>0,1,IF(OR($Q47="",$Q47=0),0,IF($R47="^",IF(COUNTIF(INDIRECT(INDEX(Lists!$15:$15,SUMIFS(Lists!$1:$1,Lists!$13:$13,$H47))),$Q47)=1,0,1),0))) -> 0 | U47: * | V47: 0.001
A48: =ROW() -> 48 | G48: =IF($R48="^",IF(COUNTIF(Lists!$13:$13,H48)=1,0,1),0) -> 0 | H48: =Lists!$U$13 -> тип листа | I48: =START!I54 -> Calc | K48: E14 | M48: 0 | O48: 30 | P48: * | Q48: расчетный | R48: ^ | S48: =IF(G48<>0,1,IF(OR($Q48="",$Q48=0),0,IF($R48="^",IF(COUNTIF(INDIRECT(INDEX(Lists!$15:$15,SUMIFS(Lists!$1:$1,Lists!$13:$13,$H48))),$Q48)=1,0,1),0))) -> 0 | U48: * | V48: 0.001
A49: =ROW() -> 49 | G49: =IF($R49="^",IF(COUNTIF(Lists!$13:$13,H49)=1,0,1),0) -> 0 | H49: =Lists!$U$13 -> тип листа | I49: =START!I55 -> PLplan | K49: E14 | M49: 0 | O49: 31 | P49: * | Q49: отчетный | R49: ^ | S49: =IF(G49<>0,1,IF(OR($Q49="",$Q49=0),0,IF($R49="^",IF(COUNTIF(INDIRECT(INDEX(Lists!$15:$15,SUMIFS(Lists!$1:$1,Lists!$13:$13,$H49))),$Q49)=1,0,1),0))) -> 0 | U49: * | V49: 1e-05
A50: =ROW() -> 50 | G50: =IF($R50="^",IF(COUNTIF(Lists!$13:$13,H50)=1,0,1),0) -> 0 | H50: =Lists!$U$13 -> тип листа | I50: =START!I56 -> PLfact | K50: E14 | M50: 0 | O50: 32 | P50: * | Q50: отчетный | R50: ^ | S50: =IF(G50<>0,1,IF(OR($Q50="",$Q50=0),0,IF($R50="^",IF(COUNTIF(INDIRECT(INDEX(Lists!$15:$15,SUMIFS(Lists!$1:$1,Lists!$13:$13,$H50))),$Q50)=1,0,1),0))) -> 0 | U50: * | V50: 1e-05
A51: =ROW() -> 51 | G51: =IF($R51="^",IF(COUNTIF(Lists!$13:$13,H51)=1,0,1),0) -> 0 | H51: =Lists!$U$13 -> тип листа | I51: =START!I57 -> PLplnfct | K51: E14 | M51: 0 | O51: 33 | P51: * | Q51: отчетный | R51: ^ | S51: =IF(G51<>0,1,IF(OR($Q51="",$Q51=0),0,IF($R51="^",IF(COUNTIF(INDIRECT(INDEX(Lists!$15:$15,SUMIFS(Lists!$1:$1,Lists!$13:$13,$H51))),$Q51)=1,0,1),0))) -> 0 | U51: * | V51: 1e-05
A52: =ROW() -> 52 | G52: =IF($R52="^",IF(COUNTIF(Lists!$13:$13,H52)=1,0,1),0) -> 0 | H52: =Lists!$U$13 -> тип листа | I52: =START!I58 -> CRM | K52: E14 | M52: 0 | O52: 34 | P52: * | Q52: отчетный | R52: ^ | S52: =IF(G52<>0,1,IF(OR($Q52="",$Q52=0),0,IF($R52="^",IF(COUNTIF(INDIRECT(INDEX(Lists!$15:$15,SUMIFS(Lists!$1:$1,Lists!$13:$13,$H52))),$Q52)=1,0,1),0))) -> 0 | U52: * | V52: 1e-05
A53: =ROW() -> 53 | G53: =IF($R53="^",IF(COUNTIF(Lists!$13:$13,H53)=1,0,1),0) -> 0 | H53: =Lists!$U$13 -> тип листа | I53: =START!I59 -> BDCRM | K53: E14 | M53: 0 | O53: 35 | P53: * | Q53: отчетный | R53: ^ | S53: =IF(G53<>0,1,IF(OR($Q53="",$Q53=0),0,IF($R53="^",IF(COUNTIF(INDIRECT(INDEX(Lists!$15:$15,SUMIFS(Lists!$1:$1,Lists!$13:$13,$H53))),$Q53)=1,0,1),0))) -> 0 | U53: * | V53: 1e-05
A54: =ROW() -> 54 | G54: =IF($R54="^",IF(COUNTIF(Lists!$13:$13,H54)=1,0,1),0) -> 0 | H54: =Lists!$U$13 -> тип листа | I54: =START!I60 -> CFplan | K54: E14 | M54: 0 | O54: 36 | P54: * | Q54: отчетный | R54: ^ | S54: =IF(G54<>0,1,IF(OR($Q54="",$Q54=0),0,IF($R54="^",IF(COUNTIF(INDIRECT(INDEX(Lists!$15:$15,SUMIFS(Lists!$1:$1,Lists!$13:$13,$H54))),$Q54)=1,0,1),0))) -> 0 | U54: * | V54: 1e-05
A55: =ROW() -> 55 | G55: =IF($R55="^",IF(COUNTIF(Lists!$13:$13,H55)=1,0,1),0) -> 0 | H55: =Lists!$U$13 -> тип листа | I55: =START!I61 -> CFfact | K55: E14 | M55: 0 | O55: 37 | P55: * | Q55: отчетный | R55: ^ | S55: =IF(G55<>0,1,IF(OR($Q55="",$Q55=0),0,IF($R55="^",IF(COUNTIF(INDIRECT(INDEX(Lists!$15:$15,SUMIFS(Lists!$1:$1,Lists!$13:$13,$H55))),$Q55)=1,0,1),0))) -> 0 | U55: * | V55: 1e-05
A56: =ROW() -> 56 | G56: =IF($R56="^",IF(COUNTIF(Lists!$13:$13,H56)=1,0,1),0) -> 0 | H56: =Lists!$U$13 -> тип листа | I56: =START!I62 -> CFplnfct | K56: E14 | M56: 0 | O56: 38 | P56: * | Q56: отчетный | R56: ^ | S56: =IF(G56<>0,1,IF(OR($Q56="",$Q56=0),0,IF($R56="^",IF(COUNTIF(INDIRECT(INDEX(Lists!$15:$15,SUMIFS(Lists!$1:$1,Lists!$13:$13,$H56))),$Q56)=1,0,1),0))) -> 0 | U56: * | V56: 1e-05
A57: =ROW() -> 57
A58: =ROW() -> 58
A59: =ROW() -> 59
A60: =ROW() -> 60
A61: =ROW() -> 61
A62: =ROW() -> 62
A63: =ROW() -> 63
A64: =ROW() -> 64
A65: =ROW() -> 65
A66: =ROW() -> 66
A67: =ROW() -> 67
A68: =ROW() -> 68
A69: =ROW() -> 69
A70: =ROW() -> 70

Sheet Periods
Y1: =START!$K$134 -> номер столбца: | AA1: =COLUMN() -> 27 | AB1: =COLUMN() -> 28 | AC1: =COLUMN() -> 29 | AD1: =COLUMN() -> 30 | AE1: =COLUMN() -> 31 | AF1: =COLUMN() -> 32 | AG1: =COLUMN() -> 33 | AH1: =COLUMN() -> 34 | AI1: =COLUMN() -> 35 | AJ1: =COLUMN() -> 36 | AK1: =COLUMN() -> 37 | AL1: =COLUMN() -> 38 | AM1: =COLUMN() -> 39 | AN1: =COLUMN() -> 40 | AO1: =COLUMN() -> 41 | AP1: =COLUMN() -> 42 | AQ1: =COLUMN() -> 43 | AR1: =COLUMN() -> 44 | AS1: =COLUMN() -> 45 | AT1: =COLUMN() -> 46 | AU1: =COLUMN() -> 47 | AV1: =COLUMN() -> 48 | AW1: =COLUMN() -> 49 | AX1: =COLUMN() -> 50 | AY1: =COLUMN() -> 51 | AZ1: =COLUMN() -> 52 | BA1: =COLUMN() -> 53 | BB1: =COLUMN() -> 54 | BC1: =COLUMN() -> 55 | BD1: =COLUMN() -> 56 | BE1: =COLUMN() -> 57 | BF1: =COLUMN() -> 58 | BG1: =COLUMN() -> 59 | BH1: =COLUMN() -> 60 | BI1: =COLUMN() -> 61 | BJ1: =COLUMN() -> 62 | BK1: =COLUMN() -> 63 | BL1: =COLUMN() -> 64 | BM1: =COLUMN() -> 65 | BN1: =COLUMN() -> 66 | BO1: =COLUMN() -> 67 | BP1: =COLUMN() -> 68 | BQ1: =COLUMN() -> 69 | BR1: =COLUMN() -> 70 | BS1: =COLUMN() -> 71 | BT1: =COLUMN() -> 72 | BU1: =COLUMN() -> 73 | BV1: =COLUMN() -> 74 | BW1: =COLUMN() -> 75 | BX1: =COLUMN() -> 76 | BY1: =COLUMN() -> 77 | BZ1: =COLUMN() -> 78 | CA1: =COLUMN() -> 79 | CB1: =COLUMN() -> 80 | CC1: =COLUMN() -> 81 | CD1: =COLUMN() -> 82 | CE1: =COLUMN() -> 83 | CF1: =COLUMN() -> 84 | CG1: =COLUMN() -> 85 | CH1: =COLUMN() -> 86 | CI1: =COLUMN() -> 87 | CJ1: =COLUMN() -> 88 | CK1: =COLUMN() -> 89 | CL1: =COLUMN() -> 90 | CM1: =COLUMN() -> 91 | CN1: =COLUMN() -> 92 | CO1: =COLUMN() -> 93 | CP1: =COLUMN() -> 94 | CQ1: =COLUMN() -> 95 | CR1: =COLUMN() -> 96 | CS1: =COLUMN() -> 97 | CT1: =COLUMN() -> 98 | CU1: =COLUMN() -> 99
Y2: =START!$K$135 -> номер периода модели: | AA2: =MAX($Z2:Z2)+1 -> 1 | AB2: =MAX($Z2:AA2)+1 -> 2 | AC2: =MAX($Z2:AB2)+1 -> 3 | AD2: =MAX($Z2:AC2)+1 -> 4 | AE2: =MAX($Z2:AD2)+1 -> 5 | AF2: =MAX($Z2:AE2)+1 -> 6 | AG2: =MAX($Z2:AF2)+1 -> 7 | AH2: =MAX($Z2:AG2)+1 -> 8 | AI2: =MAX($Z2:AH2)+1 -> 9 | AJ2: =MAX($Z2:AI2)+1 -> 10 | AK2: =MAX($Z2:AJ2)+1 -> 11 | AL2: =MAX($Z2:AK2)+1 -> 12 | AM2: =MAX($Z2:AL2)+1 -> 13 | AN2: =MAX($Z2:AM2)+1 -> 14 | AO2: =MAX($Z2:AN2)+1 -> 15 | AP2: =MAX($Z2:AO2)+1 -> 16 | AQ2: =MAX($Z2:AP2)+1 -> 17 | AR2: =MAX($Z2:AQ2)+1 -> 18 | AS2: =MAX($Z2:AR2)+1 -> 19 | AT2: =MAX($Z2:AS2)+1 -> 20 | AU2: =MAX($Z2:AT2)+1 -> 21 | AV2: =MAX($Z2:AU2)+1 -> 22 | AW2: =MAX($Z2:AV2)+1 -> 23 | AX2: =MAX($Z2:AW2)+1 -> 24 | AY2: =MAX($Z2:AX2)+1 -> 25 | AZ2: =MAX($Z2:AY2)+1 -> 26 | BA2: =MAX($Z2:AZ2)+1 -> 27 | BB2: =MAX($Z2:BA2)+1 -> 28 | BC2: =MAX($Z2:BB2)+1 -> 29 | BD2: =MAX($Z2:BC2)+1 -> 30 | BE2: =MAX($Z2:BD2)+1 -> 31 | BF2: =MAX($Z2:BE2)+1 -> 32 | BG2: =MAX($Z2:BF2)+1 -> 33 | BH2: =MAX($Z2:BG2)+1 -> 34 | BI2: =MAX($Z2:BH2)+1 -> 35 | BJ2: =MAX($Z2:BI2)+1 -> 36 | BK2: =MAX($Z2:BJ2)+1 -> 37 | BL2: =MAX($Z2:BK2)+1 -> 38 | BM2: =MAX($Z2:BL2)+1 -> 39 | BN2: =MAX($Z2:BM2)+1 -> 40 | BO2: =MAX($Z2:BN2)+1 -> 41 | BP2: =MAX($Z2:BO2)+1 -> 42 | BQ2: =MAX($Z2:BP2)+1 -> 43 | BR2: =MAX($Z2:BQ2)+1 -> 44 | BS2: =MAX($Z2:BR2)+1 -> 45 | BT2: =MAX($Z2:BS2)+1 -> 46 | BU2: =MAX($Z2:BT2)+1 -> 47 | BV2: =MAX($Z2:BU2)+1 -> 48 | BW2: =MAX($Z2:BV2)+1 -> 49 | BX2: =MAX($Z2:BW2)+1 -> 50 | BY2: =MAX($Z2:BX2)+1 -> 51 | BZ2: =MAX($Z2:BY2)+1 -> 52 | CA2: =MAX($Z2:BZ2)+1 -> 53 | CB2: =MAX($Z2:CA2)+1 -> 54 | CC2: =MAX($Z2:CB2)+1 -> 55 | CD2: =MAX($Z2:CC2)+1 -> 56 | CE2: =MAX($Z2:CD2)+1 -> 57 | CF2: =MAX($Z2:CE2)+1 -> 58 | CG2: =MAX($Z2:CF2)+1 -> 59 | CH2: =MAX($Z2:CG2)+1 -> 60 | CI2: =MAX($Z2:CH2)+1 -> 61 | CJ2: =MAX($Z2:CI2)+1 -> 62 | CK2: =MAX($Z2:CJ2)+1 -> 63 | CL2: =MAX($Z2:CK2)+1 -> 64 | CM2: =MAX($Z2:CL2)+1 -> 65 | CN2: =MAX($Z2:CM2)+1 -> 66 | CO2: =MAX($Z2:CN2)+1 -> 67 | CP2: =MAX($Z2:CO2)+1 -> 68 | CQ2: =MAX($Z2:CP2)+1 -> 69 | CR2: =MAX($Z2:CQ2)+1 -> 70 | CS2: =MAX($Z2:CR2)+1 -> 71 | CT2: =MAX($Z2:CS2)+1 -> 72 | CU2: =MAX($Z2:CT2)+1 -> 73
Y3: =START!$K$136 -> номер факт-периода: | AA3: =IF($Q$12=Lists!$U$16,IF(Periods!AA28="","",MAX($Z3:Z3)+1),"") -> 1 | AB3: =IF($Q$12=Lists!$U$16,IF(Periods!AB28="","",MAX($Z3:AA3)+1),"") ->  | AC3: =IF($Q$12=Lists!$U$16,IF(Periods!AC28="","",MAX($Z3:AB3)+1),"") ->  | AD3: =IF($Q$12=Lists!$U$16,IF(Periods!AD28="","",MAX($Z3:AC3)+1),"") ->  | AE3: =IF($Q$12=Lists!$U$16,IF(Periods!AE28="","",MAX($Z3:AD3)+1),"") ->  | AF3: =IF($Q$12=Lists!$U$16,IF(Periods!AF28="","",MAX($Z3:AE3)+1),"") ->  | AG3: =IF($Q$12=Lists!$U$16,IF(Periods!AG28="","",MAX($Z3:AF3)+1),"") ->  | AH3: =IF($Q$12=Lists!$U$16,IF(Periods!AH28="","",MAX($Z3:AG3)+1),"") ->  | AI3: =IF($Q$12=Lists!$U$16,IF(Periods!AI28="","",MAX($Z3:AH3)+1),"") ->  | AJ3: =IF($Q$12=Lists!$U$16,IF(Periods!AJ28="","",MAX($Z3:AI3)+1),"") ->  | AK3: =IF($Q$12=Lists!$U$16,IF(Periods!AK28="","",MAX($Z3:AJ3)+1),"") ->  | AL3: =IF($Q$12=Lists!$U$16,IF(Periods!AL28="","",MAX($Z3:AK3)+1),"") ->  | AM3: =IF($Q$12=Lists!$U$16,IF(Periods!AM28="","",MAX($Z3:AL3)+1),"") ->  | AN3: =IF($Q$12=Lists!$U$16,IF(Periods!AN28="","",MAX($Z3:AM3)+1),"") ->  | AO3: =IF($Q$12=Lists!$U$16,IF(Periods!AO28="","",MAX($Z3:AN3)+1),"") ->  | AP3: =IF($Q$12=Lists!$U$16,IF(Periods!AP28="","",MAX($Z3:AO3)+1),"") ->  | AQ3: =IF($Q$12=Lists!$U$16,IF(Periods!AQ28="","",MAX($Z3:AP3)+1),"") ->  | AR3: =IF($Q$12=Lists!$U$16,IF(Periods!AR28="","",MAX($Z3:AQ3)+1),"") ->  | AS3: =IF($Q$12=Lists!$U$16,IF(Periods!AS28="","",MAX($Z3:AR3)+1),"") ->  | AT3: =IF($Q$12=Lists!$U$16,IF(Periods!AT28="","",MAX($Z3:AS3)+1),"") ->  | AU3: =IF($Q$12=Lists!$U$16,IF(Periods!AU28="","",MAX($Z3:AT3)+1),"") ->  | AV3: =IF($Q$12=Lists!$U$16,IF(Periods!AV28="","",MAX($Z3:AU3)+1),"") ->  | AW3: =IF($Q$12=Lists!$U$16,IF(Periods!AW28="","",MAX($Z3:AV3)+1),"") ->  | AX3: =IF($Q$12=Lists!$U$16,IF(Periods!AX28="","",MAX($Z3:AW3)+1),"") ->  | AY3: =IF($Q$12=Lists!$U$16,IF(Periods!AY28="","",MAX($Z3:AX3)+1),"") ->  | AZ3: =IF($Q$12=Lists!$U$16,IF(Periods!AZ28="","",MAX($Z3:AY3)+1),"") ->  | BA3: =IF($Q$12=Lists!$U$16,IF(Periods!BA28="","",MAX($Z3:AZ3)+1),"") ->  | BB3: =IF($Q$12=Lists!$U$16,IF(Periods!BB28="","",MAX($Z3:BA3)+1),"") ->  | BC3: =IF($Q$12=Lists!$U$16,IF(Periods!BC28="","",MAX($Z3:BB3)+1),"") ->  | BD3: =IF($Q$12=Lists!$U$16,IF(Periods!BD28="","",MAX($Z3:BC3)+1),"") ->  | BE3: =IF($Q$12=Lists!$U$16,IF(Periods!BE28="","",MAX($Z3:BD3)+1),"") ->  | BF3: =IF($Q$12=Lists!$U$16,IF(Periods!BF28="","",MAX($Z3:BE3)+1),"") ->  | BG3: =IF($Q$12=Lists!$U$16,IF(Periods!BG28="","",MAX($Z3:BF3)+1),"") ->  | BH3: =IF($Q$12=Lists!$U$16,IF(Periods!BH28="","",MAX($Z3:BG3)+1),"") ->  | BI3: =IF($Q$12=Lists!$U$16,IF(Periods!BI28="","",MAX($Z3:BH3)+1),"") ->  | BJ3: =IF($Q$12=Lists!$U$16,IF(Periods!BJ28="","",MAX($Z3:BI3)+1),"") ->  | BK3: =IF($Q$12=Lists!$U$16,IF(Periods!BK28="","",MAX($Z3:BJ3)+1),"") ->  | BL3: =IF($Q$12=Lists!$U$16,IF(Periods!BL28="","",MAX($Z3:BK3)+1),"") ->  | BM3: =IF($Q$12=Lists!$U$16,IF(Periods!BM28="","",MAX($Z3:BL3)+1),"") ->  | BN3: =IF($Q$12=Lists!$U$16,IF(Periods!BN28="","",MAX($Z3:BM3)+1),"") ->  | BO3: =IF($Q$12=Lists!$U$16,IF(Periods!BO28="","",MAX($Z3:BN3)+1),"") ->  | BP3: =IF($Q$12=Lists!$U$16,IF(Periods!BP28="","",MAX($Z3:BO3)+1),"") ->  | BQ3: =IF($Q$12=Lists!$U$16,IF(Periods!BQ28="","",MAX($Z3:BP3)+1),"") ->  | BR3: =IF($Q$12=Lists!$U$16,IF(Periods!BR28="","",MAX($Z3:BQ3)+1),"") ->  | BS3: =IF($Q$12=Lists!$U$16,IF(Periods!BS28="","",MAX($Z3:BR3)+1),"") ->  | BT3: =IF($Q$12=Lists!$U$16,IF(Periods!BT28="","",MAX($Z3:BS3)+1),"") ->  | BU3: =IF($Q$12=Lists!$U$16,IF(Periods!BU28="","",MAX($Z3:BT3)+1),"") ->  | BV3: =IF($Q$12=Lists!$U$16,IF(Periods!BV28="","",MAX($Z3:BU3)+1),"") ->  | BW3: =IF($Q$12=Lists!$U$16,IF(Periods!BW28="","",MAX($Z3:BV3)+1),"") ->  | BX3: =IF($Q$12=Lists!$U$16,IF(Periods!BX28="","",MAX($Z3:BW3)+1),"") ->  | BY3: =IF($Q$12=Lists!$U$16,IF(Periods!BY28="","",MAX($Z3:BX3)+1),"") ->  | BZ3: =IF($Q$12=Lists!$U$16,IF(Periods!BZ28="","",MAX($Z3:BY3)+1),"") ->  | CA3: =IF($Q$12=Lists!$U$16,IF(Periods!CA28="","",MAX($Z3:BZ3)+1),"") ->  | CB3: =IF($Q$12=Lists!$U$16,IF(Periods!CB28="","",MAX($Z3:CA3)+1),"") ->  | CC3: =IF($Q$12=Lists!$U$16,IF(Periods!CC28="","",MAX($Z3:CB3)+1),"") ->  | CD3: =IF($Q$12=Lists!$U$16,IF(Periods!CD28="","",MAX($Z3:CC3)+1),"") ->  | CE3: =IF($Q$12=Lists!$U$16,IF(Periods!CE28="","",MAX($Z3:CD3)+1),"") ->  | CF3: =IF($Q$12=Lists!$U$16,IF(Periods!CF28="","",MAX($Z3:CE3)+1),"") ->  | CG3: =IF($Q$12=Lists!$U$16,IF(Periods!CG28="","",MAX($Z3:CF3)+1),"") ->  | CH3: =IF($Q$12=Lists!$U$16,IF(Periods!CH28="","",MAX($Z3:CG3)+1),"") ->  | CI3: =IF($Q$12=Lists!$U$16,IF(Periods!CI28="","",MAX($Z3:CH3)+1),"") ->  | CJ3: =IF($Q$12=Lists!$U$16,IF(Periods!CJ28="","",MAX($Z3:CI3)+1),"") ->  | CK3: =IF($Q$12=Lists!$U$16,IF(Periods!CK28="","",MAX($Z3:CJ3)+1),"") ->  | CL3: =IF($Q$12=Lists!$U$16,IF(Periods!CL28="","",MAX($Z3:CK3)+1),"") ->  | CM3: =IF($Q$12=Lists!$U$16,IF(Periods!CM28="","",MAX($Z3:CL3)+1),"") ->  | CN3: =IF($Q$12=Lists!$U$16,IF(Periods!CN28="","",MAX($Z3:CM3)+1),"") ->  | CO3: =IF($Q$12=Lists!$U$16,IF(Periods!CO28="","",MAX($Z3:CN3)+1),"") ->  | CP3: =IF($Q$12=Lists!$U$16,IF(Periods!CP28="","",MAX($Z3:CO3)+1),"") ->  | CQ3: =IF($Q$12=Lists!$U$16,IF(Periods!CQ28="","",MAX($Z3:CP3)+1),"") ->  | CR3: =IF($Q$12=Lists!$U$16,IF(Periods!CR28="","",MAX($Z3:CQ3)+1),"") ->  | CS3: =IF($Q$12=Lists!$U$16,IF(Periods!CS28="","",MAX($Z3:CR3)+1),"") ->  | CT3: =IF($Q$12=Lists!$U$16,IF(Periods!CT28="","",MAX($Z3:CS3)+1),"") ->  | CU3: =IF($Q$12=Lists!$U$16,IF(Periods!CU28="","",MAX($Z3:CT3)+1),"") -> 
Y4: =START!$K$137 -> номер план-периода: | AA4: =IF(OR(AA3<>"",AA11=""),"",MAX($Z4:Z4)+1) ->  | AB4: =IF(OR(AB3<>"",AB11=""),"",MAX($Z4:AA4)+1) -> 1 | AC4: =IF(OR(AC3<>"",AC11=""),"",MAX($Z4:AB4)+1) -> 2 | AD4: =IF(OR(AD3<>"",AD11=""),"",MAX($Z4:AC4)+1) -> 3 | AE4: =IF(OR(AE3<>"",AE11=""),"",MAX($Z4:AD4)+1) -> 4 | AF4: =IF(OR(AF3<>"",AF11=""),"",MAX($Z4:AE4)+1) -> 5 | AG4: =IF(OR(AG3<>"",AG11=""),"",MAX($Z4:AF4)+1) -> 6 | AH4: =IF(OR(AH3<>"",AH11=""),"",MAX($Z4:AG4)+1) -> 7 | AI4: =IF(OR(AI3<>"",AI11=""),"",MAX($Z4:AH4)+1) -> 8 | AJ4: =IF(OR(AJ3<>"",AJ11=""),"",MAX($Z4:AI4)+1) -> 9 | AK4: =IF(OR(AK3<>"",AK11=""),"",MAX($Z4:AJ4)+1) -> 10 | AL4: =IF(OR(AL3<>"",AL11=""),"",MAX($Z4:AK4)+1) -> 11 | AM4: =IF(OR(AM3<>"",AM11=""),"",MAX($Z4:AL4)+1) -> 12 | AN4: =IF(OR(AN3<>"",AN11=""),"",MAX($Z4:AM4)+1) -> 13 | AO4: =IF(OR(AO3<>"",AO11=""),"",MAX($Z4:AN4)+1) -> 14 | AP4: =IF(OR(AP3<>"",AP11=""),"",MAX($Z4:AO4)+1) -> 15 | AQ4: =IF(OR(AQ3<>"",AQ11=""),"",MAX($Z4:AP4)+1) -> 16 | AR4: =IF(OR(AR3<>"",AR11=""),"",MAX($Z4:AQ4)+1) -> 17 | AS4: =IF(OR(AS3<>"",AS11=""),"",MAX($Z4:AR4)+1) -> 18 | AT4: =IF(OR(AT3<>"",AT11=""),"",MAX($Z4:AS4)+1) -> 19 | AU4: =IF(OR(AU3<>"",AU11=""),"",MAX($Z4:AT4)+1) -> 20 | AV4: =IF(OR(AV3<>"",AV11=""),"",MAX($Z4:AU4)+1) -> 21 | AW4: =IF(OR(AW3<>"",AW11=""),"",MAX($Z4:AV4)+1) -> 22 | AX4: =IF(OR(AX3<>"",AX11=""),"",MAX($Z4:AW4)+1) -> 23 | AY4: =IF(OR(AY3<>"",AY11=""),"",MAX($Z4:AX4)+1) -> 24 | AZ4: =IF(OR(AZ3<>"",AZ11=""),"",MAX($Z4:AY4)+1) -> 25 | BA4: =IF(OR(BA3<>"",BA11=""),"",MAX($Z4:AZ4)+1) -> 26 | BB4: =IF(OR(BB3<>"",BB11=""),"",MAX($Z4:BA4)+1) -> 27 | BC4: =IF(OR(BC3<>"",BC11=""),"",MAX($Z4:BB4)+1) -> 28 | BD4: =IF(OR(BD3<>"",BD11=""),"",MAX($Z4:BC4)+1) -> 29 | BE4: =IF(OR(BE3<>"",BE11=""),"",MAX($Z4:BD4)+1) -> 30 | BF4: =IF(OR(BF3<>"",BF11=""),"",MAX($Z4:BE4)+1) -> 31 | BG4: =IF(OR(BG3<>"",BG11=""),"",MAX($Z4:BF4)+1) -> 32 | BH4: =IF(OR(BH3<>"",BH11=""),"",MAX($Z4:BG4)+1) -> 33 | BI4: =IF(OR(BI3<>"",BI11=""),"",MAX($Z4:BH4)+1) -> 34 | BJ4: =IF(OR(BJ3<>"",BJ11=""),"",MAX($Z4:BI4)+1) -> 35 | BK4: =IF(OR(BK3<>"",BK11=""),"",MAX($Z4:BJ4)+1) -> 36 | BL4: =IF(OR(BL3<>"",BL11=""),"",MAX($Z4:BK4)+1) -> 37 | BM4: =IF(OR(BM3<>"",BM11=""),"",MAX($Z4:BL4)+1) -> 38 | BN4: =IF(OR(BN3<>"",BN11=""),"",MAX($Z4:BM4)+1) -> 39 | BO4: =IF(OR(BO3<>"",BO11=""),"",MAX($Z4:BN4)+1) -> 40 | BP4: =IF(OR(BP3<>"",BP11=""),"",MAX($Z4:BO4)+1) -> 41 | BQ4: =IF(OR(BQ3<>"",BQ11=""),"",MAX($Z4:BP4)+1) -> 42 | BR4: =IF(OR(BR3<>"",BR11=""),"",MAX($Z4:BQ4)+1) -> 43 | BS4: =IF(OR(BS3<>"",BS11=""),"",MAX($Z4:BR4)+1) -> 44 | BT4: =IF(OR(BT3<>"",BT11=""),"",MAX($Z4:BS4)+1) -> 45 | BU4: =IF(OR(BU3<>"",BU11=""),"",MAX($Z4:BT4)+1) -> 46 | BV4: =IF(OR(BV3<>"",BV11=""),"",MAX($Z4:BU4)+1) -> 47 | BW4: =IF(OR(BW3<>"",BW11=""),"",MAX($Z4:BV4)+1) -> 48 | BX4: =IF(OR(BX3<>"",BX11=""),"",MAX($Z4:BW4)+1) -> 49 | BY4: =IF(OR(BY3<>"",BY11=""),"",MAX($Z4:BX4)+1) -> 50 | BZ4: =IF(OR(BZ3<>"",BZ11=""),"",MAX($Z4:BY4)+1) -> 51 | CA4: =IF(OR(CA3<>"",CA11=""),"",MAX($Z4:BZ4)+1) -> 52 | CB4: =IF(OR(CB3<>"",CB11=""),"",MAX($Z4:CA4)+1) -> 53 | CC4: =IF(OR(CC3<>"",CC11=""),"",MAX($Z4:CB4)+1) -> 54 | CD4: =IF(OR(CD3<>"",CD11=""),"",MAX($Z4:CC4)+1) -> 55 | CE4: =IF(OR(CE3<>"",CE11=""),"",MAX($Z4:CD4)+1) -> 56 | CF4: =IF(OR(CF3<>"",CF11=""),"",MAX($Z4:CE4)+1) -> 57 | CG4: =IF(OR(CG3<>"",CG11=""),"",MAX($Z4:CF4)+1) -> 58 | CH4: =IF(OR(CH3<>"",CH11=""),"",MAX($Z4:CG4)+1) -> 59 | CI4: =IF(OR(CI3<>"",CI11=""),"",MAX($Z4:CH4)+1) ->  | CJ4: =IF(OR(CJ3<>"",CJ11=""),"",MAX($Z4:CI4)+1) ->  | CK4: =IF(OR(CK3<>"",CK11=""),"",MAX($Z4:CJ4)+1) ->  | CL4: =IF(OR(CL3<>"",CL11=""),"",MAX($Z4:CK4)+1) ->  | CM4: =IF(OR(CM3<>"",CM11=""),"",MAX($Z4:CL4)+1) ->  | CN4: =IF(OR(CN3<>"",CN11=""),"",MAX($Z4:CM4)+1) ->  | CO4: =IF(OR(CO3<>"",CO11=""),"",MAX($Z4:CN4)+1) ->  | CP4: =IF(OR(CP3<>"",CP11=""),"",MAX($Z4:CO4)+1) ->  | CQ4: =IF(OR(CQ3<>"",CQ11=""),"",MAX($Z4:CP4)+1) ->  | CR4: =IF(OR(CR3<>"",CR11=""),"",MAX($Z4:CQ4)+1) ->  | CS4: =IF(OR(CS3<>"",CS11=""),"",MAX($Z4:CR4)+1) ->  | CT4: =IF(OR(CT3<>"",CT11=""),"",MAX($Z4:CS4)+1) ->  | CU4: =IF(OR(CU3<>"",CU11=""),"",MAX($Z4:CT4)+1) -> 
Y5: =START!$K$138 -> число даты начала: | AA5: =IF(AA11="","",DAY(AA11)) -> 1 | AB5: =IF(AB11="","",DAY(AB11)) -> 1 | AC5: 1 | AD5: 1 | AE5: 1 | AF5: 1 | AG5: 1 | AH5: 1 | AI5: 1 | AJ5: 1 | AK5: 1 | AL5: 1 | AM5: 1 | AN5: 1 | AO5: 1 | AP5: 1 | AQ5: 1 | AR5: 1 | AS5: 1 | AT5: 1 | AU5: 1 | AV5: 1 | AW5: 1 | AX5: 1 | AY5: 1 | AZ5: 1 | BA5: 1 | BB5: 1 | BC5: 1 | BD5: 1 | BE5: 1 | BF5: 1 | BG5: 1 | BH5: 1 | BI5: 1 | BJ5: 1 | BK5: 1 | BL5: 1 | BM5: 1 | BN5: 1 | BO5: 1 | BP5: 1 | BQ5: 1 | BR5: 1 | BS5: 1 | BT5: 1 | BU5: 1 | BV5: 1 | BW5: 1 | BX5: 1 | BY5: 1 | BZ5: 1 | CA5: 1 | CB5: 1 | CC5: 1 | CD5: 1 | CE5: 1 | CF5: 1 | CG5: 1 | CH5: 1 | CN5: =IF(CN11="","",DAY(CN11)) -> 
Y6: =START!$K$139 -> номер месяца даты начала: | AA6: =IF(AA11="","",MONTH(AA11)) -> 1 | AB6: =IF(AB11="","",MONTH(AB11)) -> 4 | AC6: 7 | AD6: 10 | AE6: 1 | AF6: 4 | AG6: 7 | AH6: 10 | AI6: 1 | AJ6: 4 | AK6: 7 | AL6: 10 | AM6: 1 | AN6: 4 | AO6: 7 | AP6: 10 | AQ6: 1 | AR6: 4 | AS6: 7 | AT6: 10 | AU6: 1 | AV6: 4 | AW6: 7 | AX6: 10 | AY6: 1 | AZ6: 4 | BA6: 7 | BB6: 10 | BC6: 1 | BD6: 4 | BE6: 7 | BF6: 10 | BG6: 1 | BH6: 4 | BI6: 7 | BJ6: 10 | BK6: 1 | BL6: 4 | BM6: 7 | BN6: 10 | BO6: 1 | BP6: 4 | BQ6: 7 | BR6: 10 | BS6: 1 | BT6: 4 | BU6: 7 | BV6: 10 | BW6: 1 | BX6: 4 | BY6: 7 | BZ6: 10 | CA6: 1 | CB6: 4 | CC6: 7 | CD6: 10 | CE6: 1 | CF6: 4 | CG6: 7 | CH6: 10 | CN6: =IF(CN11="","",MONTH(CN11)) -> 
Y7: =START!$K$140 -> год даты начала: | AA7: =IF(AA11="","",YEAR(AA11)-2000) -> 21 | AB7: =IF(AB11="","",YEAR(AB11)-2000) -> 21 | AC7: 21 | AD7: 21 | AE7: 22 | AF7: 22 | AG7: 22 | AH7: 22 | AI7: 23 | AJ7: 23 | AK7: 23 | AL7: 23 | AM7: 24 | AN7: 24 | AO7: 24 | AP7: 24 | AQ7: 25 | AR7: 25 | AS7: 25 | AT7: 25 | AU7: 26 | AV7: 26 | AW7: 26 | AX7: 26 | AY7: 27 | AZ7: 27 | BA7: 27 | BB7: 27 | BC7: 28 | BD7: 28 | BE7: 28 | BF7: 28 | BG7: 29 | BH7: 29 | BI7: 29 | BJ7: 29 | BK7: 30 | BL7: 30 | BM7: 30 | BN7: 30 | BO7: 31 | BP7: 31 | BQ7: 31 | BR7: 31 | BS7: 32 | BT7: 32 | BU7: 32 | BV7: 32 | BW7: 33 | BX7: 33 | BY7: 33 | BZ7: 33 | CA7: 34 | CB7: 34 | CC7: 34 | CD7: 34 | CE7: 35 | CF7: 35 | CG7: 35 | CH7: 35 | CN7: =IF(CN11="","",YEAR(CN11)-2000) -> 
Y8: =START!$K$141 -> число даты окончания: | AA8: =IF(AA12="","",DAY(AA12)) -> 31 | AB8: =IF(AB12="","",DAY(AB12)) -> 30 | AC8: 30 | AD8: 31 | AE8: 31 | AF8: 30 | AG8: 30 | AH8: 31 | AI8: 31 | AJ8: 30 | AK8: 30 | AL8: 31 | AM8: 31 | AN8: 30 | AO8: 30 | AP8: 31 | AQ8: 31 | AR8: 30 | AS8: 30 | AT8: 31 | AU8: 31 | AV8: 30 | AW8: 30 | AX8: 31 | AY8: 31 | AZ8: 30 | BA8: 30 | BB8: 31 | BC8: 31 | BD8: 30 | BE8: 30 | BF8: 31 | BG8: 31 | BH8: 30 | BI8: 30 | BJ8: 31 | BK8: 31 | BL8: 30 | BM8: 30 | BN8: 31 | BO8: 31 | BP8: 30 | BQ8: 30 | BR8: 31 | BS8: 31 | BT8: 30 | BU8: 30 | BV8: 31 | BW8: 31 | BX8: 30 | BY8: 30 | BZ8: 31 | CA8: 31 | CB8: 30 | CC8: 30 | CD8: 31 | CE8: 31 | CF8: 30 | CG8: 30 | CH8: 31 | CN8: =IF(CN12="","",DAY(CN12)) -> 
Y9: =START!$K$142 -> номер месяца даты окончания: | AA9: =IF(AA12="","",MONTH(AA12)) -> 3 | AB9: =IF(AB12="","",MONTH(AB12)) -> 6 | AC9: 9 | AD9: 12 | AE9: 3 | AF9: 6 | AG9: 9 | AH9: 12 | AI9: 3 | AJ9: 6 | AK9: 9 | AL9: 12 | AM9: 3 | AN9: 6 | AO9: 9 | AP9: 12 | AQ9: 3 | AR9: 6 | AS9: 9 | AT9: 12 | AU9: 3 | AV9: 6 | AW9: 9 | AX9: 12 | AY9: 3 | AZ9: 6 | BA9: 9 | BB9: 12 | BC9: 3 | BD9: 6 | BE9: 9 | BF9: 12 | BG9: 3 | BH9: 6 | BI9: 9 | BJ9: 12 | BK9: 3 | BL9: 6 | BM9: 9 | BN9: 12 | BO9: 3 | BP9: 6 | BQ9: 9 | BR9: 12 | BS9: 3 | BT9: 6 | BU9: 9 | BV9: 12 | BW9: 3 | BX9: 6 | BY9: 9 | BZ9: 12 | CA9: 3 | CB9: 6 | CC9: 9 | CD9: 12 | CE9: 3 | CF9: 6 | CG9: 9 | CH9: 12 | CN9: =IF(CN12="","",MONTH(CN12)) -> 
Y10: =START!$K$143 -> год даты окончания: | AA10: =IF(AA12="","",YEAR(AA12)-2000) -> 21 | AB10: =IF(AB12="","",YEAR(AB12)-2000) -> 21 | AC10: 21 | AD10: 21 | AE10: 22 | AF10: 22 | AG10: 22 | AH10: 22 | AI10: 23 | AJ10: 23 | AK10: 23 | AL10: 23 | AM10: 24 | AN10: 24 | AO10: 24 | AP10: 24 | AQ10: 25 | AR10: 25 | AS10: 25 | AT10: 25 | AU10: 26 | AV10: 26 | AW10: 26 | AX10: 26 | AY10: 27 | AZ10: 27 | BA10: 27 | BB10: 27 | BC10: 28 | BD10: 28 | BE10: 28 | BF10: 28 | BG10: 29 | BH10: 29 | BI10: 29 | BJ10: 29 | BK10: 30 | BL10: 30 | BM10: 30 | BN10: 30 | BO10: 31 | BP10: 31 | BQ10: 31 | BR10: 31 | BS10: 32 | BT10: 32 | BU10: 32 | BV10: 32 | BW10: 33 | BX10: 33 | BY10: 33 | BZ10: 33 | CA10: 34 | CB10: 34 | CC10: 34 | CD10: 34 | CE10: 35 | CF10: 35 | CG10: 35 | CH10: 35 | CN10: =IF(CN12="","",YEAR(CN12)-2000) -> 
F11: =INDIRECT("START!I27") -> Periods | I11: =INDIRECT("START!K27") -> Периоды и горизонты моделирования фактических и прогнозных данных | X11: =IF($Q$12=Lists!$U$16,IF(Periods!X20="","",Periods!X20),IF($Q$12=Lists!$U$17,IF(Periods!X35="","",Periods!X35),"")) -> 2021-01-01 | AA11: =IF($Q$12=Lists!$U$16,IF(Periods!AA20="","",Periods!AA20),IF($Q$12=Lists!$U$17,IF(Periods!AA35="","",Periods!AA35),"")) -> 2021-01-01 | AB11: =IF($Q$12=Lists!$U$16,IF(Periods!AB20="","",Periods!AB20),IF($Q$12=Lists!$U$17,IF(Periods!AB35="","",Periods!AB35),"")) -> 2021-04-01 | AC11: =IF($Q$12=Lists!$U$16,IF(Periods!AC20="","",Periods!AC20),IF($Q$12=Lists!$U$17,IF(Periods!AC35="","",Periods!AC35),"")) -> 2021-07-01 | AD11: =IF($Q$12=Lists!$U$16,IF(Periods!AD20="","",Periods!AD20),IF($Q$12=Lists!$U$17,IF(Periods!AD35="","",Periods!AD35),"")) -> 2021-10-01 | AE11: =IF($Q$12=Lists!$U$16,IF(Periods!AE20="","",Periods!AE20),IF($Q$12=Lists!$U$17,IF(Periods!AE35="","",Periods!AE35),"")) -> 2022-01-01 | AF11: =IF($Q$12=Lists!$U$16,IF(Periods!AF20="","",Periods!AF20),IF($Q$12=Lists!$U$17,IF(Periods!AF35="","",Periods!AF35),"")) -> 2022-04-01 | AG11: =IF($Q$12=Lists!$U$16,IF(Periods!AG20="","",Periods!AG20),IF($Q$12=Lists!$U$17,IF(Periods!AG35="","",Periods!AG35),"")) -> 2022-07-01 | AH11: =IF($Q$12=Lists!$U$16,IF(Periods!AH20="","",Periods!AH20),IF($Q$12=Lists!$U$17,IF(Periods!AH35="","",Periods!AH35),"")) -> 2022-10-01 | AI11: =IF($Q$12=Lists!$U$16,IF(Periods!AI20="","",Periods!AI20),IF($Q$12=Lists!$U$17,IF(Periods!AI35="","",Periods!AI35),"")) -> 2023-01-01 | AJ11: =IF($Q$12=Lists!$U$16,IF(Periods!AJ20="","",Periods!AJ20),IF($Q$12=Lists!$U$17,IF(Periods!AJ35="","",Periods!AJ35),"")) -> 2023-04-01 | AK11: =IF($Q$12=Lists!$U$16,IF(Periods!AK20="","",Periods!AK20),IF($Q$12=Lists!$U$17,IF(Periods!AK35="","",Periods!AK35),"")) -> 2023-07-01 | AL11: =IF($Q$12=Lists!$U$16,IF(Periods!AL20="","",Periods!AL20),IF($Q$12=Lists!$U$17,IF(Periods!AL35="","",Periods!AL35),"")) -> 2023-10-01 | AM11: =IF($Q$12=Lists!$U$16,IF(Periods!AM20="","",Periods!AM20),IF($Q$12=Lists!$U$17,IF(Periods!AM35="","",Periods!AM35),"")) -> 2024-01-01 | AN11: =IF($Q$12=Lists!$U$16,IF(Periods!AN20="","",Periods!AN20),IF($Q$12=Lists!$U$17,IF(Periods!AN35="","",Periods!AN35),"")) -> 2024-04-01 | AO11: =IF($Q$12=Lists!$U$16,IF(Periods!AO20="","",Periods!AO20),IF($Q$12=Lists!$U$17,IF(Periods!AO35="","",Periods!AO35),"")) -> 2024-07-01 | AP11: =IF($Q$12=Lists!$U$16,IF(Periods!AP20="","",Periods!AP20),IF($Q$12=Lists!$U$17,IF(Periods!AP35="","",Periods!AP35),"")) -> 2024-10-01 | AQ11: =IF($Q$12=Lists!$U$16,IF(Periods!AQ20="","",Periods!AQ20),IF($Q$12=Lists!$U$17,IF(Periods!AQ35="","",Periods!AQ35),"")) -> 2025-01-01 | AR11: =IF($Q$12=Lists!$U$16,IF(Periods!AR20="","",Periods!AR20),IF($Q$12=Lists!$U$17,IF(Periods!AR35="","",Periods!AR35),"")) -> 2025-04-01 | AS11: =IF($Q$12=Lists!$U$16,IF(Periods!AS20="","",Periods!AS20),IF($Q$12=Lists!$U$17,IF(Periods!AS35="","",Periods!AS35),"")) -> 2025-07-01 | AT11: =IF($Q$12=Lists!$U$16,IF(Periods!AT20="","",Periods!AT20),IF($Q$12=Lists!$U$17,IF(Periods!AT35="","",Periods!AT35),"")) -> 2025-10-01 | AU11: =IF($Q$12=Lists!$U$16,IF(Periods!AU20="","",Periods!AU20),IF($Q$12=Lists!$U$17,IF(Periods!AU35="","",Periods!AU35),"")) -> 2026-01-01 | AV11: =IF($Q$12=Lists!$U$16,IF(Periods!AV20="","",Periods!AV20),IF($Q$12=Lists!$U$17,IF(Periods!AV35="","",Periods!AV35),"")) -> 2026-04-01 | AW11: =IF($Q$12=Lists!$U$16,IF(Periods!AW20="","",Periods!AW20),IF($Q$12=Lists!$U$17,IF(Periods!AW35="","",Periods!AW35),"")) -> 2026-07-01 | AX11: =IF($Q$12=Lists!$U$16,IF(Periods!AX20="","",Periods!AX20),IF($Q$12=Lists!$U$17,IF(Periods!AX35="","",Periods!AX35),"")) -> 2026-10-01 | AY11: =IF($Q$12=Lists!$U$16,IF(Periods!AY20="","",Periods!AY20),IF($Q$12=Lists!$U$17,IF(Periods!AY35="","",Periods!AY35),"")) -> 2027-01-01 | AZ11: =IF($Q$12=Lists!$U$16,IF(Periods!AZ20="","",Periods!AZ20),IF($Q$12=Lists!$U$17,IF(Periods!AZ35="","",Periods!AZ35),"")) -> 2027-04-01 | BA11: =IF($Q$12=Lists!$U$16,IF(Periods!BA20="","",Periods!BA20),IF($Q$12=Lists!$U$17,IF(Periods!BA35="","",Periods!BA35),"")) -> 2027-07-01 | BB11: =IF($Q$12=Lists!$U$16,IF(Periods!BB20="","",Periods!BB20),IF($Q$12=Lists!$U$17,IF(Periods!BB35="","",Periods!BB35),"")) -> 2027-10-01 | BC11: =IF($Q$12=Lists!$U$16,IF(Periods!BC20="","",Periods!BC20),IF($Q$12=Lists!$U$17,IF(Periods!BC35="","",Periods!BC35),"")) -> 2028-01-01 | BD11: =IF($Q$12=Lists!$U$16,IF(Periods!BD20="","",Periods!BD20),IF($Q$12=Lists!$U$17,IF(Periods!BD35="","",Periods!BD35),"")) -> 2028-04-01 | BE11: =IF($Q$12=Lists!$U$16,IF(Periods!BE20="","",Periods!BE20),IF($Q$12=Lists!$U$17,IF(Periods!BE35="","",Periods!BE35),"")) -> 2028-07-01 | BF11: =IF($Q$12=Lists!$U$16,IF(Periods!BF20="","",Periods!BF20),IF($Q$12=Lists!$U$17,IF(Periods!BF35="","",Periods!BF35),"")) -> 2028-10-01 | BG11: =IF($Q$12=Lists!$U$16,IF(Periods!BG20="","",Periods!BG20),IF($Q$12=Lists!$U$17,IF(Periods!BG35="","",Periods!BG35),"")) -> 2029-01-01 | BH11: =IF($Q$12=Lists!$U$16,IF(Periods!BH20="","",Periods!BH20),IF($Q$12=Lists!$U$17,IF(Periods!BH35="","",Periods!BH35),"")) -> 2029-04-01 | BI11: =IF($Q$12=Lists!$U$16,IF(Periods!BI20="","",Periods!BI20),IF($Q$12=Lists!$U$17,IF(Periods!BI35="","",Periods!BI35),"")) -> 2029-07-01 | BJ11: =IF($Q$12=Lists!$U$16,IF(Periods!BJ20="","",Periods!BJ20),IF($Q$12=Lists!$U$17,IF(Periods!BJ35="","",Periods!BJ35),"")) -> 2029-10-01 | BK11: =IF($Q$12=Lists!$U$16,IF(Periods!BK20="","",Periods!BK20),IF($Q$12=Lists!$U$17,IF(Periods!BK35="","",Periods!BK35),"")) -> 2030-01-01 | BL11: =IF($Q$12=Lists!$U$16,IF(Periods!BL20="","",Periods!BL20),IF($Q$12=Lists!$U$17,IF(Periods!BL35="","",Periods!BL35),"")) -> 2030-04-01 | BM11: =IF($Q$12=Lists!$U$16,IF(Periods!BM20="","",Periods!BM20),IF($Q$12=Lists!$U$17,IF(Periods!BM35="","",Periods!BM35),"")) -> 2030-07-01 | BN11: =IF($Q$12=Lists!$U$16,IF(Periods!BN20="","",Periods!BN20),IF($Q$12=Lists!$U$17,IF(Periods!BN35="","",Periods!BN35),"")) -> 2030-10-01 | BO11: =IF($Q$12=Lists!$U$16,IF(Periods!BO20="","",Periods!BO20),IF($Q$12=Lists!$U$17,IF(Periods!BO35="","",Periods!BO35),"")) -> 2031-01-01 | BP11: =IF($Q$12=Lists!$U$16,IF(Periods!BP20="","",Periods!BP20),IF($Q$12=Lists!$U$17,IF(Periods!BP35="","",Periods!BP35),"")) -> 2031-04-01 | BQ11: =IF($Q$12=Lists!$U$16,IF(Periods!BQ20="","",Periods!BQ20),IF($Q$12=Lists!$U$17,IF(Periods!BQ35="","",Periods!BQ35),"")) -> 2031-07-01 | BR11: =IF($Q$12=Lists!$U$16,IF(Periods!BR20="","",Periods!BR20),IF($Q$12=Lists!$U$17,IF(Periods!BR35="","",Periods!BR35),"")) -> 2031-10-01 | BS11: =IF($Q$12=Lists!$U$16,IF(Periods!BS20="","",Periods!BS20),IF($Q$12=Lists!$U$17,IF(Periods!BS35="","",Periods!BS35),"")) -> 2032-01-01 | BT11: =IF($Q$12=Lists!$U$16,IF(Periods!BT20="","",Periods!BT20),IF($Q$12=Lists!$U$17,IF(Periods!BT35="","",Periods!BT35),"")) -> 2032-04-01 | BU11: =IF($Q$12=Lists!$U$16,IF(Periods!BU20="","",Periods!BU20),IF($Q$12=Lists!$U$17,IF(Periods!BU35="","",Periods!BU35),"")) -> 2032-07-01 | BV11: =IF($Q$12=Lists!$U$16,IF(Periods!BV20="","",Periods!BV20),IF($Q$12=Lists!$U$17,IF(Periods!BV35="","",Periods!BV35),"")) -> 2032-10-01 | BW11: =IF($Q$12=Lists!$U$16,IF(Periods!BW20="","",Periods!BW20),IF($Q$12=Lists!$U$17,IF(Periods!BW35="","",Periods!BW35),"")) -> 2033-01-01 | BX11: =IF($Q$12=Lists!$U$16,IF(Periods!BX20="","",Periods!BX20),IF($Q$12=Lists!$U$17,IF(Periods!BX35="","",Periods!BX35),"")) -> 2033-04-01 | BY11: =IF($Q$12=Lists!$U$16,IF(Periods!BY20="","",Periods!BY20),IF($Q$12=Lists!$U$17,IF(Periods!BY35="","",Periods!BY35),"")) -> 2033-07-01 | BZ11: =IF($Q$12=Lists!$U$16,IF(Periods!BZ20="","",Periods!BZ20),IF($Q$12=Lists!$U$17,IF(Periods!BZ35="","",Periods!BZ35),"")) -> 2033-10-01 | CA11: =IF($Q$12=Lists!$U$16,IF(Periods!CA20="","",Periods!CA20),IF($Q$12=Lists!$U$17,IF(Periods!CA35="","",Periods!CA35),"")) -> 2034-01-01 | CB11: =IF($Q$12=Lists!$U$16,IF(Periods!CB20="","",Periods!CB20),IF($Q$12=Lists!$U$17,IF(Periods!CB35="","",Periods!CB35),"")) -> 2034-04-01 | CC11: =IF($Q$12=Lists!$U$16,IF(Periods!CC20="","",Periods!CC20),IF($Q$12=Lists!$U$17,IF(Periods!CC35="","",Periods!CC35),"")) -> 2034-07-01 | CD11: =IF($Q$12=Lists!$U$16,IF(Periods!CD20="","",Periods!CD20),IF($Q$12=Lists!$U$17,IF(Periods!CD35="","",Periods!CD35),"")) -> 2034-10-01 | CE11: =IF($Q$12=Lists!$U$16,IF(Periods!CE20="","",Periods!CE20),IF($Q$12=Lists!$U$17,IF(Periods!CE35="","",Periods!CE35),"")) -> 2035-01-01 | CF11: =IF($Q$12=Lists!$U$16,IF(Periods!CF20="","",Periods!CF20),IF($Q$12=Lists!$U$17,IF(Periods!CF35="","",Periods!CF35),"")) -> 2035-04-01 | CG11: =IF($Q$12=Lists!$U$16,IF(Periods!CG20="","",Periods!CG20),IF($Q$12=Lists!$U$17,IF(Periods!CG35="","",Periods!CG35),"")) -> 2035-07-01 | CH11: =IF($Q$12=Lists!$U$16,IF(Periods!CH20="","",Periods!CH20),IF($Q$12=Lists!$U$17,IF(Periods!CH35="","",Periods!CH35),"")) -> 2035-10-01 | CI11: =IF($Q$12=Lists!$U$16,IF(Periods!CI20="","",Periods!CI20),IF($Q$12=Lists!$U$17,IF(Periods!CI35="","",Periods!CI35),"")) ->  | CJ11: =IF($Q$12=Lists!$U$16,IF(Periods!CJ20="","",Periods!CJ20),IF($Q$12=Lists!$U$17,IF(Periods!CJ35="","",Periods!CJ35),"")) ->  | CK11: =IF($Q$12=Lists!$U$16,IF(Periods!CK20="","",Periods!CK20),IF($Q$12=Lists!$U$17,IF(Periods!CK35="","",Periods!CK35),"")) ->  | CL11: =IF($Q$12=Lists!$U$16,IF(Periods!CL20="","",Periods!CL20),IF($Q$12=Lists!$U$17,IF(Periods!CL35="","",Periods!CL35),"")) ->  | CM11: =IF($Q$12=Lists!$U$16,IF(Periods!CM20="","",Periods!CM20),IF($Q$12=Lists!$U$17,IF(Periods!CM35="","",Periods!CM35),"")) ->  | CN11: =IF($Q$12=Lists!$U$16,IF(Periods!CN20="","",Periods!CN20),IF($Q$12=Lists!$U$17,IF(Periods!CN35="","",Periods!CN35),"")) ->  | CO11: =IF($Q$12=Lists!$U$16,IF(Periods!CO20="","",Periods!CO20),IF($Q$12=Lists!$U$17,IF(Periods!CO35="","",Periods!CO35),"")) ->  | CP11: =IF($Q$12=Lists!$U$16,IF(Periods!CP20="","",Periods!CP20),IF($Q$12=Lists!$U$17,IF(Periods!CP35="","",Periods!CP35),"")) ->  | CQ11: =IF($Q$12=Lists!$U$16,IF(Periods!CQ20="","",Periods!CQ20),IF($Q$12=Lists!$U$17,IF(Periods!CQ35="","",Periods!CQ35),"")) ->  | CR11: =IF($Q$12=Lists!$U$16,IF(Periods!CR20="","",Periods!CR20),IF($Q$12=Lists!$U$17,IF(Periods!CR35="","",Periods!CR35),"")) ->  | CS11: =IF($Q$12=Lists!$U$16,IF(Periods!CS20="","",Periods!CS20),IF($Q$12=Lists!$U$17,IF(Periods!CS35="","",Periods!CS35),"")) ->  | CT11: =IF($Q$12=Lists!$U$16,IF(Periods!CT20="","",Periods!CT20),IF($Q$12=Lists!$U$17,IF(Periods!CT35="","",Periods!CT35),"")) ->  | CU11: =IF($Q$12=Lists!$U$16,IF(Periods!CU20="","",Periods!CU20),IF($Q$12=Lists!$U$17,IF(Periods!CU35="","",Periods!CU35),"")) -> 
H12: =Lists!$U$13 -> тип листа | Q12: =INDEX(Cntrl!$Q:$Q,SUMIFS(Cntrl!$A:$A,Cntrl!$I:$I,$F$11)) -> расчетный | X12: =IF($Q$12=Lists!$U$16,IF(Periods!X21="","",Periods!X21),IF($Q$12=Lists!$U$17,IF(Periods!X36="","",Periods!X36),"")) -> 2035-12-31 | AA12: =IF($Q$12=Lists!$U$16,IF(Periods!AA21="","",Periods!AA21),IF($Q$12=Lists!$U$17,IF(Periods!AA36="","",Periods!AA36),"")) -> 2021-03-31 | AB12: =IF($Q$12=Lists!$U$16,IF(Periods!AB21="","",Periods!AB21),IF($Q$12=Lists!$U$17,IF(Periods!AB36="","",Periods!AB36),"")) -> 2021-06-30 | AC12: =IF($Q$12=Lists!$U$16,IF(Periods!AC21="","",Periods!AC21),IF($Q$12=Lists!$U$17,IF(Periods!AC36="","",Periods!AC36),"")) -> 2021-09-30 | AD12: =IF($Q$12=Lists!$U$16,IF(Periods!AD21="","",Periods!AD21),IF($Q$12=Lists!$U$17,IF(Periods!AD36="","",Periods!AD36),"")) -> 2021-12-31 | AE12: =IF($Q$12=Lists!$U$16,IF(Periods!AE21="","",Periods!AE21),IF($Q$12=Lists!$U$17,IF(Periods!AE36="","",Periods!AE36),"")) -> 2022-03-31 | AF12: =IF($Q$12=Lists!$U$16,IF(Periods!AF21="","",Periods!AF21),IF($Q$12=Lists!$U$17,IF(Periods!AF36="","",Periods!AF36),"")) -> 2022-06-30 | AG12: =IF($Q$12=Lists!$U$16,IF(Periods!AG21="","",Periods!AG21),IF($Q$12=Lists!$U$17,IF(Periods!AG36="","",Periods!AG36),"")) -> 2022-09-30 | AH12: =IF($Q$12=Lists!$U$16,IF(Periods!AH21="","",Periods!AH21),IF($Q$12=Lists!$U$17,IF(Periods!AH36="","",Periods!AH36),"")) -> 2022-12-31 | AI12: =IF($Q$12=Lists!$U$16,IF(Periods!AI21="","",Periods!AI21),IF($Q$12=Lists!$U$17,IF(Periods!AI36="","",Periods!AI36),"")) -> 2023-03-31 | AJ12: =IF($Q$12=Lists!$U$16,IF(Periods!AJ21="","",Periods!AJ21),IF($Q$12=Lists!$U$17,IF(Periods!AJ36="","",Periods!AJ36),"")) -> 2023-06-30 | AK12: =IF($Q$12=Lists!$U$16,IF(Periods!AK21="","",Periods!AK21),IF($Q$12=Lists!$U$17,IF(Periods!AK36="","",Periods!AK36),"")) -> 2023-09-30 | AL12: =IF($Q$12=Lists!$U$16,IF(Periods!AL21="","",Periods!AL21),IF($Q$12=Lists!$U$17,IF(Periods!AL36="","",Periods!AL36),"")) -> 2023-12-31 | AM12: =IF($Q$12=Lists!$U$16,IF(Periods!AM21="","",Periods!AM21),IF($Q$12=Lists!$U$17,IF(Periods!AM36="","",Periods!AM36),"")) -> 2024-03-31 | AN12: =IF($Q$12=Lists!$U$16,IF(Periods!AN21="","",Periods!AN21),IF($Q$12=Lists!$U$17,IF(Periods!AN36="","",Periods!AN36),"")) -> 2024-06-30 | AO12: =IF($Q$12=Lists!$U$16,IF(Periods!AO21="","",Periods!AO21),IF($Q$12=Lists!$U$17,IF(Periods!AO36="","",Periods!AO36),"")) -> 2024-09-30 | AP12: =IF($Q$12=Lists!$U$16,IF(Periods!AP21="","",Periods!AP21),IF($Q$12=Lists!$U$17,IF(Periods!AP36="","",Periods!AP36),"")) -> 2024-12-31 | AQ12: =IF($Q$12=Lists!$U$16,IF(Periods!AQ21="","",Periods!AQ21),IF($Q$12=Lists!$U$17,IF(Periods!AQ36="","",Periods!AQ36),"")) -> 2025-03-31 | AR12: =IF($Q$12=Lists!$U$16,IF(Periods!AR21="","",Periods!AR21),IF($Q$12=Lists!$U$17,IF(Periods!AR36="","",Periods!AR36),"")) -> 2025-06-30 | AS12: =IF($Q$12=Lists!$U$16,IF(Periods!AS21="","",Periods!AS21),IF($Q$12=Lists!$U$17,IF(Periods!AS36="","",Periods!AS36),"")) -> 2025-09-30 | AT12: =IF($Q$12=Lists!$U$16,IF(Periods!AT21="","",Periods!AT21),IF($Q$12=Lists!$U$17,IF(Periods!AT36="","",Periods!AT36),"")) -> 2025-12-31 | AU12: =IF($Q$12=Lists!$U$16,IF(Periods!AU21="","",Periods!AU21),IF($Q$12=Lists!$U$17,IF(Periods!AU36="","",Periods!AU36),"")) -> 2026-03-31 | AV12: =IF($Q$12=Lists!$U$16,IF(Periods!AV21="","",Periods!AV21),IF($Q$12=Lists!$U$17,IF(Periods!AV36="","",Periods!AV36),"")) -> 2026-06-30 | AW12: =IF($Q$12=Lists!$U$16,IF(Periods!AW21="","",Periods!AW21),IF($Q$12=Lists!$U$17,IF(Periods!AW36="","",Periods!AW36),"")) -> 2026-09-30 | AX12: =IF($Q$12=Lists!$U$16,IF(Periods!AX21="","",Periods!AX21),IF($Q$12=Lists!$U$17,IF(Periods!AX36="","",Periods!AX36),"")) -> 2026-12-31 | AY12: =IF($Q$12=Lists!$U$16,IF(Periods!AY21="","",Periods!AY21),IF($Q$12=Lists!$U$17,IF(Periods!AY36="","",Periods!AY36),"")) -> 2027-03-31 | AZ12: =IF($Q$12=Lists!$U$16,IF(Periods!AZ21="","",Periods!AZ21),IF($Q$12=Lists!$U$17,IF(Periods!AZ36="","",Periods!AZ36),"")) -> 2027-06-30 | BA12: =IF($Q$12=Lists!$U$16,IF(Periods!BA21="","",Periods!BA21),IF($Q$12=Lists!$U$17,IF(Periods!BA36="","",Periods!BA36),"")) -> 2027-09-30 | BB12: =IF($Q$12=Lists!$U$16,IF(Periods!BB21="","",Periods!BB21),IF($Q$12=Lists!$U$17,IF(Periods!BB36="","",Periods!BB36),"")) -> 2027-12-31 | BC12: =IF($Q$12=Lists!$U$16,IF(Periods!BC21="","",Periods!BC21),IF($Q$12=Lists!$U$17,IF(Periods!BC36="","",Periods!BC36),"")) -> 2028-03-31 | BD12: =IF($Q$12=Lists!$U$16,IF(Periods!BD21="","",Periods!BD21),IF($Q$12=Lists!$U$17,IF(Periods!BD36="","",Periods!BD36),"")) -> 2028-06-30 | BE12: =IF($Q$12=Lists!$U$16,IF(Periods!BE21="","",Periods!BE21),IF($Q$12=Lists!$U$17,IF(Periods!BE36="","",Periods!BE36),"")) -> 2028-09-30 | BF12: =IF($Q$12=Lists!$U$16,IF(Periods!BF21="","",Periods!BF21),IF($Q$12=Lists!$U$17,IF(Periods!BF36="","",Periods!BF36),"")) -> 2028-12-31 | BG12: =IF($Q$12=Lists!$U$16,IF(Periods!BG21="","",Periods!BG21),IF($Q$12=Lists!$U$17,IF(Periods!BG36="","",Periods!BG36),"")) -> 2029-03-31 | BH12: =IF($Q$12=Lists!$U$16,IF(Periods!BH21="","",Periods!BH21),IF($Q$12=Lists!$U$17,IF(Periods!BH36="","",Periods!BH36),"")) -> 2029-06-30 | BI12: =IF($Q$12=Lists!$U$16,IF(Periods!BI21="","",Periods!BI21),IF($Q$12=Lists!$U$17,IF(Periods!BI36="","",Periods!BI36),"")) -> 2029-09-30 | BJ12: =IF($Q$12=Lists!$U$16,IF(Periods!BJ21="","",Periods!BJ21),IF($Q$12=Lists!$U$17,IF(Periods!BJ36="","",Periods!BJ36),"")) -> 2029-12-31 | BK12: =IF($Q$12=Lists!$U$16,IF(Periods!BK21="","",Periods!BK21),IF($Q$12=Lists!$U$17,IF(Periods!BK36="","",Periods!BK36),"")) -> 2030-03-31 | BL12: =IF($Q$12=Lists!$U$16,IF(Periods!BL21="","",Periods!BL21),IF($Q$12=Lists!$U$17,IF(Periods!BL36="","",Periods!BL36),"")) -> 2030-06-30 | BM12: =IF($Q$12=Lists!$U$16,IF(Periods!BM21="","",Periods!BM21),IF($Q$12=Lists!$U$17,IF(Periods!BM36="","",Periods!BM36),"")) -> 2030-09-30 | BN12: =IF($Q$12=Lists!$U$16,IF(Periods!BN21="","",Periods!BN21),IF($Q$12=Lists!$U$17,IF(Periods!BN36="","",Periods!BN36),"")) -> 2030-12-31 | BO12: =IF($Q$12=Lists!$U$16,IF(Periods!BO21="","",Periods!BO21),IF($Q$12=Lists!$U$17,IF(Periods!BO36="","",Periods!BO36),"")) -> 2031-03-31 | BP12: =IF($Q$12=Lists!$U$16,IF(Periods!BP21="","",Periods!BP21),IF($Q$12=Lists!$U$17,IF(Periods!BP36="","",Periods!BP36),"")) -> 2031-06-30 | BQ12: =IF($Q$12=Lists!$U$16,IF(Periods!BQ21="","",Periods!BQ21),IF($Q$12=Lists!$U$17,IF(Periods!BQ36="","",Periods!BQ36),"")) -> 2031-09-30 | BR12: =IF($Q$12=Lists!$U$16,IF(Periods!BR21="","",Periods!BR21),IF($Q$12=Lists!$U$17,IF(Periods!BR36="","",Periods!BR36),"")) -> 2031-12-31 | BS12: =IF($Q$12=Lists!$U$16,IF(Periods!BS21="","",Periods!BS21),IF($Q$12=Lists!$U$17,IF(Periods!BS36="","",Periods!BS36),"")) -> 2032-03-31 | BT12: =IF($Q$12=Lists!$U$16,IF(Periods!BT21="","",Periods!BT21),IF($Q$12=Lists!$U$17,IF(Periods!BT36="","",Periods!BT36),"")) -> 2032-06-30 | BU12: =IF($Q$12=Lists!$U$16,IF(Periods!BU21="","",Periods!BU21),IF($Q$12=Lists!$U$17,IF(Periods!BU36="","",Periods!BU36),"")) -> 2032-09-30 | BV12: =IF($Q$12=Lists!$U$16,IF(Periods!BV21="","",Periods!BV21),IF($Q$12=Lists!$U$17,IF(Periods!BV36="","",Periods!BV36),"")) -> 2032-12-31 | BW12: =IF($Q$12=Lists!$U$16,IF(Periods!BW21="","",Periods!BW21),IF($Q$12=Lists!$U$17,IF(Periods!BW36="","",Periods!BW36),"")) -> 2033-03-31 | BX12: =IF($Q$12=Lists!$U$16,IF(Periods!BX21="","",Periods!BX21),IF($Q$12=Lists!$U$17,IF(Periods!BX36="","",Periods!BX36),"")) -> 2033-06-30 | BY12: =IF($Q$12=Lists!$U$16,IF(Periods!BY21="","",Periods!BY21),IF($Q$12=Lists!$U$17,IF(Periods!BY36="","",Periods!BY36),"")) -> 2033-09-30 | BZ12: =IF($Q$12=Lists!$U$16,IF(Periods!BZ21="","",Periods!BZ21),IF($Q$12=Lists!$U$17,IF(Periods!BZ36="","",Periods!BZ36),"")) -> 2033-12-31 | CA12: =IF($Q$12=Lists!$U$16,IF(Periods!CA21="","",Periods!CA21),IF($Q$12=Lists!$U$17,IF(Periods!CA36="","",Periods!CA36),"")) -> 2034-03-31 | CB12: =IF($Q$12=Lists!$U$16,IF(Periods!CB21="","",Periods!CB21),IF($Q$12=Lists!$U$17,IF(Periods!CB36="","",Periods!CB36),"")) -> 2034-06-30 | CC12: =IF($Q$12=Lists!$U$16,IF(Periods!CC21="","",Periods!CC21),IF($Q$12=Lists!$U$17,IF(Periods!CC36="","",Periods!CC36),"")) -> 2034-09-30 | CD12: =IF($Q$12=Lists!$U$16,IF(Periods!CD21="","",Periods!CD21),IF($Q$12=Lists!$U$17,IF(Periods!CD36="","",Periods!CD36),"")) -> 2034-12-31 | CE12: =IF($Q$12=Lists!$U$16,IF(Periods!CE21="","",Periods!CE21),IF($Q$12=Lists!$U$17,IF(Periods!CE36="","",Periods!CE36),"")) -> 2035-03-31 | CF12: =IF($Q$12=Lists!$U$16,IF(Periods!CF21="","",Periods!CF21),IF($Q$12=Lists!$U$17,IF(Periods!CF36="","",Periods!CF36),"")) -> 2035-06-30 | CG12: =IF($Q$12=Lists!$U$16,IF(Periods!CG21="","",Periods!CG21),IF($Q$12=Lists!$U$17,IF(Periods!CG36="","",Periods!CG36),"")) -> 2035-09-30 | CH12: =IF($Q$12=Lists!$U$16,IF(Periods!CH21="","",Periods!CH21),IF($Q$12=Lists!$U$17,IF(Periods!CH36="","",Periods!CH36),"")) -> 2035-12-31 | CI12: =IF($Q$12=Lists!$U$16,IF(Periods!CI21="","",Periods!CI21),IF($Q$12=Lists!$U$17,IF(Periods!CI36="","",Periods!CI36),"")) ->  | CJ12: =IF($Q$12=Lists!$U$16,IF(Periods!CJ21="","",Periods!CJ21),IF($Q$12=Lists!$U$17,IF(Periods!CJ36="","",Periods!CJ36),"")) ->  | CK12: =IF($Q$12=Lists!$U$16,IF(Periods!CK21="","",Periods!CK21),IF($Q$12=Lists!$U$17,IF(Periods!CK36="","",Periods!CK36),"")) ->  | CL12: =IF($Q$12=Lists!$U$16,IF(Periods!CL21="","",Periods!CL21),IF($Q$12=Lists!$U$17,IF(Periods!CL36="","",Periods!CL36),"")) ->  | CM12: =IF($Q$12=Lists!$U$16,IF(Periods!CM21="","",Periods!CM21),IF($Q$12=Lists!$U$17,IF(Periods!CM36="","",Periods!CM36),"")) ->  | CN12: =IF($Q$12=Lists!$U$16,IF(Periods!CN21="","",Periods!CN21),IF($Q$12=Lists!$U$17,IF(Periods!CN36="","",Periods!CN36),"")) ->  | CO12: =IF($Q$12=Lists!$U$16,IF(Periods!CO21="","",Periods!CO21),IF($Q$12=Lists!$U$17,IF(Periods!CO36="","",Periods!CO36),"")) ->  | CP12: =IF($Q$12=Lists!$U$16,IF(Periods!CP21="","",Periods!CP21),IF($Q$12=Lists!$U$17,IF(Periods!CP36="","",Periods!CP36),"")) ->  | CQ12: =IF($Q$12=Lists!$U$16,IF(Periods!CQ21="","",Periods!CQ21),IF($Q$12=Lists!$U$17,IF(Periods!CQ36="","",Periods!CQ36),"")) ->  | CR12: =IF($Q$12=Lists!$U$16,IF(Periods!CR21="","",Periods!CR21),IF($Q$12=Lists!$U$17,IF(Periods!CR36="","",Periods!CR36),"")) ->  | CS12: =IF($Q$12=Lists!$U$16,IF(Periods!CS21="","",Periods!CS21),IF($Q$12=Lists!$U$17,IF(Periods!CS36="","",Periods!CS36),"")) ->  | CT12: =IF($Q$12=Lists!$U$16,IF(Periods!CT21="","",Periods!CT21),IF($Q$12=Lists!$U$17,IF(Periods!CT36="","",Periods!CT36),"")) ->  | CU12: =IF($Q$12=Lists!$U$16,IF(Periods!CU21="","",Periods!CU21),IF($Q$12=Lists!$U$17,IF(Periods!CU36="","",Periods!CU36),"")) -> 
H13: показатель | Q13: значение | X13: итого | AA13: =IF($Q$12=Lists!$U$16,IF(Periods!AA22="","",Periods!AA22),IF($Q$12=Lists!$U$17,IF(Periods!AA37="","",Periods!AA37),"")) -> 1кв21г | AB13: =IF($Q$12=Lists!$U$16,IF(Periods!AB22="","",Periods!AB22),IF($Q$12=Lists!$U$17,IF(Periods!AB37="","",Periods!AB37),"")) -> 2кв21г | AC13: =IF($Q$12=Lists!$U$16,IF(Periods!AC22="","",Periods!AC22),IF($Q$12=Lists!$U$17,IF(Periods!AC37="","",Periods!AC37),"")) -> 3кв21г | AD13: =IF($Q$12=Lists!$U$16,IF(Periods!AD22="","",Periods!AD22),IF($Q$12=Lists!$U$17,IF(Periods!AD37="","",Periods!AD37),"")) -> 4кв21г | AE13: =IF($Q$12=Lists!$U$16,IF(Periods!AE22="","",Periods!AE22),IF($Q$12=Lists!$U$17,IF(Periods!AE37="","",Periods!AE37),"")) -> 1кв22г | AF13: =IF($Q$12=Lists!$U$16,IF(Periods!AF22="","",Periods!AF22),IF($Q$12=Lists!$U$17,IF(Periods!AF37="","",Periods!AF37),"")) -> 2кв22г | AG13: =IF($Q$12=Lists!$U$16,IF(Periods!AG22="","",Periods!AG22),IF($Q$12=Lists!$U$17,IF(Periods!AG37="","",Periods!AG37),"")) -> 3кв22г | AH13: =IF($Q$12=Lists!$U$16,IF(Periods!AH22="","",Periods!AH22),IF($Q$12=Lists!$U$17,IF(Periods!AH37="","",Periods!AH37),"")) -> 4кв22г | AI13: =IF($Q$12=Lists!$U$16,IF(Periods!AI22="","",Periods!AI22),IF($Q$12=Lists!$U$17,IF(Periods!AI37="","",Periods!AI37),"")) -> 1кв23г | AJ13: =IF($Q$12=Lists!$U$16,IF(Periods!AJ22="","",Periods!AJ22),IF($Q$12=Lists!$U$17,IF(Periods!AJ37="","",Periods!AJ37),"")) -> 2кв23г | AK13: =IF($Q$12=Lists!$U$16,IF(Periods!AK22="","",Periods!AK22),IF($Q$12=Lists!$U$17,IF(Periods!AK37="","",Periods!AK37),"")) -> 3кв23г | AL13: =IF($Q$12=Lists!$U$16,IF(Periods!AL22="","",Periods!AL22),IF($Q$12=Lists!$U$17,IF(Periods!AL37="","",Periods!AL37),"")) -> 4кв23г | AM13: =IF($Q$12=Lists!$U$16,IF(Periods!AM22="","",Periods!AM22),IF($Q$12=Lists!$U$17,IF(Periods!AM37="","",Periods!AM37),"")) -> 1кв24г | AN13: =IF($Q$12=Lists!$U$16,IF(Periods!AN22="","",Periods!AN22),IF($Q$12=Lists!$U$17,IF(Periods!AN37="","",Periods!AN37),"")) -> 2кв24г | AO13: =IF($Q$12=Lists!$U$16,IF(Periods!AO22="","",Periods!AO22),IF($Q$12=Lists!$U$17,IF(Periods!AO37="","",Periods!AO37),"")) -> 3кв24г | AP13: =IF($Q$12=Lists!$U$16,IF(Periods!AP22="","",Periods!AP22),IF($Q$12=Lists!$U$17,IF(Periods!AP37="","",Periods!AP37),"")) -> 4кв24г | AQ13: =IF($Q$12=Lists!$U$16,IF(Periods!AQ22="","",Periods!AQ22),IF($Q$12=Lists!$U$17,IF(Periods!AQ37="","",Periods!AQ37),"")) -> 1кв25г | AR13: =IF($Q$12=Lists!$U$16,IF(Periods!AR22="","",Periods!AR22),IF($Q$12=Lists!$U$17,IF(Periods!AR37="","",Periods!AR37),"")) -> 2кв25г | AS13: =IF($Q$12=Lists!$U$16,IF(Periods!AS22="","",Periods!AS22),IF($Q$12=Lists!$U$17,IF(Periods!AS37="","",Periods!AS37),"")) -> 3кв25г | AT13: =IF($Q$12=Lists!$U$16,IF(Periods!AT22="","",Periods!AT22),IF($Q$12=Lists!$U$17,IF(Periods!AT37="","",Periods!AT37),"")) -> 4кв25г | AU13: =IF($Q$12=Lists!$U$16,IF(Periods!AU22="","",Periods!AU22),IF($Q$12=Lists!$U$17,IF(Periods!AU37="","",Periods!AU37),"")) -> 1кв26г | AV13: =IF($Q$12=Lists!$U$16,IF(Periods!AV22="","",Periods!AV22),IF($Q$12=Lists!$U$17,IF(Periods!AV37="","",Periods!AV37),"")) -> 2кв26г | AW13: =IF($Q$12=Lists!$U$16,IF(Periods!AW22="","",Periods!AW22),IF($Q$12=Lists!$U$17,IF(Periods!AW37="","",Periods!AW37),"")) -> 3кв26г | AX13: =IF($Q$12=Lists!$U$16,IF(Periods!AX22="","",Periods!AX22),IF($Q$12=Lists!$U$17,IF(Periods!AX37="","",Periods!AX37),"")) -> 4кв26г | AY13: =IF($Q$12=Lists!$U$16,IF(Periods!AY22="","",Periods!AY22),IF($Q$12=Lists!$U$17,IF(Periods!AY37="","",Periods!AY37),"")) -> 1кв27г | AZ13: =IF($Q$12=Lists!$U$16,IF(Periods!AZ22="","",Periods!AZ22),IF($Q$12=Lists!$U$17,IF(Periods!AZ37="","",Periods!AZ37),"")) -> 2кв27г | BA13: =IF($Q$12=Lists!$U$16,IF(Periods!BA22="","",Periods!BA22),IF($Q$12=Lists!$U$17,IF(Periods!BA37="","",Periods!BA37),"")) -> 3кв27г | BB13: =IF($Q$12=Lists!$U$16,IF(Periods!BB22="","",Periods!BB22),IF($Q$12=Lists!$U$17,IF(Periods!BB37="","",Periods!BB37),"")) -> 4кв27г | BC13: =IF($Q$12=Lists!$U$16,IF(Periods!BC22="","",Periods!BC22),IF($Q$12=Lists!$U$17,IF(Periods!BC37="","",Periods!BC37),"")) -> 1кв28г | BD13: =IF($Q$12=Lists!$U$16,IF(Periods!BD22="","",Periods!BD22),IF($Q$12=Lists!$U$17,IF(Periods!BD37="","",Periods!BD37),"")) -> 2кв28г | BE13: =IF($Q$12=Lists!$U$16,IF(Periods!BE22="","",Periods!BE22),IF($Q$12=Lists!$U$17,IF(Periods!BE37="","",Periods!BE37),"")) -> 3кв28г | BF13: =IF($Q$12=Lists!$U$16,IF(Periods!BF22="","",Periods!BF22),IF($Q$12=Lists!$U$17,IF(Periods!BF37="","",Periods!BF37),"")) -> 4кв28г | BG13: =IF($Q$12=Lists!$U$16,IF(Periods!BG22="","",Periods!BG22),IF($Q$12=Lists!$U$17,IF(Periods!BG37="","",Periods!BG37),"")) -> 1кв29г | BH13: =IF($Q$12=Lists!$U$16,IF(Periods!BH22="","",Periods!BH22),IF($Q$12=Lists!$U$17,IF(Periods!BH37="","",Periods!BH37),"")) -> 2кв29г | BI13: =IF($Q$12=Lists!$U$16,IF(Periods!BI22="","",Periods!BI22),IF($Q$12=Lists!$U$17,IF(Periods!BI37="","",Periods!BI37),"")) -> 3кв29г | BJ13: =IF($Q$12=Lists!$U$16,IF(Periods!BJ22="","",Periods!BJ22),IF($Q$12=Lists!$U$17,IF(Periods!BJ37="","",Periods!BJ37),"")) -> 4кв29г | BK13: =IF($Q$12=Lists!$U$16,IF(Periods!BK22="","",Periods!BK22),IF($Q$12=Lists!$U$17,IF(Periods!BK37="","",Periods!BK37),"")) -> 1кв30г | BL13: =IF($Q$12=Lists!$U$16,IF(Periods!BL22="","",Periods!BL22),IF($Q$12=Lists!$U$17,IF(Periods!BL37="","",Periods!BL37),"")) -> 2кв30г | BM13: =IF($Q$12=Lists!$U$16,IF(Periods!BM22="","",Periods!BM22),IF($Q$12=Lists!$U$17,IF(Periods!BM37="","",Periods!BM37),"")) -> 3кв30г | BN13: =IF($Q$12=Lists!$U$16,IF(Periods!BN22="","",Periods!BN22),IF($Q$12=Lists!$U$17,IF(Periods!BN37="","",Periods!BN37),"")) -> 4кв30г | BO13: =IF($Q$12=Lists!$U$16,IF(Periods!BO22="","",Periods!BO22),IF($Q$12=Lists!$U$17,IF(Periods!BO37="","",Periods!BO37),"")) -> 1кв31г | BP13: =IF($Q$12=Lists!$U$16,IF(Periods!BP22="","",Periods!BP22),IF($Q$12=Lists!$U$17,IF(Periods!BP37="","",Periods!BP37),"")) -> 2кв31г | BQ13: =IF($Q$12=Lists!$U$16,IF(Periods!BQ22="","",Periods!BQ22),IF($Q$12=Lists!$U$17,IF(Periods!BQ37="","",Periods!BQ37),"")) -> 3кв31г | BR13: =IF($Q$12=Lists!$U$16,IF(Periods!BR22="","",Periods!BR22),IF($Q$12=Lists!$U$17,IF(Periods!BR37="","",Periods!BR37),"")) -> 4кв31г | BS13: =IF($Q$12=Lists!$U$16,IF(Periods!BS22="","",Periods!BS22),IF($Q$12=Lists!$U$17,IF(Periods!BS37="","",Periods!BS37),"")) -> 1кв32г | BT13: =IF($Q$12=Lists!$U$16,IF(Periods!BT22="","",Periods!BT22),IF($Q$12=Lists!$U$17,IF(Periods!BT37="","",Periods!BT37),"")) -> 2кв32г | BU13: =IF($Q$12=Lists!$U$16,IF(Periods!BU22="","",Periods!BU22),IF($Q$12=Lists!$U$17,IF(Periods!BU37="","",Periods!BU37),"")) -> 3кв32г | BV13: =IF($Q$12=Lists!$U$16,IF(Periods!BV22="","",Periods!BV22),IF($Q$12=Lists!$U$17,IF(Periods!BV37="","",Periods!BV37),"")) -> 4кв32г | BW13: =IF($Q$12=Lists!$U$16,IF(Periods!BW22="","",Periods!BW22),IF($Q$12=Lists!$U$17,IF(Periods!BW37="","",Periods!BW37),"")) -> 1кв33г | BX13: =IF($Q$12=Lists!$U$16,IF(Periods!BX22="","",Periods!BX22),IF($Q$12=Lists!$U$17,IF(Periods!BX37="","",Periods!BX37),"")) -> 2кв33г | BY13: =IF($Q$12=Lists!$U$16,IF(Periods!BY22="","",Periods!BY22),IF($Q$12=Lists!$U$17,IF(Periods!BY37="","",Periods!BY37),"")) -> 3кв33г | BZ13: =IF($Q$12=Lists!$U$16,IF(Periods!BZ22="","",Periods!BZ22),IF($Q$12=Lists!$U$17,IF(Periods!BZ37="","",Periods!BZ37),"")) -> 4кв33г | CA13: =IF($Q$12=Lists!$U$16,IF(Periods!CA22="","",Periods!CA22),IF($Q$12=Lists!$U$17,IF(Periods!CA37="","",Periods!CA37),"")) -> 1кв34г | CB13: =IF($Q$12=Lists!$U$16,IF(Periods!CB22="","",Periods!CB22),IF($Q$12=Lists!$U$17,IF(Periods!CB37="","",Periods!CB37),"")) -> 2кв34г | CC13: =IF($Q$12=Lists!$U$16,IF(Periods!CC22="","",Periods!CC22),IF($Q$12=Lists!$U$17,IF(Periods!CC37="","",Periods!CC37),"")) -> 3кв34г | CD13: =IF($Q$12=Lists!$U$16,IF(Periods!CD22="","",Periods!CD22),IF($Q$12=Lists!$U$17,IF(Periods!CD37="","",Periods!CD37),"")) -> 4кв34г | CE13: =IF($Q$12=Lists!$U$16,IF(Periods!CE22="","",Periods!CE22),IF($Q$12=Lists!$U$17,IF(Periods!CE37="","",Periods!CE37),"")) -> 1кв35г | CF13: =IF($Q$12=Lists!$U$16,IF(Periods!CF22="","",Periods!CF22),IF($Q$12=Lists!$U$17,IF(Periods!CF37="","",Periods!CF37),"")) -> 2кв35г | CG13: =IF($Q$12=Lists!$U$16,IF(Periods!CG22="","",Periods!CG22),IF($Q$12=Lists!$U$17,IF(Periods!CG37="","",Periods!CG37),"")) -> 3кв35г | CH13: =IF($Q$12=Lists!$U$16,IF(Periods!CH22="","",Periods!CH22),IF($Q$12=Lists!$U$17,IF(Periods!CH37="","",Periods!CH37),"")) -> 4кв35г | CI13: =IF($Q$12=Lists!$U$16,IF(Periods!CI22="","",Periods!CI22),IF($Q$12=Lists!$U$17,IF(Periods!CI37="","",Periods!CI37),"")) ->  | CJ13: =IF($Q$12=Lists!$U$16,IF(Periods!CJ22="","",Periods!CJ22),IF($Q$12=Lists!$U$17,IF(Periods!CJ37="","",Periods!CJ37),"")) ->  | CK13: =IF($Q$12=Lists!$U$16,IF(Periods!CK22="","",Periods!CK22),IF($Q$12=Lists!$U$17,IF(Periods!CK37="","",Periods!CK37),"")) ->  | CL13: =IF($Q$12=Lists!$U$16,IF(Periods!CL22="","",Periods!CL22),IF($Q$12=Lists!$U$17,IF(Periods!CL37="","",Periods!CL37),"")) ->  | CM13: =IF($Q$12=Lists!$U$16,IF(Periods!CM22="","",Periods!CM22),IF($Q$12=Lists!$U$17,IF(Periods!CM37="","",Periods!CM37),"")) ->  | CN13: =IF($Q$12=Lists!$U$16,IF(Periods!CN22="","",Periods!CN22),IF($Q$12=Lists!$U$17,IF(Periods!CN37="","",Periods!CN37),"")) ->  | CO13: =IF($Q$12=Lists!$U$16,IF(Periods!CO22="","",Periods!CO22),IF($Q$12=Lists!$U$17,IF(Periods!CO37="","",Periods!CO37),"")) ->  | CP13: =IF($Q$12=Lists!$U$16,IF(Periods!CP22="","",Periods!CP22),IF($Q$12=Lists!$U$17,IF(Periods!CP37="","",Periods!CP37),"")) ->  | CQ13: =IF($Q$12=Lists!$U$16,IF(Periods!CQ22="","",Periods!CQ22),IF($Q$12=Lists!$U$17,IF(Periods!CQ37="","",Periods!CQ37),"")) ->  | CR13: =IF($Q$12=Lists!$U$16,IF(Periods!CR22="","",Periods!CR22),IF($Q$12=Lists!$U$17,IF(Periods!CR37="","",Periods!CR37),"")) ->  | CS13: =IF($Q$12=Lists!$U$16,IF(Periods!CS22="","",Periods!CS22),IF($Q$12=Lists!$U$17,IF(Periods!CS37="","",Periods!CS37),"")) ->  | CT13: =IF($Q$12=Lists!$U$16,IF(Periods!CT22="","",Periods!CT22),IF($Q$12=Lists!$U$17,IF(Periods!CT37="","",Periods!CT37),"")) ->  | CU13: =IF($Q$12=Lists!$U$16,IF(Periods!CU22="","",Periods!CU22),IF($Q$12=Lists!$U$17,IF(Periods!CU37="","",Periods!CU37),"")) -> 
D14: =INDIRECT("Cntrl!M17") -> 0 | E14: =SUM($F14:$CW14) -> 0 | F14: =IFERROR(_xlfn.SHEET($A$1)-SUMIFS(Cntrl!O$15:O$100000,Cntrl!I$15:I$100000,$F$11),1) -> 0 | G14: =SUM(G$15:G$100000) -> 0 | S14: =SUM(S$15:S$100000) -> 0
A15: =ROW() -> 15 | H15: разработка финмоделей: https://mngmnt.ru/
A16: =ROW() -> 16 | G16: =IF($R16="^",IF(COUNTIF(Lists!$13:$13,H16)=1,0,1),0) -> 0 | H16: =Lists!$I$13 -> минимальный период расчетов | P16: M | Q16: =MAIN!Q77 -> квартал | R16: ^ | S16: =IF(G16<>0,1,IF(OR($Q16="",$Q16=0),0,IF($R16="^",IF(COUNTIF(INDIRECT(INDEX(Lists!$15:$15,SUMIFS(Lists!$1:$1,Lists!$13:$13,$H16))),$Q16)=1,0,1),0))) -> 0 | Y16: =START!$K$135 -> номер периода модели: | AA16: =MAX($Z16:Z16)+1 -> 1 | AB16: =MAX($Z16:AA16)+1 -> 2 | AC16: =MAX($Z16:AB16)+1 -> 3 | AD16: =MAX($Z16:AC16)+1 -> 4 | AE16: =MAX($Z16:AD16)+1 -> 5 | AF16: =MAX($Z16:AE16)+1 -> 6 | AG16: =MAX($Z16:AF16)+1 -> 7 | AH16: =MAX($Z16:AG16)+1 -> 8 | AI16: =MAX($Z16:AH16)+1 -> 9 | AJ16: =MAX($Z16:AI16)+1 -> 10 | AK16: =MAX($Z16:AJ16)+1 -> 11 | AL16: =MAX($Z16:AK16)+1 -> 12 | AM16: =MAX($Z16:AL16)+1 -> 13 | AN16: =MAX($Z16:AM16)+1 -> 14 | AO16: =MAX($Z16:AN16)+1 -> 15 | AP16: =MAX($Z16:AO16)+1 -> 16 | AQ16: =MAX($Z16:AP16)+1 -> 17 | AR16: =MAX($Z16:AQ16)+1 -> 18 | AS16: =MAX($Z16:AR16)+1 -> 19 | AT16: =MAX($Z16:AS16)+1 -> 20 | AU16: =MAX($Z16:AT16)+1 -> 21 | AV16: =MAX($Z16:AU16)+1 -> 22 | AW16: =MAX($Z16:AV16)+1 -> 23 | AX16: =MAX($Z16:AW16)+1 -> 24 | AY16: =MAX($Z16:AX16)+1 -> 25 | AZ16: =MAX($Z16:AY16)+1 -> 26 | BA16: =MAX($Z16:AZ16)+1 -> 27 | BB16: =MAX($Z16:BA16)+1 -> 28 | BC16: =MAX($Z16:BB16)+1 -> 29 | BD16: =MAX($Z16:BC16)+1 -> 30 | BE16: =MAX($Z16:BD16)+1 -> 31 | BF16: =MAX($Z16:BE16)+1 -> 32 | BG16: =MAX($Z16:BF16)+1 -> 33 | BH16: =MAX($Z16:BG16)+1 -> 34 | BI16: =MAX($Z16:BH16)+1 -> 35 | BJ16: =MAX($Z16:BI16)+1 -> 36 | BK16: =MAX($Z16:BJ16)+1 -> 37 | BL16: =MAX($Z16:BK16)+1 -> 38 | BM16: =MAX($Z16:BL16)+1 -> 39 | BN16: =MAX($Z16:BM16)+1 -> 40 | BO16: =MAX($Z16:BN16)+1 -> 41 | BP16: =MAX($Z16:BO16)+1 -> 42 | BQ16: =MAX($Z16:BP16)+1 -> 43 | BR16: =MAX($Z16:BQ16)+1 -> 44 | BS16: =MAX($Z16:BR16)+1 -> 45 | BT16: =MAX($Z16:BS16)+1 -> 46 | BU16: =MAX($Z16:BT16)+1 -> 47 | BV16: =MAX($Z16:BU16)+1 -> 48 | BW16: =MAX($Z16:BV16)+1 -> 49 | BX16: =MAX($Z16:BW16)+1 -> 50 | BY16: =MAX($Z16:BX16)+1 -> 51 | BZ16: =MAX($Z16:BY16)+1 -> 52 | CA16: =MAX($Z16:BZ16)+1 -> 53 | CB16: =MAX($Z16:CA16)+1 -> 54 | CC16: =MAX($Z16:CB16)+1 -> 55 | CD16: =MAX($Z16:CC16)+1 -> 56 | CE16: =MAX($Z16:CD16)+1 -> 57 | CF16: =MAX($Z16:CE16)+1 -> 58 | CG16: =MAX($Z16:CF16)+1 -> 59 | CH16: =MAX($Z16:CG16)+1 -> 60 | CI16: =MAX($Z16:CH16)+1 -> 61 | CJ16: =MAX($Z16:CI16)+1 -> 62 | CK16: =MAX($Z16:CJ16)+1 -> 63 | CL16: =MAX($Z16:CK16)+1 -> 64 | CM16: =MAX($Z16:CL16)+1 -> 65 | CN16: =MAX($Z16:CM16)+1 -> 66 | CO16: =MAX($Z16:CN16)+1 -> 67 | CP16: =MAX($Z16:CO16)+1 -> 68 | CQ16: =MAX($Z16:CP16)+1 -> 69 | CR16: =MAX($Z16:CQ16)+1 -> 70 | CS16: =MAX($Z16:CR16)+1 -> 71 | CT16: =MAX($Z16:CS16)+1 -> 72 | CU16: =MAX($Z16:CT16)+1 -> 73
A17: =ROW() -> 17 | G17: =IF($R17="^",IF(COUNTIF(Lists!$13:$13,H17)=1,0,1),0) -> 0 | H17: дата старта проекта | P17: M | Q17: =MAIN!Q78 -> 2021-01-01 | S17: =IF(G17<>0,1,IF(OR($Q17="",$Q17=0),0,IF($R17="^",IF(COUNTIF(INDIRECT(INDEX(Lists!$15:$15,SUMIFS(Lists!$1:$1,Lists!$13:$13,$H17))),$Q17)=1,0,1),0))) -> 0 | Y17: =START!$K$139 -> номер месяца даты начала: | AA17: =IF(AA20="","",MONTH(AA20)) -> 1 | AB17: =IF(AB20="","",MONTH(AB20)) -> 4 | AC17: 7 | AD17: 10 | AE17: 1 | AF17: 4 | AG17: 7 | AH17: 10 | AI17: 1 | AJ17: 4 | AK17: 7 | AL17: 10 | AM17: 1 | AN17: 4 | AO17: 7 | AP17: 10 | AQ17: 1 | AR17: 4 | AS17: 7 | AT17: 10 | AU17: 1 | AV17: 4 | AW17: 7 | AX17: 10 | AY17: 1 | AZ17: 4 | BA17: 7 | BB17: 10 | BC17: 1 | BD17: 4 | BE17: 7 | BF17: 10 | BG17: 1 | BH17: 4 | BI17: 7 | BJ17: 10 | BK17: 1 | BL17: 4 | BM17: 7 | BN17: 10 | BO17: 1 | BP17: 4 | BQ17: 7 | BR17: 10 | BS17: 1 | BT17: 4 | BU17: 7 | BV17: 10 | BW17: 1 | BX17: 4 | BY17: 7 | BZ17: 10 | CA17: 1 | CB17: 4 | CC17: 7 | CD17: 10 | CE17: 1 | CF17: 4 | CG17: 7 | CH17: 10 | CN17: =IF(CN20="","",MONTH(CN20)) -> 
A18: =ROW() -> 18 | G18: =IF($R18="^",IF(COUNTIF(Lists!$13:$13,H18)=1,0,1),0) -> 0 | H18: горизонт моделирования в кол-ве периодов | P18: M | Q18: =MAIN!Q79 -> 60 | S18: =IF(G18<>0,1,IF(OR($Q18="",$Q18=0),0,IF($R18="^",IF(COUNTIF(INDIRECT(INDEX(Lists!$15:$15,SUMIFS(Lists!$1:$1,Lists!$13:$13,$H18))),$Q18)=1,0,1),0))) -> 0 | Y18: =START!$K$140 -> год даты начала: | AA18: =IF(AA20="","",YEAR(AA20)-2000) -> 21 | AB18: =IF(AB20="","",YEAR(AB20)-2000) -> 21 | AC18: 21 | AD18: 21 | AE18: 22 | AF18: 22 | AG18: 22 | AH18: 22 | AI18: 23 | AJ18: 23 | AK18: 23 | AL18: 23 | AM18: 24 | AN18: 24 | AO18: 24 | AP18: 24 | AQ18: 25 | AR18: 25 | AS18: 25 | AT18: 25 | AU18: 26 | AV18: 26 | AW18: 26 | AX18: 26 | AY18: 27 | AZ18: 27 | BA18: 27 | BB18: 27 | BC18: 28 | BD18: 28 | BE18: 28 | BF18: 28 | BG18: 29 | BH18: 29 | BI18: 29 | BJ18: 29 | BK18: 30 | BL18: 30 | BM18: 30 | BN18: 30 | BO18: 31 | BP18: 31 | BQ18: 31 | BR18: 31 | BS18: 32 | BT18: 32 | BU18: 32 | BV18: 32 | BW18: 33 | BX18: 33 | BY18: 33 | BZ18: 33 | CA18: 34 | CB18: 34 | CC18: 34 | CD18: 34 | CE18: 35 | CF18: 35 | CG18: 35 | CH18: 35 | CN18: =IF(CN20="","",YEAR(CN20)-2000) -> 
A19: =ROW() -> 19
A20: =ROW() -> 20 | G20: =IF($R20="^",IF(COUNTIF(Lists!$13:$13,H20)=1,0,1),0) -> 0 | H20: дата старта периода расчетов модели | X20: =IF(OR($Q$17="",$Q$17=0),"",IF($Q$16=Lists!$I$16,$Q$17,IF($Q$16=Lists!$I$17,$Q$17-IF(WEEKDAY($Q$17)=1,7,WEEKDAY($Q$17))+2,IF($Q$16=Lists!$I$18,EOMONTH($Q$17,-1)+INT((IF(DAY($Q$17)=31,30,DAY($Q$17))-1)/10)*10+1,IF(OR($Q$16=Lists!$I$19,$Q$16=Lists!$I$21),EOMONTH($Q$17,-1)+1,IF($Q$16=Lists!$I$20,EOMONTH($Q$17,-(MONTH($Q$17)-3*INT((MONTH($Q$17)-1)/3)))+1,IF($Q$16=Lists!$I$22,EOMONTH($Q$17,-MONTH($Q$17))+1,""))))))) -> 2021-01-01 | AA20: =IF(AA$16>$Q$18,"",IF(AA$16=1,IF($X20="","",$X20),IF(Z21="","",Z21+1))) -> 2021-01-01 | AB20: =IF(AB$16>$Q$18,"",IF(AB$16=1,IF($X20="","",$X20),IF(AA21="","",AA21+1))) -> 2021-04-01 | AC20: 2021-07-01 | AD20: 2021-10-01 | AE20: 2022-01-01 | AF20: 2022-04-01 | AG20: 2022-07-01 | AH20: 2022-10-01 | AI20: 2023-01-01 | AJ20: 2023-04-01 | AK20: 2023-07-01 | AL20: 2023-10-01 | AM20: 2024-01-01 | AN20: 2024-04-01 | AO20: 2024-07-01 | AP20: 2024-10-01 | AQ20: 2025-01-01 | AR20: 2025-04-01 | AS20: 2025-07-01 | AT20: 2025-10-01 | AU20: 2026-01-01 | AV20: 2026-04-01 | AW20: 2026-07-01 | AX20: 2026-10-01 | AY20: 2027-01-01 | AZ20: 2027-04-01 | BA20: 2027-07-01 | BB20: 2027-10-01 | BC20: 2028-01-01 | BD20: 2028-04-01 | BE20: 2028-07-01 | BF20: 2028-10-01 | BG20: 2029-01-01 | BH20: 2029-04-01 | BI20: 2029-07-01 | BJ20: 2029-10-01 | BK20: 2030-01-01 | BL20: 2030-04-01 | BM20: 2030-07-01 | BN20: 2030-10-01 | BO20: 2031-01-01 | BP20: 2031-04-01 | BQ20: 2031-07-01 | BR20: 2031-10-01 | BS20: 2032-01-01 | BT20: 2032-04-01 | BU20: 2032-07-01 | BV20: 2032-10-01 | BW20: 2033-01-01 | BX20: 2033-04-01 | BY20: 2033-07-01 | BZ20: 2033-10-01 | CA20: 2034-01-01 | CB20: 2034-04-01 | CC20: 2034-07-01 | CD20: 2034-10-01 | CE20: 2035-01-01 | CF20: 2035-04-01 | CG20: 2035-07-01 | CH20: 2035-10-01 | CN20: =IF(CN$16>$Q$18,"",IF(CN$16=1,IF($X20="","",$X20),IF(CM21="","",CM21+1))) -> 
A21: =ROW() -> 21 | G21: =IF($R21="^",IF(COUNTIF(Lists!$13:$13,H21)=1,0,1),0) -> 0 | H21: дата завершения периода расчетов модели | X21: =IF(OR(X20="",AA21=""),"",MAX($Z21:$CV21)) -> 2035-12-31 | AA21: =IF(AA20="","",IF($Q$16=Lists!$I$16,AA20,IF($Q$16=Lists!$I$17,AA20+6,IF($Q$16=Lists!$I$18,IF(DAY(AA20)=21,EOMONTH(AA20,0),AA20+9),IF($Q$16=Lists!$I$19,EOMONTH(AA20,0),IF($Q$16=Lists!$I$20,EOMONTH(AA20,2),IF(OR($Q$16=Lists!$I$21,$Q$16=Lists!$I$22),EOMONTH(AA20,11),""))))))) -> 2021-03-31 | AB21: =IF(AB20="","",IF($Q$16=Lists!$I$16,AB20,IF($Q$16=Lists!$I$17,AB20+6,IF($Q$16=Lists!$I$18,IF(DAY(AB20)=21,EOMONTH(AB20,0),AB20+9),IF($Q$16=Lists!$I$19,EOMONTH(AB20,0),IF($Q$16=Lists!$I$20,EOMONTH(AB20,2),IF(OR($Q$16=Lists!$I$21,$Q$16=Lists!$I$22),EOMONTH(AB20,11),""))))))) -> 2021-06-30 | AC21: =IF(AC20="","",IF($Q$16=Lists!$I$16,AC20,IF($Q$16=Lists!$I$17,AC20+6,IF($Q$16=Lists!$I$18,IF(DAY(AC20)=21,EOMONTH(AC20,0),AC20+9),IF($Q$16=Lists!$I$19,EOMONTH(AC20,0),IF($Q$16=Lists!$I$20,EOMONTH(AC20,2),IF(OR($Q$16=Lists!$I$21,$Q$16=Lists!$I$22),EOMONTH(AC20,11),""))))))) -> 2021-09-30 | AD21: =IF(AD20="","",IF($Q$16=Lists!$I$16,AD20,IF($Q$16=Lists!$I$17,AD20+6,IF($Q$16=Lists!$I$18,IF(DAY(AD20)=21,EOMONTH(AD20,0),AD20+9),IF($Q$16=Lists!$I$19,EOMONTH(AD20,0),IF($Q$16=Lists!$I$20,EOMONTH(AD20,2),IF(OR($Q$16=Lists!$I$21,$Q$16=Lists!$I$22),EOMONTH(AD20,11),""))))))) -> 2021-12-31 | AE21: =IF(AE20="","",IF($Q$16=Lists!$I$16,AE20,IF($Q$16=Lists!$I$17,AE20+6,IF($Q$16=Lists!$I$18,IF(DAY(AE20)=21,EOMONTH(AE20,0),AE20+9),IF($Q$16=Lists!$I$19,EOMONTH(AE20,0),IF($Q$16=Lists!$I$20,EOMONTH(AE20,2),IF(OR($Q$16=Lists!$I$21,$Q$16=Lists!$I$22),EOMONTH(AE20,11),""))))))) -> 2022-03-31 | AF21: =IF(AF20="","",IF($Q$16=Lists!$I$16,AF20,IF($Q$16=Lists!$I$17,AF20+6,IF($Q$16=Lists!$I$18,IF(DAY(AF20)=21,EOMONTH(AF20,0),AF20+9),IF($Q$16=Lists!$I$19,EOMONTH(AF20,0),IF($Q$16=Lists!$I$20,EOMONTH(AF20,2),IF(OR($Q$16=Lists!$I$21,$Q$16=Lists!$I$22),EOMONTH(AF20,11),""))))))) -> 2022-06-30 | AG21: =IF(AG20="","",IF($Q$16=Lists!$I$16,AG20,IF($Q$16=Lists!$I$17,AG20+6,IF($Q$16=Lists!$I$18,IF(DAY(AG20)=21,EOMONTH(AG20,0),AG20+9),IF($Q$16=Lists!$I$19,EOMONTH(AG20,0),IF($Q$16=Lists!$I$20,EOMONTH(AG20,2),IF(OR($Q$16=Lists!$I$21,$Q$16=Lists!$I$22),EOMONTH(AG20,11),""))))))) -> 2022-09-30 | AH21: =IF(AH20="","",IF($Q$16=Lists!$I$16,AH20,IF($Q$16=Lists!$I$17,AH20+6,IF($Q$16=Lists!$I$18,IF(DAY(AH20)=21,EOMONTH(AH20,0),AH20+9),IF($Q$16=Lists!$I$19,EOMONTH(AH20,0),IF($Q$16=Lists!$I$20,EOMONTH(AH20,2),IF(OR($Q$16=Lists!$I$21,$Q$16=Lists!$I$22),EOMONTH(AH20,11),""))))))) -> 2022-12-31 | AI21: =IF(AI20="","",IF($Q$16=Lists!$I$16,AI20,IF($Q$16=Lists!$I$17,AI20+6,IF($Q$16=Lists!$I$18,IF(DAY(AI20)=21,EOMONTH(AI20,0),AI20+9),IF($Q$16=Lists!$I$19,EOMONTH(AI20,0),IF($Q$16=Lists!$I$20,EOMONTH(AI20,2),IF(OR($Q$16=Lists!$I$21,$Q$16=Lists!$I$22),EOMONTH(AI20,11),""))))))) -> 2023-03-31 | AJ21: =IF(AJ20="","",IF($Q$16=Lists!$I$16,AJ20,IF($Q$16=Lists!$I$17,AJ20+6,IF($Q$16=Lists!$I$18,IF(DAY(AJ20)=21,EOMONTH(AJ20,0),AJ20+9),IF($Q$16=Lists!$I$19,EOMONTH(AJ20,0),IF($Q$16=Lists!$I$20,EOMONTH(AJ20,2),IF(OR($Q$16=Lists!$I$21,$Q$16=Lists!$I$22),EOMONTH(AJ20,11),""))))))) -> 2023-06-30 | AK21: =IF(AK20="","",IF($Q$16=Lists!$I$16,AK20,IF($Q$16=Lists!$I$17,AK20+6,IF($Q$16=Lists!$I$18,IF(DAY(AK20)=21,EOMONTH(AK20,0),AK20+9),IF($Q$16=Lists!$I$19,EOMONTH(AK20,0),IF($Q$16=Lists!$I$20,EOMONTH(AK20,2),IF(OR($Q$16=Lists!$I$21,$Q$16=Lists!$I$22),EOMONTH(AK20,11),""))))))) -> 2023-09-30 | AL21: =IF(AL20="","",IF($Q$16=Lists!$I$16,AL20,IF($Q$16=Lists!$I$17,AL20+6,IF($Q$16=Lists!$I$18,IF(DAY(AL20)=21,EOMONTH(AL20,0),AL20+9),IF($Q$16=Lists!$I$19,EOMONTH(AL20,0),IF($Q$16=Lists!$I$20,EOMONTH(AL20,2),IF(OR($Q$16=Lists!$I$21,$Q$16=Lists!$I$22),EOMONTH(AL20,11),""))))))) -> 2023-12-31 | AM21: =IF(AM20="","",IF($Q$16=Lists!$I$16,AM20,IF($Q$16=Lists!$I$17,AM20+6,IF($Q$16=Lists!$I$18,IF(DAY(AM20)=21,EOMONTH(AM20,0),AM20+9),IF($Q$16=Lists!$I$19,EOMONTH(AM20,0),IF($Q$16=Lists!$I$20,EOMONTH(AM20,2),IF(OR($Q$16=Lists!$I$21,$Q$16=Lists!$I$22),EOMONTH(AM20,11),""))))))) -> 2024-03-31 | AN21: =IF(AN20="","",IF($Q$16=Lists!$I$16,AN20,IF($Q$16=Lists!$I$17,AN20+6,IF($Q$16=Lists!$I$18,IF(DAY(AN20)=21,EOMONTH(AN20,0),AN20+9),IF($Q$16=Lists!$I$19,EOMONTH(AN20,0),IF($Q$16=Lists!$I$20,EOMONTH(AN20,2),IF(OR($Q$16=Lists!$I$21,$Q$16=Lists!$I$22),EOMONTH(AN20,11),""))))))) -> 2024-06-30 | AO21: =IF(AO20="","",IF($Q$16=Lists!$I$16,AO20,IF($Q$16=Lists!$I$17,AO20+6,IF($Q$16=Lists!$I$18,IF(DAY(AO20)=21,EOMONTH(AO20,0),AO20+9),IF($Q$16=Lists!$I$19,EOMONTH(AO20,0),IF($Q$16=Lists!$I$20,EOMONTH(AO20,2),IF(OR($Q$16=Lists!$I$21,$Q$16=Lists!$I$22),EOMONTH(AO20,11),""))))))) -> 2024-09-30 | AP21: =IF(AP20="","",IF($Q$16=Lists!$I$16,AP20,IF($Q$16=Lists!$I$17,AP20+6,IF($Q$16=Lists!$I$18,IF(DAY(AP20)=21,EOMONTH(AP20,0),AP20+9),IF($Q$16=Lists!$I$19,EOMONTH(AP20,0),IF($Q$16=Lists!$I$20,EOMONTH(AP20,2),IF(OR($Q$16=Lists!$I$21,$Q$16=Lists!$I$22),EOMONTH(AP20,11),""))))))) -> 2024-12-31 | AQ21: =IF(AQ20="","",IF($Q$16=Lists!$I$16,AQ20,IF($Q$16=Lists!$I$17,AQ20+6,IF($Q$16=Lists!$I$18,IF(DAY(AQ20)=21,EOMONTH(AQ20,0),AQ20+9),IF($Q$16=Lists!$I$19,EOMONTH(AQ20,0),IF($Q$16=Lists!$I$20,EOMONTH(AQ20,2),IF(OR($Q$16=Lists!$I$21,$Q$16=Lists!$I$22),EOMONTH(AQ20,11),""))))))) -> 2025-03-31 | AR21: =IF(AR20="","",IF($Q$16=Lists!$I$16,AR20,IF($Q$16=Lists!$I$17,AR20+6,IF($Q$16=Lists!$I$18,IF(DAY(AR20)=21,EOMONTH(AR20,0),AR20+9),IF($Q$16=Lists!$I$19,EOMONTH(AR20,0),IF($Q$16=Lists!$I$20,EOMONTH(AR20,2),IF(OR($Q$16=Lists!$I$21,$Q$16=Lists!$I$22),EOMONTH(AR20,11),""))))))) -> 2025-06-30 | AS21: =IF(AS20="","",IF($Q$16=Lists!$I$16,AS20,IF($Q$16=Lists!$I$17,AS20+6,IF($Q$16=Lists!$I$18,IF(DAY(AS20)=21,EOMONTH(AS20,0),AS20+9),IF($Q$16=Lists!$I$19,EOMONTH(AS20,0),IF($Q$16=Lists!$I$20,EOMONTH(AS20,2),IF(OR($Q$16=Lists!$I$21,$Q$16=Lists!$I$22),EOMONTH(AS20,11),""))))))) -> 2025-09-30 | AT21: =IF(AT20="","",IF($Q$16=Lists!$I$16,AT20,IF($Q$16=Lists!$I$17,AT20+6,IF($Q$16=Lists!$I$18,IF(DAY(AT20)=21,EOMONTH(AT20,0),AT20+9),IF($Q$16=Lists!$I$19,EOMONTH(AT20,0),IF($Q$16=Lists!$I$20,EOMONTH(AT20,2),IF(OR($Q$16=Lists!$I$21,$Q$16=Lists!$I$22),EOMONTH(AT20,11),""))))))) -> 2025-12-31 | AU21: =IF(AU20="","",IF($Q$16=Lists!$I$16,AU20,IF($Q$16=Lists!$I$17,AU20+6,IF($Q$16=Lists!$I$18,IF(DAY(AU20)=21,EOMONTH(AU20,0),AU20+9),IF($Q$16=Lists!$I$19,EOMONTH(AU20,0),IF($Q$16=Lists!$I$20,EOMONTH(AU20,2),IF(OR($Q$16=Lists!$I$21,$Q$16=Lists!$I$22),EOMONTH(AU20,11),""))))))) -> 2026-03-31 | AV21: =IF(AV20="","",IF($Q$16=Lists!$I$16,AV20,IF($Q$16=Lists!$I$17,AV20+6,IF($Q$16=Lists!$I$18,IF(DAY(AV20)=21,EOMONTH(AV20,0),AV20+9),IF($Q$16=Lists!$I$19,EOMONTH(AV20,0),IF($Q$16=Lists!$I$20,EOMONTH(AV20,2),IF(OR($Q$16=Lists!$I$21,$Q$16=Lists!$I$22),EOMONTH(AV20,11),""))))))) -> 2026-06-30 | AW21: =IF(AW20="","",IF($Q$16=Lists!$I$16,AW20,IF($Q$16=Lists!$I$17,AW20+6,IF($Q$16=Lists!$I$18,IF(DAY(AW20)=21,EOMONTH(AW20,0),AW20+9),IF($Q$16=Lists!$I$19,EOMONTH(AW20,0),IF($Q$16=Lists!$I$20,EOMONTH(AW20,2),IF(OR($Q$16=Lists!$I$21,$Q$16=Lists!$I$22),EOMONTH(AW20,11),""))))))) -> 2026-09-30 | AX21: =IF(AX20="","",IF($Q$16=Lists!$I$16,AX20,IF($Q$16=Lists!$I$17,AX20+6,IF($Q$16=Lists!$I$18,IF(DAY(AX20)=21,EOMONTH(AX20,0),AX20+9),IF($Q$16=Lists!$I$19,EOMONTH(AX20,0),IF($Q$16=Lists!$I$20,EOMONTH(AX20,2),IF(OR($Q$16=Lists!$I$21,$Q$16=Lists!$I$22),EOMONTH(AX20,11),""))))))) -> 2026-12-31 | AY21: =IF(AY20="","",IF($Q$16=Lists!$I$16,AY20,IF($Q$16=Lists!$I$17,AY20+6,IF($Q$16=Lists!$I$18,IF(DAY(AY20)=21,EOMONTH(AY20,0),AY20+9),IF($Q$16=Lists!$I$19,EOMONTH(AY20,0),IF($Q$16=Lists!$I$20,EOMONTH(AY20,2),IF(OR($Q$16=Lists!$I$21,$Q$16=Lists!$I$22),EOMONTH(AY20,11),""))))))) -> 2027-03-31 | AZ21: =IF(AZ20="","",IF($Q$16=Lists!$I$16,AZ20,IF($Q$16=Lists!$I$17,AZ20+6,IF($Q$16=Lists!$I$18,IF(DAY(AZ20)=21,EOMONTH(AZ20,0),AZ20+9),IF($Q$16=Lists!$I$19,EOMONTH(AZ20,0),IF($Q$16=Lists!$I$20,EOMONTH(AZ20,2),IF(OR($Q$16=Lists!$I$21,$Q$16=Lists!$I$22),EOMONTH(AZ20,11),""))))))) -> 2027-06-30 | BA21: =IF(BA20="","",IF($Q$16=Lists!$I$16,BA20,IF($Q$16=Lists!$I$17,BA20+6,IF($Q$16=Lists!$I$18,IF(DAY(BA20)=21,EOMONTH(BA20,0),BA20+9),IF($Q$16=Lists!$I$19,EOMONTH(BA20,0),IF($Q$16=Lists!$I$20,EOMONTH(BA20,2),IF(OR($Q$16=Lists!$I$21,$Q$16=Lists!$I$22),EOMONTH(BA20,11),""))))))) -> 2027-09-30 | BB21: =IF(BB20="","",IF($Q$16=Lists!$I$16,BB20,IF($Q$16=Lists!$I$17,BB20+6,IF($Q$16=Lists!$I$18,IF(DAY(BB20)=21,EOMONTH(BB20,0),BB20+9),IF($Q$16=Lists!$I$19,EOMONTH(BB20,0),IF($Q$16=Lists!$I$20,EOMONTH(BB20,2),IF(OR($Q$16=Lists!$I$21,$Q$16=Lists!$I$22),EOMONTH(BB20,11),""))))))) -> 2027-12-31 | BC21: =IF(BC20="","",IF($Q$16=Lists!$I$16,BC20,IF($Q$16=Lists!$I$17,BC20+6,IF($Q$16=Lists!$I$18,IF(DAY(BC20)=21,EOMONTH(BC20,0),BC20+9),IF($Q$16=Lists!$I$19,EOMONTH(BC20,0),IF($Q$16=Lists!$I$20,EOMONTH(BC20,2),IF(OR($Q$16=Lists!$I$21,$Q$16=Lists!$I$22),EOMONTH(BC20,11),""))))))) -> 2028-03-31 | BD21: =IF(BD20="","",IF($Q$16=Lists!$I$16,BD20,IF($Q$16=Lists!$I$17,BD20+6,IF($Q$16=Lists!$I$18,IF(DAY(BD20)=21,EOMONTH(BD20,0),BD20+9),IF($Q$16=Lists!$I$19,EOMONTH(BD20,0),IF($Q$16=Lists!$I$20,EOMONTH(BD20,2),IF(OR($Q$16=Lists!$I$21,$Q$16=Lists!$I$22),EOMONTH(BD20,11),""))))))) -> 2028-06-30 | BE21: =IF(BE20="","",IF($Q$16=Lists!$I$16,BE20,IF($Q$16=Lists!$I$17,BE20+6,IF($Q$16=Lists!$I$18,IF(DAY(BE20)=21,EOMONTH(BE20,0),BE20+9),IF($Q$16=Lists!$I$19,EOMONTH(BE20,0),IF($Q$16=Lists!$I$20,EOMONTH(BE20,2),IF(OR($Q$16=Lists!$I$21,$Q$16=Lists!$I$22),EOMONTH(BE20,11),""))))))) -> 2028-09-30 | BF21: =IF(BF20="","",IF($Q$16=Lists!$I$16,BF20,IF($Q$16=Lists!$I$17,BF20+6,IF($Q$16=Lists!$I$18,IF(DAY(BF20)=21,EOMONTH(BF20,0),BF20+9),IF($Q$16=Lists!$I$19,EOMONTH(BF20,0),IF($Q$16=Lists!$I$20,EOMONTH(BF20,2),IF(OR($Q$16=Lists!$I$21,$Q$16=Lists!$I$22),EOMONTH(BF20,11),""))))))) -> 2028-12-31 | BG21: =IF(BG20="","",IF($Q$16=Lists!$I$16,BG20,IF($Q$16=Lists!$I$17,BG20+6,IF($Q$16=Lists!$I$18,IF(DAY(BG20)=21,EOMONTH(BG20,0),BG20+9),IF($Q$16=Lists!$I$19,EOMONTH(BG20,0),IF($Q$16=Lists!$I$20,EOMONTH(BG20,2),IF(OR($Q$16=Lists!$I$21,$Q$16=Lists!$I$22),EOMONTH(BG20,11),""))))))) -> 2029-03-31 | BH21: =IF(BH20="","",IF($Q$16=Lists!$I$16,BH20,IF($Q$16=Lists!$I$17,BH20+6,IF($Q$16=Lists!$I$18,IF(DAY(BH20)=21,EOMONTH(BH20,0),BH20+9),IF($Q$16=Lists!$I$19,EOMONTH(BH20,0),IF($Q$16=Lists!$I$20,EOMONTH(BH20,2),IF(OR($Q$16=Lists!$I$21,$Q$16=Lists!$I$22),EOMONTH(BH20,11),""))))))) -> 2029-06-30 | BI21: =IF(BI20="","",IF($Q$16=Lists!$I$16,BI20,IF($Q$16=Lists!$I$17,BI20+6,IF($Q$16=Lists!$I$18,IF(DAY(BI20)=21,EOMONTH(BI20,0),BI20+9),IF($Q$16=Lists!$I$19,EOMONTH(BI20,0),IF($Q$16=Lists!$I$20,EOMONTH(BI20,2),IF(OR($Q$16=Lists!$I$21,$Q$16=Lists!$I$22),EOMONTH(BI20,11),""))))))) -> 2029-09-30 | BJ21: =IF(BJ20="","",IF($Q$16=Lists!$I$16,BJ20,IF($Q$16=Lists!$I$17,BJ20+6,IF($Q$16=Lists!$I$18,IF(DAY(BJ20)=21,EOMONTH(BJ20,0),BJ20+9),IF($Q$16=Lists!$I$19,EOMONTH(BJ20,0),IF($Q$16=Lists!$I$20,EOMONTH(BJ20,2),IF(OR($Q$16=Lists!$I$21,$Q$16=Lists!$I$22),EOMONTH(BJ20,11),""))))))) -> 2029-12-31 | BK21: =IF(BK20="","",IF($Q$16=Lists!$I$16,BK20,IF($Q$16=Lists!$I$17,BK20+6,IF($Q$16=Lists!$I$18,IF(DAY(BK20)=21,EOMONTH(BK20,0),BK20+9),IF($Q$16=Lists!$I$19,EOMONTH(BK20,0),IF($Q$16=Lists!$I$20,EOMONTH(BK20,2),IF(OR($Q$16=Lists!$I$21,$Q$16=Lists!$I$22),EOMONTH(BK20,11),""))))))) -> 2030-03-31 | BL21: =IF(BL20="","",IF($Q$16=Lists!$I$16,BL20,IF($Q$16=Lists!$I$17,BL20+6,IF($Q$16=Lists!$I$18,IF(DAY(BL20)=21,EOMONTH(BL20,0),BL20+9),IF($Q$16=Lists!$I$19,EOMONTH(BL20,0),IF($Q$16=Lists!$I$20,EOMONTH(BL20,2),IF(OR($Q$16=Lists!$I$21,$Q$16=Lists!$I$22),EOMONTH(BL20,11),""))))))) -> 2030-06-30 | BM21: =IF(BM20="","",IF($Q$16=Lists!$I$16,BM20,IF($Q$16=Lists!$I$17,BM20+6,IF($Q$16=Lists!$I$18,IF(DAY(BM20)=21,EOMONTH(BM20,0),BM20+9),IF($Q$16=Lists!$I$19,EOMONTH(BM20,0),IF($Q$16=Lists!$I$20,EOMONTH(BM20,2),IF(OR($Q$16=Lists!$I$21,$Q$16=Lists!$I$22),EOMONTH(BM20,11),""))))))) -> 2030-09-30 | BN21: =IF(BN20="","",IF($Q$16=Lists!$I$16,BN20,IF($Q$16=Lists!$I$17,BN20+6,IF($Q$16=Lists!$I$18,IF(DAY(BN20)=21,EOMONTH(BN20,0),BN20+9),IF($Q$16=Lists!$I$19,EOMONTH(BN20,0),IF($Q$16=Lists!$I$20,EOMONTH(BN20,2),IF(OR($Q$16=Lists!$I$21,$Q$16=Lists!$I$22),EOMONTH(BN20,11),""))))))) -> 2030-12-31 | BO21: =IF(BO20="","",IF($Q$16=Lists!$I$16,BO20,IF($Q$16=Lists!$I$17,BO20+6,IF($Q$16=Lists!$I$18,IF(DAY(BO20)=21,EOMONTH(BO20,0),BO20+9),IF($Q$16=Lists!$I$19,EOMONTH(BO20,0),IF($Q$16=Lists!$I$20,EOMONTH(BO20,2),IF(OR($Q$16=Lists!$I$21,$Q$16=Lists!$I$22),EOMONTH(BO20,11),""))))))) -> 2031-03-31 | BP21: =IF(BP20="","",IF($Q$16=Lists!$I$16,BP20,IF($Q$16=Lists!$I$17,BP20+6,IF($Q$16=Lists!$I$18,IF(DAY(BP20)=21,EOMONTH(BP20,0),BP20+9),IF($Q$16=Lists!$I$19,EOMONTH(BP20,0),IF($Q$16=Lists!$I$20,EOMONTH(BP20,2),IF(OR($Q$16=Lists!$I$21,$Q$16=Lists!$I$22),EOMONTH(BP20,11),""))))))) -> 2031-06-30 | BQ21: =IF(BQ20="","",IF($Q$16=Lists!$I$16,BQ20,IF($Q$16=Lists!$I$17,BQ20+6,IF($Q$16=Lists!$I$18,IF(DAY(BQ20)=21,EOMONTH(BQ20,0),BQ20+9),IF($Q$16=Lists!$I$19,EOMONTH(BQ20,0),IF($Q$16=Lists!$I$20,EOMONTH(BQ20,2),IF(OR($Q$16=Lists!$I$21,$Q$16=Lists!$I$22),EOMONTH(BQ20,11),""))))))) -> 2031-09-30 | BR21: =IF(BR20="","",IF($Q$16=Lists!$I$16,BR20,IF($Q$16=Lists!$I$17,BR20+6,IF($Q$16=Lists!$I$18,IF(DAY(BR20)=21,EOMONTH(BR20,0),BR20+9),IF($Q$16=Lists!$I$19,EOMONTH(BR20,0),IF($Q$16=Lists!$I$20,EOMONTH(BR20,2),IF(OR($Q$16=Lists!$I$21,$Q$16=Lists!$I$22),EOMONTH(BR20,11),""))))))) -> 2031-12-31 | BS21: =IF(BS20="","",IF($Q$16=Lists!$I$16,BS20,IF($Q$16=Lists!$I$17,BS20+6,IF($Q$16=Lists!$I$18,IF(DAY(BS20)=21,EOMONTH(BS20,0),BS20+9),IF($Q$16=Lists!$I$19,EOMONTH(BS20,0),IF($Q$16=Lists!$I$20,EOMONTH(BS20,2),IF(OR($Q$16=Lists!$I$21,$Q$16=Lists!$I$22),EOMONTH(BS20,11),""))))))) -> 2032-03-31 | BT21: =IF(BT20="","",IF($Q$16=Lists!$I$16,BT20,IF($Q$16=Lists!$I$17,BT20+6,IF($Q$16=Lists!$I$18,IF(DAY(BT20)=21,EOMONTH(BT20,0),BT20+9),IF($Q$16=Lists!$I$19,EOMONTH(BT20,0),IF($Q$16=Lists!$I$20,EOMONTH(BT20,2),IF(OR($Q$16=Lists!$I$21,$Q$16=Lists!$I$22),EOMONTH(BT20,11),""))))))) -> 2032-06-30 | BU21: =IF(BU20="","",IF($Q$16=Lists!$I$16,BU20,IF($Q$16=Lists!$I$17,BU20+6,IF($Q$16=Lists!$I$18,IF(DAY(BU20)=21,EOMONTH(BU20,0),BU20+9),IF($Q$16=Lists!$I$19,EOMONTH(BU20,0),IF($Q$16=Lists!$I$20,EOMONTH(BU20,2),IF(OR($Q$16=Lists!$I$21,$Q$16=Lists!$I$22),EOMONTH(BU20,11),""))))))) -> 2032-09-30 | BV21: =IF(BV20="","",IF($Q$16=Lists!$I$16,BV20,IF($Q$16=Lists!$I$17,BV20+6,IF($Q$16=Lists!$I$18,IF(DAY(BV20)=21,EOMONTH(BV20,0),BV20+9),IF($Q$16=Lists!$I$19,EOMONTH(BV20,0),IF($Q$16=Lists!$I$20,EOMONTH(BV20,2),IF(OR($Q$16=Lists!$I$21,$Q$16=Lists!$I$22),EOMONTH(BV20,11),""))))))) -> 2032-12-31 | BW21: =IF(BW20="","",IF($Q$16=Lists!$I$16,BW20,IF($Q$16=Lists!$I$17,BW20+6,IF($Q$16=Lists!$I$18,IF(DAY(BW20)=21,EOMONTH(BW20,0),BW20+9),IF($Q$16=Lists!$I$19,EOMONTH(BW20,0),IF($Q$16=Lists!$I$20,EOMONTH(BW20,2),IF(OR($Q$16=Lists!$I$21,$Q$16=Lists!$I$22),EOMONTH(BW20,11),""))))))) -> 2033-03-31 | BX21: =IF(BX20="","",IF($Q$16=Lists!$I$16,BX20,IF($Q$16=Lists!$I$17,BX20+6,IF($Q$16=Lists!$I$18,IF(DAY(BX20)=21,EOMONTH(BX20,0),BX20+9),IF($Q$16=Lists!$I$19,EOMONTH(BX20,0),IF($Q$16=Lists!$I$20,EOMONTH(BX20,2),IF(OR($Q$16=Lists!$I$21,$Q$16=Lists!$I$22),EOMONTH(BX20,11),""))))))) -> 2033-06-30 | BY21: =IF(BY20="","",IF($Q$16=Lists!$I$16,BY20,IF($Q$16=Lists!$I$17,BY20+6,IF($Q$16=Lists!$I$18,IF(DAY(BY20)=21,EOMONTH(BY20,0),BY20+9),IF($Q$16=Lists!$I$19,EOMONTH(BY20,0),IF($Q$16=Lists!$I$20,EOMONTH(BY20,2),IF(OR($Q$16=Lists!$I$21,$Q$16=Lists!$I$22),EOMONTH(BY20,11),""))))))) -> 2033-09-30 | BZ21: =IF(BZ20="","",IF($Q$16=Lists!$I$16,BZ20,IF($Q$16=Lists!$I$17,BZ20+6,IF($Q$16=Lists!$I$18,IF(DAY(BZ20)=21,EOMONTH(BZ20,0),BZ20+9),IF($Q$16=Lists!$I$19,EOMONTH(BZ20,0),IF($Q$16=Lists!$I$20,EOMONTH(BZ20,2),IF(OR($Q$16=Lists!$I$21,$Q$16=Lists!$I$22),EOMONTH(BZ20,11),""))))))) -> 2033-12-31 | CA21: =IF(CA20="","",IF($Q$16=Lists!$I$16,CA20,IF($Q$16=Lists!$I$17,CA20+6,IF($Q$16=Lists!$I$18,IF(DAY(CA20)=21,EOMONTH(CA20,0),CA20+9),IF($Q$16=Lists!$I$19,EOMONTH(CA20,0),IF($Q$16=Lists!$I$20,EOMONTH(CA20,2),IF(OR($Q$16=Lists!$I$21,$Q$16=Lists!$I$22),EOMONTH(CA20,11),""))))))) -> 2034-03-31 | CB21: =IF(CB20="","",IF($Q$16=Lists!$I$16,CB20,IF($Q$16=Lists!$I$17,CB20+6,IF($Q$16=Lists!$I$18,IF(DAY(CB20)=21,EOMONTH(CB20,0),CB20+9),IF($Q$16=Lists!$I$19,EOMONTH(CB20,0),IF($Q$16=Lists!$I$20,EOMONTH(CB20,2),IF(OR($Q$16=Lists!$I$21,$Q$16=Lists!$I$22),EOMONTH(CB20,11),""))))))) -> 2034-06-30 | CC21: =IF(CC20="","",IF($Q$16=Lists!$I$16,CC20,IF($Q$16=Lists!$I$17,CC20+6,IF($Q$16=Lists!$I$18,IF(DAY(CC20)=21,EOMONTH(CC20,0),CC20+9),IF($Q$16=Lists!$I$19,EOMONTH(CC20,0),IF($Q$16=Lists!$I$20,EOMONTH(CC20,2),IF(OR($Q$16=Lists!$I$21,$Q$16=Lists!$I$22),EOMONTH(CC20,11),""))))))) -> 2034-09-30 | CD21: =IF(CD20="","",IF($Q$16=Lists!$I$16,CD20,IF($Q$16=Lists!$I$17,CD20+6,IF($Q$16=Lists!$I$18,IF(DAY(CD20)=21,EOMONTH(CD20,0),CD20+9),IF($Q$16=Lists!$I$19,EOMONTH(CD20,0),IF($Q$16=Lists!$I$20,EOMONTH(CD20,2),IF(OR($Q$16=Lists!$I$21,$Q$16=Lists!$I$22),EOMONTH(CD20,11),""))))))) -> 2034-12-31 | CE21: =IF(CE20="","",IF($Q$16=Lists!$I$16,CE20,IF($Q$16=Lists!$I$17,CE20+6,IF($Q$16=Lists!$I$18,IF(DAY(CE20)=21,EOMONTH(CE20,0),CE20+9),IF($Q$16=Lists!$I$19,EOMONTH(CE20,0),IF($Q$16=Lists!$I$20,EOMONTH(CE20,2),IF(OR($Q$16=Lists!$I$21,$Q$16=Lists!$I$22),EOMONTH(CE20,11),""))))))) -> 2035-03-31 | CF21: =IF(CF20="","",IF($Q$16=Lists!$I$16,CF20,IF($Q$16=Lists!$I$17,CF20+6,IF($Q$16=Lists!$I$18,IF(DAY(CF20)=21,EOMONTH(CF20,0),CF20+9),IF($Q$16=Lists!$I$19,EOMONTH(CF20,0),IF($Q$16=Lists!$I$20,EOMONTH(CF20,2),IF(OR($Q$16=Lists!$I$21,$Q$16=Lists!$I$22),EOMONTH(CF20,11),""))))))) -> 2035-06-30 | CG21: =IF(CG20="","",IF($Q$16=Lists!$I$16,CG20,IF($Q$16=Lists!$I$17,CG20+6,IF($Q$16=Lists!$I$18,IF(DAY(CG20)=21,EOMONTH(CG20,0),CG20+9),IF($Q$16=Lists!$I$19,EOMONTH(CG20,0),IF($Q$16=Lists!$I$20,EOMONTH(CG20,2),IF(OR($Q$16=Lists!$I$21,$Q$16=Lists!$I$22),EOMONTH(CG20,11),""))))))) -> 2035-09-30 | CH21: =IF(CH20="","",IF($Q$16=Lists!$I$16,CH20,IF($Q$16=Lists!$I$17,CH20+6,IF($Q$16=Lists!$I$18,IF(DAY(CH20)=21,EOMONTH(CH20,0),CH20+9),IF($Q$16=Lists!$I$19,EOMONTH(CH20,0),IF($Q$16=Lists!$I$20,EOMONTH(CH20,2),IF(OR($Q$16=Lists!$I$21,$Q$16=Lists!$I$22),EOMONTH(CH20,11),""))))))) -> 2035-12-31 | CI21: =IF(CI20="","",IF($Q$16=Lists!$I$16,CI20,IF($Q$16=Lists!$I$17,CI20+6,IF($Q$16=Lists!$I$18,IF(DAY(CI20)=21,EOMONTH(CI20,0),CI20+9),IF($Q$16=Lists!$I$19,EOMONTH(CI20,0),IF($Q$16=Lists!$I$20,EOMONTH(CI20,2),IF(OR($Q$16=Lists!$I$21,$Q$16=Lists!$I$22),EOMONTH(CI20,11),""))))))) ->  | CJ21: =IF(CJ20="","",IF($Q$16=Lists!$I$16,CJ20,IF($Q$16=Lists!$I$17,CJ20+6,IF($Q$16=Lists!$I$18,IF(DAY(CJ20)=21,EOMONTH(CJ20,0),CJ20+9),IF($Q$16=Lists!$I$19,EOMONTH(CJ20,0),IF($Q$16=Lists!$I$20,EOMONTH(CJ20,2),IF(OR($Q$16=Lists!$I$21,$Q$16=Lists!$I$22),EOMONTH(CJ20,11),""))))))) ->  | CK21: =IF(CK20="","",IF($Q$16=Lists!$I$16,CK20,IF($Q$16=Lists!$I$17,CK20+6,IF($Q$16=Lists!$I$18,IF(DAY(CK20)=21,EOMONTH(CK20,0),CK20+9),IF($Q$16=Lists!$I$19,EOMONTH(CK20,0),IF($Q$16=Lists!$I$20,EOMONTH(CK20,2),IF(OR($Q$16=Lists!$I$21,$Q$16=Lists!$I$22),EOMONTH(CK20,11),""))))))) ->  | CL21: =IF(CL20="","",IF($Q$16=Lists!$I$16,CL20,IF($Q$16=Lists!$I$17,CL20+6,IF($Q$16=Lists!$I$18,IF(DAY(CL20)=21,EOMONTH(CL20,0),CL20+9),IF($Q$16=Lists!$I$19,EOMONTH(CL20,0),IF($Q$16=Lists!$I$20,EOMONTH(CL20,2),IF(OR($Q$16=Lists!$I$21,$Q$16=Lists!$I$22),EOMONTH(CL20,11),""))))))) ->  | CM21: =IF(CM20="","",IF($Q$16=Lists!$I$16,CM20,IF($Q$16=Lists!$I$17,CM20+6,IF($Q$16=Lists!$I$18,IF(DAY(CM20)=21,EOMONTH(CM20,0),CM20+9),IF($Q$16=Lists!$I$19,EOMONTH(CM20,0),IF($Q$16=Lists!$I$20,EOMONTH(CM20,2),IF(OR($Q$16=Lists!$I$21,$Q$16=Lists!$I$22),EOMONTH(CM20,11),""))))))) ->  | CN21: =IF(CN20="","",IF($Q$16=Lists!$I$16,CN20,IF($Q$16=Lists!$I$17,CN20+6,IF($Q$16=Lists!$I$18,IF(DAY(CN20)=21,EOMONTH(CN20,0),CN20+9),IF($Q$16=Lists!$I$19,EOMONTH(CN20,0),IF($Q$16=Lists!$I$20,EOMONTH(CN20,2),IF(OR($Q$16=Lists!$I$21,$Q$16=Lists!$I$22),EOMONTH(CN20,11),""))))))) ->  | CO21: =IF(CO20="","",IF($Q$16=Lists!$I$16,CO20,IF($Q$16=Lists!$I$17,CO20+6,IF($Q$16=Lists!$I$18,IF(DAY(CO20)=21,EOMONTH(CO20,0),CO20+9),IF($Q$16=Lists!$I$19,EOMONTH(CO20,0),IF($Q$16=Lists!$I$20,EOMONTH(CO20,2),IF(OR($Q$16=Lists!$I$21,$Q$16=Lists!$I$22),EOMONTH(CO20,11),""))))))) ->  | CP21: =IF(CP20="","",IF($Q$16=Lists!$I$16,CP20,IF($Q$16=Lists!$I$17,CP20+6,IF($Q$16=Lists!$I$18,IF(DAY(CP20)=21,EOMONTH(CP20,0),CP20+9),IF($Q$16=Lists!$I$19,EOMONTH(CP20,0),IF($Q$16=Lists!$I$20,EOMONTH(CP20,2),IF(OR($Q$16=Lists!$I$21,$Q$16=Lists!$I$22),EOMONTH(CP20,11),""))))))) ->  | CQ21: =IF(CQ20="","",IF($Q$16=Lists!$I$16,CQ20,IF($Q$16=Lists!$I$17,CQ20+6,IF($Q$16=Lists!$I$18,IF(DAY(CQ20)=21,EOMONTH(CQ20,0),CQ20+9),IF($Q$16=Lists!$I$19,EOMONTH(CQ20,0),IF($Q$16=Lists!$I$20,EOMONTH(CQ20,2),IF(OR($Q$16=Lists!$I$21,$Q$16=Lists!$I$22),EOMONTH(CQ20,11),""))))))) ->  | CR21: =IF(CR20="","",IF($Q$16=Lists!$I$16,CR20,IF($Q$16=Lists!$I$17,CR20+6,IF($Q$16=Lists!$I$18,IF(DAY(CR20)=21,EOMONTH(CR20,0),CR20+9),IF($Q$16=Lists!$I$19,EOMONTH(CR20,0),IF($Q$16=Lists!$I$20,EOMONTH(CR20,2),IF(OR($Q$16=Lists!$I$21,$Q$16=Lists!$I$22),EOMONTH(CR20,11),""))))))) ->  | CS21: =IF(CS20="","",IF($Q$16=Lists!$I$16,CS20,IF($Q$16=Lists!$I$17,CS20+6,IF($Q$16=Lists!$I$18,IF(DAY(CS20)=21,EOMONTH(CS20,0),CS20+9),IF($Q$16=Lists!$I$19,EOMONTH(CS20,0),IF($Q$16=Lists!$I$20,EOMONTH(CS20,2),IF(OR($Q$16=Lists!$I$21,$Q$16=Lists!$I$22),EOMONTH(CS20,11),""))))))) ->  | CT21: =IF(CT20="","",IF($Q$16=Lists!$I$16,CT20,IF($Q$16=Lists!$I$17,CT20+6,IF($Q$16=Lists!$I$18,IF(DAY(CT20)=21,EOMONTH(CT20,0),CT20+9),IF($Q$16=Lists!$I$19,EOMONTH(CT20,0),IF($Q$16=Lists!$I$20,EOMONTH(CT20,2),IF(OR($Q$16=Lists!$I$21,$Q$16=Lists!$I$22),EOMONTH(CT20,11),""))))))) ->  | CU21: =IF(CU20="","",IF($Q$16=Lists!$I$16,CU20,IF($Q$16=Lists!$I$17,CU20+6,IF($Q$16=Lists!$I$18,IF(DAY(CU20)=21,EOMONTH(CU20,0),CU20+9),IF($Q$16=Lists!$I$19,EOMONTH(CU20,0),IF($Q$16=Lists!$I$20,EOMONTH(CU20,2),IF(OR($Q$16=Lists!$I$21,$Q$16=Lists!$I$22),EOMONTH(CU20,11),""))))))) -> 
A22: =ROW() -> 22 | G22: =IF($R22="^",IF(COUNTIF(Lists!$13:$13,H22)=1,0,1),0) -> 0 | H22: названия периодов расчета | AA22: =IF(AA20="","",IF($Q$16=Lists!$I$16,IF(WEEKDAY(AA20)=1,"вс",IF(WEEKDAY(AA20)=2,"пн",IF(WEEKDAY(AA20)=3,"вт",IF(WEEKDAY(AA20)=4,"ср",IF(WEEKDAY(AA20)=5,"чт",IF(WEEKDAY(AA20)=6,"пт","сб")))))),IF(OR($Q$16=Lists!$I$17,$Q$16=Lists!$I$18),COUNTIFS($Z17:AA17,MONTH(AA20),$Z18:AA18,YEAR(AA20)-2000)&IF($Q$16=Lists!$I$17,"нд-","дк-")&IF(AA17=1,"янв",IF(AA17=2,"фев",IF(AA17=3,"мар",IF(AA17=4,"апр",IF(AA17=5,"май",IF(AA17=6,"июн",IF(AA17=7,"июл",IF(AA17=8,"авг",IF(AA17=9,"сен",IF(AA17=10,"окт",IF(AA17=11,"ноя","дек")))))))))))&AA18,IF($Q$16=Lists!$I$19,AA20,IF($Q$16=Lists!$I$20,(INT((AA17-1)/3)+1)&"кв"&AA18&"г",IF($Q$16=Lists!$I$21,AA16&" год",IF($Q$16=Lists!$I$22,YEAR(AA20)&"г.",""))))))) -> 1кв21г | AB22: =IF(AB20="","",IF($Q$16=Lists!$I$16,IF(WEEKDAY(AB20)=1,"вс",IF(WEEKDAY(AB20)=2,"пн",IF(WEEKDAY(AB20)=3,"вт",IF(WEEKDAY(AB20)=4,"ср",IF(WEEKDAY(AB20)=5,"чт",IF(WEEKDAY(AB20)=6,"пт","сб")))))),IF(OR($Q$16=Lists!$I$17,$Q$16=Lists!$I$18),COUNTIFS($Z17:AB17,MONTH(AB20),$Z18:AB18,YEAR(AB20)-2000)&IF($Q$16=Lists!$I$17,"нд-","дк-")&IF(AB17=1,"янв",IF(AB17=2,"фев",IF(AB17=3,"мар",IF(AB17=4,"апр",IF(AB17=5,"май",IF(AB17=6,"июн",IF(AB17=7,"июл",IF(AB17=8,"авг",IF(AB17=9,"сен",IF(AB17=10,"окт",IF(AB17=11,"ноя","дек")))))))))))&AB18,IF($Q$16=Lists!$I$19,AB20,IF($Q$16=Lists!$I$20,(INT((AB17-1)/3)+1)&"кв"&AB18&"г",IF($Q$16=Lists!$I$21,AB16&" год",IF($Q$16=Lists!$I$22,YEAR(AB20)&"г.",""))))))) -> 2кв21г | AC22: =IF(AC20="","",IF($Q$16=Lists!$I$16,IF(WEEKDAY(AC20)=1,"вс",IF(WEEKDAY(AC20)=2,"пн",IF(WEEKDAY(AC20)=3,"вт",IF(WEEKDAY(AC20)=4,"ср",IF(WEEKDAY(AC20)=5,"чт",IF(WEEKDAY(AC20)=6,"пт","сб")))))),IF(OR($Q$16=Lists!$I$17,$Q$16=Lists!$I$18),COUNTIFS($Z17:AC17,MONTH(AC20),$Z18:AC18,YEAR(AC20)-2000)&IF($Q$16=Lists!$I$17,"нд-","дк-")&IF(AC17=1,"янв",IF(AC17=2,"фев",IF(AC17=3,"мар",IF(AC17=4,"апр",IF(AC17=5,"май",IF(AC17=6,"июн",IF(AC17=7,"июл",IF(AC17=8,"авг",IF(AC17=9,"сен",IF(AC17=10,"окт",IF(AC17=11,"ноя","дек")))))))))))&AC18,IF($Q$16=Lists!$I$19,AC20,IF($Q$16=Lists!$I$20,(INT((AC17-1)/3)+1)&"кв"&AC18&"г",IF($Q$16=Lists!$I$21,AC16&" год",IF($Q$16=Lists!$I$22,YEAR(AC20)&"г.",""))))))) -> 3кв21г | AD22: =IF(AD20="","",IF($Q$16=Lists!$I$16,IF(WEEKDAY(AD20)=1,"вс",IF(WEEKDAY(AD20)=2,"пн",IF(WEEKDAY(AD20)=3,"вт",IF(WEEKDAY(AD20)=4,"ср",IF(WEEKDAY(AD20)=5,"чт",IF(WEEKDAY(AD20)=6,"пт","сб")))))),IF(OR($Q$16=Lists!$I$17,$Q$16=Lists!$I$18),COUNTIFS($Z17:AD17,MONTH(AD20),$Z18:AD18,YEAR(AD20)-2000)&IF($Q$16=Lists!$I$17,"нд-","дк-")&IF(AD17=1,"янв",IF(AD17=2,"фев",IF(AD17=3,"мар",IF(AD17=4,"апр",IF(AD17=5,"май",IF(AD17=6,"июн",IF(AD17=7,"июл",IF(AD17=8,"авг",IF(AD17=9,"сен",IF(AD17=10,"окт",IF(AD17=11,"ноя","дек")))))))))))&AD18,IF($Q$16=Lists!$I$19,AD20,IF($Q$16=Lists!$I$20,(INT((AD17-1)/3)+1)&"кв"&AD18&"г",IF($Q$16=Lists!$I$21,AD16&" год",IF($Q$16=Lists!$I$22,YEAR(AD20)&"г.",""))))))) -> 4кв21г | AE22: =IF(AE20="","",IF($Q$16=Lists!$I$16,IF(WEEKDAY(AE20)=1,"вс",IF(WEEKDAY(AE20)=2,"пн",IF(WEEKDAY(AE20)=3,"вт",IF(WEEKDAY(AE20)=4,"ср",IF(WEEKDAY(AE20)=5,"чт",IF(WEEKDAY(AE20)=6,"пт","сб")))))),IF(OR($Q$16=Lists!$I$17,$Q$16=Lists!$I$18),COUNTIFS($Z17:AE17,MONTH(AE20),$Z18:AE18,YEAR(AE20)-2000)&IF($Q$16=Lists!$I$17,"нд-","дк-")&IF(AE17=1,"янв",IF(AE17=2,"фев",IF(AE17=3,"мар",IF(AE17=4,"апр",IF(AE17=5,"май",IF(AE17=6,"июн",IF(AE17=7,"июл",IF(AE17=8,"авг",IF(AE17=9,"сен",IF(AE17=10,"окт",IF(AE17=11,"ноя","дек")))))))))))&AE18,IF($Q$16=Lists!$I$19,AE20,IF($Q$16=Lists!$I$20,(INT((AE17-1)/3)+1)&"кв"&AE18&"г",IF($Q$16=Lists!$I$21,AE16&" год",IF($Q$16=Lists!$I$22,YEAR(AE20)&"г.",""))))))) -> 1кв22г | AF22: =IF(AF20="","",IF($Q$16=Lists!$I$16,IF(WEEKDAY(AF20)=1,"вс",IF(WEEKDAY(AF20)=2,"пн",IF(WEEKDAY(AF20)=3,"вт",IF(WEEKDAY(AF20)=4,"ср",IF(WEEKDAY(AF20)=5,"чт",IF(WEEKDAY(AF20)=6,"пт","сб")))))),IF(OR($Q$16=Lists!$I$17,$Q$16=Lists!$I$18),COUNTIFS($Z17:AF17,MONTH(AF20),$Z18:AF18,YEAR(AF20)-2000)&IF($Q$16=Lists!$I$17,"нд-","дк-")&IF(AF17=1,"янв",IF(AF17=2,"фев",IF(AF17=3,"мар",IF(AF17=4,"апр",IF(AF17=5,"май",IF(AF17=6,"июн",IF(AF17=7,"июл",IF(AF17=8,"авг",IF(AF17=9,"сен",IF(AF17=10,"окт",IF(AF17=11,"ноя","дек")))))))))))&AF18,IF($Q$16=Lists!$I$19,AF20,IF($Q$16=Lists!$I$20,(INT((AF17-1)/3)+1)&"кв"&AF18&"г",IF($Q$16=Lists!$I$21,AF16&" год",IF($Q$16=Lists!$I$22,YEAR(AF20)&"г.",""))))))) -> 2кв22г | AG22: =IF(AG20="","",IF($Q$16=Lists!$I$16,IF(WEEKDAY(AG20)=1,"вс",IF(WEEKDAY(AG20)=2,"пн",IF(WEEKDAY(AG20)=3,"вт",IF(WEEKDAY(AG20)=4,"ср",IF(WEEKDAY(AG20)=5,"чт",IF(WEEKDAY(AG20)=6,"пт","сб")))))),IF(OR($Q$16=Lists!$I$17,$Q$16=Lists!$I$18),COUNTIFS($Z17:AG17,MONTH(AG20),$Z18:AG18,YEAR(AG20)-2000)&IF($Q$16=Lists!$I$17,"нд-","дк-")&IF(AG17=1,"янв",IF(AG17=2,"фев",IF(AG17=3,"мар",IF(AG17=4,"апр",IF(AG17=5,"май",IF(AG17=6,"июн",IF(AG17=7,"июл",IF(AG17=8,"авг",IF(AG17=9,"сен",IF(AG17=10,"окт",IF(AG17=11,"ноя","дек")))))))))))&AG18,IF($Q$16=Lists!$I$19,AG20,IF($Q$16=Lists!$I$20,(INT((AG17-1)/3)+1)&"кв"&AG18&"г",IF($Q$16=Lists!$I$21,AG16&" год",IF($Q$16=Lists!$I$22,YEAR(AG20)&"г.",""))))))) -> 3кв22г | AH22: =IF(AH20="","",IF($Q$16=Lists!$I$16,IF(WEEKDAY(AH20)=1,"вс",IF(WEEKDAY(AH20)=2,"пн",IF(WEEKDAY(AH20)=3,"вт",IF(WEEKDAY(AH20)=4,"ср",IF(WEEKDAY(AH20)=5,"чт",IF(WEEKDAY(AH20)=6,"пт","сб")))))),IF(OR($Q$16=Lists!$I$17,$Q$16=Lists!$I$18),COUNTIFS($Z17:AH17,MONTH(AH20),$Z18:AH18,YEAR(AH20)-2000)&IF($Q$16=Lists!$I$17,"нд-","дк-")&IF(AH17=1,"янв",IF(AH17=2,"фев",IF(AH17=3,"мар",IF(AH17=4,"апр",IF(AH17=5,"май",IF(AH17=6,"июн",IF(AH17=7,"июл",IF(AH17=8,"авг",IF(AH17=9,"сен",IF(AH17=10,"окт",IF(AH17=11,"ноя","дек")))))))))))&AH18,IF($Q$16=Lists!$I$19,AH20,IF($Q$16=Lists!$I$20,(INT((AH17-1)/3)+1)&"кв"&AH18&"г",IF($Q$16=Lists!$I$21,AH16&" год",IF($Q$16=Lists!$I$22,YEAR(AH20)&"г.",""))))))) -> 4кв22г | AI22: =IF(AI20="","",IF($Q$16=Lists!$I$16,IF(WEEKDAY(AI20)=1,"вс",IF(WEEKDAY(AI20)=2,"пн",IF(WEEKDAY(AI20)=3,"вт",IF(WEEKDAY(AI20)=4,"ср",IF(WEEKDAY(AI20)=5,"чт",IF(WEEKDAY(AI20)=6,"пт","сб")))))),IF(OR($Q$16=Lists!$I$17,$Q$16=Lists!$I$18),COUNTIFS($Z17:AI17,MONTH(AI20),$Z18:AI18,YEAR(AI20)-2000)&IF($Q$16=Lists!$I$17,"нд-","дк-")&IF(AI17=1,"янв",IF(AI17=2,"фев",IF(AI17=3,"мар",IF(AI17=4,"апр",IF(AI17=5,"май",IF(AI17=6,"июн",IF(AI17=7,"июл",IF(AI17=8,"авг",IF(AI17=9,"сен",IF(AI17=10,"окт",IF(AI17=11,"ноя","дек")))))))))))&AI18,IF($Q$16=Lists!$I$19,AI20,IF($Q$16=Lists!$I$20,(INT((AI17-1)/3)+1)&"кв"&AI18&"г",IF($Q$16=Lists!$I$21,AI16&" год",IF($Q$16=Lists!$I$22,YEAR(AI20)&"г.",""))))))) -> 1кв23г | AJ22: =IF(AJ20="","",IF($Q$16=Lists!$I$16,IF(WEEKDAY(AJ20)=1,"вс",IF(WEEKDAY(AJ20)=2,"пн",IF(WEEKDAY(AJ20)=3,"вт",IF(WEEKDAY(AJ20)=4,"ср",IF(WEEKDAY(AJ20)=5,"чт",IF(WEEKDAY(AJ20)=6,"пт","сб")))))),IF(OR($Q$16=Lists!$I$17,$Q$16=Lists!$I$18),COUNTIFS($Z17:AJ17,MONTH(AJ20),$Z18:AJ18,YEAR(AJ20)-2000)&IF($Q$16=Lists!$I$17,"нд-","дк-")&IF(AJ17=1,"янв",IF(AJ17=2,"фев",IF(AJ17=3,"мар",IF(AJ17=4,"апр",IF(AJ17=5,"май",IF(AJ17=6,"июн",IF(AJ17=7,"июл",IF(AJ17=8,"авг",IF(AJ17=9,"сен",IF(AJ17=10,"окт",IF(AJ17=11,"ноя","дек")))))))))))&AJ18,IF($Q$16=Lists!$I$19,AJ20,IF($Q$16=Lists!$I$20,(INT((AJ17-1)/3)+1)&"кв"&AJ18&"г",IF($Q$16=Lists!$I$21,AJ16&" год",IF($Q$16=Lists!$I$22,YEAR(AJ20)&"г.",""))))))) -> 2кв23г | AK22: =IF(AK20="","",IF($Q$16=Lists!$I$16,IF(WEEKDAY(AK20)=1,"вс",IF(WEEKDAY(AK20)=2,"пн",IF(WEEKDAY(AK20)=3,"вт",IF(WEEKDAY(AK20)=4,"ср",IF(WEEKDAY(AK20)=5,"чт",IF(WEEKDAY(AK20)=6,"пт","сб")))))),IF(OR($Q$16=Lists!$I$17,$Q$16=Lists!$I$18),COUNTIFS($Z17:AK17,MONTH(AK20),$Z18:AK18,YEAR(AK20)-2000)&IF($Q$16=Lists!$I$17,"нд-","дк-")&IF(AK17=1,"янв",IF(AK17=2,"фев",IF(AK17=3,"мар",IF(AK17=4,"апр",IF(AK17=5,"май",IF(AK17=6,"июн",IF(AK17=7,"июл",IF(AK17=8,"авг",IF(AK17=9,"сен",IF(AK17=10,"окт",IF(AK17=11,"ноя","дек")))))))))))&AK18,IF($Q$16=Lists!$I$19,AK20,IF($Q$16=Lists!$I$20,(INT((AK17-1)/3)+1)&"кв"&AK18&"г",IF($Q$16=Lists!$I$21,AK16&" год",IF($Q$16=Lists!$I$22,YEAR(AK20)&"г.",""))))))) -> 3кв23г | AL22: =IF(AL20="","",IF($Q$16=Lists!$I$16,IF(WEEKDAY(AL20)=1,"вс",IF(WEEKDAY(AL20)=2,"пн",IF(WEEKDAY(AL20)=3,"вт",IF(WEEKDAY(AL20)=4,"ср",IF(WEEKDAY(AL20)=5,"чт",IF(WEEKDAY(AL20)=6,"пт","сб")))))),IF(OR($Q$16=Lists!$I$17,$Q$16=Lists!$I$18),COUNTIFS($Z17:AL17,MONTH(AL20),$Z18:AL18,YEAR(AL20)-2000)&IF($Q$16=Lists!$I$17,"нд-","дк-")&IF(AL17=1,"янв",IF(AL17=2,"фев",IF(AL17=3,"мар",IF(AL17=4,"апр",IF(AL17=5,"май",IF(AL17=6,"июн",IF(AL17=7,"июл",IF(AL17=8,"авг",IF(AL17=9,"сен",IF(AL17=10,"окт",IF(AL17=11,"ноя","дек")))))))))))&AL18,IF($Q$16=Lists!$I$19,AL20,IF($Q$16=Lists!$I$20,(INT((AL17-1)/3)+1)&"кв"&AL18&"г",IF($Q$16=Lists!$I$21,AL16&" год",IF($Q$16=Lists!$I$22,YEAR(AL20)&"г.",""))))))) -> 4кв23г | AM22: =IF(AM20="","",IF($Q$16=Lists!$I$16,IF(WEEKDAY(AM20)=1,"вс",IF(WEEKDAY(AM20)=2,"пн",IF(WEEKDAY(AM20)=3,"вт",IF(WEEKDAY(AM20)=4,"ср",IF(WEEKDAY(AM20)=5,"чт",IF(WEEKDAY(AM20)=6,"пт","сб")))))),IF(OR($Q$16=Lists!$I$17,$Q$16=Lists!$I$18),COUNTIFS($Z17:AM17,MONTH(AM20),$Z18:AM18,YEAR(AM20)-2000)&IF($Q$16=Lists!$I$17,"нд-","дк-")&IF(AM17=1,"янв",IF(AM17=2,"фев",IF(AM17=3,"мар",IF(AM17=4,"апр",IF(AM17=5,"май",IF(AM17=6,"июн",IF(AM17=7,"июл",IF(AM17=8,"авг",IF(AM17=9,"сен",IF(AM17=10,"окт",IF(AM17=11,"ноя","дек")))))))))))&AM18,IF($Q$16=Lists!$I$19,AM20,IF($Q$16=Lists!$I$20,(INT((AM17-1)/3)+1)&"кв"&AM18&"г",IF($Q$16=Lists!$I$21,AM16&" год",IF($Q$16=Lists!$I$22,YEAR(AM20)&"г.",""))))))) -> 1кв24г | AN22: =IF(AN20="","",IF($Q$16=Lists!$I$16,IF(WEEKDAY(AN20)=1,"вс",IF(WEEKDAY(AN20)=2,"пн",IF(WEEKDAY(AN20)=3,"вт",IF(WEEKDAY(AN20)=4,"ср",IF(WEEKDAY(AN20)=5,"чт",IF(WEEKDAY(AN20)=6,"пт","сб")))))),IF(OR($Q$16=Lists!$I$17,$Q$16=Lists!$I$18),COUNTIFS($Z17:AN17,MONTH(AN20),$Z18:AN18,YEAR(AN20)-2000)&IF($Q$16=Lists!$I$17,"нд-","дк-")&IF(AN17=1,"янв",IF(AN17=2,"фев",IF(AN17=3,"мар",IF(AN17=4,"апр",IF(AN17=5,"май",IF(AN17=6,"июн",IF(AN17=7,"июл",IF(AN17=8,"авг",IF(AN17=9,"сен",IF(AN17=10,"окт",IF(AN17=11,"ноя","дек")))))))))))&AN18,IF($Q$16=Lists!$I$19,AN20,IF($Q$16=Lists!$I$20,(INT((AN17-1)/3)+1)&"кв"&AN18&"г",IF($Q$16=Lists!$I$21,AN16&" год",IF($Q$16=Lists!$I$22,YEAR(AN20)&"г.",""))))))) -> 2кв24г | AO22: =IF(AO20="","",IF($Q$16=Lists!$I$16,IF(WEEKDAY(AO20)=1,"вс",IF(WEEKDAY(AO20)=2,"пн",IF(WEEKDAY(AO20)=3,"вт",IF(WEEKDAY(AO20)=4,"ср",IF(WEEKDAY(AO20)=5,"чт",IF(WEEKDAY(AO20)=6,"пт","сб")))))),IF(OR($Q$16=Lists!$I$17,$Q$16=Lists!$I$18),COUNTIFS($Z17:AO17,MONTH(AO20),$Z18:AO18,YEAR(AO20)-2000)&IF($Q$16=Lists!$I$17,"нд-","дк-")&IF(AO17=1,"янв",IF(AO17=2,"фев",IF(AO17=3,"мар",IF(AO17=4,"апр",IF(AO17=5,"май",IF(AO17=6,"июн",IF(AO17=7,"июл",IF(AO17=8,"авг",IF(AO17=9,"сен",IF(AO17=10,"окт",IF(AO17=11,"ноя","дек")))))))))))&AO18,IF($Q$16=Lists!$I$19,AO20,IF($Q$16=Lists!$I$20,(INT((AO17-1)/3)+1)&"кв"&AO18&"г",IF($Q$16=Lists!$I$21,AO16&" год",IF($Q$16=Lists!$I$22,YEAR(AO20)&"г.",""))))))) -> 3кв24г | AP22: =IF(AP20="","",IF($Q$16=Lists!$I$16,IF(WEEKDAY(AP20)=1,"вс",IF(WEEKDAY(AP20)=2,"пн",IF(WEEKDAY(AP20)=3,"вт",IF(WEEKDAY(AP20)=4,"ср",IF(WEEKDAY(AP20)=5,"чт",IF(WEEKDAY(AP20)=6,"пт","сб")))))),IF(OR($Q$16=Lists!$I$17,$Q$16=Lists!$I$18),COUNTIFS($Z17:AP17,MONTH(AP20),$Z18:AP18,YEAR(AP20)-2000)&IF($Q$16=Lists!$I$17,"нд-","дк-")&IF(AP17=1,"янв",IF(AP17=2,"фев",IF(AP17=3,"мар",IF(AP17=4,"апр",IF(AP17=5,"май",IF(AP17=6,"июн",IF(AP17=7,"июл",IF(AP17=8,"авг",IF(AP17=9,"сен",IF(AP17=10,"окт",IF(AP17=11,"ноя","дек")))))))))))&AP18,IF($Q$16=Lists!$I$19,AP20,IF($Q$16=Lists!$I$20,(INT((AP17-1)/3)+1)&"кв"&AP18&"г",IF($Q$16=Lists!$I$21,AP16&" год",IF($Q$16=Lists!$I$22,YEAR(AP20)&"г.",""))))))) -> 4кв24г | AQ22: =IF(AQ20="","",IF($Q$16=Lists!$I$16,IF(WEEKDAY(AQ20)=1,"вс",IF(WEEKDAY(AQ20)=2,"пн",IF(WEEKDAY(AQ20)=3,"вт",IF(WEEKDAY(AQ20)=4,"ср",IF(WEEKDAY(AQ20)=5,"чт",IF(WEEKDAY(AQ20)=6,"пт","сб")))))),IF(OR($Q$16=Lists!$I$17,$Q$16=Lists!$I$18),COUNTIFS($Z17:AQ17,MONTH(AQ20),$Z18:AQ18,YEAR(AQ20)-2000)&IF($Q$16=Lists!$I$17,"нд-","дк-")&IF(AQ17=1,"янв",IF(AQ17=2,"фев",IF(AQ17=3,"мар",IF(AQ17=4,"апр",IF(AQ17=5,"май",IF(AQ17=6,"июн",IF(AQ17=7,"июл",IF(AQ17=8,"авг",IF(AQ17=9,"сен",IF(AQ17=10,"окт",IF(AQ17=11,"ноя","дек")))))))))))&AQ18,IF($Q$16=Lists!$I$19,AQ20,IF($Q$16=Lists!$I$20,(INT((AQ17-1)/3)+1)&"кв"&AQ18&"г",IF($Q$16=Lists!$I$21,AQ16&" год",IF($Q$16=Lists!$I$22,YEAR(AQ20)&"г.",""))))))) -> 1кв25г | AR22: =IF(AR20="","",IF($Q$16=Lists!$I$16,IF(WEEKDAY(AR20)=1,"вс",IF(WEEKDAY(AR20)=2,"пн",IF(WEEKDAY(AR20)=3,"вт",IF(WEEKDAY(AR20)=4,"ср",IF(WEEKDAY(AR20)=5,"чт",IF(WEEKDAY(AR20)=6,"пт","сб")))))),IF(OR($Q$16=Lists!$I$17,$Q$16=Lists!$I$18),COUNTIFS($Z17:AR17,MONTH(AR20),$Z18:AR18,YEAR(AR20)-2000)&IF($Q$16=Lists!$I$17,"нд-","дк-")&IF(AR17=1,"янв",IF(AR17=2,"фев",IF(AR17=3,"мар",IF(AR17=4,"апр",IF(AR17=5,"май",IF(AR17=6,"июн",IF(AR17=7,"июл",IF(AR17=8,"авг",IF(AR17=9,"сен",IF(AR17=10,"окт",IF(AR17=11,"ноя","дек")))))))))))&AR18,IF($Q$16=Lists!$I$19,AR20,IF($Q$16=Lists!$I$20,(INT((AR17-1)/3)+1)&"кв"&AR18&"г",IF($Q$16=Lists!$I$21,AR16&" год",IF($Q$16=Lists!$I$22,YEAR(AR20)&"г.",""))))))) -> 2кв25г | AS22: =IF(AS20="","",IF($Q$16=Lists!$I$16,IF(WEEKDAY(AS20)=1,"вс",IF(WEEKDAY(AS20)=2,"пн",IF(WEEKDAY(AS20)=3,"вт",IF(WEEKDAY(AS20)=4,"ср",IF(WEEKDAY(AS20)=5,"чт",IF(WEEKDAY(AS20)=6,"пт","сб")))))),IF(OR($Q$16=Lists!$I$17,$Q$16=Lists!$I$18),COUNTIFS($Z17:AS17,MONTH(AS20),$Z18:AS18,YEAR(AS20)-2000)&IF($Q$16=Lists!$I$17,"нд-","дк-")&IF(AS17=1,"янв",IF(AS17=2,"фев",IF(AS17=3,"мар",IF(AS17=4,"апр",IF(AS17=5,"май",IF(AS17=6,"июн",IF(AS17=7,"июл",IF(AS17=8,"авг",IF(AS17=9,"сен",IF(AS17=10,"окт",IF(AS17=11,"ноя","дек")))))))))))&AS18,IF($Q$16=Lists!$I$19,AS20,IF($Q$16=Lists!$I$20,(INT((AS17-1)/3)+1)&"кв"&AS18&"г",IF($Q$16=Lists!$I$21,AS16&" год",IF($Q$16=Lists!$I$22,YEAR(AS20)&"г.",""))))))) -> 3кв25г | AT22: =IF(AT20="","",IF($Q$16=Lists!$I$16,IF(WEEKDAY(AT20)=1,"вс",IF(WEEKDAY(AT20)=2,"пн",IF(WEEKDAY(AT20)=3,"вт",IF(WEEKDAY(AT20)=4,"ср",IF(WEEKDAY(AT20)=5,"чт",IF(WEEKDAY(AT20)=6,"пт","сб")))))),IF(OR($Q$16=Lists!$I$17,$Q$16=Lists!$I$18),COUNTIFS($Z17:AT17,MONTH(AT20),$Z18:AT18,YEAR(AT20)-2000)&IF($Q$16=Lists!$I$17,"нд-","дк-")&IF(AT17=1,"янв",IF(AT17=2,"фев",IF(AT17=3,"мар",IF(AT17=4,"апр",IF(AT17=5,"май",IF(AT17=6,"июн",IF(AT17=7,"июл",IF(AT17=8,"авг",IF(AT17=9,"сен",IF(AT17=10,"окт",IF(AT17=11,"ноя","дек")))))))))))&AT18,IF($Q$16=Lists!$I$19,AT20,IF($Q$16=Lists!$I$20,(INT((AT17-1)/3)+1)&"кв"&AT18&"г",IF($Q$16=Lists!$I$21,AT16&" год",IF($Q$16=Lists!$I$22,YEAR(AT20)&"г.",""))))))) -> 4кв25г | AU22: =IF(AU20="","",IF($Q$16=Lists!$I$16,IF(WEEKDAY(AU20)=1,"вс",IF(WEEKDAY(AU20)=2,"пн",IF(WEEKDAY(AU20)=3,"вт",IF(WEEKDAY(AU20)=4,"ср",IF(WEEKDAY(AU20)=5,"чт",IF(WEEKDAY(AU20)=6,"пт","сб")))))),IF(OR($Q$16=Lists!$I$17,$Q$16=Lists!$I$18),COUNTIFS($Z17:AU17,MONTH(AU20),$Z18:AU18,YEAR(AU20)-2000)&IF($Q$16=Lists!$I$17,"нд-","дк-")&IF(AU17=1,"янв",IF(AU17=2,"фев",IF(AU17=3,"мар",IF(AU17=4,"апр",IF(AU17=5,"май",IF(AU17=6,"июн",IF(AU17=7,"июл",IF(AU17=8,"авг",IF(AU17=9,"сен",IF(AU17=10,"окт",IF(AU17=11,"ноя","дек")))))))))))&AU18,IF($Q$16=Lists!$I$19,AU20,IF($Q$16=Lists!$I$20,(INT((AU17-1)/3)+1)&"кв"&AU18&"г",IF($Q$16=Lists!$I$21,AU16&" год",IF($Q$16=Lists!$I$22,YEAR(AU20)&"г.",""))))))) -> 1кв26г | AV22: =IF(AV20="","",IF($Q$16=Lists!$I$16,IF(WEEKDAY(AV20)=1,"вс",IF(WEEKDAY(AV20)=2,"пн",IF(WEEKDAY(AV20)=3,"вт",IF(WEEKDAY(AV20)=4,"ср",IF(WEEKDAY(AV20)=5,"чт",IF(WEEKDAY(AV20)=6,"пт","сб")))))),IF(OR($Q$16=Lists!$I$17,$Q$16=Lists!$I$18),COUNTIFS($Z17:AV17,MONTH(AV20),$Z18:AV18,YEAR(AV20)-2000)&IF($Q$16=Lists!$I$17,"нд-","дк-")&IF(AV17=1,"янв",IF(AV17=2,"фев",IF(AV17=3,"мар",IF(AV17=4,"апр",IF(AV17=5,"май",IF(AV17=6,"июн",IF(AV17=7,"июл",IF(AV17=8,"авг",IF(AV17=9,"сен",IF(AV17=10,"окт",IF(AV17=11,"ноя","дек")))))))))))&AV18,IF($Q$16=Lists!$I$19,AV20,IF($Q$16=Lists!$I$20,(INT((AV17-1)/3)+1)&"кв"&AV18&"г",IF($Q$16=Lists!$I$21,AV16&" год",IF($Q$16=Lists!$I$22,YEAR(AV20)&"г.",""))))))) -> 2кв26г | AW22: =IF(AW20="","",IF($Q$16=Lists!$I$16,IF(WEEKDAY(AW20)=1,"вс",IF(WEEKDAY(AW20)=2,"пн",IF(WEEKDAY(AW20)=3,"вт",IF(WEEKDAY(AW20)=4,"ср",IF(WEEKDAY(AW20)=5,"чт",IF(WEEKDAY(AW20)=6,"пт","сб")))))),IF(OR($Q$16=Lists!$I$17,$Q$16=Lists!$I$18),COUNTIFS($Z17:AW17,MONTH(AW20),$Z18:AW18,YEAR(AW20)-2000)&IF($Q$16=Lists!$I$17,"нд-","дк-")&IF(AW17=1,"янв",IF(AW17=2,"фев",IF(AW17=3,"мар",IF(AW17=4,"апр",IF(AW17=5,"май",IF(AW17=6,"июн",IF(AW17=7,"июл",IF(AW17=8,"авг",IF(AW17=9,"сен",IF(AW17=10,"окт",IF(AW17=11,"ноя","дек")))))))))))&AW18,IF($Q$16=Lists!$I$19,AW20,IF($Q$16=Lists!$I$20,(INT((AW17-1)/3)+1)&"кв"&AW18&"г",IF($Q$16=Lists!$I$21,AW16&" год",IF($Q$16=Lists!$I$22,YEAR(AW20)&"г.",""))))))) -> 3кв26г | AX22: =IF(AX20="","",IF($Q$16=Lists!$I$16,IF(WEEKDAY(AX20)=1,"вс",IF(WEEKDAY(AX20)=2,"пн",IF(WEEKDAY(AX20)=3,"вт",IF(WEEKDAY(AX20)=4,"ср",IF(WEEKDAY(AX20)=5,"чт",IF(WEEKDAY(AX20)=6,"пт","сб")))))),IF(OR($Q$16=Lists!$I$17,$Q$16=Lists!$I$18),COUNTIFS($Z17:AX17,MONTH(AX20),$Z18:AX18,YEAR(AX20)-2000)&IF($Q$16=Lists!$I$17,"нд-","дк-")&IF(AX17=1,"янв",IF(AX17=2,"фев",IF(AX17=3,"мар",IF(AX17=4,"апр",IF(AX17=5,"май",IF(AX17=6,"июн",IF(AX17=7,"июл",IF(AX17=8,"авг",IF(AX17=9,"сен",IF(AX17=10,"окт",IF(AX17=11,"ноя","дек")))))))))))&AX18,IF($Q$16=Lists!$I$19,AX20,IF($Q$16=Lists!$I$20,(INT((AX17-1)/3)+1)&"кв"&AX18&"г",IF($Q$16=Lists!$I$21,AX16&" год",IF($Q$16=Lists!$I$22,YEAR(AX20)&"г.",""))))))) -> 4кв26г | AY22: =IF(AY20="","",IF($Q$16=Lists!$I$16,IF(WEEKDAY(AY20)=1,"вс",IF(WEEKDAY(AY20)=2,"пн",IF(WEEKDAY(AY20)=3,"вт",IF(WEEKDAY(AY20)=4,"ср",IF(WEEKDAY(AY20)=5,"чт",IF(WEEKDAY(AY20)=6,"пт","сб")))))),IF(OR($Q$16=Lists!$I$17,$Q$16=Lists!$I$18),COUNTIFS($Z17:AY17,MONTH(AY20),$Z18:AY18,YEAR(AY20)-2000)&IF($Q$16=Lists!$I$17,"нд-","дк-")&IF(AY17=1,"янв",IF(AY17=2,"фев",IF(AY17=3,"мар",IF(AY17=4,"апр",IF(AY17=5,"май",IF(AY17=6,"июн",IF(AY17=7,"июл",IF(AY17=8,"авг",IF(AY17=9,"сен",IF(AY17=10,"окт",IF(AY17=11,"ноя","дек")))))))))))&AY18,IF($Q$16=Lists!$I$19,AY20,IF($Q$16=Lists!$I$20,(INT((AY17-1)/3)+1)&"кв"&AY18&"г",IF($Q$16=Lists!$I$21,AY16&" год",IF($Q$16=Lists!$I$22,YEAR(AY20)&"г.",""))))))) -> 1кв27г | AZ22: =IF(AZ20="","",IF($Q$16=Lists!$I$16,IF(WEEKDAY(AZ20)=1,"вс",IF(WEEKDAY(AZ20)=2,"пн",IF(WEEKDAY(AZ20)=3,"вт",IF(WEEKDAY(AZ20)=4,"ср",IF(WEEKDAY(AZ20)=5,"чт",IF(WEEKDAY(AZ20)=6,"пт","сб")))))),IF(OR($Q$16=Lists!$I$17,$Q$16=Lists!$I$18),COUNTIFS($Z17:AZ17,MONTH(AZ20),$Z18:AZ18,YEAR(AZ20)-2000)&IF($Q$16=Lists!$I$17,"нд-","дк-")&IF(AZ17=1,"янв",IF(AZ17=2,"фев",IF(AZ17=3,"мар",IF(AZ17=4,"апр",IF(AZ17=5,"май",IF(AZ17=6,"июн",IF(AZ17=7,"июл",IF(AZ17=8,"авг",IF(AZ17=9,"сен",IF(AZ17=10,"окт",IF(AZ17=11,"ноя","дек")))))))))))&AZ18,IF($Q$16=Lists!$I$19,AZ20,IF($Q$16=Lists!$I$20,(INT((AZ17-1)/3)+1)&"кв"&AZ18&"г",IF($Q$16=Lists!$I$21,AZ16&" год",IF($Q$16=Lists!$I$22,YEAR(AZ20)&"г.",""))))))) -> 2кв27г | BA22: =IF(BA20="","",IF($Q$16=Lists!$I$16,IF(WEEKDAY(BA20)=1,"вс",IF(WEEKDAY(BA20)=2,"пн",IF(WEEKDAY(BA20)=3,"вт",IF(WEEKDAY(BA20)=4,"ср",IF(WEEKDAY(BA20)=5,"чт",IF(WEEKDAY(BA20)=6,"пт","сб")))))),IF(OR($Q$16=Lists!$I$17,$Q$16=Lists!$I$18),COUNTIFS($Z17:BA17,MONTH(BA20),$Z18:BA18,YEAR(BA20)-2000)&IF($Q$16=Lists!$I$17,"нд-","дк-")&IF(BA17=1,"янв",IF(BA17=2,"фев",IF(BA17=3,"мар",IF(BA17=4,"апр",IF(BA17=5,"май",IF(BA17=6,"июн",IF(BA17=7,"июл",IF(BA17=8,"авг",IF(BA17=9,"сен",IF(BA17=10,"окт",IF(BA17=11,"ноя","дек")))))))))))&BA18,IF($Q$16=Lists!$I$19,BA20,IF($Q$16=Lists!$I$20,(INT((BA17-1)/3)+1)&"кв"&BA18&"г",IF($Q$16=Lists!$I$21,BA16&" год",IF($Q$16=Lists!$I$22,YEAR(BA20)&"г.",""))))))) -> 3кв27г | BB22: =IF(BB20="","",IF($Q$16=Lists!$I$16,IF(WEEKDAY(BB20)=1,"вс",IF(WEEKDAY(BB20)=2,"пн",IF(WEEKDAY(BB20)=3,"вт",IF(WEEKDAY(BB20)=4,"ср",IF(WEEKDAY(BB20)=5,"чт",IF(WEEKDAY(BB20)=6,"пт","сб")))))),IF(OR($Q$16=Lists!$I$17,$Q$16=Lists!$I$18),COUNTIFS($Z17:BB17,MONTH(BB20),$Z18:BB18,YEAR(BB20)-2000)&IF($Q$16=Lists!$I$17,"нд-","дк-")&IF(BB17=1,"янв",IF(BB17=2,"фев",IF(BB17=3,"мар",IF(BB17=4,"апр",IF(BB17=5,"май",IF(BB17=6,"июн",IF(BB17=7,"июл",IF(BB17=8,"авг",IF(BB17=9,"сен",IF(BB17=10,"окт",IF(BB17=11,"ноя","дек")))))))))))&BB18,IF($Q$16=Lists!$I$19,BB20,IF($Q$16=Lists!$I$20,(INT((BB17-1)/3)+1)&"кв"&BB18&"г",IF($Q$16=Lists!$I$21,BB16&" год",IF($Q$16=Lists!$I$22,YEAR(BB20)&"г.",""))))))) -> 4кв27г | BC22: =IF(BC20="","",IF($Q$16=Lists!$I$16,IF(WEEKDAY(BC20)=1,"вс",IF(WEEKDAY(BC20)=2,"пн",IF(WEEKDAY(BC20)=3,"вт",IF(WEEKDAY(BC20)=4,"ср",IF(WEEKDAY(BC20)=5,"чт",IF(WEEKDAY(BC20)=6,"пт","сб")))))),IF(OR($Q$16=Lists!$I$17,$Q$16=Lists!$I$18),COUNTIFS($Z17:BC17,MONTH(BC20),$Z18:BC18,YEAR(BC20)-2000)&IF($Q$16=Lists!$I$17,"нд-","дк-")&IF(BC17=1,"янв",IF(BC17=2,"фев",IF(BC17=3,"мар",IF(BC17=4,"апр",IF(BC17=5,"май",IF(BC17=6,"июн",IF(BC17=7,"июл",IF(BC17=8,"авг",IF(BC17=9,"сен",IF(BC17=10,"окт",IF(BC17=11,"ноя","дек")))))))))))&BC18,IF($Q$16=Lists!$I$19,BC20,IF($Q$16=Lists!$I$20,(INT((BC17-1)/3)+1)&"кв"&BC18&"г",IF($Q$16=Lists!$I$21,BC16&" год",IF($Q$16=Lists!$I$22,YEAR(BC20)&"г.",""))))))) -> 1кв28г | BD22: =IF(BD20="","",IF($Q$16=Lists!$I$16,IF(WEEKDAY(BD20)=1,"вс",IF(WEEKDAY(BD20)=2,"пн",IF(WEEKDAY(BD20)=3,"вт",IF(WEEKDAY(BD20)=4,"ср",IF(WEEKDAY(BD20)=5,"чт",IF(WEEKDAY(BD20)=6,"пт","сб")))))),IF(OR($Q$16=Lists!$I$17,$Q$16=Lists!$I$18),COUNTIFS($Z17:BD17,MONTH(BD20),$Z18:BD18,YEAR(BD20)-2000)&IF($Q$16=Lists!$I$17,"нд-","дк-")&IF(BD17=1,"янв",IF(BD17=2,"фев",IF(BD17=3,"мар",IF(BD17=4,"апр",IF(BD17=5,"май",IF(BD17=6,"июн",IF(BD17=7,"июл",IF(BD17=8,"авг",IF(BD17=9,"сен",IF(BD17=10,"окт",IF(BD17=11,"ноя","дек")))))))))))&BD18,IF($Q$16=Lists!$I$19,BD20,IF($Q$16=Lists!$I$20,(INT((BD17-1)/3)+1)&"кв"&BD18&"г",IF($Q$16=Lists!$I$21,BD16&" год",IF($Q$16=Lists!$I$22,YEAR(BD20)&"г.",""))))))) -> 2кв28г | BE22: =IF(BE20="","",IF($Q$16=Lists!$I$16,IF(WEEKDAY(BE20)=1,"вс",IF(WEEKDAY(BE20)=2,"пн",IF(WEEKDAY(BE20)=3,"вт",IF(WEEKDAY(BE20)=4,"ср",IF(WEEKDAY(BE20)=5,"чт",IF(WEEKDAY(BE20)=6,"пт","сб")))))),IF(OR($Q$16=Lists!$I$17,$Q$16=Lists!$I$18),COUNTIFS($Z17:BE17,MONTH(BE20),$Z18:BE18,YEAR(BE20)-2000)&IF($Q$16=Lists!$I$17,"нд-","дк-")&IF(BE17=1,"янв",IF(BE17=2,"фев",IF(BE17=3,"мар",IF(BE17=4,"апр",IF(BE17=5,"май",IF(BE17=6,"июн",IF(BE17=7,"июл",IF(BE17=8,"авг",IF(BE17=9,"сен",IF(BE17=10,"окт",IF(BE17=11,"ноя","дек")))))))))))&BE18,IF($Q$16=Lists!$I$19,BE20,IF($Q$16=Lists!$I$20,(INT((BE17-1)/3)+1)&"кв"&BE18&"г",IF($Q$16=Lists!$I$21,BE16&" год",IF($Q$16=Lists!$I$22,YEAR(BE20)&"г.",""))))))) -> 3кв28г | BF22: =IF(BF20="","",IF($Q$16=Lists!$I$16,IF(WEEKDAY(BF20)=1,"вс",IF(WEEKDAY(BF20)=2,"пн",IF(WEEKDAY(BF20)=3,"вт",IF(WEEKDAY(BF20)=4,"ср",IF(WEEKDAY(BF20)=5,"чт",IF(WEEKDAY(BF20)=6,"пт","сб")))))),IF(OR($Q$16=Lists!$I$17,$Q$16=Lists!$I$18),COUNTIFS($Z17:BF17,MONTH(BF20),$Z18:BF18,YEAR(BF20)-2000)&IF($Q$16=Lists!$I$17,"нд-","дк-")&IF(BF17=1,"янв",IF(BF17=2,"фев",IF(BF17=3,"мар",IF(BF17=4,"апр",IF(BF17=5,"май",IF(BF17=6,"июн",IF(BF17=7,"июл",IF(BF17=8,"авг",IF(BF17=9,"сен",IF(BF17=10,"окт",IF(BF17=11,"ноя","дек")))))))))))&BF18,IF($Q$16=Lists!$I$19,BF20,IF($Q$16=Lists!$I$20,(INT((BF17-1)/3)+1)&"кв"&BF18&"г",IF($Q$16=Lists!$I$21,BF16&" год",IF($Q$16=Lists!$I$22,YEAR(BF20)&"г.",""))))))) -> 4кв28г | BG22: =IF(BG20="","",IF($Q$16=Lists!$I$16,IF(WEEKDAY(BG20)=1,"вс",IF(WEEKDAY(BG20)=2,"пн",IF(WEEKDAY(BG20)=3,"вт",IF(WEEKDAY(BG20)=4,"ср",IF(WEEKDAY(BG20)=5,"чт",IF(WEEKDAY(BG20)=6,"пт","сб")))))),IF(OR($Q$16=Lists!$I$17,$Q$16=Lists!$I$18),COUNTIFS($Z17:BG17,MONTH(BG20),$Z18:BG18,YEAR(BG20)-2000)&IF($Q$16=Lists!$I$17,"нд-","дк-")&IF(BG17=1,"янв",IF(BG17=2,"фев",IF(BG17=3,"мар",IF(BG17=4,"апр",IF(BG17=5,"май",IF(BG17=6,"июн",IF(BG17=7,"июл",IF(BG17=8,"авг",IF(BG17=9,"сен",IF(BG17=10,"окт",IF(BG17=11,"ноя","дек")))))))))))&BG18,IF($Q$16=Lists!$I$19,BG20,IF($Q$16=Lists!$I$20,(INT((BG17-1)/3)+1)&"кв"&BG18&"г",IF($Q$16=Lists!$I$21,BG16&" год",IF($Q$16=Lists!$I$22,YEAR(BG20)&"г.",""))))))) -> 1кв29г | BH22: =IF(BH20="","",IF($Q$16=Lists!$I$16,IF(WEEKDAY(BH20)=1,"вс",IF(WEEKDAY(BH20)=2,"пн",IF(WEEKDAY(BH20)=3,"вт",IF(WEEKDAY(BH20)=4,"ср",IF(WEEKDAY(BH20)=5,"чт",IF(WEEKDAY(BH20)=6,"пт","сб")))))),IF(OR($Q$16=Lists!$I$17,$Q$16=Lists!$I$18),COUNTIFS($Z17:BH17,MONTH(BH20),$Z18:BH18,YEAR(BH20)-2000)&IF($Q$16=Lists!$I$17,"нд-","дк-")&IF(BH17=1,"янв",IF(BH17=2,"фев",IF(BH17=3,"мар",IF(BH17=4,"апр",IF(BH17=5,"май",IF(BH17=6,"июн",IF(BH17=7,"июл",IF(BH17=8,"авг",IF(BH17=9,"сен",IF(BH17=10,"окт",IF(BH17=11,"ноя","дек")))))))))))&BH18,IF($Q$16=Lists!$I$19,BH20,IF($Q$16=Lists!$I$20,(INT((BH17-1)/3)+1)&"кв"&BH18&"г",IF($Q$16=Lists!$I$21,BH16&" год",IF($Q$16=Lists!$I$22,YEAR(BH20)&"г.",""))))))) -> 2кв29г | BI22: =IF(BI20="","",IF($Q$16=Lists!$I$16,IF(WEEKDAY(BI20)=1,"вс",IF(WEEKDAY(BI20)=2,"пн",IF(WEEKDAY(BI20)=3,"вт",IF(WEEKDAY(BI20)=4,"ср",IF(WEEKDAY(BI20)=5,"чт",IF(WEEKDAY(BI20)=6,"пт","сб")))))),IF(OR($Q$16=Lists!$I$17,$Q$16=Lists!$I$18),COUNTIFS($Z17:BI17,MONTH(BI20),$Z18:BI18,YEAR(BI20)-2000)&IF($Q$16=Lists!$I$17,"нд-","дк-")&IF(BI17=1,"янв",IF(BI17=2,"фев",IF(BI17=3,"мар",IF(BI17=4,"апр",IF(BI17=5,"май",IF(BI17=6,"июн",IF(BI17=7,"июл",IF(BI17=8,"авг",IF(BI17=9,"сен",IF(BI17=10,"окт",IF(BI17=11,"ноя","дек")))))))))))&BI18,IF($Q$16=Lists!$I$19,BI20,IF($Q$16=Lists!$I$20,(INT((BI17-1)/3)+1)&"кв"&BI18&"г",IF($Q$16=Lists!$I$21,BI16&" год",IF($Q$16=Lists!$I$22,YEAR(BI20)&"г.",""))))))) -> 3кв29г | BJ22: =IF(BJ20="","",IF($Q$16=Lists!$I$16,IF(WEEKDAY(BJ20)=1,"вс",IF(WEEKDAY(BJ20)=2,"пн",IF(WEEKDAY(BJ20)=3,"вт",IF(WEEKDAY(BJ20)=4,"ср",IF(WEEKDAY(BJ20)=5,"чт",IF(WEEKDAY(BJ20)=6,"пт","сб")))))),IF(OR($Q$16=Lists!$I$17,$Q$16=Lists!$I$18),COUNTIFS($Z17:BJ17,MONTH(BJ20),$Z18:BJ18,YEAR(BJ20)-2000)&IF($Q$16=Lists!$I$17,"нд-","дк-")&IF(BJ17=1,"янв",IF(BJ17=2,"фев",IF(BJ17=3,"мар",IF(BJ17=4,"апр",IF(BJ17=5,"май",IF(BJ17=6,"июн",IF(BJ17=7,"июл",IF(BJ17=8,"авг",IF(BJ17=9,"сен",IF(BJ17=10,"окт",IF(BJ17=11,"ноя","дек")))))))))))&BJ18,IF($Q$16=Lists!$I$19,BJ20,IF($Q$16=Lists!$I$20,(INT((BJ17-1)/3)+1)&"кв"&BJ18&"г",IF($Q$16=Lists!$I$21,BJ16&" год",IF($Q$16=Lists!$I$22,YEAR(BJ20)&"г.",""))))))) -> 4кв29г | BK22: =IF(BK20="","",IF($Q$16=Lists!$I$16,IF(WEEKDAY(BK20)=1,"вс",IF(WEEKDAY(BK20)=2,"пн",IF(WEEKDAY(BK20)=3,"вт",IF(WEEKDAY(BK20)=4,"ср",IF(WEEKDAY(BK20)=5,"чт",IF(WEEKDAY(BK20)=6,"пт","сб")))))),IF(OR($Q$16=Lists!$I$17,$Q$16=Lists!$I$18),COUNTIFS($Z17:BK17,MONTH(BK20),$Z18:BK18,YEAR(BK20)-2000)&IF($Q$16=Lists!$I$17,"нд-","дк-")&IF(BK17=1,"янв",IF(BK17=2,"фев",IF(BK17=3,"мар",IF(BK17=4,"апр",IF(BK17=5,"май",IF(BK17=6,"июн",IF(BK17=7,"июл",IF(BK17=8,"авг",IF(BK17=9,"сен",IF(BK17=10,"окт",IF(BK17=11,"ноя","дек")))))))))))&BK18,IF($Q$16=Lists!$I$19,BK20,IF($Q$16=Lists!$I$20,(INT((BK17-1)/3)+1)&"кв"&BK18&"г",IF($Q$16=Lists!$I$21,BK16&" год",IF($Q$16=Lists!$I$22,YEAR(BK20)&"г.",""))))))) -> 1кв30г | BL22: =IF(BL20="","",IF($Q$16=Lists!$I$16,IF(WEEKDAY(BL20)=1,"вс",IF(WEEKDAY(BL20)=2,"пн",IF(WEEKDAY(BL20)=3,"вт",IF(WEEKDAY(BL20)=4,"ср",IF(WEEKDAY(BL20)=5,"чт",IF(WEEKDAY(BL20)=6,"пт","сб")))))),IF(OR($Q$16=Lists!$I$17,$Q$16=Lists!$I$18),COUNTIFS($Z17:BL17,MONTH(BL20),$Z18:BL18,YEAR(BL20)-2000)&IF($Q$16=Lists!$I$17,"нд-","дк-")&IF(BL17=1,"янв",IF(BL17=2,"фев",IF(BL17=3,"мар",IF(BL17=4,"апр",IF(BL17=5,"май",IF(BL17=6,"июн",IF(BL17=7,"июл",IF(BL17=8,"авг",IF(BL17=9,"сен",IF(BL17=10,"окт",IF(BL17=11,"ноя","дек")))))))))))&BL18,IF($Q$16=Lists!$I$19,BL20,IF($Q$16=Lists!$I$20,(INT((BL17-1)/3)+1)&"кв"&BL18&"г",IF($Q$16=Lists!$I$21,BL16&" год",IF($Q$16=Lists!$I$22,YEAR(BL20)&"г.",""))))))) -> 2кв30г | BM22: =IF(BM20="","",IF($Q$16=Lists!$I$16,IF(WEEKDAY(BM20)=1,"вс",IF(WEEKDAY(BM20)=2,"пн",IF(WEEKDAY(BM20)=3,"вт",IF(WEEKDAY(BM20)=4,"ср",IF(WEEKDAY(BM20)=5,"чт",IF(WEEKDAY(BM20)=6,"пт","сб")))))),IF(OR($Q$16=Lists!$I$17,$Q$16=Lists!$I$18),COUNTIFS($Z17:BM17,MONTH(BM20),$Z18:BM18,YEAR(BM20)-2000)&IF($Q$16=Lists!$I$17,"нд-","дк-")&IF(BM17=1,"янв",IF(BM17=2,"фев",IF(BM17=3,"мар",IF(BM17=4,"апр",IF(BM17=5,"май",IF(BM17=6,"июн",IF(BM17=7,"июл",IF(BM17=8,"авг",IF(BM17=9,"сен",IF(BM17=10,"окт",IF(BM17=11,"ноя","дек")))))))))))&BM18,IF($Q$16=Lists!$I$19,BM20,IF($Q$16=Lists!$I$20,(INT((BM17-1)/3)+1)&"кв"&BM18&"г",IF($Q$16=Lists!$I$21,BM16&" год",IF($Q$16=Lists!$I$22,YEAR(BM20)&"г.",""))))))) -> 3кв30г | BN22: =IF(BN20="","",IF($Q$16=Lists!$I$16,IF(WEEKDAY(BN20)=1,"вс",IF(WEEKDAY(BN20)=2,"пн",IF(WEEKDAY(BN20)=3,"вт",IF(WEEKDAY(BN20)=4,"ср",IF(WEEKDAY(BN20)=5,"чт",IF(WEEKDAY(BN20)=6,"пт","сб")))))),IF(OR($Q$16=Lists!$I$17,$Q$16=Lists!$I$18),COUNTIFS($Z17:BN17,MONTH(BN20),$Z18:BN18,YEAR(BN20)-2000)&IF($Q$16=Lists!$I$17,"нд-","дк-")&IF(BN17=1,"янв",IF(BN17=2,"фев",IF(BN17=3,"мар",IF(BN17=4,"апр",IF(BN17=5,"май",IF(BN17=6,"июн",IF(BN17=7,"июл",IF(BN17=8,"авг",IF(BN17=9,"сен",IF(BN17=10,"окт",IF(BN17=11,"ноя","дек")))))))))))&BN18,IF($Q$16=Lists!$I$19,BN20,IF($Q$16=Lists!$I$20,(INT((BN17-1)/3)+1)&"кв"&BN18&"г",IF($Q$16=Lists!$I$21,BN16&" год",IF($Q$16=Lists!$I$22,YEAR(BN20)&"г.",""))))))) -> 4кв30г | BO22: =IF(BO20="","",IF($Q$16=Lists!$I$16,IF(WEEKDAY(BO20)=1,"вс",IF(WEEKDAY(BO20)=2,"пн",IF(WEEKDAY(BO20)=3,"вт",IF(WEEKDAY(BO20)=4,"ср",IF(WEEKDAY(BO20)=5,"чт",IF(WEEKDAY(BO20)=6,"пт","сб")))))),IF(OR($Q$16=Lists!$I$17,$Q$16=Lists!$I$18),COUNTIFS($Z17:BO17,MONTH(BO20),$Z18:BO18,YEAR(BO20)-2000)&IF($Q$16=Lists!$I$17,"нд-","дк-")&IF(BO17=1,"янв",IF(BO17=2,"фев",IF(BO17=3,"мар",IF(BO17=4,"апр",IF(BO17=5,"май",IF(BO17=6,"июн",IF(BO17=7,"июл",IF(BO17=8,"авг",IF(BO17=9,"сен",IF(BO17=10,"окт",IF(BO17=11,"ноя","дек")))))))))))&BO18,IF($Q$16=Lists!$I$19,BO20,IF($Q$16=Lists!$I$20,(INT((BO17-1)/3)+1)&"кв"&BO18&"г",IF($Q$16=Lists!$I$21,BO16&" год",IF($Q$16=Lists!$I$22,YEAR(BO20)&"г.",""))))))) -> 1кв31г | BP22: =IF(BP20="","",IF($Q$16=Lists!$I$16,IF(WEEKDAY(BP20)=1,"вс",IF(WEEKDAY(BP20)=2,"пн",IF(WEEKDAY(BP20)=3,"вт",IF(WEEKDAY(BP20)=4,"ср",IF(WEEKDAY(BP20)=5,"чт",IF(WEEKDAY(BP20)=6,"пт","сб")))))),IF(OR($Q$16=Lists!$I$17,$Q$16=Lists!$I$18),COUNTIFS($Z17:BP17,MONTH(BP20),$Z18:BP18,YEAR(BP20)-2000)&IF($Q$16=Lists!$I$17,"нд-","дк-")&IF(BP17=1,"янв",IF(BP17=2,"фев",IF(BP17=3,"мар",IF(BP17=4,"апр",IF(BP17=5,"май",IF(BP17=6,"июн",IF(BP17=7,"июл",IF(BP17=8,"авг",IF(BP17=9,"сен",IF(BP17=10,"окт",IF(BP17=11,"ноя","дек")))))))))))&BP18,IF($Q$16=Lists!$I$19,BP20,IF($Q$16=Lists!$I$20,(INT((BP17-1)/3)+1)&"кв"&BP18&"г",IF($Q$16=Lists!$I$21,BP16&" год",IF($Q$16=Lists!$I$22,YEAR(BP20)&"г.",""))))))) -> 2кв31г | BQ22: =IF(BQ20="","",IF($Q$16=Lists!$I$16,IF(WEEKDAY(BQ20)=1,"вс",IF(WEEKDAY(BQ20)=2,"пн",IF(WEEKDAY(BQ20)=3,"вт",IF(WEEKDAY(BQ20)=4,"ср",IF(WEEKDAY(BQ20)=5,"чт",IF(WEEKDAY(BQ20)=6,"пт","сб")))))),IF(OR($Q$16=Lists!$I$17,$Q$16=Lists!$I$18),COUNTIFS($Z17:BQ17,MONTH(BQ20),$Z18:BQ18,YEAR(BQ20)-2000)&IF($Q$16=Lists!$I$17,"нд-","дк-")&IF(BQ17=1,"янв",IF(BQ17=2,"фев",IF(BQ17=3,"мар",IF(BQ17=4,"апр",IF(BQ17=5,"май",IF(BQ17=6,"июн",IF(BQ17=7,"июл",IF(BQ17=8,"авг",IF(BQ17=9,"сен",IF(BQ17=10,"окт",IF(BQ17=11,"ноя","дек")))))))))))&BQ18,IF($Q$16=Lists!$I$19,BQ20,IF($Q$16=Lists!$I$20,(INT((BQ17-1)/3)+1)&"кв"&BQ18&"г",IF($Q$16=Lists!$I$21,BQ16&" год",IF($Q$16=Lists!$I$22,YEAR(BQ20)&"г.",""))))))) -> 3кв31г | BR22: =IF(BR20="","",IF($Q$16=Lists!$I$16,IF(WEEKDAY(BR20)=1,"вс",IF(WEEKDAY(BR20)=2,"пн",IF(WEEKDAY(BR20)=3,"вт",IF(WEEKDAY(BR20)=4,"ср",IF(WEEKDAY(BR20)=5,"чт",IF(WEEKDAY(BR20)=6,"пт","сб")))))),IF(OR($Q$16=Lists!$I$17,$Q$16=Lists!$I$18),COUNTIFS($Z17:BR17,MONTH(BR20),$Z18:BR18,YEAR(BR20)-2000)&IF($Q$16=Lists!$I$17,"нд-","дк-")&IF(BR17=1,"янв",IF(BR17=2,"фев",IF(BR17=3,"мар",IF(BR17=4,"апр",IF(BR17=5,"май",IF(BR17=6,"июн",IF(BR17=7,"июл",IF(BR17=8,"авг",IF(BR17=9,"сен",IF(BR17=10,"окт",IF(BR17=11,"ноя","дек")))))))))))&BR18,IF($Q$16=Lists!$I$19,BR20,IF($Q$16=Lists!$I$20,(INT((BR17-1)/3)+1)&"кв"&BR18&"г",IF($Q$16=Lists!$I$21,BR16&" год",IF($Q$16=Lists!$I$22,YEAR(BR20)&"г.",""))))))) -> 4кв31г | BS22: =IF(BS20="","",IF($Q$16=Lists!$I$16,IF(WEEKDAY(BS20)=1,"вс",IF(WEEKDAY(BS20)=2,"пн",IF(WEEKDAY(BS20)=3,"вт",IF(WEEKDAY(BS20)=4,"ср",IF(WEEKDAY(BS20)=5,"чт",IF(WEEKDAY(BS20)=6,"пт","сб")))))),IF(OR($Q$16=Lists!$I$17,$Q$16=Lists!$I$18),COUNTIFS($Z17:BS17,MONTH(BS20),$Z18:BS18,YEAR(BS20)-2000)&IF($Q$16=Lists!$I$17,"нд-","дк-")&IF(BS17=1,"янв",IF(BS17=2,"фев",IF(BS17=3,"мар",IF(BS17=4,"апр",IF(BS17=5,"май",IF(BS17=6,"июн",IF(BS17=7,"июл",IF(BS17=8,"авг",IF(BS17=9,"сен",IF(BS17=10,"окт",IF(BS17=11,"ноя","дек")))))))))))&BS18,IF($Q$16=Lists!$I$19,BS20,IF($Q$16=Lists!$I$20,(INT((BS17-1)/3)+1)&"кв"&BS18&"г",IF($Q$16=Lists!$I$21,BS16&" год",IF($Q$16=Lists!$I$22,YEAR(BS20)&"г.",""))))))) -> 1кв32г | BT22: =IF(BT20="","",IF($Q$16=Lists!$I$16,IF(WEEKDAY(BT20)=1,"вс",IF(WEEKDAY(BT20)=2,"пн",IF(WEEKDAY(BT20)=3,"вт",IF(WEEKDAY(BT20)=4,"ср",IF(WEEKDAY(BT20)=5,"чт",IF(WEEKDAY(BT20)=6,"пт","сб")))))),IF(OR($Q$16=Lists!$I$17,$Q$16=Lists!$I$18),COUNTIFS($Z17:BT17,MONTH(BT20),$Z18:BT18,YEAR(BT20)-2000)&IF($Q$16=Lists!$I$17,"нд-","дк-")&IF(BT17=1,"янв",IF(BT17=2,"фев",IF(BT17=3,"мар",IF(BT17=4,"апр",IF(BT17=5,"май",IF(BT17=6,"июн",IF(BT17=7,"июл",IF(BT17=8,"авг",IF(BT17=9,"сен",IF(BT17=10,"окт",IF(BT17=11,"ноя","дек")))))))))))&BT18,IF($Q$16=Lists!$I$19,BT20,IF($Q$16=Lists!$I$20,(INT((BT17-1)/3)+1)&"кв"&BT18&"г",IF($Q$16=Lists!$I$21,BT16&" год",IF($Q$16=Lists!$I$22,YEAR(BT20)&"г.",""))))))) -> 2кв32г | BU22: =IF(BU20="","",IF($Q$16=Lists!$I$16,IF(WEEKDAY(BU20)=1,"вс",IF(WEEKDAY(BU20)=2,"пн",IF(WEEKDAY(BU20)=3,"вт",IF(WEEKDAY(BU20)=4,"ср",IF(WEEKDAY(BU20)=5,"чт",IF(WEEKDAY(BU20)=6,"пт","сб")))))),IF(OR($Q$16=Lists!$I$17,$Q$16=Lists!$I$18),COUNTIFS($Z17:BU17,MONTH(BU20),$Z18:BU18,YEAR(BU20)-2000)&IF($Q$16=Lists!$I$17,"нд-","дк-")&IF(BU17=1,"янв",IF(BU17=2,"фев",IF(BU17=3,"мар",IF(BU17=4,"апр",IF(BU17=5,"май",IF(BU17=6,"июн",IF(BU17=7,"июл",IF(BU17=8,"авг",IF(BU17=9,"сен",IF(BU17=10,"окт",IF(BU17=11,"ноя","дек")))))))))))&BU18,IF($Q$16=Lists!$I$19,BU20,IF($Q$16=Lists!$I$20,(INT((BU17-1)/3)+1)&"кв"&BU18&"г",IF($Q$16=Lists!$I$21,BU16&" год",IF($Q$16=Lists!$I$22,YEAR(BU20)&"г.",""))))))) -> 3кв32г | BV22: =IF(BV20="","",IF($Q$16=Lists!$I$16,IF(WEEKDAY(BV20)=1,"вс",IF(WEEKDAY(BV20)=2,"пн",IF(WEEKDAY(BV20)=3,"вт",IF(WEEKDAY(BV20)=4,"ср",IF(WEEKDAY(BV20)=5,"чт",IF(WEEKDAY(BV20)=6,"пт","сб")))))),IF(OR($Q$16=Lists!$I$17,$Q$16=Lists!$I$18),COUNTIFS($Z17:BV17,MONTH(BV20),$Z18:BV18,YEAR(BV20)-2000)&IF($Q$16=Lists!$I$17,"нд-","дк-")&IF(BV17=1,"янв",IF(BV17=2,"фев",IF(BV17=3,"мар",IF(BV17=4,"апр",IF(BV17=5,"май",IF(BV17=6,"июн",IF(BV17=7,"июл",IF(BV17=8,"авг",IF(BV17=9,"сен",IF(BV17=10,"окт",IF(BV17=11,"ноя","дек")))))))))))&BV18,IF($Q$16=Lists!$I$19,BV20,IF($Q$16=Lists!$I$20,(INT((BV17-1)/3)+1)&"кв"&BV18&"г",IF($Q$16=Lists!$I$21,BV16&" год",IF($Q$16=Lists!$I$22,YEAR(BV20)&"г.",""))))))) -> 4кв32г | BW22: =IF(BW20="","",IF($Q$16=Lists!$I$16,IF(WEEKDAY(BW20)=1,"вс",IF(WEEKDAY(BW20)=2,"пн",IF(WEEKDAY(BW20)=3,"вт",IF(WEEKDAY(BW20)=4,"ср",IF(WEEKDAY(BW20)=5,"чт",IF(WEEKDAY(BW20)=6,"пт","сб")))))),IF(OR($Q$16=Lists!$I$17,$Q$16=Lists!$I$18),COUNTIFS($Z17:BW17,MONTH(BW20),$Z18:BW18,YEAR(BW20)-2000)&IF($Q$16=Lists!$I$17,"нд-","дк-")&IF(BW17=1,"янв",IF(BW17=2,"фев",IF(BW17=3,"мар",IF(BW17=4,"апр",IF(BW17=5,"май",IF(BW17=6,"июн",IF(BW17=7,"июл",IF(BW17=8,"авг",IF(BW17=9,"сен",IF(BW17=10,"окт",IF(BW17=11,"ноя","дек")))))))))))&BW18,IF($Q$16=Lists!$I$19,BW20,IF($Q$16=Lists!$I$20,(INT((BW17-1)/3)+1)&"кв"&BW18&"г",IF($Q$16=Lists!$I$21,BW16&" год",IF($Q$16=Lists!$I$22,YEAR(BW20)&"г.",""))))))) -> 1кв33г | BX22: =IF(BX20="","",IF($Q$16=Lists!$I$16,IF(WEEKDAY(BX20)=1,"вс",IF(WEEKDAY(BX20)=2,"пн",IF(WEEKDAY(BX20)=3,"вт",IF(WEEKDAY(BX20)=4,"ср",IF(WEEKDAY(BX20)=5,"чт",IF(WEEKDAY(BX20)=6,"пт","сб")))))),IF(OR($Q$16=Lists!$I$17,$Q$16=Lists!$I$18),COUNTIFS($Z17:BX17,MONTH(BX20),$Z18:BX18,YEAR(BX20)-2000)&IF($Q$16=Lists!$I$17,"нд-","дк-")&IF(BX17=1,"янв",IF(BX17=2,"фев",IF(BX17=3,"мар",IF(BX17=4,"апр",IF(BX17=5,"май",IF(BX17=6,"июн",IF(BX17=7,"июл",IF(BX17=8,"авг",IF(BX17=9,"сен",IF(BX17=10,"окт",IF(BX17=11,"ноя","дек")))))))))))&BX18,IF($Q$16=Lists!$I$19,BX20,IF($Q$16=Lists!$I$20,(INT((BX17-1)/3)+1)&"кв"&BX18&"г",IF($Q$16=Lists!$I$21,BX16&" год",IF($Q$16=Lists!$I$22,YEAR(BX20)&"г.",""))))))) -> 2кв33г | BY22: =IF(BY20="","",IF($Q$16=Lists!$I$16,IF(WEEKDAY(BY20)=1,"вс",IF(WEEKDAY(BY20)=2,"пн",IF(WEEKDAY(BY20)=3,"вт",IF(WEEKDAY(BY20)=4,"ср",IF(WEEKDAY(BY20)=5,"чт",IF(WEEKDAY(BY20)=6,"пт","сб")))))),IF(OR($Q$16=Lists!$I$17,$Q$16=Lists!$I$18),COUNTIFS($Z17:BY17,MONTH(BY20),$Z18:BY18,YEAR(BY20)-2000)&IF($Q$16=Lists!$I$17,"нд-","дк-")&IF(BY17=1,"янв",IF(BY17=2,"фев",IF(BY17=3,"мар",IF(BY17=4,"апр",IF(BY17=5,"май",IF(BY17=6,"июн",IF(BY17=7,"июл",IF(BY17=8,"авг",IF(BY17=9,"сен",IF(BY17=10,"окт",IF(BY17=11,"ноя","дек")))))))))))&BY18,IF($Q$16=Lists!$I$19,BY20,IF($Q$16=Lists!$I$20,(INT((BY17-1)/3)+1)&"кв"&BY18&"г",IF($Q$16=Lists!$I$21,BY16&" год",IF($Q$16=Lists!$I$22,YEAR(BY20)&"г.",""))))))) -> 3кв33г | BZ22: =IF(BZ20="","",IF($Q$16=Lists!$I$16,IF(WEEKDAY(BZ20)=1,"вс",IF(WEEKDAY(BZ20)=2,"пн",IF(WEEKDAY(BZ20)=3,"вт",IF(WEEKDAY(BZ20)=4,"ср",IF(WEEKDAY(BZ20)=5,"чт",IF(WEEKDAY(BZ20)=6,"пт","сб")))))),IF(OR($Q$16=Lists!$I$17,$Q$16=Lists!$I$18),COUNTIFS($Z17:BZ17,MONTH(BZ20),$Z18:BZ18,YEAR(BZ20)-2000)&IF($Q$16=Lists!$I$17,"нд-","дк-")&IF(BZ17=1,"янв",IF(BZ17=2,"фев",IF(BZ17=3,"мар",IF(BZ17=4,"апр",IF(BZ17=5,"май",IF(BZ17=6,"июн",IF(BZ17=7,"июл",IF(BZ17=8,"авг",IF(BZ17=9,"сен",IF(BZ17=10,"окт",IF(BZ17=11,"ноя","дек")))))))))))&BZ18,IF($Q$16=Lists!$I$19,BZ20,IF($Q$16=Lists!$I$20,(INT((BZ17-1)/3)+1)&"кв"&BZ18&"г",IF($Q$16=Lists!$I$21,BZ16&" год",IF($Q$16=Lists!$I$22,YEAR(BZ20)&"г.",""))))))) -> 4кв33г | CA22: =IF(CA20="","",IF($Q$16=Lists!$I$16,IF(WEEKDAY(CA20)=1,"вс",IF(WEEKDAY(CA20)=2,"пн",IF(WEEKDAY(CA20)=3,"вт",IF(WEEKDAY(CA20)=4,"ср",IF(WEEKDAY(CA20)=5,"чт",IF(WEEKDAY(CA20)=6,"пт","сб")))))),IF(OR($Q$16=Lists!$I$17,$Q$16=Lists!$I$18),COUNTIFS($Z17:CA17,MONTH(CA20),$Z18:CA18,YEAR(CA20)-2000)&IF($Q$16=Lists!$I$17,"нд-","дк-")&IF(CA17=1,"янв",IF(CA17=2,"фев",IF(CA17=3,"мар",IF(CA17=4,"апр",IF(CA17=5,"май",IF(CA17=6,"июн",IF(CA17=7,"июл",IF(CA17=8,"авг",IF(CA17=9,"сен",IF(CA17=10,"окт",IF(CA17=11,"ноя","дек")))))))))))&CA18,IF($Q$16=Lists!$I$19,CA20,IF($Q$16=Lists!$I$20,(INT((CA17-1)/3)+1)&"кв"&CA18&"г",IF($Q$16=Lists!$I$21,CA16&" год",IF($Q$16=Lists!$I$22,YEAR(CA20)&"г.",""))))))) -> 1кв34г | CB22: =IF(CB20="","",IF($Q$16=Lists!$I$16,IF(WEEKDAY(CB20)=1,"вс",IF(WEEKDAY(CB20)=2,"пн",IF(WEEKDAY(CB20)=3,"вт",IF(WEEKDAY(CB20)=4,"ср",IF(WEEKDAY(CB20)=5,"чт",IF(WEEKDAY(CB20)=6,"пт","сб")))))),IF(OR($Q$16=Lists!$I$17,$Q$16=Lists!$I$18),COUNTIFS($Z17:CB17,MONTH(CB20),$Z18:CB18,YEAR(CB20)-2000)&IF($Q$16=Lists!$I$17,"нд-","дк-")&IF(CB17=1,"янв",IF(CB17=2,"фев",IF(CB17=3,"мар",IF(CB17=4,"апр",IF(CB17=5,"май",IF(CB17=6,"июн",IF(CB17=7,"июл",IF(CB17=8,"авг",IF(CB17=9,"сен",IF(CB17=10,"окт",IF(CB17=11,"ноя","дек")))))))))))&CB18,IF($Q$16=Lists!$I$19,CB20,IF($Q$16=Lists!$I$20,(INT((CB17-1)/3)+1)&"кв"&CB18&"г",IF($Q$16=Lists!$I$21,CB16&" год",IF($Q$16=Lists!$I$22,YEAR(CB20)&"г.",""))))))) -> 2кв34г | CC22: =IF(CC20="","",IF($Q$16=Lists!$I$16,IF(WEEKDAY(CC20)=1,"вс",IF(WEEKDAY(CC20)=2,"пн",IF(WEEKDAY(CC20)=3,"вт",IF(WEEKDAY(CC20)=4,"ср",IF(WEEKDAY(CC20)=5,"чт",IF(WEEKDAY(CC20)=6,"пт","сб")))))),IF(OR($Q$16=Lists!$I$17,$Q$16=Lists!$I$18),COUNTIFS($Z17:CC17,MONTH(CC20),$Z18:CC18,YEAR(CC20)-2000)&IF($Q$16=Lists!$I$17,"нд-","дк-")&IF(CC17=1,"янв",IF(CC17=2,"фев",IF(CC17=3,"мар",IF(CC17=4,"апр",IF(CC17=5,"май",IF(CC17=6,"июн",IF(CC17=7,"июл",IF(CC17=8,"авг",IF(CC17=9,"сен",IF(CC17=10,"окт",IF(CC17=11,"ноя","дек")))))))))))&CC18,IF($Q$16=Lists!$I$19,CC20,IF($Q$16=Lists!$I$20,(INT((CC17-1)/3)+1)&"кв"&CC18&"г",IF($Q$16=Lists!$I$21,CC16&" год",IF($Q$16=Lists!$I$22,YEAR(CC20)&"г.",""))))))) -> 3кв34г | CD22: =IF(CD20="","",IF($Q$16=Lists!$I$16,IF(WEEKDAY(CD20)=1,"вс",IF(WEEKDAY(CD20)=2,"пн",IF(WEEKDAY(CD20)=3,"вт",IF(WEEKDAY(CD20)=4,"ср",IF(WEEKDAY(CD20)=5,"чт",IF(WEEKDAY(CD20)=6,"пт","сб")))))),IF(OR($Q$16=Lists!$I$17,$Q$16=Lists!$I$18),COUNTIFS($Z17:CD17,MONTH(CD20),$Z18:CD18,YEAR(CD20)-2000)&IF($Q$16=Lists!$I$17,"нд-","дк-")&IF(CD17=1,"янв",IF(CD17=2,"фев",IF(CD17=3,"мар",IF(CD17=4,"апр",IF(CD17=5,"май",IF(CD17=6,"июн",IF(CD17=7,"июл",IF(CD17=8,"авг",IF(CD17=9,"сен",IF(CD17=10,"окт",IF(CD17=11,"ноя","дек")))))))))))&CD18,IF($Q$16=Lists!$I$19,CD20,IF($Q$16=Lists!$I$20,(INT((CD17-1)/3)+1)&"кв"&CD18&"г",IF($Q$16=Lists!$I$21,CD16&" год",IF($Q$16=Lists!$I$22,YEAR(CD20)&"г.",""))))))) -> 4кв34г | CE22: =IF(CE20="","",IF($Q$16=Lists!$I$16,IF(WEEKDAY(CE20)=1,"вс",IF(WEEKDAY(CE20)=2,"пн",IF(WEEKDAY(CE20)=3,"вт",IF(WEEKDAY(CE20)=4,"ср",IF(WEEKDAY(CE20)=5,"чт",IF(WEEKDAY(CE20)=6,"пт","сб")))))),IF(OR($Q$16=Lists!$I$17,$Q$16=Lists!$I$18),COUNTIFS($Z17:CE17,MONTH(CE20),$Z18:CE18,YEAR(CE20)-2000)&IF($Q$16=Lists!$I$17,"нд-","дк-")&IF(CE17=1,"янв",IF(CE17=2,"фев",IF(CE17=3,"мар",IF(CE17=4,"апр",IF(CE17=5,"май",IF(CE17=6,"июн",IF(CE17=7,"июл",IF(CE17=8,"авг",IF(CE17=9,"сен",IF(CE17=10,"окт",IF(CE17=11,"ноя","дек")))))))))))&CE18,IF($Q$16=Lists!$I$19,CE20,IF($Q$16=Lists!$I$20,(INT((CE17-1)/3)+1)&"кв"&CE18&"г",IF($Q$16=Lists!$I$21,CE16&" год",IF($Q$16=Lists!$I$22,YEAR(CE20)&"г.",""))))))) -> 1кв35г | CF22: =IF(CF20="","",IF($Q$16=Lists!$I$16,IF(WEEKDAY(CF20)=1,"вс",IF(WEEKDAY(CF20)=2,"пн",IF(WEEKDAY(CF20)=3,"вт",IF(WEEKDAY(CF20)=4,"ср",IF(WEEKDAY(CF20)=5,"чт",IF(WEEKDAY(CF20)=6,"пт","сб")))))),IF(OR($Q$16=Lists!$I$17,$Q$16=Lists!$I$18),COUNTIFS($Z17:CF17,MONTH(CF20),$Z18:CF18,YEAR(CF20)-2000)&IF($Q$16=Lists!$I$17,"нд-","дк-")&IF(CF17=1,"янв",IF(CF17=2,"фев",IF(CF17=3,"мар",IF(CF17=4,"апр",IF(CF17=5,"май",IF(CF17=6,"июн",IF(CF17=7,"июл",IF(CF17=8,"авг",IF(CF17=9,"сен",IF(CF17=10,"окт",IF(CF17=11,"ноя","дек")))))))))))&CF18,IF($Q$16=Lists!$I$19,CF20,IF($Q$16=Lists!$I$20,(INT((CF17-1)/3)+1)&"кв"&CF18&"г",IF($Q$16=Lists!$I$21,CF16&" год",IF($Q$16=Lists!$I$22,YEAR(CF20)&"г.",""))))))) -> 2кв35г | CG22: =IF(CG20="","",IF($Q$16=Lists!$I$16,IF(WEEKDAY(CG20)=1,"вс",IF(WEEKDAY(CG20)=2,"пн",IF(WEEKDAY(CG20)=3,"вт",IF(WEEKDAY(CG20)=4,"ср",IF(WEEKDAY(CG20)=5,"чт",IF(WEEKDAY(CG20)=6,"пт","сб")))))),IF(OR($Q$16=Lists!$I$17,$Q$16=Lists!$I$18),COUNTIFS($Z17:CG17,MONTH(CG20),$Z18:CG18,YEAR(CG20)-2000)&IF($Q$16=Lists!$I$17,"нд-","дк-")&IF(CG17=1,"янв",IF(CG17=2,"фев",IF(CG17=3,"мар",IF(CG17=4,"апр",IF(CG17=5,"май",IF(CG17=6,"июн",IF(CG17=7,"июл",IF(CG17=8,"авг",IF(CG17=9,"сен",IF(CG17=10,"окт",IF(CG17=11,"ноя","дек")))))))))))&CG18,IF($Q$16=Lists!$I$19,CG20,IF($Q$16=Lists!$I$20,(INT((CG17-1)/3)+1)&"кв"&CG18&"г",IF($Q$16=Lists!$I$21,CG16&" год",IF($Q$16=Lists!$I$22,YEAR(CG20)&"г.",""))))))) -> 3кв35г | CH22: =IF(CH20="","",IF($Q$16=Lists!$I$16,IF(WEEKDAY(CH20)=1,"вс",IF(WEEKDAY(CH20)=2,"пн",IF(WEEKDAY(CH20)=3,"вт",IF(WEEKDAY(CH20)=4,"ср",IF(WEEKDAY(CH20)=5,"чт",IF(WEEKDAY(CH20)=6,"пт","сб")))))),IF(OR($Q$16=Lists!$I$17,$Q$16=Lists!$I$18),COUNTIFS($Z17:CH17,MONTH(CH20),$Z18:CH18,YEAR(CH20)-2000)&IF($Q$16=Lists!$I$17,"нд-","дк-")&IF(CH17=1,"янв",IF(CH17=2,"фев",IF(CH17=3,"мар",IF(CH17=4,"апр",IF(CH17=5,"май",IF(CH17=6,"июн",IF(CH17=7,"июл",IF(CH17=8,"авг",IF(CH17=9,"сен",IF(CH17=10,"окт",IF(CH17=11,"ноя","дек")))))))))))&CH18,IF($Q$16=Lists!$I$19,CH20,IF($Q$16=Lists!$I$20,(INT((CH17-1)/3)+1)&"кв"&CH18&"г",IF($Q$16=Lists!$I$21,CH16&" год",IF($Q$16=Lists!$I$22,YEAR(CH20)&"г.",""))))))) -> 4кв35г | CI22: =IF(CI20="","",IF($Q$16=Lists!$I$16,IF(WEEKDAY(CI20)=1,"вс",IF(WEEKDAY(CI20)=2,"пн",IF(WEEKDAY(CI20)=3,"вт",IF(WEEKDAY(CI20)=4,"ср",IF(WEEKDAY(CI20)=5,"чт",IF(WEEKDAY(CI20)=6,"пт","сб")))))),IF(OR($Q$16=Lists!$I$17,$Q$16=Lists!$I$18),COUNTIFS($Z17:CI17,MONTH(CI20),$Z18:CI18,YEAR(CI20)-2000)&IF($Q$16=Lists!$I$17,"нд-","дк-")&IF(CI17=1,"янв",IF(CI17=2,"фев",IF(CI17=3,"мар",IF(CI17=4,"апр",IF(CI17=5,"май",IF(CI17=6,"июн",IF(CI17=7,"июл",IF(CI17=8,"авг",IF(CI17=9,"сен",IF(CI17=10,"окт",IF(CI17=11,"ноя","дек")))))))))))&CI18,IF($Q$16=Lists!$I$19,CI20,IF($Q$16=Lists!$I$20,(INT((CI17-1)/3)+1)&"кв"&CI18&"г",IF($Q$16=Lists!$I$21,CI16&" год",IF($Q$16=Lists!$I$22,YEAR(CI20)&"г.",""))))))) ->  | CJ22: =IF(CJ20="","",IF($Q$16=Lists!$I$16,IF(WEEKDAY(CJ20)=1,"вс",IF(WEEKDAY(CJ20)=2,"пн",IF(WEEKDAY(CJ20)=3,"вт",IF(WEEKDAY(CJ20)=4,"ср",IF(WEEKDAY(CJ20)=5,"чт",IF(WEEKDAY(CJ20)=6,"пт","сб")))))),IF(OR($Q$16=Lists!$I$17,$Q$16=Lists!$I$18),COUNTIFS($Z17:CJ17,MONTH(CJ20),$Z18:CJ18,YEAR(CJ20)-2000)&IF($Q$16=Lists!$I$17,"нд-","дк-")&IF(CJ17=1,"янв",IF(CJ17=2,"фев",IF(CJ17=3,"мар",IF(CJ17=4,"апр",IF(CJ17=5,"май",IF(CJ17=6,"июн",IF(CJ17=7,"июл",IF(CJ17=8,"авг",IF(CJ17=9,"сен",IF(CJ17=10,"окт",IF(CJ17=11,"ноя","дек")))))))))))&CJ18,IF($Q$16=Lists!$I$19,CJ20,IF($Q$16=Lists!$I$20,(INT((CJ17-1)/3)+1)&"кв"&CJ18&"г",IF($Q$16=Lists!$I$21,CJ16&" год",IF($Q$16=Lists!$I$22,YEAR(CJ20)&"г.",""))))))) ->  | CK22: =IF(CK20="","",IF($Q$16=Lists!$I$16,IF(WEEKDAY(CK20)=1,"вс",IF(WEEKDAY(CK20)=2,"пн",IF(WEEKDAY(CK20)=3,"вт",IF(WEEKDAY(CK20)=4,"ср",IF(WEEKDAY(CK20)=5,"чт",IF(WEEKDAY(CK20)=6,"пт","сб")))))),IF(OR($Q$16=Lists!$I$17,$Q$16=Lists!$I$18),COUNTIFS($Z17:CK17,MONTH(CK20),$Z18:CK18,YEAR(CK20)-2000)&IF($Q$16=Lists!$I$17,"нд-","дк-")&IF(CK17=1,"янв",IF(CK17=2,"фев",IF(CK17=3,"мар",IF(CK17=4,"апр",IF(CK17=5,"май",IF(CK17=6,"июн",IF(CK17=7,"июл",IF(CK17=8,"авг",IF(CK17=9,"сен",IF(CK17=10,"окт",IF(CK17=11,"ноя","дек")))))))))))&CK18,IF($Q$16=Lists!$I$19,CK20,IF($Q$16=Lists!$I$20,(INT((CK17-1)/3)+1)&"кв"&CK18&"г",IF($Q$16=Lists!$I$21,CK16&" год",IF($Q$16=Lists!$I$22,YEAR(CK20)&"г.",""))))))) ->  | CL22: =IF(CL20="","",IF($Q$16=Lists!$I$16,IF(WEEKDAY(CL20)=1,"вс",IF(WEEKDAY(CL20)=2,"пн",IF(WEEKDAY(CL20)=3,"вт",IF(WEEKDAY(CL20)=4,"ср",IF(WEEKDAY(CL20)=5,"чт",IF(WEEKDAY(CL20)=6,"пт","сб")))))),IF(OR($Q$16=Lists!$I$17,$Q$16=Lists!$I$18),COUNTIFS($Z17:CL17,MONTH(CL20),$Z18:CL18,YEAR(CL20)-2000)&IF($Q$16=Lists!$I$17,"нд-","дк-")&IF(CL17=1,"янв",IF(CL17=2,"фев",IF(CL17=3,"мар",IF(CL17=4,"апр",IF(CL17=5,"май",IF(CL17=6,"июн",IF(CL17=7,"июл",IF(CL17=8,"авг",IF(CL17=9,"сен",IF(CL17=10,"окт",IF(CL17=11,"ноя","дек")))))))))))&CL18,IF($Q$16=Lists!$I$19,CL20,IF($Q$16=Lists!$I$20,(INT((CL17-1)/3)+1)&"кв"&CL18&"г",IF($Q$16=Lists!$I$21,CL16&" год",IF($Q$16=Lists!$I$22,YEAR(CL20)&"г.",""))))))) ->  | CM22: =IF(CM20="","",IF($Q$16=Lists!$I$16,IF(WEEKDAY(CM20)=1,"вс",IF(WEEKDAY(CM20)=2,"пн",IF(WEEKDAY(CM20)=3,"вт",IF(WEEKDAY(CM20)=4,"ср",IF(WEEKDAY(CM20)=5,"чт",IF(WEEKDAY(CM20)=6,"пт","сб")))))),IF(OR($Q$16=Lists!$I$17,$Q$16=Lists!$I$18),COUNTIFS($Z17:CM17,MONTH(CM20),$Z18:CM18,YEAR(CM20)-2000)&IF($Q$16=Lists!$I$17,"нд-","дк-")&IF(CM17=1,"янв",IF(CM17=2,"фев",IF(CM17=3,"мар",IF(CM17=4,"апр",IF(CM17=5,"май",IF(CM17=6,"июн",IF(CM17=7,"июл",IF(CM17=8,"авг",IF(CM17=9,"сен",IF(CM17=10,"окт",IF(CM17=11,"ноя","дек")))))))))))&CM18,IF($Q$16=Lists!$I$19,CM20,IF($Q$16=Lists!$I$20,(INT((CM17-1)/3)+1)&"кв"&CM18&"г",IF($Q$16=Lists!$I$21,CM16&" год",IF($Q$16=Lists!$I$22,YEAR(CM20)&"г.",""))))))) ->  | CN22: =IF(CN20="","",IF($Q$16=Lists!$I$16,IF(WEEKDAY(CN20)=1,"вс",IF(WEEKDAY(CN20)=2,"пн",IF(WEEKDAY(CN20)=3,"вт",IF(WEEKDAY(CN20)=4,"ср",IF(WEEKDAY(CN20)=5,"чт",IF(WEEKDAY(CN20)=6,"пт","сб")))))),IF(OR($Q$16=Lists!$I$17,$Q$16=Lists!$I$18),COUNTIFS($Z17:CN17,MONTH(CN20),$Z18:CN18,YEAR(CN20)-2000)&IF($Q$16=Lists!$I$17,"нд-","дк-")&IF(CN17=1,"янв",IF(CN17=2,"фев",IF(CN17=3,"мар",IF(CN17=4,"апр",IF(CN17=5,"май",IF(CN17=6,"июн",IF(CN17=7,"июл",IF(CN17=8,"авг",IF(CN17=9,"сен",IF(CN17=10,"окт",IF(CN17=11,"ноя","дек")))))))))))&CN18,IF($Q$16=Lists!$I$19,CN20,IF($Q$16=Lists!$I$20,(INT((CN17-1)/3)+1)&"кв"&CN18&"г",IF($Q$16=Lists!$I$21,CN16&" год",IF($Q$16=Lists!$I$22,YEAR(CN20)&"г.",""))))))) ->  | CO22: =IF(CO20="","",IF($Q$16=Lists!$I$16,IF(WEEKDAY(CO20)=1,"вс",IF(WEEKDAY(CO20)=2,"пн",IF(WEEKDAY(CO20)=3,"вт",IF(WEEKDAY(CO20)=4,"ср",IF(WEEKDAY(CO20)=5,"чт",IF(WEEKDAY(CO20)=6,"пт","сб")))))),IF(OR($Q$16=Lists!$I$17,$Q$16=Lists!$I$18),COUNTIFS($Z17:CO17,MONTH(CO20),$Z18:CO18,YEAR(CO20)-2000)&IF($Q$16=Lists!$I$17,"нд-","дк-")&IF(CO17=1,"янв",IF(CO17=2,"фев",IF(CO17=3,"мар",IF(CO17=4,"апр",IF(CO17=5,"май",IF(CO17=6,"июн",IF(CO17=7,"июл",IF(CO17=8,"авг",IF(CO17=9,"сен",IF(CO17=10,"окт",IF(CO17=11,"ноя","дек")))))))))))&CO18,IF($Q$16=Lists!$I$19,CO20,IF($Q$16=Lists!$I$20,(INT((CO17-1)/3)+1)&"кв"&CO18&"г",IF($Q$16=Lists!$I$21,CO16&" год",IF($Q$16=Lists!$I$22,YEAR(CO20)&"г.",""))))))) ->  | CP22: =IF(CP20="","",IF($Q$16=Lists!$I$16,IF(WEEKDAY(CP20)=1,"вс",IF(WEEKDAY(CP20)=2,"пн",IF(WEEKDAY(CP20)=3,"вт",IF(WEEKDAY(CP20)=4,"ср",IF(WEEKDAY(CP20)=5,"чт",IF(WEEKDAY(CP20)=6,"пт","сб")))))),IF(OR($Q$16=Lists!$I$17,$Q$16=Lists!$I$18),COUNTIFS($Z17:CP17,MONTH(CP20),$Z18:CP18,YEAR(CP20)-2000)&IF($Q$16=Lists!$I$17,"нд-","дк-")&IF(CP17=1,"янв",IF(CP17=2,"фев",IF(CP17=3,"мар",IF(CP17=4,"апр",IF(CP17=5,"май",IF(CP17=6,"июн",IF(CP17=7,"июл",IF(CP17=8,"авг",IF(CP17=9,"сен",IF(CP17=10,"окт",IF(CP17=11,"ноя","дек")))))))))))&CP18,IF($Q$16=Lists!$I$19,CP20,IF($Q$16=Lists!$I$20,(INT((CP17-1)/3)+1)&"кв"&CP18&"г",IF($Q$16=Lists!$I$21,CP16&" год",IF($Q$16=Lists!$I$22,YEAR(CP20)&"г.",""))))))) ->  | CQ22: =IF(CQ20="","",IF($Q$16=Lists!$I$16,IF(WEEKDAY(CQ20)=1,"вс",IF(WEEKDAY(CQ20)=2,"пн",IF(WEEKDAY(CQ20)=3,"вт",IF(WEEKDAY(CQ20)=4,"ср",IF(WEEKDAY(CQ20)=5,"чт",IF(WEEKDAY(CQ20)=6,"пт","сб")))))),IF(OR($Q$16=Lists!$I$17,$Q$16=Lists!$I$18),COUNTIFS($Z17:CQ17,MONTH(CQ20),$Z18:CQ18,YEAR(CQ20)-2000)&IF($Q$16=Lists!$I$17,"нд-","дк-")&IF(CQ17=1,"янв",IF(CQ17=2,"фев",IF(CQ17=3,"мар",IF(CQ17=4,"апр",IF(CQ17=5,"май",IF(CQ17=6,"июн",IF(CQ17=7,"июл",IF(CQ17=8,"авг",IF(CQ17=9,"сен",IF(CQ17=10,"окт",IF(CQ17=11,"ноя","дек")))))))))))&CQ18,IF($Q$16=Lists!$I$19,CQ20,IF($Q$16=Lists!$I$20,(INT((CQ17-1)/3)+1)&"кв"&CQ18&"г",IF($Q$16=Lists!$I$21,CQ16&" год",IF($Q$16=Lists!$I$22,YEAR(CQ20)&"г.",""))))))) ->  | CR22: =IF(CR20="","",IF($Q$16=Lists!$I$16,IF(WEEKDAY(CR20)=1,"вс",IF(WEEKDAY(CR20)=2,"пн",IF(WEEKDAY(CR20)=3,"вт",IF(WEEKDAY(CR20)=4,"ср",IF(WEEKDAY(CR20)=5,"чт",IF(WEEKDAY(CR20)=6,"пт","сб")))))),IF(OR($Q$16=Lists!$I$17,$Q$16=Lists!$I$18),COUNTIFS($Z17:CR17,MONTH(CR20),$Z18:CR18,YEAR(CR20)-2000)&IF($Q$16=Lists!$I$17,"нд-","дк-")&IF(CR17=1,"янв",IF(CR17=2,"фев",IF(CR17=3,"мар",IF(CR17=4,"апр",IF(CR17=5,"май",IF(CR17=6,"июн",IF(CR17=7,"июл",IF(CR17=8,"авг",IF(CR17=9,"сен",IF(CR17=10,"окт",IF(CR17=11,"ноя","дек")))))))))))&CR18,IF($Q$16=Lists!$I$19,CR20,IF($Q$16=Lists!$I$20,(INT((CR17-1)/3)+1)&"кв"&CR18&"г",IF($Q$16=Lists!$I$21,CR16&" год",IF($Q$16=Lists!$I$22,YEAR(CR20)&"г.",""))))))) ->  | CS22: =IF(CS20="","",IF($Q$16=Lists!$I$16,IF(WEEKDAY(CS20)=1,"вс",IF(WEEKDAY(CS20)=2,"пн",IF(WEEKDAY(CS20)=3,"вт",IF(WEEKDAY(CS20)=4,"ср",IF(WEEKDAY(CS20)=5,"чт",IF(WEEKDAY(CS20)=6,"пт","сб")))))),IF(OR($Q$16=Lists!$I$17,$Q$16=Lists!$I$18),COUNTIFS($Z17:CS17,MONTH(CS20),$Z18:CS18,YEAR(CS20)-2000)&IF($Q$16=Lists!$I$17,"нд-","дк-")&IF(CS17=1,"янв",IF(CS17=2,"фев",IF(CS17=3,"мар",IF(CS17=4,"апр",IF(CS17=5,"май",IF(CS17=6,"июн",IF(CS17=7,"июл",IF(CS17=8,"авг",IF(CS17=9,"сен",IF(CS17=10,"окт",IF(CS17=11,"ноя","дек")))))))))))&CS18,IF($Q$16=Lists!$I$19,CS20,IF($Q$16=Lists!$I$20,(INT((CS17-1)/3)+1)&"кв"&CS18&"г",IF($Q$16=Lists!$I$21,CS16&" год",IF($Q$16=Lists!$I$22,YEAR(CS20)&"г.",""))))))) ->  | CT22: =IF(CT20="","",IF($Q$16=Lists!$I$16,IF(WEEKDAY(CT20)=1,"вс",IF(WEEKDAY(CT20)=2,"пн",IF(WEEKDAY(CT20)=3,"вт",IF(WEEKDAY(CT20)=4,"ср",IF(WEEKDAY(CT20)=5,"чт",IF(WEEKDAY(CT20)=6,"пт","сб")))))),IF(OR($Q$16=Lists!$I$17,$Q$16=Lists!$I$18),COUNTIFS($Z17:CT17,MONTH(CT20),$Z18:CT18,YEAR(CT20)-2000)&IF($Q$16=Lists!$I$17,"нд-","дк-")&IF(CT17=1,"янв",IF(CT17=2,"фев",IF(CT17=3,"мар",IF(CT17=4,"апр",IF(CT17=5,"май",IF(CT17=6,"июн",IF(CT17=7,"июл",IF(CT17=8,"авг",IF(CT17=9,"сен",IF(CT17=10,"окт",IF(CT17=11,"ноя","дек")))))))))))&CT18,IF($Q$16=Lists!$I$19,CT20,IF($Q$16=Lists!$I$20,(INT((CT17-1)/3)+1)&"кв"&CT18&"г",IF($Q$16=Lists!$I$21,CT16&" год",IF($Q$16=Lists!$I$22,YEAR(CT20)&"г.",""))))))) ->  | CU22: =IF(CU20="","",IF($Q$16=Lists!$I$16,IF(WEEKDAY(CU20)=1,"вс",IF(WEEKDAY(CU20)=2,"пн",IF(WEEKDAY(CU20)=3,"вт",IF(WEEKDAY(CU20)=4,"ср",IF(WEEKDAY(CU20)=5,"чт",IF(WEEKDAY(CU20)=6,"пт","сб")))))),IF(OR($Q$16=Lists!$I$17,$Q$16=Lists!$I$18),COUNTIFS($Z17:CU17,MONTH(CU20),$Z18:CU18,YEAR(CU20)-2000)&IF($Q$16=Lists!$I$17,"нд-","дк-")&IF(CU17=1,"янв",IF(CU17=2,"фев",IF(CU17=3,"мар",IF(CU17=4,"апр",IF(CU17=5,"май",IF(CU17=6,"июн",IF(CU17=7,"июл",IF(CU17=8,"авг",IF(CU17=9,"сен",IF(CU17=10,"окт",IF(CU17=11,"ноя","дек")))))))))))&CU18,IF($Q$16=Lists!$I$19,CU20,IF($Q$16=Lists!$I$20,(INT((CU17-1)/3)+1)&"кв"&CU18&"г",IF($Q$16=Lists!$I$21,CU16&" год",IF($Q$16=Lists!$I$22,YEAR(CU20)&"г.",""))))))) -> 
A23: =ROW() -> 23
A24: =ROW() -> 24 | G24: =IF($R24="^",IF(COUNTIF(Lists!$13:$13,H24)=1,0,1),0) -> 0 | H24: =Lists!$M$13 -> ответ "да/нет"
A25: =ROW() -> 25 | G25: =IF($R25="^",IF(COUNTIF(Lists!$13:$13,H25)=1,0,1),0) -> 0 | H25: =Lists!$M$13 -> ответ "да/нет" | I25: учесть фактические данные? | P25: M | Q25: =MAIN!Q82 -> да | R25: ^ | S25: =IF(G25<>0,1,IF(OR($Q25="",$Q25=0),0,IF($R25="^",IF(COUNTIF(INDIRECT(INDEX(Lists!$15:$15,SUMIFS(Lists!$1:$1,Lists!$13:$13,$H25))),$Q25)=1,0,1),0))) -> 0
A26: =ROW() -> 26 | G26: =IF($R26="^",IF(COUNTIF(Lists!$13:$13,H26)=1,0,1),0) -> 0 | H26: =Lists!$M$13 -> ответ "да/нет" | I26: фактический период выбрать по умолчанию? | P26: M | Q26: =MAIN!Q83 -> нет | R26: ^ | S26: =IF(G26<>0,1,IF(OR($Q26="",$Q26=0),0,IF($R26="^",IF(COUNTIF(INDIRECT(INDEX(Lists!$15:$15,SUMIFS(Lists!$1:$1,Lists!$13:$13,$H26))),$Q26)=1,0,1),0))) -> 0
A27: =ROW() -> 27
A28: =ROW() -> 28 | G28: =IF($R28="^",IF(COUNTIF(Lists!$13:$13,H28)=1,0,1),0) -> 0 | H28: дата начала фактического периода | X28: =IF(AA28="","",MIN($Z28:$CV28)) -> 2021-01-01 | AA28: =IF(AA29="","",AA20) -> 2021-01-01 | AB28: =IF(AB29="","",AB20) ->  | CN28: =IF(CN29="","",CN20) -> 
A29: =ROW() -> 29 | G29: =IF($R29="^",IF(COUNTIF(Lists!$13:$13,H29)=1,0,1),0) -> 0 | H29: дата окончания фактического периода | X29: =IF(AA29="","",MAX($Z29:$CV29)) -> 2021-03-31 | AA29: =IF($Q$25=Lists!$M$16,IF(AA21<=IF($Q$26=Lists!$M$16,$Q$30,$Q$31),AA21,""),"") -> 2021-03-31 | AB29: =IF($Q$25=Lists!$M$16,IF(AB21<=IF($Q$26=Lists!$M$16,$Q$30,$Q$31),AB21,""),"") ->  | AC29: =IF($Q$25=Lists!$M$16,IF(AC21<=IF($Q$26=Lists!$M$16,$Q$30,$Q$31),AC21,""),"") ->  | AD29: =IF($Q$25=Lists!$M$16,IF(AD21<=IF($Q$26=Lists!$M$16,$Q$30,$Q$31),AD21,""),"") ->  | AE29: =IF($Q$25=Lists!$M$16,IF(AE21<=IF($Q$26=Lists!$M$16,$Q$30,$Q$31),AE21,""),"") ->  | AF29: =IF($Q$25=Lists!$M$16,IF(AF21<=IF($Q$26=Lists!$M$16,$Q$30,$Q$31),AF21,""),"") ->  | AG29: =IF($Q$25=Lists!$M$16,IF(AG21<=IF($Q$26=Lists!$M$16,$Q$30,$Q$31),AG21,""),"") ->  | AH29: =IF($Q$25=Lists!$M$16,IF(AH21<=IF($Q$26=Lists!$M$16,$Q$30,$Q$31),AH21,""),"") ->  | AI29: =IF($Q$25=Lists!$M$16,IF(AI21<=IF($Q$26=Lists!$M$16,$Q$30,$Q$31),AI21,""),"") ->  | AJ29: =IF($Q$25=Lists!$M$16,IF(AJ21<=IF($Q$26=Lists!$M$16,$Q$30,$Q$31),AJ21,""),"") ->  | AK29: =IF($Q$25=Lists!$M$16,IF(AK21<=IF($Q$26=Lists!$M$16,$Q$30,$Q$31),AK21,""),"") ->  | AL29: =IF($Q$25=Lists!$M$16,IF(AL21<=IF($Q$26=Lists!$M$16,$Q$30,$Q$31),AL21,""),"") ->  | AM29: =IF($Q$25=Lists!$M$16,IF(AM21<=IF($Q$26=Lists!$M$16,$Q$30,$Q$31),AM21,""),"") ->  | AN29: =IF($Q$25=Lists!$M$16,IF(AN21<=IF($Q$26=Lists!$M$16,$Q$30,$Q$31),AN21,""),"") ->  | AO29: =IF($Q$25=Lists!$M$16,IF(AO21<=IF($Q$26=Lists!$M$16,$Q$30,$Q$31),AO21,""),"") ->  | AP29: =IF($Q$25=Lists!$M$16,IF(AP21<=IF($Q$26=Lists!$M$16,$Q$30,$Q$31),AP21,""),"") ->  | AQ29: =IF($Q$25=Lists!$M$16,IF(AQ21<=IF($Q$26=Lists!$M$16,$Q$30,$Q$31),AQ21,""),"") ->  | AR29: =IF($Q$25=Lists!$M$16,IF(AR21<=IF($Q$26=Lists!$M$16,$Q$30,$Q$31),AR21,""),"") ->  | AS29: =IF($Q$25=Lists!$M$16,IF(AS21<=IF($Q$26=Lists!$M$16,$Q$30,$Q$31),AS21,""),"") ->  | AT29: =IF($Q$25=Lists!$M$16,IF(AT21<=IF($Q$26=Lists!$M$16,$Q$30,$Q$31),AT21,""),"") ->  | AU29: =IF($Q$25=Lists!$M$16,IF(AU21<=IF($Q$26=Lists!$M$16,$Q$30,$Q$31),AU21,""),"") ->  | AV29: =IF($Q$25=Lists!$M$16,IF(AV21<=IF($Q$26=Lists!$M$16,$Q$30,$Q$31),AV21,""),"") ->  | AW29: =IF($Q$25=Lists!$M$16,IF(AW21<=IF($Q$26=Lists!$M$16,$Q$30,$Q$31),AW21,""),"") ->  | AX29: =IF($Q$25=Lists!$M$16,IF(AX21<=IF($Q$26=Lists!$M$16,$Q$30,$Q$31),AX21,""),"") ->  | AY29: =IF($Q$25=Lists!$M$16,IF(AY21<=IF($Q$26=Lists!$M$16,$Q$30,$Q$31),AY21,""),"") ->  | AZ29: =IF($Q$25=Lists!$M$16,IF(AZ21<=IF($Q$26=Lists!$M$16,$Q$30,$Q$31),AZ21,""),"") ->  | BA29: =IF($Q$25=Lists!$M$16,IF(BA21<=IF($Q$26=Lists!$M$16,$Q$30,$Q$31),BA21,""),"") ->  | BB29: =IF($Q$25=Lists!$M$16,IF(BB21<=IF($Q$26=Lists!$M$16,$Q$30,$Q$31),BB21,""),"") ->  | BC29: =IF($Q$25=Lists!$M$16,IF(BC21<=IF($Q$26=Lists!$M$16,$Q$30,$Q$31),BC21,""),"") ->  | BD29: =IF($Q$25=Lists!$M$16,IF(BD21<=IF($Q$26=Lists!$M$16,$Q$30,$Q$31),BD21,""),"") ->  | BE29: =IF($Q$25=Lists!$M$16,IF(BE21<=IF($Q$26=Lists!$M$16,$Q$30,$Q$31),BE21,""),"") ->  | BF29: =IF($Q$25=Lists!$M$16,IF(BF21<=IF($Q$26=Lists!$M$16,$Q$30,$Q$31),BF21,""),"") ->  | BG29: =IF($Q$25=Lists!$M$16,IF(BG21<=IF($Q$26=Lists!$M$16,$Q$30,$Q$31),BG21,""),"") ->  | BH29: =IF($Q$25=Lists!$M$16,IF(BH21<=IF($Q$26=Lists!$M$16,$Q$30,$Q$31),BH21,""),"") ->  | BI29: =IF($Q$25=Lists!$M$16,IF(BI21<=IF($Q$26=Lists!$M$16,$Q$30,$Q$31),BI21,""),"") ->  | BJ29: =IF($Q$25=Lists!$M$16,IF(BJ21<=IF($Q$26=Lists!$M$16,$Q$30,$Q$31),BJ21,""),"") ->  | BK29: =IF($Q$25=Lists!$M$16,IF(BK21<=IF($Q$26=Lists!$M$16,$Q$30,$Q$31),BK21,""),"") ->  | BL29: =IF($Q$25=Lists!$M$16,IF(BL21<=IF($Q$26=Lists!$M$16,$Q$30,$Q$31),BL21,""),"") ->  | BM29: =IF($Q$25=Lists!$M$16,IF(BM21<=IF($Q$26=Lists!$M$16,$Q$30,$Q$31),BM21,""),"") ->  | BN29: =IF($Q$25=Lists!$M$16,IF(BN21<=IF($Q$26=Lists!$M$16,$Q$30,$Q$31),BN21,""),"") ->  | BO29: =IF($Q$25=Lists!$M$16,IF(BO21<=IF($Q$26=Lists!$M$16,$Q$30,$Q$31),BO21,""),"") ->  | BP29: =IF($Q$25=Lists!$M$16,IF(BP21<=IF($Q$26=Lists!$M$16,$Q$30,$Q$31),BP21,""),"") ->  | BQ29: =IF($Q$25=Lists!$M$16,IF(BQ21<=IF($Q$26=Lists!$M$16,$Q$30,$Q$31),BQ21,""),"") ->  | BR29: =IF($Q$25=Lists!$M$16,IF(BR21<=IF($Q$26=Lists!$M$16,$Q$30,$Q$31),BR21,""),"") ->  | BS29: =IF($Q$25=Lists!$M$16,IF(BS21<=IF($Q$26=Lists!$M$16,$Q$30,$Q$31),BS21,""),"") ->  | BT29: =IF($Q$25=Lists!$M$16,IF(BT21<=IF($Q$26=Lists!$M$16,$Q$30,$Q$31),BT21,""),"") ->  | BU29: =IF($Q$25=Lists!$M$16,IF(BU21<=IF($Q$26=Lists!$M$16,$Q$30,$Q$31),BU21,""),"") ->  | BV29: =IF($Q$25=Lists!$M$16,IF(BV21<=IF($Q$26=Lists!$M$16,$Q$30,$Q$31),BV21,""),"") ->  | BW29: =IF($Q$25=Lists!$M$16,IF(BW21<=IF($Q$26=Lists!$M$16,$Q$30,$Q$31),BW21,""),"") ->  | BX29: =IF($Q$25=Lists!$M$16,IF(BX21<=IF($Q$26=Lists!$M$16,$Q$30,$Q$31),BX21,""),"") ->  | BY29: =IF($Q$25=Lists!$M$16,IF(BY21<=IF($Q$26=Lists!$M$16,$Q$30,$Q$31),BY21,""),"") ->  | BZ29: =IF($Q$25=Lists!$M$16,IF(BZ21<=IF($Q$26=Lists!$M$16,$Q$30,$Q$31),BZ21,""),"") ->  | CA29: =IF($Q$25=Lists!$M$16,IF(CA21<=IF($Q$26=Lists!$M$16,$Q$30,$Q$31),CA21,""),"") ->  | CB29: =IF($Q$25=Lists!$M$16,IF(CB21<=IF($Q$26=Lists!$M$16,$Q$30,$Q$31),CB21,""),"") ->  | CC29: =IF($Q$25=Lists!$M$16,IF(CC21<=IF($Q$26=Lists!$M$16,$Q$30,$Q$31),CC21,""),"") ->  | CD29: =IF($Q$25=Lists!$M$16,IF(CD21<=IF($Q$26=Lists!$M$16,$Q$30,$Q$31),CD21,""),"") ->  | CE29: =IF($Q$25=Lists!$M$16,IF(CE21<=IF($Q$26=Lists!$M$16,$Q$30,$Q$31),CE21,""),"") ->  | CF29: =IF($Q$25=Lists!$M$16,IF(CF21<=IF($Q$26=Lists!$M$16,$Q$30,$Q$31),CF21,""),"") ->  | CG29: =IF($Q$25=Lists!$M$16,IF(CG21<=IF($Q$26=Lists!$M$16,$Q$30,$Q$31),CG21,""),"") ->  | CH29: =IF($Q$25=Lists!$M$16,IF(CH21<=IF($Q$26=Lists!$M$16,$Q$30,$Q$31),CH21,""),"") ->  | CI29: =IF($Q$25=Lists!$M$16,IF(CI21<=IF($Q$26=Lists!$M$16,$Q$30,$Q$31),CI21,""),"") ->  | CJ29: =IF($Q$25=Lists!$M$16,IF(CJ21<=IF($Q$26=Lists!$M$16,$Q$30,$Q$31),CJ21,""),"") ->  | CK29: =IF($Q$25=Lists!$M$16,IF(CK21<=IF($Q$26=Lists!$M$16,$Q$30,$Q$31),CK21,""),"") ->  | CL29: =IF($Q$25=Lists!$M$16,IF(CL21<=IF($Q$26=Lists!$M$16,$Q$30,$Q$31),CL21,""),"") ->  | CM29: =IF($Q$25=Lists!$M$16,IF(CM21<=IF($Q$26=Lists!$M$16,$Q$30,$Q$31),CM21,""),"") ->  | CN29: =IF($Q$25=Lists!$M$16,IF(CN21<=IF($Q$26=Lists!$M$16,$Q$30,$Q$31),CN21,""),"") ->  | CO29: =IF($Q$25=Lists!$M$16,IF(CO21<=IF($Q$26=Lists!$M$16,$Q$30,$Q$31),CO21,""),"") ->  | CP29: =IF($Q$25=Lists!$M$16,IF(CP21<=IF($Q$26=Lists!$M$16,$Q$30,$Q$31),CP21,""),"") ->  | CQ29: =IF($Q$25=Lists!$M$16,IF(CQ21<=IF($Q$26=Lists!$M$16,$Q$30,$Q$31),CQ21,""),"") ->  | CR29: =IF($Q$25=Lists!$M$16,IF(CR21<=IF($Q$26=Lists!$M$16,$Q$30,$Q$31),CR21,""),"") ->  | CS29: =IF($Q$25=Lists!$M$16,IF(CS21<=IF($Q$26=Lists!$M$16,$Q$30,$Q$31),CS21,""),"") ->  | CT29: =IF($Q$25=Lists!$M$16,IF(CT21<=IF($Q$26=Lists!$M$16,$Q$30,$Q$31),CT21,""),"") ->  | CU29: =IF($Q$25=Lists!$M$16,IF(CU21<=IF($Q$26=Lists!$M$16,$Q$30,$Q$31),CU21,""),"") -> 
A30: =ROW() -> 30 | G30: =IF($R30="^",IF(COUNTIF(Lists!$13:$13,H30)=1,0,1),0) -> 0 | H30: =H29 -> дата окончания фактического периода | I30: по умолчанию - сегодняшний день | Q30: =MAIN!Q86 -> 2022-02-11
A31: =ROW() -> 31 | G31: =IF($R31="^",IF(COUNTIF(Lists!$13:$13,H31)=1,0,1),0) -> 0 | H31: =H29 -> дата окончания фактического периода | I31: задать вручную дату окончания периода | P31: M | Q31: =MAIN!Q87 -> 2021-04-01 | Y31: =START!$K$135 -> номер периода модели: | AA31: =MAX($Z31:Z31)+1 -> 1 | AB31: =MAX($Z31:AA31)+1 -> 2 | AC31: =MAX($Z31:AB31)+1 -> 3 | AD31: =MAX($Z31:AC31)+1 -> 4 | AE31: =MAX($Z31:AD31)+1 -> 5 | AF31: =MAX($Z31:AE31)+1 -> 6 | AG31: =MAX($Z31:AF31)+1 -> 7 | AH31: =MAX($Z31:AG31)+1 -> 8 | AI31: =MAX($Z31:AH31)+1 -> 9 | AJ31: =MAX($Z31:AI31)+1 -> 10 | AK31: =MAX($Z31:AJ31)+1 -> 11 | AL31: =MAX($Z31:AK31)+1 -> 12 | AM31: =MAX($Z31:AL31)+1 -> 13 | AN31: =MAX($Z31:AM31)+1 -> 14 | AO31: =MAX($Z31:AN31)+1 -> 15 | AP31: =MAX($Z31:AO31)+1 -> 16 | AQ31: =MAX($Z31:AP31)+1 -> 17 | AR31: =MAX($Z31:AQ31)+1 -> 18 | AS31: =MAX($Z31:AR31)+1 -> 19 | AT31: =MAX($Z31:AS31)+1 -> 20 | AU31: =MAX($Z31:AT31)+1 -> 21 | AV31: =MAX($Z31:AU31)+1 -> 22 | AW31: =MAX($Z31:AV31)+1 -> 23 | AX31: =MAX($Z31:AW31)+1 -> 24 | AY31: =MAX($Z31:AX31)+1 -> 25 | AZ31: =MAX($Z31:AY31)+1 -> 26 | BA31: =MAX($Z31:AZ31)+1 -> 27 | BB31: =MAX($Z31:BA31)+1 -> 28 | BC31: =MAX($Z31:BB31)+1 -> 29 | BD31: =MAX($Z31:BC31)+1 -> 30 | BE31: =MAX($Z31:BD31)+1 -> 31 | BF31: =MAX($Z31:BE31)+1 -> 32 | BG31: =MAX($Z31:BF31)+1 -> 33 | BH31: =MAX($Z31:BG31)+1 -> 34 | BI31: =MAX($Z31:BH31)+1 -> 35 | BJ31: =MAX($Z31:BI31)+1 -> 36 | BK31: =MAX($Z31:BJ31)+1 -> 37 | BL31: =MAX($Z31:BK31)+1 -> 38 | BM31: =MAX($Z31:BL31)+1 -> 39 | BN31: =MAX($Z31:BM31)+1 -> 40 | BO31: =MAX($Z31:BN31)+1 -> 41 | BP31: =MAX($Z31:BO31)+1 -> 42 | BQ31: =MAX($Z31:BP31)+1 -> 43 | BR31: =MAX($Z31:BQ31)+1 -> 44 | BS31: =MAX($Z31:BR31)+1 -> 45 | BT31: =MAX($Z31:BS31)+1 -> 46 | BU31: =MAX($Z31:BT31)+1 -> 47 | BV31: =MAX($Z31:BU31)+1 -> 48 | BW31: =MAX($Z31:BV31)+1 -> 49 | BX31: =MAX($Z31:BW31)+1 -> 50 | BY31: =MAX($Z31:BX31)+1 -> 51 | BZ31: =MAX($Z31:BY31)+1 -> 52 | CA31: =MAX($Z31:BZ31)+1 -> 53 | CB31: =MAX($Z31:CA31)+1 -> 54 | CC31: =MAX($Z31:CB31)+1 -> 55 | CD31: =MAX($Z31:CC31)+1 -> 56 | CE31: =MAX($Z31:CD31)+1 -> 57 | CF31: =MAX($Z31:CE31)+1 -> 58 | CG31: =MAX($Z31:CF31)+1 -> 59 | CH31: =MAX($Z31:CG31)+1 -> 60 | CI31: =MAX($Z31:CH31)+1 -> 61 | CJ31: =MAX($Z31:CI31)+1 -> 62 | CK31: =MAX($Z31:CJ31)+1 -> 63 | CL31: =MAX($Z31:CK31)+1 -> 64 | CM31: =MAX($Z31:CL31)+1 -> 65 | CN31: =MAX($Z31:CM31)+1 -> 66 | CO31: =MAX($Z31:CN31)+1 -> 67 | CP31: =MAX($Z31:CO31)+1 -> 68 | CQ31: =MAX($Z31:CP31)+1 -> 69 | CR31: =MAX($Z31:CQ31)+1 -> 70 | CS31: =MAX($Z31:CR31)+1 -> 71 | CT31: =MAX($Z31:CS31)+1 -> 72 | CU31: =MAX($Z31:CT31)+1 -> 73
A32: =ROW() -> 32 | Y32: =START!$K$139 -> номер месяца даты начала: | AA32: =IF(AA35="","",MONTH(AA35)) -> 1 | AB32: =IF(AB35="","",MONTH(AB35)) -> 1 | AC32: 1 | AD32: 1 | AE32: 1 | AF32: 1 | AG32: 1 | AH32: 1 | AI32: 1 | AJ32: 1 | AK32: 1 | AL32: 1 | AM32: 1 | AN32: 1 | AO32: 1 | CN32: =IF(CN35="","",MONTH(CN35)) -> 
A33: =ROW() -> 33 | G33: =IF($R33="^",IF(COUNTIF(Lists!$13:$13,H33)=1,0,1),0) -> 0 | H33: =Lists!$Q$13 -> период отчетности | P33: M | Q33: =MAIN!Q89 -> год текущий | R33: ^ | S33: =IF(G33<>0,1,IF(OR($Q33="",$Q33=0),0,IF($R33="^",IF(COUNTIF(INDIRECT(INDEX(Lists!$15:$15,SUMIFS(Lists!$1:$1,Lists!$13:$13,$H33))),$Q33)=1,0,1),0))) -> 0 | Y33: =START!$K$140 -> год даты начала: | AA33: =IF(AA35="","",YEAR(AA35)-2000) -> 21 | AB33: =IF(AB35="","",YEAR(AB35)-2000) -> 22 | AC33: 23 | AD33: 24 | AE33: 25 | AF33: 26 | AG33: 27 | AH33: 28 | AI33: 29 | AJ33: 30 | AK33: 31 | AL33: 32 | AM33: 33 | AN33: 34 | AO33: 35 | CN33: =IF(CN35="","",YEAR(CN35)-2000) -> 
A34: =ROW() -> 34
A35: =ROW() -> 35 | G35: =IF($R35="^",IF(COUNTIF(Lists!$13:$13,H35)=1,0,1),0) -> 0 | H35: дата старта отчетности модели | X35: =IF(OR($Q$17="",$Q$17=0),"",IF($Q$33=Lists!$I$17,$Q$17-IF(WEEKDAY($Q$17)=1,7,WEEKDAY($Q$17))+2,IF($Q$33=Lists!$I$18,EOMONTH($Q$17,-1)+INT((IF(DAY($Q$17)=31,30,DAY($Q$17))-1)/10)*10+1,IF(OR($Q$33=Lists!$I$19,$Q$33=Lists!$I$21,$Q$33="",$Q$33=0),EOMONTH($Q$17,-1)+1,IF($Q$33=Lists!$I$20,EOMONTH($Q$17,-(MONTH($Q$17)-3*INT((MONTH($Q$17)-1)/3)))+1,IF($Q$33=Lists!$I$22,EOMONTH($Q$17,-MONTH($Q$17))+1,"")))))) -> 2021-01-01 | AA35: =IF(AA$31=1,IF(AA$20="","",IF($X35="","",$X35)),IF(Z36="","",IF(Z36+1>$X$21,"",Z36+1))) -> 2021-01-01 | AB35: =IF(AB$31=1,IF(AB$20="","",IF($X35="","",$X35)),IF(AA36="","",IF(AA36+1>$X$21,"",AA36+1))) -> 2022-01-01 | AC35: 2023-01-01 | AD35: 2024-01-01 | AE35: 2025-01-01 | AF35: 2026-01-01 | AG35: 2027-01-01 | AH35: 2028-01-01 | AI35: 2029-01-01 | AJ35: 2030-01-01 | AK35: 2031-01-01 | AL35: 2032-01-01 | AM35: 2033-01-01 | AN35: 2034-01-01 | AO35: 2035-01-01 | CN35: =IF(CN$31=1,IF(CN$20="","",IF($X35="","",$X35)),IF(CM36="","",IF(CM36+1>$X$21,"",CM36+1))) -> 
A36: =ROW() -> 36 | G36: =IF($R36="^",IF(COUNTIF(Lists!$13:$13,H36)=1,0,1),0) -> 0 | H36: дата завершения отчетности модели | X36: =IF(OR(X35="",AA36=""),"",MAX($Z36:$CV36)) -> 2035-12-31 | AA36: =IF(AA35="","",IF($Q$33=Lists!$I$17,AA35+6,IF($Q$33=Lists!$I$18,IF(DAY(AA35)=21,EOMONTH(AA35,0),AA35+9),IF($Q$33=Lists!$I$19,EOMONTH(AA35,0),IF($Q$33=Lists!$I$20,EOMONTH(AA35,2),IF(OR($Q$33=Lists!$I$21,$Q$33=Lists!$I$22,$Q$33="",$Q$33=0),EOMONTH(AA35,11),"")))))) -> 2021-12-31 | AB36: =IF(AB35="","",IF($Q$33=Lists!$I$17,AB35+6,IF($Q$33=Lists!$I$18,IF(DAY(AB35)=21,EOMONTH(AB35,0),AB35+9),IF($Q$33=Lists!$I$19,EOMONTH(AB35,0),IF($Q$33=Lists!$I$20,EOMONTH(AB35,2),IF(OR($Q$33=Lists!$I$21,$Q$33=Lists!$I$22,$Q$33="",$Q$33=0),EOMONTH(AB35,11),"")))))) -> 2022-12-31 | AC36: =IF(AC35="","",IF($Q$33=Lists!$I$17,AC35+6,IF($Q$33=Lists!$I$18,IF(DAY(AC35)=21,EOMONTH(AC35,0),AC35+9),IF($Q$33=Lists!$I$19,EOMONTH(AC35,0),IF($Q$33=Lists!$I$20,EOMONTH(AC35,2),IF(OR($Q$33=Lists!$I$21,$Q$33=Lists!$I$22,$Q$33="",$Q$33=0),EOMONTH(AC35,11),"")))))) -> 2023-12-31 | AD36: =IF(AD35="","",IF($Q$33=Lists!$I$17,AD35+6,IF($Q$33=Lists!$I$18,IF(DAY(AD35)=21,EOMONTH(AD35,0),AD35+9),IF($Q$33=Lists!$I$19,EOMONTH(AD35,0),IF($Q$33=Lists!$I$20,EOMONTH(AD35,2),IF(OR($Q$33=Lists!$I$21,$Q$33=Lists!$I$22,$Q$33="",$Q$33=0),EOMONTH(AD35,11),"")))))) -> 2024-12-31 | AE36: =IF(AE35="","",IF($Q$33=Lists!$I$17,AE35+6,IF($Q$33=Lists!$I$18,IF(DAY(AE35)=21,EOMONTH(AE35,0),AE35+9),IF($Q$33=Lists!$I$19,EOMONTH(AE35,0),IF($Q$33=Lists!$I$20,EOMONTH(AE35,2),IF(OR($Q$33=Lists!$I$21,$Q$33=Lists!$I$22,$Q$33="",$Q$33=0),EOMONTH(AE35,11),"")))))) -> 2025-12-31 | AF36: =IF(AF35="","",IF($Q$33=Lists!$I$17,AF35+6,IF($Q$33=Lists!$I$18,IF(DAY(AF35)=21,EOMONTH(AF35,0),AF35+9),IF($Q$33=Lists!$I$19,EOMONTH(AF35,0),IF($Q$33=Lists!$I$20,EOMONTH(AF35,2),IF(OR($Q$33=Lists!$I$21,$Q$33=Lists!$I$22,$Q$33="",$Q$33=0),EOMONTH(AF35,11),"")))))) -> 2026-12-31 | AG36: =IF(AG35="","",IF($Q$33=Lists!$I$17,AG35+6,IF($Q$33=Lists!$I$18,IF(DAY(AG35)=21,EOMONTH(AG35,0),AG35+9),IF($Q$33=Lists!$I$19,EOMONTH(AG35,0),IF($Q$33=Lists!$I$20,EOMONTH(AG35,2),IF(OR($Q$33=Lists!$I$21,$Q$33=Lists!$I$22,$Q$33="",$Q$33=0),EOMONTH(AG35,11),"")))))) -> 2027-12-31 | AH36: =IF(AH35="","",IF($Q$33=Lists!$I$17,AH35+6,IF($Q$33=Lists!$I$18,IF(DAY(AH35)=21,EOMONTH(AH35,0),AH35+9),IF($Q$33=Lists!$I$19,EOMONTH(AH35,0),IF($Q$33=Lists!$I$20,EOMONTH(AH35,2),IF(OR($Q$33=Lists!$I$21,$Q$33=Lists!$I$22,$Q$33="",$Q$33=0),EOMONTH(AH35,11),"")))))) -> 2028-12-31 | AI36: =IF(AI35="","",IF($Q$33=Lists!$I$17,AI35+6,IF($Q$33=Lists!$I$18,IF(DAY(AI35)=21,EOMONTH(AI35,0),AI35+9),IF($Q$33=Lists!$I$19,EOMONTH(AI35,0),IF($Q$33=Lists!$I$20,EOMONTH(AI35,2),IF(OR($Q$33=Lists!$I$21,$Q$33=Lists!$I$22,$Q$33="",$Q$33=0),EOMONTH(AI35,11),"")))))) -> 2029-12-31 | AJ36: =IF(AJ35="","",IF($Q$33=Lists!$I$17,AJ35+6,IF($Q$33=Lists!$I$18,IF(DAY(AJ35)=21,EOMONTH(AJ35,0),AJ35+9),IF($Q$33=Lists!$I$19,EOMONTH(AJ35,0),IF($Q$33=Lists!$I$20,EOMONTH(AJ35,2),IF(OR($Q$33=Lists!$I$21,$Q$33=Lists!$I$22,$Q$33="",$Q$33=0),EOMONTH(AJ35,11),"")))))) -> 2030-12-31 | AK36: =IF(AK35="","",IF($Q$33=Lists!$I$17,AK35+6,IF($Q$33=Lists!$I$18,IF(DAY(AK35)=21,EOMONTH(AK35,0),AK35+9),IF($Q$33=Lists!$I$19,EOMONTH(AK35,0),IF($Q$33=Lists!$I$20,EOMONTH(AK35,2),IF(OR($Q$33=Lists!$I$21,$Q$33=Lists!$I$22,$Q$33="",$Q$33=0),EOMONTH(AK35,11),"")))))) -> 2031-12-31 | AL36: =IF(AL35="","",IF($Q$33=Lists!$I$17,AL35+6,IF($Q$33=Lists!$I$18,IF(DAY(AL35)=21,EOMONTH(AL35,0),AL35+9),IF($Q$33=Lists!$I$19,EOMONTH(AL35,0),IF($Q$33=Lists!$I$20,EOMONTH(AL35,2),IF(OR($Q$33=Lists!$I$21,$Q$33=Lists!$I$22,$Q$33="",$Q$33=0),EOMONTH(AL35,11),"")))))) -> 2032-12-31 | AM36: =IF(AM35="","",IF($Q$33=Lists!$I$17,AM35+6,IF($Q$33=Lists!$I$18,IF(DAY(AM35)=21,EOMONTH(AM35,0),AM35+9),IF($Q$33=Lists!$I$19,EOMONTH(AM35,0),IF($Q$33=Lists!$I$20,EOMONTH(AM35,2),IF(OR($Q$33=Lists!$I$21,$Q$33=Lists!$I$22,$Q$33="",$Q$33=0),EOMONTH(AM35,11),"")))))) -> 2033-12-31 | AN36: =IF(AN35="","",IF($Q$33=Lists!$I$17,AN35+6,IF($Q$33=Lists!$I$18,IF(DAY(AN35)=21,EOMONTH(AN35,0),AN35+9),IF($Q$33=Lists!$I$19,EOMONTH(AN35,0),IF($Q$33=Lists!$I$20,EOMONTH(AN35,2),IF(OR($Q$33=Lists!$I$21,$Q$33=Lists!$I$22,$Q$33="",$Q$33=0),EOMONTH(AN35,11),"")))))) -> 2034-12-31 | AO36: =IF(AO35="","",IF($Q$33=Lists!$I$17,AO35+6,IF($Q$33=Lists!$I$18,IF(DAY(AO35)=21,EOMONTH(AO35,0),AO35+9),IF($Q$33=Lists!$I$19,EOMONTH(AO35,0),IF($Q$33=Lists!$I$20,EOMONTH(AO35,2),IF(OR($Q$33=Lists!$I$21,$Q$33=Lists!$I$22,$Q$33="",$Q$33=0),EOMONTH(AO35,11),"")))))) -> 2035-12-31 | AP36: =IF(AP35="","",IF($Q$33=Lists!$I$17,AP35+6,IF($Q$33=Lists!$I$18,IF(DAY(AP35)=21,EOMONTH(AP35,0),AP35+9),IF($Q$33=Lists!$I$19,EOMONTH(AP35,0),IF($Q$33=Lists!$I$20,EOMONTH(AP35,2),IF(OR($Q$33=Lists!$I$21,$Q$33=Lists!$I$22,$Q$33="",$Q$33=0),EOMONTH(AP35,11),"")))))) ->  | AQ36: =IF(AQ35="","",IF($Q$33=Lists!$I$17,AQ35+6,IF($Q$33=Lists!$I$18,IF(DAY(AQ35)=21,EOMONTH(AQ35,0),AQ35+9),IF($Q$33=Lists!$I$19,EOMONTH(AQ35,0),IF($Q$33=Lists!$I$20,EOMONTH(AQ35,2),IF(OR($Q$33=Lists!$I$21,$Q$33=Lists!$I$22,$Q$33="",$Q$33=0),EOMONTH(AQ35,11),"")))))) ->  | AR36: =IF(AR35="","",IF($Q$33=Lists!$I$17,AR35+6,IF($Q$33=Lists!$I$18,IF(DAY(AR35)=21,EOMONTH(AR35,0),AR35+9),IF($Q$33=Lists!$I$19,EOMONTH(AR35,0),IF($Q$33=Lists!$I$20,EOMONTH(AR35,2),IF(OR($Q$33=Lists!$I$21,$Q$33=Lists!$I$22,$Q$33="",$Q$33=0),EOMONTH(AR35,11),"")))))) ->  | AS36: =IF(AS35="","",IF($Q$33=Lists!$I$17,AS35+6,IF($Q$33=Lists!$I$18,IF(DAY(AS35)=21,EOMONTH(AS35,0),AS35+9),IF($Q$33=Lists!$I$19,EOMONTH(AS35,0),IF($Q$33=Lists!$I$20,EOMONTH(AS35,2),IF(OR($Q$33=Lists!$I$21,$Q$33=Lists!$I$22,$Q$33="",$Q$33=0),EOMONTH(AS35,11),"")))))) ->  | AT36: =IF(AT35="","",IF($Q$33=Lists!$I$17,AT35+6,IF($Q$33=Lists!$I$18,IF(DAY(AT35)=21,EOMONTH(AT35,0),AT35+9),IF($Q$33=Lists!$I$19,EOMONTH(AT35,0),IF($Q$33=Lists!$I$20,EOMONTH(AT35,2),IF(OR($Q$33=Lists!$I$21,$Q$33=Lists!$I$22,$Q$33="",$Q$33=0),EOMONTH(AT35,11),"")))))) ->  | AU36: =IF(AU35="","",IF($Q$33=Lists!$I$17,AU35+6,IF($Q$33=Lists!$I$18,IF(DAY(AU35)=21,EOMONTH(AU35,0),AU35+9),IF($Q$33=Lists!$I$19,EOMONTH(AU35,0),IF($Q$33=Lists!$I$20,EOMONTH(AU35,2),IF(OR($Q$33=Lists!$I$21,$Q$33=Lists!$I$22,$Q$33="",$Q$33=0),EOMONTH(AU35,11),"")))))) ->  | AV36: =IF(AV35="","",IF($Q$33=Lists!$I$17,AV35+6,IF($Q$33=Lists!$I$18,IF(DAY(AV35)=21,EOMONTH(AV35,0),AV35+9),IF($Q$33=Lists!$I$19,EOMONTH(AV35,0),IF($Q$33=Lists!$I$20,EOMONTH(AV35,2),IF(OR($Q$33=Lists!$I$21,$Q$33=Lists!$I$22,$Q$33="",$Q$33=0),EOMONTH(AV35,11),"")))))) ->  | AW36: =IF(AW35="","",IF($Q$33=Lists!$I$17,AW35+6,IF($Q$33=Lists!$I$18,IF(DAY(AW35)=21,EOMONTH(AW35,0),AW35+9),IF($Q$33=Lists!$I$19,EOMONTH(AW35,0),IF($Q$33=Lists!$I$20,EOMONTH(AW35,2),IF(OR($Q$33=Lists!$I$21,$Q$33=Lists!$I$22,$Q$33="",$Q$33=0),EOMONTH(AW35,11),"")))))) ->  | AX36: =IF(AX35="","",IF($Q$33=Lists!$I$17,AX35+6,IF($Q$33=Lists!$I$18,IF(DAY(AX35)=21,EOMONTH(AX35,0),AX35+9),IF($Q$33=Lists!$I$19,EOMONTH(AX35,0),IF($Q$33=Lists!$I$20,EOMONTH(AX35,2),IF(OR($Q$33=Lists!$I$21,$Q$33=Lists!$I$22,$Q$33="",$Q$33=0),EOMONTH(AX35,11),"")))))) ->  | AY36: =IF(AY35="","",IF($Q$33=Lists!$I$17,AY35+6,IF($Q$33=Lists!$I$18,IF(DAY(AY35)=21,EOMONTH(AY35,0),AY35+9),IF($Q$33=Lists!$I$19,EOMONTH(AY35,0),IF($Q$33=Lists!$I$20,EOMONTH(AY35,2),IF(OR($Q$33=Lists!$I$21,$Q$33=Lists!$I$22,$Q$33="",$Q$33=0),EOMONTH(AY35,11),"")))))) ->  | AZ36: =IF(AZ35="","",IF($Q$33=Lists!$I$17,AZ35+6,IF($Q$33=Lists!$I$18,IF(DAY(AZ35)=21,EOMONTH(AZ35,0),AZ35+9),IF($Q$33=Lists!$I$19,EOMONTH(AZ35,0),IF($Q$33=Lists!$I$20,EOMONTH(AZ35,2),IF(OR($Q$33=Lists!$I$21,$Q$33=Lists!$I$22,$Q$33="",$Q$33=0),EOMONTH(AZ35,11),"")))))) ->  | BA36: =IF(BA35="","",IF($Q$33=Lists!$I$17,BA35+6,IF($Q$33=Lists!$I$18,IF(DAY(BA35)=21,EOMONTH(BA35,0),BA35+9),IF($Q$33=Lists!$I$19,EOMONTH(BA35,0),IF($Q$33=Lists!$I$20,EOMONTH(BA35,2),IF(OR($Q$33=Lists!$I$21,$Q$33=Lists!$I$22,$Q$33="",$Q$33=0),EOMONTH(BA35,11),"")))))) ->  | BB36: =IF(BB35="","",IF($Q$33=Lists!$I$17,BB35+6,IF($Q$33=Lists!$I$18,IF(DAY(BB35)=21,EOMONTH(BB35,0),BB35+9),IF($Q$33=Lists!$I$19,EOMONTH(BB35,0),IF($Q$33=Lists!$I$20,EOMONTH(BB35,2),IF(OR($Q$33=Lists!$I$21,$Q$33=Lists!$I$22,$Q$33="",$Q$33=0),EOMONTH(BB35,11),"")))))) ->  | BC36: =IF(BC35="","",IF($Q$33=Lists!$I$17,BC35+6,IF($Q$33=Lists!$I$18,IF(DAY(BC35)=21,EOMONTH(BC35,0),BC35+9),IF($Q$33=Lists!$I$19,EOMONTH(BC35,0),IF($Q$33=Lists!$I$20,EOMONTH(BC35,2),IF(OR($Q$33=Lists!$I$21,$Q$33=Lists!$I$22,$Q$33="",$Q$33=0),EOMONTH(BC35,11),"")))))) ->  | BD36: =IF(BD35="","",IF($Q$33=Lists!$I$17,BD35+6,IF($Q$33=Lists!$I$18,IF(DAY(BD35)=21,EOMONTH(BD35,0),BD35+9),IF($Q$33=Lists!$I$19,EOMONTH(BD35,0),IF($Q$33=Lists!$I$20,EOMONTH(BD35,2),IF(OR($Q$33=Lists!$I$21,$Q$33=Lists!$I$22,$Q$33="",$Q$33=0),EOMONTH(BD35,11),"")))))) ->  | BE36: =IF(BE35="","",IF($Q$33=Lists!$I$17,BE35+6,IF($Q$33=Lists!$I$18,IF(DAY(BE35)=21,EOMONTH(BE35,0),BE35+9),IF($Q$33=Lists!$I$19,EOMONTH(BE35,0),IF($Q$33=Lists!$I$20,EOMONTH(BE35,2),IF(OR($Q$33=Lists!$I$21,$Q$33=Lists!$I$22,$Q$33="",$Q$33=0),EOMONTH(BE35,11),"")))))) ->  | BF36: =IF(BF35="","",IF($Q$33=Lists!$I$17,BF35+6,IF($Q$33=Lists!$I$18,IF(DAY(BF35)=21,EOMONTH(BF35,0),BF35+9),IF($Q$33=Lists!$I$19,EOMONTH(BF35,0),IF($Q$33=Lists!$I$20,EOMONTH(BF35,2),IF(OR($Q$33=Lists!$I$21,$Q$33=Lists!$I$22,$Q$33="",$Q$33=0),EOMONTH(BF35,11),"")))))) ->  | BG36: =IF(BG35="","",IF($Q$33=Lists!$I$17,BG35+6,IF($Q$33=Lists!$I$18,IF(DAY(BG35)=21,EOMONTH(BG35,0),BG35+9),IF($Q$33=Lists!$I$19,EOMONTH(BG35,0),IF($Q$33=Lists!$I$20,EOMONTH(BG35,2),IF(OR($Q$33=Lists!$I$21,$Q$33=Lists!$I$22,$Q$33="",$Q$33=0),EOMONTH(BG35,11),"")))))) ->  | BH36: =IF(BH35="","",IF($Q$33=Lists!$I$17,BH35+6,IF($Q$33=Lists!$I$18,IF(DAY(BH35)=21,EOMONTH(BH35,0),BH35+9),IF($Q$33=Lists!$I$19,EOMONTH(BH35,0),IF($Q$33=Lists!$I$20,EOMONTH(BH35,2),IF(OR($Q$33=Lists!$I$21,$Q$33=Lists!$I$22,$Q$33="",$Q$33=0),EOMONTH(BH35,11),"")))))) ->  | BI36: =IF(BI35="","",IF($Q$33=Lists!$I$17,BI35+6,IF($Q$33=Lists!$I$18,IF(DAY(BI35)=21,EOMONTH(BI35,0),BI35+9),IF($Q$33=Lists!$I$19,EOMONTH(BI35,0),IF($Q$33=Lists!$I$20,EOMONTH(BI35,2),IF(OR($Q$33=Lists!$I$21,$Q$33=Lists!$I$22,$Q$33="",$Q$33=0),EOMONTH(BI35,11),"")))))) ->  | BJ36: =IF(BJ35="","",IF($Q$33=Lists!$I$17,BJ35+6,IF($Q$33=Lists!$I$18,IF(DAY(BJ35)=21,EOMONTH(BJ35,0),BJ35+9),IF($Q$33=Lists!$I$19,EOMONTH(BJ35,0),IF($Q$33=Lists!$I$20,EOMONTH(BJ35,2),IF(OR($Q$33=Lists!$I$21,$Q$33=Lists!$I$22,$Q$33="",$Q$33=0),EOMONTH(BJ35,11),"")))))) ->  | BK36: =IF(BK35="","",IF($Q$33=Lists!$I$17,BK35+6,IF($Q$33=Lists!$I$18,IF(DAY(BK35)=21,EOMONTH(BK35,0),BK35+9),IF($Q$33=Lists!$I$19,EOMONTH(BK35,0),IF($Q$33=Lists!$I$20,EOMONTH(BK35,2),IF(OR($Q$33=Lists!$I$21,$Q$33=Lists!$I$22,$Q$33="",$Q$33=0),EOMONTH(BK35,11),"")))))) ->  | BL36: =IF(BL35="","",IF($Q$33=Lists!$I$17,BL35+6,IF($Q$33=Lists!$I$18,IF(DAY(BL35)=21,EOMONTH(BL35,0),BL35+9),IF($Q$33=Lists!$I$19,EOMONTH(BL35,0),IF($Q$33=Lists!$I$20,EOMONTH(BL35,2),IF(OR($Q$33=Lists!$I$21,$Q$33=Lists!$I$22,$Q$33="",$Q$33=0),EOMONTH(BL35,11),"")))))) ->  | BM36: =IF(BM35="","",IF($Q$33=Lists!$I$17,BM35+6,IF($Q$33=Lists!$I$18,IF(DAY(BM35)=21,EOMONTH(BM35,0),BM35+9),IF($Q$33=Lists!$I$19,EOMONTH(BM35,0),IF($Q$33=Lists!$I$20,EOMONTH(BM35,2),IF(OR($Q$33=Lists!$I$21,$Q$33=Lists!$I$22,$Q$33="",$Q$33=0),EOMONTH(BM35,11),"")))))) ->  | BN36: =IF(BN35="","",IF($Q$33=Lists!$I$17,BN35+6,IF($Q$33=Lists!$I$18,IF(DAY(BN35)=21,EOMONTH(BN35,0),BN35+9),IF($Q$33=Lists!$I$19,EOMONTH(BN35,0),IF($Q$33=Lists!$I$20,EOMONTH(BN35,2),IF(OR($Q$33=Lists!$I$21,$Q$33=Lists!$I$22,$Q$33="",$Q$33=0),EOMONTH(BN35,11),"")))))) ->  | BO36: =IF(BO35="","",IF($Q$33=Lists!$I$17,BO35+6,IF($Q$33=Lists!$I$18,IF(DAY(BO35)=21,EOMONTH(BO35,0),BO35+9),IF($Q$33=Lists!$I$19,EOMONTH(BO35,0),IF($Q$33=Lists!$I$20,EOMONTH(BO35,2),IF(OR($Q$33=Lists!$I$21,$Q$33=Lists!$I$22,$Q$33="",$Q$33=0),EOMONTH(BO35,11),"")))))) ->  | BP36: =IF(BP35="","",IF($Q$33=Lists!$I$17,BP35+6,IF($Q$33=Lists!$I$18,IF(DAY(BP35)=21,EOMONTH(BP35,0),BP35+9),IF($Q$33=Lists!$I$19,EOMONTH(BP35,0),IF($Q$33=Lists!$I$20,EOMONTH(BP35,2),IF(OR($Q$33=Lists!$I$21,$Q$33=Lists!$I$22,$Q$33="",$Q$33=0),EOMONTH(BP35,11),"")))))) ->  | BQ36: =IF(BQ35="","",IF($Q$33=Lists!$I$17,BQ35+6,IF($Q$33=Lists!$I$18,IF(DAY(BQ35)=21,EOMONTH(BQ35,0),BQ35+9),IF($Q$33=Lists!$I$19,EOMONTH(BQ35,0),IF($Q$33=Lists!$I$20,EOMONTH(BQ35,2),IF(OR($Q$33=Lists!$I$21,$Q$33=Lists!$I$22,$Q$33="",$Q$33=0),EOMONTH(BQ35,11),"")))))) ->  | BR36: =IF(BR35="","",IF($Q$33=Lists!$I$17,BR35+6,IF($Q$33=Lists!$I$18,IF(DAY(BR35)=21,EOMONTH(BR35,0),BR35+9),IF($Q$33=Lists!$I$19,EOMONTH(BR35,0),IF($Q$33=Lists!$I$20,EOMONTH(BR35,2),IF(OR($Q$33=Lists!$I$21,$Q$33=Lists!$I$22,$Q$33="",$Q$33=0),EOMONTH(BR35,11),"")))))) ->  | BS36: =IF(BS35="","",IF($Q$33=Lists!$I$17,BS35+6,IF($Q$33=Lists!$I$18,IF(DAY(BS35)=21,EOMONTH(BS35,0),BS35+9),IF($Q$33=Lists!$I$19,EOMONTH(BS35,0),IF($Q$33=Lists!$I$20,EOMONTH(BS35,2),IF(OR($Q$33=Lists!$I$21,$Q$33=Lists!$I$22,$Q$33="",$Q$33=0),EOMONTH(BS35,11),"")))))) ->  | BT36: =IF(BT35="","",IF($Q$33=Lists!$I$17,BT35+6,IF($Q$33=Lists!$I$18,IF(DAY(BT35)=21,EOMONTH(BT35,0),BT35+9),IF($Q$33=Lists!$I$19,EOMONTH(BT35,0),IF($Q$33=Lists!$I$20,EOMONTH(BT35,2),IF(OR($Q$33=Lists!$I$21,$Q$33=Lists!$I$22,$Q$33="",$Q$33=0),EOMONTH(BT35,11),"")))))) ->  | BU36: =IF(BU35="","",IF($Q$33=Lists!$I$17,BU35+6,IF($Q$33=Lists!$I$18,IF(DAY(BU35)=21,EOMONTH(BU35,0),BU35+9),IF($Q$33=Lists!$I$19,EOMONTH(BU35,0),IF($Q$33=Lists!$I$20,EOMONTH(BU35,2),IF(OR($Q$33=Lists!$I$21,$Q$33=Lists!$I$22,$Q$33="",$Q$33=0),EOMONTH(BU35,11),"")))))) ->  | BV36: =IF(BV35="","",IF($Q$33=Lists!$I$17,BV35+6,IF($Q$33=Lists!$I$18,IF(DAY(BV35)=21,EOMONTH(BV35,0),BV35+9),IF($Q$33=Lists!$I$19,EOMONTH(BV35,0),IF($Q$33=Lists!$I$20,EOMONTH(BV35,2),IF(OR($Q$33=Lists!$I$21,$Q$33=Lists!$I$22,$Q$33="",$Q$33=0),EOMONTH(BV35,11),"")))))) ->  | BW36: =IF(BW35="","",IF($Q$33=Lists!$I$17,BW35+6,IF($Q$33=Lists!$I$18,IF(DAY(BW35)=21,EOMONTH(BW35,0),BW35+9),IF($Q$33=Lists!$I$19,EOMONTH(BW35,0),IF($Q$33=Lists!$I$20,EOMONTH(BW35,2),IF(OR($Q$33=Lists!$I$21,$Q$33=Lists!$I$22,$Q$33="",$Q$33=0),EOMONTH(BW35,11),"")))))) ->  | BX36: =IF(BX35="","",IF($Q$33=Lists!$I$17,BX35+6,IF($Q$33=Lists!$I$18,IF(DAY(BX35)=21,EOMONTH(BX35,0),BX35+9),IF($Q$33=Lists!$I$19,EOMONTH(BX35,0),IF($Q$33=Lists!$I$20,EOMONTH(BX35,2),IF(OR($Q$33=Lists!$I$21,$Q$33=Lists!$I$22,$Q$33="",$Q$33=0),EOMONTH(BX35,11),"")))))) ->  | BY36: =IF(BY35="","",IF($Q$33=Lists!$I$17,BY35+6,IF($Q$33=Lists!$I$18,IF(DAY(BY35)=21,EOMONTH(BY35,0),BY35+9),IF($Q$33=Lists!$I$19,EOMONTH(BY35,0),IF($Q$33=Lists!$I$20,EOMONTH(BY35,2),IF(OR($Q$33=Lists!$I$21,$Q$33=Lists!$I$22,$Q$33="",$Q$33=0),EOMONTH(BY35,11),"")))))) ->  | BZ36: =IF(BZ35="","",IF($Q$33=Lists!$I$17,BZ35+6,IF($Q$33=Lists!$I$18,IF(DAY(BZ35)=21,EOMONTH(BZ35,0),BZ35+9),IF($Q$33=Lists!$I$19,EOMONTH(BZ35,0),IF($Q$33=Lists!$I$20,EOMONTH(BZ35,2),IF(OR($Q$33=Lists!$I$21,$Q$33=Lists!$I$22,$Q$33="",$Q$33=0),EOMONTH(BZ35,11),"")))))) ->  | CA36: =IF(CA35="","",IF($Q$33=Lists!$I$17,CA35+6,IF($Q$33=Lists!$I$18,IF(DAY(CA35)=21,EOMONTH(CA35,0),CA35+9),IF($Q$33=Lists!$I$19,EOMONTH(CA35,0),IF($Q$33=Lists!$I$20,EOMONTH(CA35,2),IF(OR($Q$33=Lists!$I$21,$Q$33=Lists!$I$22,$Q$33="",$Q$33=0),EOMONTH(CA35,11),"")))))) ->  | CB36: =IF(CB35="","",IF($Q$33=Lists!$I$17,CB35+6,IF($Q$33=Lists!$I$18,IF(DAY(CB35)=21,EOMONTH(CB35,0),CB35+9),IF($Q$33=Lists!$I$19,EOMONTH(CB35,0),IF($Q$33=Lists!$I$20,EOMONTH(CB35,2),IF(OR($Q$33=Lists!$I$21,$Q$33=Lists!$I$22,$Q$33="",$Q$33=0),EOMONTH(CB35,11),"")))))) ->  | CC36: =IF(CC35="","",IF($Q$33=Lists!$I$17,CC35+6,IF($Q$33=Lists!$I$18,IF(DAY(CC35)=21,EOMONTH(CC35,0),CC35+9),IF($Q$33=Lists!$I$19,EOMONTH(CC35,0),IF($Q$33=Lists!$I$20,EOMONTH(CC35,2),IF(OR($Q$33=Lists!$I$21,$Q$33=Lists!$I$22,$Q$33="",$Q$33=0),EOMONTH(CC35,11),"")))))) ->  | CD36: =IF(CD35="","",IF($Q$33=Lists!$I$17,CD35+6,IF($Q$33=Lists!$I$18,IF(DAY(CD35)=21,EOMONTH(CD35,0),CD35+9),IF($Q$33=Lists!$I$19,EOMONTH(CD35,0),IF($Q$33=Lists!$I$20,EOMONTH(CD35,2),IF(OR($Q$33=Lists!$I$21,$Q$33=Lists!$I$22,$Q$33="",$Q$33=0),EOMONTH(CD35,11),"")))))) ->  | CE36: =IF(CE35="","",IF($Q$33=Lists!$I$17,CE35+6,IF($Q$33=Lists!$I$18,IF(DAY(CE35)=21,EOMONTH(CE35,0),CE35+9),IF($Q$33=Lists!$I$19,EOMONTH(CE35,0),IF($Q$33=Lists!$I$20,EOMONTH(CE35,2),IF(OR($Q$33=Lists!$I$21,$Q$33=Lists!$I$22,$Q$33="",$Q$33=0),EOMONTH(CE35,11),"")))))) ->  | CF36: =IF(CF35="","",IF($Q$33=Lists!$I$17,CF35+6,IF($Q$33=Lists!$I$18,IF(DAY(CF35)=21,EOMONTH(CF35,0),CF35+9),IF($Q$33=Lists!$I$19,EOMONTH(CF35,0),IF($Q$33=Lists!$I$20,EOMONTH(CF35,2),IF(OR($Q$33=Lists!$I$21,$Q$33=Lists!$I$22,$Q$33="",$Q$33=0),EOMONTH(CF35,11),"")))))) ->  | CG36: =IF(CG35="","",IF($Q$33=Lists!$I$17,CG35+6,IF($Q$33=Lists!$I$18,IF(DAY(CG35)=21,EOMONTH(CG35,0),CG35+9),IF($Q$33=Lists!$I$19,EOMONTH(CG35,0),IF($Q$33=Lists!$I$20,EOMONTH(CG35,2),IF(OR($Q$33=Lists!$I$21,$Q$33=Lists!$I$22,$Q$33="",$Q$33=0),EOMONTH(CG35,11),"")))))) ->  | CH36: =IF(CH35="","",IF($Q$33=Lists!$I$17,CH35+6,IF($Q$33=Lists!$I$18,IF(DAY(CH35)=21,EOMONTH(CH35,0),CH35+9),IF($Q$33=Lists!$I$19,EOMONTH(CH35,0),IF($Q$33=Lists!$I$20,EOMONTH(CH35,2),IF(OR($Q$33=Lists!$I$21,$Q$33=Lists!$I$22,$Q$33="",$Q$33=0),EOMONTH(CH35,11),"")))))) ->  | CI36: =IF(CI35="","",IF($Q$33=Lists!$I$17,CI35+6,IF($Q$33=Lists!$I$18,IF(DAY(CI35)=21,EOMONTH(CI35,0),CI35+9),IF($Q$33=Lists!$I$19,EOMONTH(CI35,0),IF($Q$33=Lists!$I$20,EOMONTH(CI35,2),IF(OR($Q$33=Lists!$I$21,$Q$33=Lists!$I$22,$Q$33="",$Q$33=0),EOMONTH(CI35,11),"")))))) ->  | CJ36: =IF(CJ35="","",IF($Q$33=Lists!$I$17,CJ35+6,IF($Q$33=Lists!$I$18,IF(DAY(CJ35)=21,EOMONTH(CJ35,0),CJ35+9),IF($Q$33=Lists!$I$19,EOMONTH(CJ35,0),IF($Q$33=Lists!$I$20,EOMONTH(CJ35,2),IF(OR($Q$33=Lists!$I$21,$Q$33=Lists!$I$22,$Q$33="",$Q$33=0),EOMONTH(CJ35,11),"")))))) ->  | CK36: =IF(CK35="","",IF($Q$33=Lists!$I$17,CK35+6,IF($Q$33=Lists!$I$18,IF(DAY(CK35)=21,EOMONTH(CK35,0),CK35+9),IF($Q$33=Lists!$I$19,EOMONTH(CK35,0),IF($Q$33=Lists!$I$20,EOMONTH(CK35,2),IF(OR($Q$33=Lists!$I$21,$Q$33=Lists!$I$22,$Q$33="",$Q$33=0),EOMONTH(CK35,11),"")))))) ->  | CL36: =IF(CL35="","",IF($Q$33=Lists!$I$17,CL35+6,IF($Q$33=Lists!$I$18,IF(DAY(CL35)=21,EOMONTH(CL35,0),CL35+9),IF($Q$33=Lists!$I$19,EOMONTH(CL35,0),IF($Q$33=Lists!$I$20,EOMONTH(CL35,2),IF(OR($Q$33=Lists!$I$21,$Q$33=Lists!$I$22,$Q$33="",$Q$33=0),EOMONTH(CL35,11),"")))))) ->  | CM36: =IF(CM35="","",IF($Q$33=Lists!$I$17,CM35+6,IF($Q$33=Lists!$I$18,IF(DAY(CM35)=21,EOMONTH(CM35,0),CM35+9),IF($Q$33=Lists!$I$19,EOMONTH(CM35,0),IF($Q$33=Lists!$I$20,EOMONTH(CM35,2),IF(OR($Q$33=Lists!$I$21,$Q$33=Lists!$I$22,$Q$33="",$Q$33=0),EOMONTH(CM35,11),"")))))) ->  | CN36: =IF(CN35="","",IF($Q$33=Lists!$I$17,CN35+6,IF($Q$33=Lists!$I$18,IF(DAY(CN35)=21,EOMONTH(CN35,0),CN35+9),IF($Q$33=Lists!$I$19,EOMONTH(CN35,0),IF($Q$33=Lists!$I$20,EOMONTH(CN35,2),IF(OR($Q$33=Lists!$I$21,$Q$33=Lists!$I$22,$Q$33="",$Q$33=0),EOMONTH(CN35,11),"")))))) ->  | CO36: =IF(CO35="","",IF($Q$33=Lists!$I$17,CO35+6,IF($Q$33=Lists!$I$18,IF(DAY(CO35)=21,EOMONTH(CO35,0),CO35+9),IF($Q$33=Lists!$I$19,EOMONTH(CO35,0),IF($Q$33=Lists!$I$20,EOMONTH(CO35,2),IF(OR($Q$33=Lists!$I$21,$Q$33=Lists!$I$22,$Q$33="",$Q$33=0),EOMONTH(CO35,11),"")))))) ->  | CP36: =IF(CP35="","",IF($Q$33=Lists!$I$17,CP35+6,IF($Q$33=Lists!$I$18,IF(DAY(CP35)=21,EOMONTH(CP35,0),CP35+9),IF($Q$33=Lists!$I$19,EOMONTH(CP35,0),IF($Q$33=Lists!$I$20,EOMONTH(CP35,2),IF(OR($Q$33=Lists!$I$21,$Q$33=Lists!$I$22,$Q$33="",$Q$33=0),EOMONTH(CP35,11),"")))))) ->  | CQ36: =IF(CQ35="","",IF($Q$33=Lists!$I$17,CQ35+6,IF($Q$33=Lists!$I$18,IF(DAY(CQ35)=21,EOMONTH(CQ35,0),CQ35+9),IF($Q$33=Lists!$I$19,EOMONTH(CQ35,0),IF($Q$33=Lists!$I$20,EOMONTH(CQ35,2),IF(OR($Q$33=Lists!$I$21,$Q$33=Lists!$I$22,$Q$33="",$Q$33=0),EOMONTH(CQ35,11),"")))))) ->  | CR36: =IF(CR35="","",IF($Q$33=Lists!$I$17,CR35+6,IF($Q$33=Lists!$I$18,IF(DAY(CR35)=21,EOMONTH(CR35,0),CR35+9),IF($Q$33=Lists!$I$19,EOMONTH(CR35,0),IF($Q$33=Lists!$I$20,EOMONTH(CR35,2),IF(OR($Q$33=Lists!$I$21,$Q$33=Lists!$I$22,$Q$33="",$Q$33=0),EOMONTH(CR35,11),"")))))) ->  | CS36: =IF(CS35="","",IF($Q$33=Lists!$I$17,CS35+6,IF($Q$33=Lists!$I$18,IF(DAY(CS35)=21,EOMONTH(CS35,0),CS35+9),IF($Q$33=Lists!$I$19,EOMONTH(CS35,0),IF($Q$33=Lists!$I$20,EOMONTH(CS35,2),IF(OR($Q$33=Lists!$I$21,$Q$33=Lists!$I$22,$Q$33="",$Q$33=0),EOMONTH(CS35,11),"")))))) ->  | CT36: =IF(CT35="","",IF($Q$33=Lists!$I$17,CT35+6,IF($Q$33=Lists!$I$18,IF(DAY(CT35)=21,EOMONTH(CT35,0),CT35+9),IF($Q$33=Lists!$I$19,EOMONTH(CT35,0),IF($Q$33=Lists!$I$20,EOMONTH(CT35,2),IF(OR($Q$33=Lists!$I$21,$Q$33=Lists!$I$22,$Q$33="",$Q$33=0),EOMONTH(CT35,11),"")))))) ->  | CU36: =IF(CU35="","",IF($Q$33=Lists!$I$17,CU35+6,IF($Q$33=Lists!$I$18,IF(DAY(CU35)=21,EOMONTH(CU35,0),CU35+9),IF($Q$33=Lists!$I$19,EOMONTH(CU35,0),IF($Q$33=Lists!$I$20,EOMONTH(CU35,2),IF(OR($Q$33=Lists!$I$21,$Q$33=Lists!$I$22,$Q$33="",$Q$33=0),EOMONTH(CU35,11),"")))))) -> 
A37: =ROW() -> 37 | G37: =IF($R37="^",IF(COUNTIF(Lists!$13:$13,H37)=1,0,1),0) -> 0 | H37: названия периодов отчетности | AA37: =IF(AA35="","",IF(OR($Q$33=Lists!$I$17,$Q$33=Lists!$I$18),COUNTIFS($Z32:AA32,MONTH(AA35),$Z33:AA33,YEAR(AA35)-2000)&IF($Q$33=Lists!$I$17,"нд-","дк-")&IF(AA32=1,"янв",IF(AA32=2,"фев",IF(AA32=3,"мар",IF(AA32=4,"апр",IF(AA32=5,"май",IF(AA32=6,"июн",IF(AA32=7,"июл",IF(AA32=8,"авг",IF(AA32=9,"сен",IF(AA32=10,"окт",IF(AA32=11,"ноя","дек")))))))))))&AA33,IF($Q$33=Lists!$I$19,AA35,IF($Q$33=Lists!$I$20,(INT((AA32-1)/3)+1)&"кв"&AA33&"г",IF(OR($Q$33=Lists!$I$21,$Q$33="",$Q$33=0),AA31&" год",IF($Q$33=Lists!$I$22,YEAR(AA35)&"г.","")))))) -> 1 год | AB37: =IF(AB35="","",IF(OR($Q$33=Lists!$I$17,$Q$33=Lists!$I$18),COUNTIFS($Z32:AB32,MONTH(AB35),$Z33:AB33,YEAR(AB35)-2000)&IF($Q$33=Lists!$I$17,"нд-","дк-")&IF(AB32=1,"янв",IF(AB32=2,"фев",IF(AB32=3,"мар",IF(AB32=4,"апр",IF(AB32=5,"май",IF(AB32=6,"июн",IF(AB32=7,"июл",IF(AB32=8,"авг",IF(AB32=9,"сен",IF(AB32=10,"окт",IF(AB32=11,"ноя","дек")))))))))))&AB33,IF($Q$33=Lists!$I$19,AB35,IF($Q$33=Lists!$I$20,(INT((AB32-1)/3)+1)&"кв"&AB33&"г",IF(OR($Q$33=Lists!$I$21,$Q$33="",$Q$33=0),AB31&" год",IF($Q$33=Lists!$I$22,YEAR(AB35)&"г.","")))))) -> 2 год | AC37: =IF(AC35="","",IF(OR($Q$33=Lists!$I$17,$Q$33=Lists!$I$18),COUNTIFS($Z32:AC32,MONTH(AC35),$Z33:AC33,YEAR(AC35)-2000)&IF($Q$33=Lists!$I$17,"нд-","дк-")&IF(AC32=1,"янв",IF(AC32=2,"фев",IF(AC32=3,"мар",IF(AC32=4,"апр",IF(AC32=5,"май",IF(AC32=6,"июн",IF(AC32=7,"июл",IF(AC32=8,"авг",IF(AC32=9,"сен",IF(AC32=10,"окт",IF(AC32=11,"ноя","дек")))))))))))&AC33,IF($Q$33=Lists!$I$19,AC35,IF($Q$33=Lists!$I$20,(INT((AC32-1)/3)+1)&"кв"&AC33&"г",IF(OR($Q$33=Lists!$I$21,$Q$33="",$Q$33=0),AC31&" год",IF($Q$33=Lists!$I$22,YEAR(AC35)&"г.","")))))) -> 3 год | AD37: =IF(AD35="","",IF(OR($Q$33=Lists!$I$17,$Q$33=Lists!$I$18),COUNTIFS($Z32:AD32,MONTH(AD35),$Z33:AD33,YEAR(AD35)-2000)&IF($Q$33=Lists!$I$17,"нд-","дк-")&IF(AD32=1,"янв",IF(AD32=2,"фев",IF(AD32=3,"мар",IF(AD32=4,"апр",IF(AD32=5,"май",IF(AD32=6,"июн",IF(AD32=7,"июл",IF(AD32=8,"авг",IF(AD32=9,"сен",IF(AD32=10,"окт",IF(AD32=11,"ноя","дек")))))))))))&AD33,IF($Q$33=Lists!$I$19,AD35,IF($Q$33=Lists!$I$20,(INT((AD32-1)/3)+1)&"кв"&AD33&"г",IF(OR($Q$33=Lists!$I$21,$Q$33="",$Q$33=0),AD31&" год",IF($Q$33=Lists!$I$22,YEAR(AD35)&"г.","")))))) -> 4 год | AE37: =IF(AE35="","",IF(OR($Q$33=Lists!$I$17,$Q$33=Lists!$I$18),COUNTIFS($Z32:AE32,MONTH(AE35),$Z33:AE33,YEAR(AE35)-2000)&IF($Q$33=Lists!$I$17,"нд-","дк-")&IF(AE32=1,"янв",IF(AE32=2,"фев",IF(AE32=3,"мар",IF(AE32=4,"апр",IF(AE32=5,"май",IF(AE32=6,"июн",IF(AE32=7,"июл",IF(AE32=8,"авг",IF(AE32=9,"сен",IF(AE32=10,"окт",IF(AE32=11,"ноя","дек")))))))))))&AE33,IF($Q$33=Lists!$I$19,AE35,IF($Q$33=Lists!$I$20,(INT((AE32-1)/3)+1)&"кв"&AE33&"г",IF(OR($Q$33=Lists!$I$21,$Q$33="",$Q$33=0),AE31&" год",IF($Q$33=Lists!$I$22,YEAR(AE35)&"г.","")))))) -> 5 год | AF37: =IF(AF35="","",IF(OR($Q$33=Lists!$I$17,$Q$33=Lists!$I$18),COUNTIFS($Z32:AF32,MONTH(AF35),$Z33:AF33,YEAR(AF35)-2000)&IF($Q$33=Lists!$I$17,"нд-","дк-")&IF(AF32=1,"янв",IF(AF32=2,"фев",IF(AF32=3,"мар",IF(AF32=4,"апр",IF(AF32=5,"май",IF(AF32=6,"июн",IF(AF32=7,"июл",IF(AF32=8,"авг",IF(AF32=9,"сен",IF(AF32=10,"окт",IF(AF32=11,"ноя","дек")))))))))))&AF33,IF($Q$33=Lists!$I$19,AF35,IF($Q$33=Lists!$I$20,(INT((AF32-1)/3)+1)&"кв"&AF33&"г",IF(OR($Q$33=Lists!$I$21,$Q$33="",$Q$33=0),AF31&" год",IF($Q$33=Lists!$I$22,YEAR(AF35)&"г.","")))))) -> 6 год | AG37: =IF(AG35="","",IF(OR($Q$33=Lists!$I$17,$Q$33=Lists!$I$18),COUNTIFS($Z32:AG32,MONTH(AG35),$Z33:AG33,YEAR(AG35)-2000)&IF($Q$33=Lists!$I$17,"нд-","дк-")&IF(AG32=1,"янв",IF(AG32=2,"фев",IF(AG32=3,"мар",IF(AG32=4,"апр",IF(AG32=5,"май",IF(AG32=6,"июн",IF(AG32=7,"июл",IF(AG32=8,"авг",IF(AG32=9,"сен",IF(AG32=10,"окт",IF(AG32=11,"ноя","дек")))))))))))&AG33,IF($Q$33=Lists!$I$19,AG35,IF($Q$33=Lists!$I$20,(INT((AG32-1)/3)+1)&"кв"&AG33&"г",IF(OR($Q$33=Lists!$I$21,$Q$33="",$Q$33=0),AG31&" год",IF($Q$33=Lists!$I$22,YEAR(AG35)&"г.","")))))) -> 7 год | AH37: =IF(AH35="","",IF(OR($Q$33=Lists!$I$17,$Q$33=Lists!$I$18),COUNTIFS($Z32:AH32,MONTH(AH35),$Z33:AH33,YEAR(AH35)-2000)&IF($Q$33=Lists!$I$17,"нд-","дк-")&IF(AH32=1,"янв",IF(AH32=2,"фев",IF(AH32=3,"мар",IF(AH32=4,"апр",IF(AH32=5,"май",IF(AH32=6,"июн",IF(AH32=7,"июл",IF(AH32=8,"авг",IF(AH32=9,"сен",IF(AH32=10,"окт",IF(AH32=11,"ноя","дек")))))))))))&AH33,IF($Q$33=Lists!$I$19,AH35,IF($Q$33=Lists!$I$20,(INT((AH32-1)/3)+1)&"кв"&AH33&"г",IF(OR($Q$33=Lists!$I$21,$Q$33="",$Q$33=0),AH31&" год",IF($Q$33=Lists!$I$22,YEAR(AH35)&"г.","")))))) -> 8 год | AI37: =IF(AI35="","",IF(OR($Q$33=Lists!$I$17,$Q$33=Lists!$I$18),COUNTIFS($Z32:AI32,MONTH(AI35),$Z33:AI33,YEAR(AI35)-2000)&IF($Q$33=Lists!$I$17,"нд-","дк-")&IF(AI32=1,"янв",IF(AI32=2,"фев",IF(AI32=3,"мар",IF(AI32=4,"апр",IF(AI32=5,"май",IF(AI32=6,"июн",IF(AI32=7,"июл",IF(AI32=8,"авг",IF(AI32=9,"сен",IF(AI32=10,"окт",IF(AI32=11,"ноя","дек")))))))))))&AI33,IF($Q$33=Lists!$I$19,AI35,IF($Q$33=Lists!$I$20,(INT((AI32-1)/3)+1)&"кв"&AI33&"г",IF(OR($Q$33=Lists!$I$21,$Q$33="",$Q$33=0),AI31&" год",IF($Q$33=Lists!$I$22,YEAR(AI35)&"г.","")))))) -> 9 год | AJ37: =IF(AJ35="","",IF(OR($Q$33=Lists!$I$17,$Q$33=Lists!$I$18),COUNTIFS($Z32:AJ32,MONTH(AJ35),$Z33:AJ33,YEAR(AJ35)-2000)&IF($Q$33=Lists!$I$17,"нд-","дк-")&IF(AJ32=1,"янв",IF(AJ32=2,"фев",IF(AJ32=3,"мар",IF(AJ32=4,"апр",IF(AJ32=5,"май",IF(AJ32=6,"июн",IF(AJ32=7,"июл",IF(AJ32=8,"авг",IF(AJ32=9,"сен",IF(AJ32=10,"окт",IF(AJ32=11,"ноя","дек")))))))))))&AJ33,IF($Q$33=Lists!$I$19,AJ35,IF($Q$33=Lists!$I$20,(INT((AJ32-1)/3)+1)&"кв"&AJ33&"г",IF(OR($Q$33=Lists!$I$21,$Q$33="",$Q$33=0),AJ31&" год",IF($Q$33=Lists!$I$22,YEAR(AJ35)&"г.","")))))) -> 10 год | AK37: =IF(AK35="","",IF(OR($Q$33=Lists!$I$17,$Q$33=Lists!$I$18),COUNTIFS($Z32:AK32,MONTH(AK35),$Z33:AK33,YEAR(AK35)-2000)&IF($Q$33=Lists!$I$17,"нд-","дк-")&IF(AK32=1,"янв",IF(AK32=2,"фев",IF(AK32=3,"мар",IF(AK32=4,"апр",IF(AK32=5,"май",IF(AK32=6,"июн",IF(AK32=7,"июл",IF(AK32=8,"авг",IF(AK32=9,"сен",IF(AK32=10,"окт",IF(AK32=11,"ноя","дек")))))))))))&AK33,IF($Q$33=Lists!$I$19,AK35,IF($Q$33=Lists!$I$20,(INT((AK32-1)/3)+1)&"кв"&AK33&"г",IF(OR($Q$33=Lists!$I$21,$Q$33="",$Q$33=0),AK31&" год",IF($Q$33=Lists!$I$22,YEAR(AK35)&"г.","")))))) -> 11 год | AL37: =IF(AL35="","",IF(OR($Q$33=Lists!$I$17,$Q$33=Lists!$I$18),COUNTIFS($Z32:AL32,MONTH(AL35),$Z33:AL33,YEAR(AL35)-2000)&IF($Q$33=Lists!$I$17,"нд-","дк-")&IF(AL32=1,"янв",IF(AL32=2,"фев",IF(AL32=3,"мар",IF(AL32=4,"апр",IF(AL32=5,"май",IF(AL32=6,"июн",IF(AL32=7,"июл",IF(AL32=8,"авг",IF(AL32=9,"сен",IF(AL32=10,"окт",IF(AL32=11,"ноя","дек")))))))))))&AL33,IF($Q$33=Lists!$I$19,AL35,IF($Q$33=Lists!$I$20,(INT((AL32-1)/3)+1)&"кв"&AL33&"г",IF(OR($Q$33=Lists!$I$21,$Q$33="",$Q$33=0),AL31&" год",IF($Q$33=Lists!$I$22,YEAR(AL35)&"г.","")))))) -> 12 год | AM37: =IF(AM35="","",IF(OR($Q$33=Lists!$I$17,$Q$33=Lists!$I$18),COUNTIFS($Z32:AM32,MONTH(AM35),$Z33:AM33,YEAR(AM35)-2000)&IF($Q$33=Lists!$I$17,"нд-","дк-")&IF(AM32=1,"янв",IF(AM32=2,"фев",IF(AM32=3,"мар",IF(AM32=4,"апр",IF(AM32=5,"май",IF(AM32=6,"июн",IF(AM32=7,"июл",IF(AM32=8,"авг",IF(AM32=9,"сен",IF(AM32=10,"окт",IF(AM32=11,"ноя","дек")))))))))))&AM33,IF($Q$33=Lists!$I$19,AM35,IF($Q$33=Lists!$I$20,(INT((AM32-1)/3)+1)&"кв"&AM33&"г",IF(OR($Q$33=Lists!$I$21,$Q$33="",$Q$33=0),AM31&" год",IF($Q$33=Lists!$I$22,YEAR(AM35)&"г.","")))))) -> 13 год | AN37: =IF(AN35="","",IF(OR($Q$33=Lists!$I$17,$Q$33=Lists!$I$18),COUNTIFS($Z32:AN32,MONTH(AN35),$Z33:AN33,YEAR(AN35)-2000)&IF($Q$33=Lists!$I$17,"нд-","дк-")&IF(AN32=1,"янв",IF(AN32=2,"фев",IF(AN32=3,"мар",IF(AN32=4,"апр",IF(AN32=5,"май",IF(AN32=6,"июн",IF(AN32=7,"июл",IF(AN32=8,"авг",IF(AN32=9,"сен",IF(AN32=10,"окт",IF(AN32=11,"ноя","дек")))))))))))&AN33,IF($Q$33=Lists!$I$19,AN35,IF($Q$33=Lists!$I$20,(INT((AN32-1)/3)+1)&"кв"&AN33&"г",IF(OR($Q$33=Lists!$I$21,$Q$33="",$Q$33=0),AN31&" год",IF($Q$33=Lists!$I$22,YEAR(AN35)&"г.","")))))) -> 14 год | AO37: =IF(AO35="","",IF(OR($Q$33=Lists!$I$17,$Q$33=Lists!$I$18),COUNTIFS($Z32:AO32,MONTH(AO35),$Z33:AO33,YEAR(AO35)-2000)&IF($Q$33=Lists!$I$17,"нд-","дк-")&IF(AO32=1,"янв",IF(AO32=2,"фев",IF(AO32=3,"мар",IF(AO32=4,"апр",IF(AO32=5,"май",IF(AO32=6,"июн",IF(AO32=7,"июл",IF(AO32=8,"авг",IF(AO32=9,"сен",IF(AO32=10,"окт",IF(AO32=11,"ноя","дек")))))))))))&AO33,IF($Q$33=Lists!$I$19,AO35,IF($Q$33=Lists!$I$20,(INT((AO32-1)/3)+1)&"кв"&AO33&"г",IF(OR($Q$33=Lists!$I$21,$Q$33="",$Q$33=0),AO31&" год",IF($Q$33=Lists!$I$22,YEAR(AO35)&"г.","")))))) -> 15 год | AP37: =IF(AP35="","",IF(OR($Q$33=Lists!$I$17,$Q$33=Lists!$I$18),COUNTIFS($Z32:AP32,MONTH(AP35),$Z33:AP33,YEAR(AP35)-2000)&IF($Q$33=Lists!$I$17,"нд-","дк-")&IF(AP32=1,"янв",IF(AP32=2,"фев",IF(AP32=3,"мар",IF(AP32=4,"апр",IF(AP32=5,"май",IF(AP32=6,"июн",IF(AP32=7,"июл",IF(AP32=8,"авг",IF(AP32=9,"сен",IF(AP32=10,"окт",IF(AP32=11,"ноя","дек")))))))))))&AP33,IF($Q$33=Lists!$I$19,AP35,IF($Q$33=Lists!$I$20,(INT((AP32-1)/3)+1)&"кв"&AP33&"г",IF(OR($Q$33=Lists!$I$21,$Q$33="",$Q$33=0),AP31&" год",IF($Q$33=Lists!$I$22,YEAR(AP35)&"г.","")))))) ->  | AQ37: =IF(AQ35="","",IF(OR($Q$33=Lists!$I$17,$Q$33=Lists!$I$18),COUNTIFS($Z32:AQ32,MONTH(AQ35),$Z33:AQ33,YEAR(AQ35)-2000)&IF($Q$33=Lists!$I$17,"нд-","дк-")&IF(AQ32=1,"янв",IF(AQ32=2,"фев",IF(AQ32=3,"мар",IF(AQ32=4,"апр",IF(AQ32=5,"май",IF(AQ32=6,"июн",IF(AQ32=7,"июл",IF(AQ32=8,"авг",IF(AQ32=9,"сен",IF(AQ32=10,"окт",IF(AQ32=11,"ноя","дек")))))))))))&AQ33,IF($Q$33=Lists!$I$19,AQ35,IF($Q$33=Lists!$I$20,(INT((AQ32-1)/3)+1)&"кв"&AQ33&"г",IF(OR($Q$33=Lists!$I$21,$Q$33="",$Q$33=0),AQ31&" год",IF($Q$33=Lists!$I$22,YEAR(AQ35)&"г.","")))))) ->  | AR37: =IF(AR35="","",IF(OR($Q$33=Lists!$I$17,$Q$33=Lists!$I$18),COUNTIFS($Z32:AR32,MONTH(AR35),$Z33:AR33,YEAR(AR35)-2000)&IF($Q$33=Lists!$I$17,"нд-","дк-")&IF(AR32=1,"янв",IF(AR32=2,"фев",IF(AR32=3,"мар",IF(AR32=4,"апр",IF(AR32=5,"май",IF(AR32=6,"июн",IF(AR32=7,"июл",IF(AR32=8,"авг",IF(AR32=9,"сен",IF(AR32=10,"окт",IF(AR32=11,"ноя","дек")))))))))))&AR33,IF($Q$33=Lists!$I$19,AR35,IF($Q$33=Lists!$I$20,(INT((AR32-1)/3)+1)&"кв"&AR33&"г",IF(OR($Q$33=Lists!$I$21,$Q$33="",$Q$33=0),AR31&" год",IF($Q$33=Lists!$I$22,YEAR(AR35)&"г.","")))))) ->  | AS37: =IF(AS35="","",IF(OR($Q$33=Lists!$I$17,$Q$33=Lists!$I$18),COUNTIFS($Z32:AS32,MONTH(AS35),$Z33:AS33,YEAR(AS35)-2000)&IF($Q$33=Lists!$I$17,"нд-","дк-")&IF(AS32=1,"янв",IF(AS32=2,"фев",IF(AS32=3,"мар",IF(AS32=4,"апр",IF(AS32=5,"май",IF(AS32=6,"июн",IF(AS32=7,"июл",IF(AS32=8,"авг",IF(AS32=9,"сен",IF(AS32=10,"окт",IF(AS32=11,"ноя","дек")))))))))))&AS33,IF($Q$33=Lists!$I$19,AS35,IF($Q$33=Lists!$I$20,(INT((AS32-1)/3)+1)&"кв"&AS33&"г",IF(OR($Q$33=Lists!$I$21,$Q$33="",$Q$33=0),AS31&" год",IF($Q$33=Lists!$I$22,YEAR(AS35)&"г.","")))))) ->  | AT37: =IF(AT35="","",IF(OR($Q$33=Lists!$I$17,$Q$33=Lists!$I$18),COUNTIFS($Z32:AT32,MONTH(AT35),$Z33:AT33,YEAR(AT35)-2000)&IF($Q$33=Lists!$I$17,"нд-","дк-")&IF(AT32=1,"янв",IF(AT32=2,"фев",IF(AT32=3,"мар",IF(AT32=4,"апр",IF(AT32=5,"май",IF(AT32=6,"июн",IF(AT32=7,"июл",IF(AT32=8,"авг",IF(AT32=9,"сен",IF(AT32=10,"окт",IF(AT32=11,"ноя","дек")))))))))))&AT33,IF($Q$33=Lists!$I$19,AT35,IF($Q$33=Lists!$I$20,(INT((AT32-1)/3)+1)&"кв"&AT33&"г",IF(OR($Q$33=Lists!$I$21,$Q$33="",$Q$33=0),AT31&" год",IF($Q$33=Lists!$I$22,YEAR(AT35)&"г.","")))))) ->  | AU37: =IF(AU35="","",IF(OR($Q$33=Lists!$I$17,$Q$33=Lists!$I$18),COUNTIFS($Z32:AU32,MONTH(AU35),$Z33:AU33,YEAR(AU35)-2000)&IF($Q$33=Lists!$I$17,"нд-","дк-")&IF(AU32=1,"янв",IF(AU32=2,"фев",IF(AU32=3,"мар",IF(AU32=4,"апр",IF(AU32=5,"май",IF(AU32=6,"июн",IF(AU32=7,"июл",IF(AU32=8,"авг",IF(AU32=9,"сен",IF(AU32=10,"окт",IF(AU32=11,"ноя","дек")))))))))))&AU33,IF($Q$33=Lists!$I$19,AU35,IF($Q$33=Lists!$I$20,(INT((AU32-1)/3)+1)&"кв"&AU33&"г",IF(OR($Q$33=Lists!$I$21,$Q$33="",$Q$33=0),AU31&" год",IF($Q$33=Lists!$I$22,YEAR(AU35)&"г.","")))))) ->  | AV37: =IF(AV35="","",IF(OR($Q$33=Lists!$I$17,$Q$33=Lists!$I$18),COUNTIFS($Z32:AV32,MONTH(AV35),$Z33:AV33,YEAR(AV35)-2000)&IF($Q$33=Lists!$I$17,"нд-","дк-")&IF(AV32=1,"янв",IF(AV32=2,"фев",IF(AV32=3,"мар",IF(AV32=4,"апр",IF(AV32=5,"май",IF(AV32=6,"июн",IF(AV32=7,"июл",IF(AV32=8,"авг",IF(AV32=9,"сен",IF(AV32=10,"окт",IF(AV32=11,"ноя","дек")))))))))))&AV33,IF($Q$33=Lists!$I$19,AV35,IF($Q$33=Lists!$I$20,(INT((AV32-1)/3)+1)&"кв"&AV33&"г",IF(OR($Q$33=Lists!$I$21,$Q$33="",$Q$33=0),AV31&" год",IF($Q$33=Lists!$I$22,YEAR(AV35)&"г.","")))))) ->  | AW37: =IF(AW35="","",IF(OR($Q$33=Lists!$I$17,$Q$33=Lists!$I$18),COUNTIFS($Z32:AW32,MONTH(AW35),$Z33:AW33,YEAR(AW35)-2000)&IF($Q$33=Lists!$I$17,"нд-","дк-")&IF(AW32=1,"янв",IF(AW32=2,"фев",IF(AW32=3,"мар",IF(AW32=4,"апр",IF(AW32=5,"май",IF(AW32=6,"июн",IF(AW32=7,"июл",IF(AW32=8,"авг",IF(AW32=9,"сен",IF(AW32=10,"окт",IF(AW32=11,"ноя","дек")))))))))))&AW33,IF($Q$33=Lists!$I$19,AW35,IF($Q$33=Lists!$I$20,(INT((AW32-1)/3)+1)&"кв"&AW33&"г",IF(OR($Q$33=Lists!$I$21,$Q$33="",$Q$33=0),AW31&" год",IF($Q$33=Lists!$I$22,YEAR(AW35)&"г.","")))))) ->  | AX37: =IF(AX35="","",IF(OR($Q$33=Lists!$I$17,$Q$33=Lists!$I$18),COUNTIFS($Z32:AX32,MONTH(AX35),$Z33:AX33,YEAR(AX35)-2000)&IF($Q$33=Lists!$I$17,"нд-","дк-")&IF(AX32=1,"янв",IF(AX32=2,"фев",IF(AX32=3,"мар",IF(AX32=4,"апр",IF(AX32=5,"май",IF(AX32=6,"июн",IF(AX32=7,"июл",IF(AX32=8,"авг",IF(AX32=9,"сен",IF(AX32=10,"окт",IF(AX32=11,"ноя","дек")))))))))))&AX33,IF($Q$33=Lists!$I$19,AX35,IF($Q$33=Lists!$I$20,(INT((AX32-1)/3)+1)&"кв"&AX33&"г",IF(OR($Q$33=Lists!$I$21,$Q$33="",$Q$33=0),AX31&" год",IF($Q$33=Lists!$I$22,YEAR(AX35)&"г.","")))))) ->  | AY37: =IF(AY35="","",IF(OR($Q$33=Lists!$I$17,$Q$33=Lists!$I$18),COUNTIFS($Z32:AY32,MONTH(AY35),$Z33:AY33,YEAR(AY35)-2000)&IF($Q$33=Lists!$I$17,"нд-","дк-")&IF(AY32=1,"янв",IF(AY32=2,"фев",IF(AY32=3,"мар",IF(AY32=4,"апр",IF(AY32=5,"май",IF(AY32=6,"июн",IF(AY32=7,"июл",IF(AY32=8,"авг",IF(AY32=9,"сен",IF(AY32=10,"окт",IF(AY32=11,"ноя","дек")))))))))))&AY33,IF($Q$33=Lists!$I$19,AY35,IF($Q$33=Lists!$I$20,(INT((AY32-1)/3)+1)&"кв"&AY33&"г",IF(OR($Q$33=Lists!$I$21,$Q$33="",$Q$33=0),AY31&" год",IF($Q$33=Lists!$I$22,YEAR(AY35)&"г.","")))))) ->  | AZ37: =IF(AZ35="","",IF(OR($Q$33=Lists!$I$17,$Q$33=Lists!$I$18),COUNTIFS($Z32:AZ32,MONTH(AZ35),$Z33:AZ33,YEAR(AZ35)-2000)&IF($Q$33=Lists!$I$17,"нд-","дк-")&IF(AZ32=1,"янв",IF(AZ32=2,"фев",IF(AZ32=3,"мар",IF(AZ32=4,"апр",IF(AZ32=5,"май",IF(AZ32=6,"июн",IF(AZ32=7,"июл",IF(AZ32=8,"авг",IF(AZ32=9,"сен",IF(AZ32=10,"окт",IF(AZ32=11,"ноя","дек")))))))))))&AZ33,IF($Q$33=Lists!$I$19,AZ35,IF($Q$33=Lists!$I$20,(INT((AZ32-1)/3)+1)&"кв"&AZ33&"г",IF(OR($Q$33=Lists!$I$21,$Q$33="",$Q$33=0),AZ31&" год",IF($Q$33=Lists!$I$22,YEAR(AZ35)&"г.","")))))) ->  | BA37: =IF(BA35="","",IF(OR($Q$33=Lists!$I$17,$Q$33=Lists!$I$18),COUNTIFS($Z32:BA32,MONTH(BA35),$Z33:BA33,YEAR(BA35)-2000)&IF($Q$33=Lists!$I$17,"нд-","дк-")&IF(BA32=1,"янв",IF(BA32=2,"фев",IF(BA32=3,"мар",IF(BA32=4,"апр",IF(BA32=5,"май",IF(BA32=6,"июн",IF(BA32=7,"июл",IF(BA32=8,"авг",IF(BA32=9,"сен",IF(BA32=10,"окт",IF(BA32=11,"ноя","дек")))))))))))&BA33,IF($Q$33=Lists!$I$19,BA35,IF($Q$33=Lists!$I$20,(INT((BA32-1)/3)+1)&"кв"&BA33&"г",IF(OR($Q$33=Lists!$I$21,$Q$33="",$Q$33=0),BA31&" год",IF($Q$33=Lists!$I$22,YEAR(BA35)&"г.","")))))) ->  | BB37: =IF(BB35="","",IF(OR($Q$33=Lists!$I$17,$Q$33=Lists!$I$18),COUNTIFS($Z32:BB32,MONTH(BB35),$Z33:BB33,YEAR(BB35)-2000)&IF($Q$33=Lists!$I$17,"нд-","дк-")&IF(BB32=1,"янв",IF(BB32=2,"фев",IF(BB32=3,"мар",IF(BB32=4,"апр",IF(BB32=5,"май",IF(BB32=6,"июн",IF(BB32=7,"июл",IF(BB32=8,"авг",IF(BB32=9,"сен",IF(BB32=10,"окт",IF(BB32=11,"ноя","дек")))))))))))&BB33,IF($Q$33=Lists!$I$19,BB35,IF($Q$33=Lists!$I$20,(INT((BB32-1)/3)+1)&"кв"&BB33&"г",IF(OR($Q$33=Lists!$I$21,$Q$33="",$Q$33=0),BB31&" год",IF($Q$33=Lists!$I$22,YEAR(BB35)&"г.","")))))) ->  | BC37: =IF(BC35="","",IF(OR($Q$33=Lists!$I$17,$Q$33=Lists!$I$18),COUNTIFS($Z32:BC32,MONTH(BC35),$Z33:BC33,YEAR(BC35)-2000)&IF($Q$33=Lists!$I$17,"нд-","дк-")&IF(BC32=1,"янв",IF(BC32=2,"фев",IF(BC32=3,"мар",IF(BC32=4,"апр",IF(BC32=5,"май",IF(BC32=6,"июн",IF(BC32=7,"июл",IF(BC32=8,"авг",IF(BC32=9,"сен",IF(BC32=10,"окт",IF(BC32=11,"ноя","дек")))))))))))&BC33,IF($Q$33=Lists!$I$19,BC35,IF($Q$33=Lists!$I$20,(INT((BC32-1)/3)+1)&"кв"&BC33&"г",IF(OR($Q$33=Lists!$I$21,$Q$33="",$Q$33=0),BC31&" год",IF($Q$33=Lists!$I$22,YEAR(BC35)&"г.","")))))) ->  | BD37: =IF(BD35="","",IF(OR($Q$33=Lists!$I$17,$Q$33=Lists!$I$18),COUNTIFS($Z32:BD32,MONTH(BD35),$Z33:BD33,YEAR(BD35)-2000)&IF($Q$33=Lists!$I$17,"нд-","дк-")&IF(BD32=1,"янв",IF(BD32=2,"фев",IF(BD32=3,"мар",IF(BD32=4,"апр",IF(BD32=5,"май",IF(BD32=6,"июн",IF(BD32=7,"июл",IF(BD32=8,"авг",IF(BD32=9,"сен",IF(BD32=10,"окт",IF(BD32=11,"ноя","дек")))))))))))&BD33,IF($Q$33=Lists!$I$19,BD35,IF($Q$33=Lists!$I$20,(INT((BD32-1)/3)+1)&"кв"&BD33&"г",IF(OR($Q$33=Lists!$I$21,$Q$33="",$Q$33=0),BD31&" год",IF($Q$33=Lists!$I$22,YEAR(BD35)&"г.","")))))) ->  | BE37: =IF(BE35="","",IF(OR($Q$33=Lists!$I$17,$Q$33=Lists!$I$18),COUNTIFS($Z32:BE32,MONTH(BE35),$Z33:BE33,YEAR(BE35)-2000)&IF($Q$33=Lists!$I$17,"нд-","дк-")&IF(BE32=1,"янв",IF(BE32=2,"фев",IF(BE32=3,"мар",IF(BE32=4,"апр",IF(BE32=5,"май",IF(BE32=6,"июн",IF(BE32=7,"июл",IF(BE32=8,"авг",IF(BE32=9,"сен",IF(BE32=10,"окт",IF(BE32=11,"ноя","дек")))))))))))&BE33,IF($Q$33=Lists!$I$19,BE35,IF($Q$33=Lists!$I$20,(INT((BE32-1)/3)+1)&"кв"&BE33&"г",IF(OR($Q$33=Lists!$I$21,$Q$33="",$Q$33=0),BE31&" год",IF($Q$33=Lists!$I$22,YEAR(BE35)&"г.","")))))) ->  | BF37: =IF(BF35="","",IF(OR($Q$33=Lists!$I$17,$Q$33=Lists!$I$18),COUNTIFS($Z32:BF32,MONTH(BF35),$Z33:BF33,YEAR(BF35)-2000)&IF($Q$33=Lists!$I$17,"нд-","дк-")&IF(BF32=1,"янв",IF(BF32=2,"фев",IF(BF32=3,"мар",IF(BF32=4,"апр",IF(BF32=5,"май",IF(BF32=6,"июн",IF(BF32=7,"июл",IF(BF32=8,"авг",IF(BF32=9,"сен",IF(BF32=10,"окт",IF(BF32=11,"ноя","дек")))))))))))&BF33,IF($Q$33=Lists!$I$19,BF35,IF($Q$33=Lists!$I$20,(INT((BF32-1)/3)+1)&"кв"&BF33&"г",IF(OR($Q$33=Lists!$I$21,$Q$33="",$Q$33=0),BF31&" год",IF($Q$33=Lists!$I$22,YEAR(BF35)&"г.","")))))) ->  | BG37: =IF(BG35="","",IF(OR($Q$33=Lists!$I$17,$Q$33=Lists!$I$18),COUNTIFS($Z32:BG32,MONTH(BG35),$Z33:BG33,YEAR(BG35)-2000)&IF($Q$33=Lists!$I$17,"нд-","дк-")&IF(BG32=1,"янв",IF(BG32=2,"фев",IF(BG32=3,"мар",IF(BG32=4,"апр",IF(BG32=5,"май",IF(BG32=6,"июн",IF(BG32=7,"июл",IF(BG32=8,"авг",IF(BG32=9,"сен",IF(BG32=10,"окт",IF(BG32=11,"ноя","дек")))))))))))&BG33,IF($Q$33=Lists!$I$19,BG35,IF($Q$33=Lists!$I$20,(INT((BG32-1)/3)+1)&"кв"&BG33&"г",IF(OR($Q$33=Lists!$I$21,$Q$33="",$Q$33=0),BG31&" год",IF($Q$33=Lists!$I$22,YEAR(BG35)&"г.","")))))) ->  | BH37: =IF(BH35="","",IF(OR($Q$33=Lists!$I$17,$Q$33=Lists!$I$18),COUNTIFS($Z32:BH32,MONTH(BH35),$Z33:BH33,YEAR(BH35)-2000)&IF($Q$33=Lists!$I$17,"нд-","дк-")&IF(BH32=1,"янв",IF(BH32=2,"фев",IF(BH32=3,"мар",IF(BH32=4,"апр",IF(BH32=5,"май",IF(BH32=6,"июн",IF(BH32=7,"июл",IF(BH32=8,"авг",IF(BH32=9,"сен",IF(BH32=10,"окт",IF(BH32=11,"ноя","дек")))))))))))&BH33,IF($Q$33=Lists!$I$19,BH35,IF($Q$33=Lists!$I$20,(INT((BH32-1)/3)+1)&"кв"&BH33&"г",IF(OR($Q$33=Lists!$I$21,$Q$33="",$Q$33=0),BH31&" год",IF($Q$33=Lists!$I$22,YEAR(BH35)&"г.","")))))) ->  | BI37: =IF(BI35="","",IF(OR($Q$33=Lists!$I$17,$Q$33=Lists!$I$18),COUNTIFS($Z32:BI32,MONTH(BI35),$Z33:BI33,YEAR(BI35)-2000)&IF($Q$33=Lists!$I$17,"нд-","дк-")&IF(BI32=1,"янв",IF(BI32=2,"фев",IF(BI32=3,"мар",IF(BI32=4,"апр",IF(BI32=5,"май",IF(BI32=6,"июн",IF(BI32=7,"июл",IF(BI32=8,"авг",IF(BI32=9,"сен",IF(BI32=10,"окт",IF(BI32=11,"ноя","дек")))))))))))&BI33,IF($Q$33=Lists!$I$19,BI35,IF($Q$33=Lists!$I$20,(INT((BI32-1)/3)+1)&"кв"&BI33&"г",IF(OR($Q$33=Lists!$I$21,$Q$33="",$Q$33=0),BI31&" год",IF($Q$33=Lists!$I$22,YEAR(BI35)&"г.","")))))) ->  | BJ37: =IF(BJ35="","",IF(OR($Q$33=Lists!$I$17,$Q$33=Lists!$I$18),COUNTIFS($Z32:BJ32,MONTH(BJ35),$Z33:BJ33,YEAR(BJ35)-2000)&IF($Q$33=Lists!$I$17,"нд-","дк-")&IF(BJ32=1,"янв",IF(BJ32=2,"фев",IF(BJ32=3,"мар",IF(BJ32=4,"апр",IF(BJ32=5,"май",IF(BJ32=6,"июн",IF(BJ32=7,"июл",IF(BJ32=8,"авг",IF(BJ32=9,"сен",IF(BJ32=10,"окт",IF(BJ32=11,"ноя","дек")))))))))))&BJ33,IF($Q$33=Lists!$I$19,BJ35,IF($Q$33=Lists!$I$20,(INT((BJ32-1)/3)+1)&"кв"&BJ33&"г",IF(OR($Q$33=Lists!$I$21,$Q$33="",$Q$33=0),BJ31&" год",IF($Q$33=Lists!$I$22,YEAR(BJ35)&"г.","")))))) ->  | BK37: =IF(BK35="","",IF(OR($Q$33=Lists!$I$17,$Q$33=Lists!$I$18),COUNTIFS($Z32:BK32,MONTH(BK35),$Z33:BK33,YEAR(BK35)-2000)&IF($Q$33=Lists!$I$17,"нд-","дк-")&IF(BK32=1,"янв",IF(BK32=2,"фев",IF(BK32=3,"мар",IF(BK32=4,"апр",IF(BK32=5,"май",IF(BK32=6,"июн",IF(BK32=7,"июл",IF(BK32=8,"авг",IF(BK32=9,"сен",IF(BK32=10,"окт",IF(BK32=11,"ноя","дек")))))))))))&BK33,IF($Q$33=Lists!$I$19,BK35,IF($Q$33=Lists!$I$20,(INT((BK32-1)/3)+1)&"кв"&BK33&"г",IF(OR($Q$33=Lists!$I$21,$Q$33="",$Q$33=0),BK31&" год",IF($Q$33=Lists!$I$22,YEAR(BK35)&"г.","")))))) ->  | BL37: =IF(BL35="","",IF(OR($Q$33=Lists!$I$17,$Q$33=Lists!$I$18),COUNTIFS($Z32:BL32,MONTH(BL35),$Z33:BL33,YEAR(BL35)-2000)&IF($Q$33=Lists!$I$17,"нд-","дк-")&IF(BL32=1,"янв",IF(BL32=2,"фев",IF(BL32=3,"мар",IF(BL32=4,"апр",IF(BL32=5,"май",IF(BL32=6,"июн",IF(BL32=7,"июл",IF(BL32=8,"авг",IF(BL32=9,"сен",IF(BL32=10,"окт",IF(BL32=11,"ноя","дек")))))))))))&BL33,IF($Q$33=Lists!$I$19,BL35,IF($Q$33=Lists!$I$20,(INT((BL32-1)/3)+1)&"кв"&BL33&"г",IF(OR($Q$33=Lists!$I$21,$Q$33="",$Q$33=0),BL31&" год",IF($Q$33=Lists!$I$22,YEAR(BL35)&"г.","")))))) ->  | BM37: =IF(BM35="","",IF(OR($Q$33=Lists!$I$17,$Q$33=Lists!$I$18),COUNTIFS($Z32:BM32,MONTH(BM35),$Z33:BM33,YEAR(BM35)-2000)&IF($Q$33=Lists!$I$17,"нд-","дк-")&IF(BM32=1,"янв",IF(BM32=2,"фев",IF(BM32=3,"мар",IF(BM32=4,"апр",IF(BM32=5,"май",IF(BM32=6,"июн",IF(BM32=7,"июл",IF(BM32=8,"авг",IF(BM32=9,"сен",IF(BM32=10,"окт",IF(BM32=11,"ноя","дек")))))))))))&BM33,IF($Q$33=Lists!$I$19,BM35,IF($Q$33=Lists!$I$20,(INT((BM32-1)/3)+1)&"кв"&BM33&"г",IF(OR($Q$33=Lists!$I$21,$Q$33="",$Q$33=0),BM31&" год",IF($Q$33=Lists!$I$22,YEAR(BM35)&"г.","")))))) ->  | BN37: =IF(BN35="","",IF(OR($Q$33=Lists!$I$17,$Q$33=Lists!$I$18),COUNTIFS($Z32:BN32,MONTH(BN35),$Z33:BN33,YEAR(BN35)-2000)&IF($Q$33=Lists!$I$17,"нд-","дк-")&IF(BN32=1,"янв",IF(BN32=2,"фев",IF(BN32=3,"мар",IF(BN32=4,"апр",IF(BN32=5,"май",IF(BN32=6,"июн",IF(BN32=7,"июл",IF(BN32=8,"авг",IF(BN32=9,"сен",IF(BN32=10,"окт",IF(BN32=11,"ноя","дек")))))))))))&BN33,IF($Q$33=Lists!$I$19,BN35,IF($Q$33=Lists!$I$20,(INT((BN32-1)/3)+1)&"кв"&BN33&"г",IF(OR($Q$33=Lists!$I$21,$Q$33="",$Q$33=0),BN31&" год",IF($Q$33=Lists!$I$22,YEAR(BN35)&"г.","")))))) ->  | BO37: =IF(BO35="","",IF(OR($Q$33=Lists!$I$17,$Q$33=Lists!$I$18),COUNTIFS($Z32:BO32,MONTH(BO35),$Z33:BO33,YEAR(BO35)-2000)&IF($Q$33=Lists!$I$17,"нд-","дк-")&IF(BO32=1,"янв",IF(BO32=2,"фев",IF(BO32=3,"мар",IF(BO32=4,"апр",IF(BO32=5,"май",IF(BO32=6,"июн",IF(BO32=7,"июл",IF(BO32=8,"авг",IF(BO32=9,"сен",IF(BO32=10,"окт",IF(BO32=11,"ноя","дек")))))))))))&BO33,IF($Q$33=Lists!$I$19,BO35,IF($Q$33=Lists!$I$20,(INT((BO32-1)/3)+1)&"кв"&BO33&"г",IF(OR($Q$33=Lists!$I$21,$Q$33="",$Q$33=0),BO31&" год",IF($Q$33=Lists!$I$22,YEAR(BO35)&"г.","")))))) ->  | BP37: =IF(BP35="","",IF(OR($Q$33=Lists!$I$17,$Q$33=Lists!$I$18),COUNTIFS($Z32:BP32,MONTH(BP35),$Z33:BP33,YEAR(BP35)-2000)&IF($Q$33=Lists!$I$17,"нд-","дк-")&IF(BP32=1,"янв",IF(BP32=2,"фев",IF(BP32=3,"мар",IF(BP32=4,"апр",IF(BP32=5,"май",IF(BP32=6,"июн",IF(BP32=7,"июл",IF(BP32=8,"авг",IF(BP32=9,"сен",IF(BP32=10,"окт",IF(BP32=11,"ноя","дек")))))))))))&BP33,IF($Q$33=Lists!$I$19,BP35,IF($Q$33=Lists!$I$20,(INT((BP32-1)/3)+1)&"кв"&BP33&"г",IF(OR($Q$33=Lists!$I$21,$Q$33="",$Q$33=0),BP31&" год",IF($Q$33=Lists!$I$22,YEAR(BP35)&"г.","")))))) ->  | BQ37: =IF(BQ35="","",IF(OR($Q$33=Lists!$I$17,$Q$33=Lists!$I$18),COUNTIFS($Z32:BQ32,MONTH(BQ35),$Z33:BQ33,YEAR(BQ35)-2000)&IF($Q$33=Lists!$I$17,"нд-","дк-")&IF(BQ32=1,"янв",IF(BQ32=2,"фев",IF(BQ32=3,"мар",IF(BQ32=4,"апр",IF(BQ32=5,"май",IF(BQ32=6,"июн",IF(BQ32=7,"июл",IF(BQ32=8,"авг",IF(BQ32=9,"сен",IF(BQ32=10,"окт",IF(BQ32=11,"ноя","дек")))))))))))&BQ33,IF($Q$33=Lists!$I$19,BQ35,IF($Q$33=Lists!$I$20,(INT((BQ32-1)/3)+1)&"кв"&BQ33&"г",IF(OR($Q$33=Lists!$I$21,$Q$33="",$Q$33=0),BQ31&" год",IF($Q$33=Lists!$I$22,YEAR(BQ35)&"г.","")))))) ->  | BR37: =IF(BR35="","",IF(OR($Q$33=Lists!$I$17,$Q$33=Lists!$I$18),COUNTIFS($Z32:BR32,MONTH(BR35),$Z33:BR33,YEAR(BR35)-2000)&IF($Q$33=Lists!$I$17,"нд-","дк-")&IF(BR32=1,"янв",IF(BR32=2,"фев",IF(BR32=3,"мар",IF(BR32=4,"апр",IF(BR32=5,"май",IF(BR32=6,"июн",IF(BR32=7,"июл",IF(BR32=8,"авг",IF(BR32=9,"сен",IF(BR32=10,"окт",IF(BR32=11,"ноя","дек")))))))))))&BR33,IF($Q$33=Lists!$I$19,BR35,IF($Q$33=Lists!$I$20,(INT((BR32-1)/3)+1)&"кв"&BR33&"г",IF(OR($Q$33=Lists!$I$21,$Q$33="",$Q$33=0),BR31&" год",IF($Q$33=Lists!$I$22,YEAR(BR35)&"г.","")))))) ->  | BS37: =IF(BS35="","",IF(OR($Q$33=Lists!$I$17,$Q$33=Lists!$I$18),COUNTIFS($Z32:BS32,MONTH(BS35),$Z33:BS33,YEAR(BS35)-2000)&IF($Q$33=Lists!$I$17,"нд-","дк-")&IF(BS32=1,"янв",IF(BS32=2,"фев",IF(BS32=3,"мар",IF(BS32=4,"апр",IF(BS32=5,"май",IF(BS32=6,"июн",IF(BS32=7,"июл",IF(BS32=8,"авг",IF(BS32=9,"сен",IF(BS32=10,"окт",IF(BS32=11,"ноя","дек")))))))))))&BS33,IF($Q$33=Lists!$I$19,BS35,IF($Q$33=Lists!$I$20,(INT((BS32-1)/3)+1)&"кв"&BS33&"г",IF(OR($Q$33=Lists!$I$21,$Q$33="",$Q$33=0),BS31&" год",IF($Q$33=Lists!$I$22,YEAR(BS35)&"г.","")))))) ->  | BT37: =IF(BT35="","",IF(OR($Q$33=Lists!$I$17,$Q$33=Lists!$I$18),COUNTIFS($Z32:BT32,MONTH(BT35),$Z33:BT33,YEAR(BT35)-2000)&IF($Q$33=Lists!$I$17,"нд-","дк-")&IF(BT32=1,"янв",IF(BT32=2,"фев",IF(BT32=3,"мар",IF(BT32=4,"апр",IF(BT32=5,"май",IF(BT32=6,"июн",IF(BT32=7,"июл",IF(BT32=8,"авг",IF(BT32=9,"сен",IF(BT32=10,"окт",IF(BT32=11,"ноя","дек")))))))))))&BT33,IF($Q$33=Lists!$I$19,BT35,IF($Q$33=Lists!$I$20,(INT((BT32-1)/3)+1)&"кв"&BT33&"г",IF(OR($Q$33=Lists!$I$21,$Q$33="",$Q$33=0),BT31&" год",IF($Q$33=Lists!$I$22,YEAR(BT35)&"г.","")))))) ->  | BU37: =IF(BU35="","",IF(OR($Q$33=Lists!$I$17,$Q$33=Lists!$I$18),COUNTIFS($Z32:BU32,MONTH(BU35),$Z33:BU33,YEAR(BU35)-2000)&IF($Q$33=Lists!$I$17,"нд-","дк-")&IF(BU32=1,"янв",IF(BU32=2,"фев",IF(BU32=3,"мар",IF(BU32=4,"апр",IF(BU32=5,"май",IF(BU32=6,"июн",IF(BU32=7,"июл",IF(BU32=8,"авг",IF(BU32=9,"сен",IF(BU32=10,"окт",IF(BU32=11,"ноя","дек")))))))))))&BU33,IF($Q$33=Lists!$I$19,BU35,IF($Q$33=Lists!$I$20,(INT((BU32-1)/3)+1)&"кв"&BU33&"г",IF(OR($Q$33=Lists!$I$21,$Q$33="",$Q$33=0),BU31&" год",IF($Q$33=Lists!$I$22,YEAR(BU35)&"г.","")))))) ->  | BV37: =IF(BV35="","",IF(OR($Q$33=Lists!$I$17,$Q$33=Lists!$I$18),COUNTIFS($Z32:BV32,MONTH(BV35),$Z33:BV33,YEAR(BV35)-2000)&IF($Q$33=Lists!$I$17,"нд-","дк-")&IF(BV32=1,"янв",IF(BV32=2,"фев",IF(BV32=3,"мар",IF(BV32=4,"апр",IF(BV32=5,"май",IF(BV32=6,"июн",IF(BV32=7,"июл",IF(BV32=8,"авг",IF(BV32=9,"сен",IF(BV32=10,"окт",IF(BV32=11,"ноя","дек")))))))))))&BV33,IF($Q$33=Lists!$I$19,BV35,IF($Q$33=Lists!$I$20,(INT((BV32-1)/3)+1)&"кв"&BV33&"г",IF(OR($Q$33=Lists!$I$21,$Q$33="",$Q$33=0),BV31&" год",IF($Q$33=Lists!$I$22,YEAR(BV35)&"г.","")))))) ->  | BW37: =IF(BW35="","",IF(OR($Q$33=Lists!$I$17,$Q$33=Lists!$I$18),COUNTIFS($Z32:BW32,MONTH(BW35),$Z33:BW33,YEAR(BW35)-2000)&IF($Q$33=Lists!$I$17,"нд-","дк-")&IF(BW32=1,"янв",IF(BW32=2,"фев",IF(BW32=3,"мар",IF(BW32=4,"апр",IF(BW32=5,"май",IF(BW32=6,"июн",IF(BW32=7,"июл",IF(BW32=8,"авг",IF(BW32=9,"сен",IF(BW32=10,"окт",IF(BW32=11,"ноя","дек")))))))))))&BW33,IF($Q$33=Lists!$I$19,BW35,IF($Q$33=Lists!$I$20,(INT((BW32-1)/3)+1)&"кв"&BW33&"г",IF(OR($Q$33=Lists!$I$21,$Q$33="",$Q$33=0),BW31&" год",IF($Q$33=Lists!$I$22,YEAR(BW35)&"г.","")))))) ->  | BX37: =IF(BX35="","",IF(OR($Q$33=Lists!$I$17,$Q$33=Lists!$I$18),COUNTIFS($Z32:BX32,MONTH(BX35),$Z33:BX33,YEAR(BX35)-2000)&IF($Q$33=Lists!$I$17,"нд-","дк-")&IF(BX32=1,"янв",IF(BX32=2,"фев",IF(BX32=3,"мар",IF(BX32=4,"апр",IF(BX32=5,"май",IF(BX32=6,"июн",IF(BX32=7,"июл",IF(BX32=8,"авг",IF(BX32=9,"сен",IF(BX32=10,"окт",IF(BX32=11,"ноя","дек")))))))))))&BX33,IF($Q$33=Lists!$I$19,BX35,IF($Q$33=Lists!$I$20,(INT((BX32-1)/3)+1)&"кв"&BX33&"г",IF(OR($Q$33=Lists!$I$21,$Q$33="",$Q$33=0),BX31&" год",IF($Q$33=Lists!$I$22,YEAR(BX35)&"г.","")))))) ->  | BY37: =IF(BY35="","",IF(OR($Q$33=Lists!$I$17,$Q$33=Lists!$I$18),COUNTIFS($Z32:BY32,MONTH(BY35),$Z33:BY33,YEAR(BY35)-2000)&IF($Q$33=Lists!$I$17,"нд-","дк-")&IF(BY32=1,"янв",IF(BY32=2,"фев",IF(BY32=3,"мар",IF(BY32=4,"апр",IF(BY32=5,"май",IF(BY32=6,"июн",IF(BY32=7,"июл",IF(BY32=8,"авг",IF(BY32=9,"сен",IF(BY32=10,"окт",IF(BY32=11,"ноя","дек")))))))))))&BY33,IF($Q$33=Lists!$I$19,BY35,IF($Q$33=Lists!$I$20,(INT((BY32-1)/3)+1)&"кв"&BY33&"г",IF(OR($Q$33=Lists!$I$21,$Q$33="",$Q$33=0),BY31&" год",IF($Q$33=Lists!$I$22,YEAR(BY35)&"г.","")))))) ->  | BZ37: =IF(BZ35="","",IF(OR($Q$33=Lists!$I$17,$Q$33=Lists!$I$18),COUNTIFS($Z32:BZ32,MONTH(BZ35),$Z33:BZ33,YEAR(BZ35)-2000)&IF($Q$33=Lists!$I$17,"нд-","дк-")&IF(BZ32=1,"янв",IF(BZ32=2,"фев",IF(BZ32=3,"мар",IF(BZ32=4,"апр",IF(BZ32=5,"май",IF(BZ32=6,"июн",IF(BZ32=7,"июл",IF(BZ32=8,"авг",IF(BZ32=9,"сен",IF(BZ32=10,"окт",IF(BZ32=11,"ноя","дек")))))))))))&BZ33,IF($Q$33=Lists!$I$19,BZ35,IF($Q$33=Lists!$I$20,(INT((BZ32-1)/3)+1)&"кв"&BZ33&"г",IF(OR($Q$33=Lists!$I$21,$Q$33="",$Q$33=0),BZ31&" год",IF($Q$33=Lists!$I$22,YEAR(BZ35)&"г.","")))))) ->  | CA37: =IF(CA35="","",IF(OR($Q$33=Lists!$I$17,$Q$33=Lists!$I$18),COUNTIFS($Z32:CA32,MONTH(CA35),$Z33:CA33,YEAR(CA35)-2000)&IF($Q$33=Lists!$I$17,"нд-","дк-")&IF(CA32=1,"янв",IF(CA32=2,"фев",IF(CA32=3,"мар",IF(CA32=4,"апр",IF(CA32=5,"май",IF(CA32=6,"июн",IF(CA32=7,"июл",IF(CA32=8,"авг",IF(CA32=9,"сен",IF(CA32=10,"окт",IF(CA32=11,"ноя","дек")))))))))))&CA33,IF($Q$33=Lists!$I$19,CA35,IF($Q$33=Lists!$I$20,(INT((CA32-1)/3)+1)&"кв"&CA33&"г",IF(OR($Q$33=Lists!$I$21,$Q$33="",$Q$33=0),CA31&" год",IF($Q$33=Lists!$I$22,YEAR(CA35)&"г.","")))))) ->  | CB37: =IF(CB35="","",IF(OR($Q$33=Lists!$I$17,$Q$33=Lists!$I$18),COUNTIFS($Z32:CB32,MONTH(CB35),$Z33:CB33,YEAR(CB35)-2000)&IF($Q$33=Lists!$I$17,"нд-","дк-")&IF(CB32=1,"янв",IF(CB32=2,"фев",IF(CB32=3,"мар",IF(CB32=4,"апр",IF(CB32=5,"май",IF(CB32=6,"июн",IF(CB32=7,"июл",IF(CB32=8,"авг",IF(CB32=9,"сен",IF(CB32=10,"окт",IF(CB32=11,"ноя","дек")))))))))))&CB33,IF($Q$33=Lists!$I$19,CB35,IF($Q$33=Lists!$I$20,(INT((CB32-1)/3)+1)&"кв"&CB33&"г",IF(OR($Q$33=Lists!$I$21,$Q$33="",$Q$33=0),CB31&" год",IF($Q$33=Lists!$I$22,YEAR(CB35)&"г.","")))))) ->  | CC37: =IF(CC35="","",IF(OR($Q$33=Lists!$I$17,$Q$33=Lists!$I$18),COUNTIFS($Z32:CC32,MONTH(CC35),$Z33:CC33,YEAR(CC35)-2000)&IF($Q$33=Lists!$I$17,"нд-","дк-")&IF(CC32=1,"янв",IF(CC32=2,"фев",IF(CC32=3,"мар",IF(CC32=4,"апр",IF(CC32=5,"май",IF(CC32=6,"июн",IF(CC32=7,"июл",IF(CC32=8,"авг",IF(CC32=9,"сен",IF(CC32=10,"окт",IF(CC32=11,"ноя","дек")))))))))))&CC33,IF($Q$33=Lists!$I$19,CC35,IF($Q$33=Lists!$I$20,(INT((CC32-1)/3)+1)&"кв"&CC33&"г",IF(OR($Q$33=Lists!$I$21,$Q$33="",$Q$33=0),CC31&" год",IF($Q$33=Lists!$I$22,YEAR(CC35)&"г.","")))))) ->  | CD37: =IF(CD35="","",IF(OR($Q$33=Lists!$I$17,$Q$33=Lists!$I$18),COUNTIFS($Z32:CD32,MONTH(CD35),$Z33:CD33,YEAR(CD35)-2000)&IF($Q$33=Lists!$I$17,"нд-","дк-")&IF(CD32=1,"янв",IF(CD32=2,"фев",IF(CD32=3,"мар",IF(CD32=4,"апр",IF(CD32=5,"май",IF(CD32=6,"июн",IF(CD32=7,"июл",IF(CD32=8,"авг",IF(CD32=9,"сен",IF(CD32=10,"окт",IF(CD32=11,"ноя","дек")))))))))))&CD33,IF($Q$33=Lists!$I$19,CD35,IF($Q$33=Lists!$I$20,(INT((CD32-1)/3)+1)&"кв"&CD33&"г",IF(OR($Q$33=Lists!$I$21,$Q$33="",$Q$33=0),CD31&" год",IF($Q$33=Lists!$I$22,YEAR(CD35)&"г.","")))))) ->  | CE37: =IF(CE35="","",IF(OR($Q$33=Lists!$I$17,$Q$33=Lists!$I$18),COUNTIFS($Z32:CE32,MONTH(CE35),$Z33:CE33,YEAR(CE35)-2000)&IF($Q$33=Lists!$I$17,"нд-","дк-")&IF(CE32=1,"янв",IF(CE32=2,"фев",IF(CE32=3,"мар",IF(CE32=4,"апр",IF(CE32=5,"май",IF(CE32=6,"июн",IF(CE32=7,"июл",IF(CE32=8,"авг",IF(CE32=9,"сен",IF(CE32=10,"окт",IF(CE32=11,"ноя","дек")))))))))))&CE33,IF($Q$33=Lists!$I$19,CE35,IF($Q$33=Lists!$I$20,(INT((CE32-1)/3)+1)&"кв"&CE33&"г",IF(OR($Q$33=Lists!$I$21,$Q$33="",$Q$33=0),CE31&" год",IF($Q$33=Lists!$I$22,YEAR(CE35)&"г.","")))))) ->  | CF37: =IF(CF35="","",IF(OR($Q$33=Lists!$I$17,$Q$33=Lists!$I$18),COUNTIFS($Z32:CF32,MONTH(CF35),$Z33:CF33,YEAR(CF35)-2000)&IF($Q$33=Lists!$I$17,"нд-","дк-")&IF(CF32=1,"янв",IF(CF32=2,"фев",IF(CF32=3,"мар",IF(CF32=4,"апр",IF(CF32=5,"май",IF(CF32=6,"июн",IF(CF32=7,"июл",IF(CF32=8,"авг",IF(CF32=9,"сен",IF(CF32=10,"окт",IF(CF32=11,"ноя","дек")))))))))))&CF33,IF($Q$33=Lists!$I$19,CF35,IF($Q$33=Lists!$I$20,(INT((CF32-1)/3)+1)&"кв"&CF33&"г",IF(OR($Q$33=Lists!$I$21,$Q$33="",$Q$33=0),CF31&" год",IF($Q$33=Lists!$I$22,YEAR(CF35)&"г.","")))))) ->  | CG37: =IF(CG35="","",IF(OR($Q$33=Lists!$I$17,$Q$33=Lists!$I$18),COUNTIFS($Z32:CG32,MONTH(CG35),$Z33:CG33,YEAR(CG35)-2000)&IF($Q$33=Lists!$I$17,"нд-","дк-")&IF(CG32=1,"янв",IF(CG32=2,"фев",IF(CG32=3,"мар",IF(CG32=4,"апр",IF(CG32=5,"май",IF(CG32=6,"июн",IF(CG32=7,"июл",IF(CG32=8,"авг",IF(CG32=9,"сен",IF(CG32=10,"окт",IF(CG32=11,"ноя","дек")))))))))))&CG33,IF($Q$33=Lists!$I$19,CG35,IF($Q$33=Lists!$I$20,(INT((CG32-1)/3)+1)&"кв"&CG33&"г",IF(OR($Q$33=Lists!$I$21,$Q$33="",$Q$33=0),CG31&" год",IF($Q$33=Lists!$I$22,YEAR(CG35)&"г.","")))))) ->  | CH37: =IF(CH35="","",IF(OR($Q$33=Lists!$I$17,$Q$33=Lists!$I$18),COUNTIFS($Z32:CH32,MONTH(CH35),$Z33:CH33,YEAR(CH35)-2000)&IF($Q$33=Lists!$I$17,"нд-","дк-")&IF(CH32=1,"янв",IF(CH32=2,"фев",IF(CH32=3,"мар",IF(CH32=4,"апр",IF(CH32=5,"май",IF(CH32=6,"июн",IF(CH32=7,"июл",IF(CH32=8,"авг",IF(CH32=9,"сен",IF(CH32=10,"окт",IF(CH32=11,"ноя","дек")))))))))))&CH33,IF($Q$33=Lists!$I$19,CH35,IF($Q$33=Lists!$I$20,(INT((CH32-1)/3)+1)&"кв"&CH33&"г",IF(OR($Q$33=Lists!$I$21,$Q$33="",$Q$33=0),CH31&" год",IF($Q$33=Lists!$I$22,YEAR(CH35)&"г.","")))))) ->  | CI37: =IF(CI35="","",IF(OR($Q$33=Lists!$I$17,$Q$33=Lists!$I$18),COUNTIFS($Z32:CI32,MONTH(CI35),$Z33:CI33,YEAR(CI35)-2000)&IF($Q$33=Lists!$I$17,"нд-","дк-")&IF(CI32=1,"янв",IF(CI32=2,"фев",IF(CI32=3,"мар",IF(CI32=4,"апр",IF(CI32=5,"май",IF(CI32=6,"июн",IF(CI32=7,"июл",IF(CI32=8,"авг",IF(CI32=9,"сен",IF(CI32=10,"окт",IF(CI32=11,"ноя","дек")))))))))))&CI33,IF($Q$33=Lists!$I$19,CI35,IF($Q$33=Lists!$I$20,(INT((CI32-1)/3)+1)&"кв"&CI33&"г",IF(OR($Q$33=Lists!$I$21,$Q$33="",$Q$33=0),CI31&" год",IF($Q$33=Lists!$I$22,YEAR(CI35)&"г.","")))))) ->  | CJ37: =IF(CJ35="","",IF(OR($Q$33=Lists!$I$17,$Q$33=Lists!$I$18),COUNTIFS($Z32:CJ32,MONTH(CJ35),$Z33:CJ33,YEAR(CJ35)-2000)&IF($Q$33=Lists!$I$17,"нд-","дк-")&IF(CJ32=1,"янв",IF(CJ32=2,"фев",IF(CJ32=3,"мар",IF(CJ32=4,"апр",IF(CJ32=5,"май",IF(CJ32=6,"июн",IF(CJ32=7,"июл",IF(CJ32=8,"авг",IF(CJ32=9,"сен",IF(CJ32=10,"окт",IF(CJ32=11,"ноя","дек")))))))))))&CJ33,IF($Q$33=Lists!$I$19,CJ35,IF($Q$33=Lists!$I$20,(INT((CJ32-1)/3)+1)&"кв"&CJ33&"г",IF(OR($Q$33=Lists!$I$21,$Q$33="",$Q$33=0),CJ31&" год",IF($Q$33=Lists!$I$22,YEAR(CJ35)&"г.","")))))) ->  | CK37: =IF(CK35="","",IF(OR($Q$33=Lists!$I$17,$Q$33=Lists!$I$18),COUNTIFS($Z32:CK32,MONTH(CK35),$Z33:CK33,YEAR(CK35)-2000)&IF($Q$33=Lists!$I$17,"нд-","дк-")&IF(CK32=1,"янв",IF(CK32=2,"фев",IF(CK32=3,"мар",IF(CK32=4,"апр",IF(CK32=5,"май",IF(CK32=6,"июн",IF(CK32=7,"июл",IF(CK32=8,"авг",IF(CK32=9,"сен",IF(CK32=10,"окт",IF(CK32=11,"ноя","дек")))))))))))&CK33,IF($Q$33=Lists!$I$19,CK35,IF($Q$33=Lists!$I$20,(INT((CK32-1)/3)+1)&"кв"&CK33&"г",IF(OR($Q$33=Lists!$I$21,$Q$33="",$Q$33=0),CK31&" год",IF($Q$33=Lists!$I$22,YEAR(CK35)&"г.","")))))) ->  | CL37: =IF(CL35="","",IF(OR($Q$33=Lists!$I$17,$Q$33=Lists!$I$18),COUNTIFS($Z32:CL32,MONTH(CL35),$Z33:CL33,YEAR(CL35)-2000)&IF($Q$33=Lists!$I$17,"нд-","дк-")&IF(CL32=1,"янв",IF(CL32=2,"фев",IF(CL32=3,"мар",IF(CL32=4,"апр",IF(CL32=5,"май",IF(CL32=6,"июн",IF(CL32=7,"июл",IF(CL32=8,"авг",IF(CL32=9,"сен",IF(CL32=10,"окт",IF(CL32=11,"ноя","дек")))))))))))&CL33,IF($Q$33=Lists!$I$19,CL35,IF($Q$33=Lists!$I$20,(INT((CL32-1)/3)+1)&"кв"&CL33&"г",IF(OR($Q$33=Lists!$I$21,$Q$33="",$Q$33=0),CL31&" год",IF($Q$33=Lists!$I$22,YEAR(CL35)&"г.","")))))) ->  | CM37: =IF(CM35="","",IF(OR($Q$33=Lists!$I$17,$Q$33=Lists!$I$18),COUNTIFS($Z32:CM32,MONTH(CM35),$Z33:CM33,YEAR(CM35)-2000)&IF($Q$33=Lists!$I$17,"нд-","дк-")&IF(CM32=1,"янв",IF(CM32=2,"фев",IF(CM32=3,"мар",IF(CM32=4,"апр",IF(CM32=5,"май",IF(CM32=6,"июн",IF(CM32=7,"июл",IF(CM32=8,"авг",IF(CM32=9,"сен",IF(CM32=10,"окт",IF(CM32=11,"ноя","дек")))))))))))&CM33,IF($Q$33=Lists!$I$19,CM35,IF($Q$33=Lists!$I$20,(INT((CM32-1)/3)+1)&"кв"&CM33&"г",IF(OR($Q$33=Lists!$I$21,$Q$33="",$Q$33=0),CM31&" год",IF($Q$33=Lists!$I$22,YEAR(CM35)&"г.","")))))) ->  | CN37: =IF(CN35="","",IF(OR($Q$33=Lists!$I$17,$Q$33=Lists!$I$18),COUNTIFS($Z32:CN32,MONTH(CN35),$Z33:CN33,YEAR(CN35)-2000)&IF($Q$33=Lists!$I$17,"нд-","дк-")&IF(CN32=1,"янв",IF(CN32=2,"фев",IF(CN32=3,"мар",IF(CN32=4,"апр",IF(CN32=5,"май",IF(CN32=6,"июн",IF(CN32=7,"июл",IF(CN32=8,"авг",IF(CN32=9,"сен",IF(CN32=10,"окт",IF(CN32=11,"ноя","дек")))))))))))&CN33,IF($Q$33=Lists!$I$19,CN35,IF($Q$33=Lists!$I$20,(INT((CN32-1)/3)+1)&"кв"&CN33&"г",IF(OR($Q$33=Lists!$I$21,$Q$33="",$Q$33=0),CN31&" год",IF($Q$33=Lists!$I$22,YEAR(CN35)&"г.","")))))) ->  | CO37: =IF(CO35="","",IF(OR($Q$33=Lists!$I$17,$Q$33=Lists!$I$18),COUNTIFS($Z32:CO32,MONTH(CO35),$Z33:CO33,YEAR(CO35)-2000)&IF($Q$33=Lists!$I$17,"нд-","дк-")&IF(CO32=1,"янв",IF(CO32=2,"фев",IF(CO32=3,"мар",IF(CO32=4,"апр",IF(CO32=5,"май",IF(CO32=6,"июн",IF(CO32=7,"июл",IF(CO32=8,"авг",IF(CO32=9,"сен",IF(CO32=10,"окт",IF(CO32=11,"ноя","дек")))))))))))&CO33,IF($Q$33=Lists!$I$19,CO35,IF($Q$33=Lists!$I$20,(INT((CO32-1)/3)+1)&"кв"&CO33&"г",IF(OR($Q$33=Lists!$I$21,$Q$33="",$Q$33=0),CO31&" год",IF($Q$33=Lists!$I$22,YEAR(CO35)&"г.","")))))) ->  | CP37: =IF(CP35="","",IF(OR($Q$33=Lists!$I$17,$Q$33=Lists!$I$18),COUNTIFS($Z32:CP32,MONTH(CP35),$Z33:CP33,YEAR(CP35)-2000)&IF($Q$33=Lists!$I$17,"нд-","дк-")&IF(CP32=1,"янв",IF(CP32=2,"фев",IF(CP32=3,"мар",IF(CP32=4,"апр",IF(CP32=5,"май",IF(CP32=6,"июн",IF(CP32=7,"июл",IF(CP32=8,"авг",IF(CP32=9,"сен",IF(CP32=10,"окт",IF(CP32=11,"ноя","дек")))))))))))&CP33,IF($Q$33=Lists!$I$19,CP35,IF($Q$33=Lists!$I$20,(INT((CP32-1)/3)+1)&"кв"&CP33&"г",IF(OR($Q$33=Lists!$I$21,$Q$33="",$Q$33=0),CP31&" год",IF($Q$33=Lists!$I$22,YEAR(CP35)&"г.","")))))) ->  | CQ37: =IF(CQ35="","",IF(OR($Q$33=Lists!$I$17,$Q$33=Lists!$I$18),COUNTIFS($Z32:CQ32,MONTH(CQ35),$Z33:CQ33,YEAR(CQ35)-2000)&IF($Q$33=Lists!$I$17,"нд-","дк-")&IF(CQ32=1,"янв",IF(CQ32=2,"фев",IF(CQ32=3,"мар",IF(CQ32=4,"апр",IF(CQ32=5,"май",IF(CQ32=6,"июн",IF(CQ32=7,"июл",IF(CQ32=8,"авг",IF(CQ32=9,"сен",IF(CQ32=10,"окт",IF(CQ32=11,"ноя","дек")))))))))))&CQ33,IF($Q$33=Lists!$I$19,CQ35,IF($Q$33=Lists!$I$20,(INT((CQ32-1)/3)+1)&"кв"&CQ33&"г",IF(OR($Q$33=Lists!$I$21,$Q$33="",$Q$33=0),CQ31&" год",IF($Q$33=Lists!$I$22,YEAR(CQ35)&"г.","")))))) ->  | CR37: =IF(CR35="","",IF(OR($Q$33=Lists!$I$17,$Q$33=Lists!$I$18),COUNTIFS($Z32:CR32,MONTH(CR35),$Z33:CR33,YEAR(CR35)-2000)&IF($Q$33=Lists!$I$17,"нд-","дк-")&IF(CR32=1,"янв",IF(CR32=2,"фев",IF(CR32=3,"мар",IF(CR32=4,"апр",IF(CR32=5,"май",IF(CR32=6,"июн",IF(CR32=7,"июл",IF(CR32=8,"авг",IF(CR32=9,"сен",IF(CR32=10,"окт",IF(CR32=11,"ноя","дек")))))))))))&CR33,IF($Q$33=Lists!$I$19,CR35,IF($Q$33=Lists!$I$20,(INT((CR32-1)/3)+1)&"кв"&CR33&"г",IF(OR($Q$33=Lists!$I$21,$Q$33="",$Q$33=0),CR31&" год",IF($Q$33=Lists!$I$22,YEAR(CR35)&"г.","")))))) ->  | CS37: =IF(CS35="","",IF(OR($Q$33=Lists!$I$17,$Q$33=Lists!$I$18),COUNTIFS($Z32:CS32,MONTH(CS35),$Z33:CS33,YEAR(CS35)-2000)&IF($Q$33=Lists!$I$17,"нд-","дк-")&IF(CS32=1,"янв",IF(CS32=2,"фев",IF(CS32=3,"мар",IF(CS32=4,"апр",IF(CS32=5,"май",IF(CS32=6,"июн",IF(CS32=7,"июл",IF(CS32=8,"авг",IF(CS32=9,"сен",IF(CS32=10,"окт",IF(CS32=11,"ноя","дек")))))))))))&CS33,IF($Q$33=Lists!$I$19,CS35,IF($Q$33=Lists!$I$20,(INT((CS32-1)/3)+1)&"кв"&CS33&"г",IF(OR($Q$33=Lists!$I$21,$Q$33="",$Q$33=0),CS31&" год",IF($Q$33=Lists!$I$22,YEAR(CS35)&"г.","")))))) ->  | CT37: =IF(CT35="","",IF(OR($Q$33=Lists!$I$17,$Q$33=Lists!$I$18),COUNTIFS($Z32:CT32,MONTH(CT35),$Z33:CT33,YEAR(CT35)-2000)&IF($Q$33=Lists!$I$17,"нд-","дк-")&IF(CT32=1,"янв",IF(CT32=2,"фев",IF(CT32=3,"мар",IF(CT32=4,"апр",IF(CT32=5,"май",IF(CT32=6,"июн",IF(CT32=7,"июл",IF(CT32=8,"авг",IF(CT32=9,"сен",IF(CT32=10,"окт",IF(CT32=11,"ноя","дек")))))))))))&CT33,IF($Q$33=Lists!$I$19,CT35,IF($Q$33=Lists!$I$20,(INT((CT32-1)/3)+1)&"кв"&CT33&"г",IF(OR($Q$33=Lists!$I$21,$Q$33="",$Q$33=0),CT31&" год",IF($Q$33=Lists!$I$22,YEAR(CT35)&"г.","")))))) ->  | CU37: =IF(CU35="","",IF(OR($Q$33=Lists!$I$17,$Q$33=Lists!$I$18),COUNTIFS($Z32:CU32,MONTH(CU35),$Z33:CU33,YEAR(CU35)-2000)&IF($Q$33=Lists!$I$17,"нд-","дк-")&IF(CU32=1,"янв",IF(CU32=2,"фев",IF(CU32=3,"мар",IF(CU32=4,"апр",IF(CU32=5,"май",IF(CU32=6,"июн",IF(CU32=7,"июл",IF(CU32=8,"авг",IF(CU32=9,"сен",IF(CU32=10,"окт",IF(CU32=11,"ноя","дек")))))))))))&CU33,IF($Q$33=Lists!$I$19,CU35,IF($Q$33=Lists!$I$20,(INT((CU32-1)/3)+1)&"кв"&CU33&"г",IF(OR($Q$33=Lists!$I$21,$Q$33="",$Q$33=0),CU31&" год",IF($Q$33=Lists!$I$22,YEAR(CU35)&"г.","")))))) -> 
A38: =ROW() -> 38
A39: =ROW() -> 39 | G39: =IF($R39="^",IF(COUNTIF(Lists!$13:$13,H39)=1,0,1),0) -> 0 | H39: =Lists!$CY$13 -> Режим расчетов | P39: M | Q39: =MAIN!Q91 -> Модель | R39: ^ | S39: =IF(G39<>0,1,IF(OR($Q39="",$Q39=0),0,IF($R39="^",IF(COUNTIF(INDIRECT(INDEX(Lists!$15:$15,SUMIFS(Lists!$1:$1,Lists!$13:$13,$H39))),$Q39)=1,0,1),0))) -> 0
A40: =ROW() -> 40
A41: =ROW() -> 41
A42: =ROW() -> 42 | H42: разработка финмоделей: https://mngmnt.ru/
A43: =ROW() -> 43
A44: =ROW() -> 44
A45: =ROW() -> 45
A46: =ROW() -> 46
A47: =ROW() -> 47
A48: =ROW() -> 48
A49: =ROW() -> 49
A50: =ROW() -> 50
A51: =ROW() -> 51
A52: =ROW() -> 52
A53: =ROW() -> 53
A54: =ROW() -> 54
A55: =ROW() -> 55
A56: =ROW() -> 56
A57: =ROW() -> 57
A58: =ROW() -> 58
A59: =ROW() -> 59
A60: =ROW() -> 60
A61: =ROW() -> 61
A62: =ROW() -> 62
A63: =ROW() -> 63
A64: =ROW() -> 64
A65: =ROW() -> 65
A66: =ROW() -> 66
A67: =ROW() -> 67
A68: =ROW() -> 68
A69: =ROW() -> 69
A70: =ROW() -> 70

Sheet Lists
I1: =COLUMN() -> 9 | M1: =COLUMN() -> 13 | Q1: =COLUMN() -> 17 | U1: =COLUMN() -> 21 | AB1: =COLUMN() -> 28 | AF1: =COLUMN() -> 32 | AI1: =COLUMN() -> 35 | AM1: =COLUMN() -> 39 | AQ1: =COLUMN() -> 43 | AU1: =COLUMN() -> 47 | AY1: =COLUMN() -> 51 | BC1: =COLUMN() -> 55 | BG1: =COLUMN() -> 59 | BK1: =COLUMN() -> 63 | BO1: =COLUMN() -> 67 | BS1: =COLUMN() -> 71 | BW1: =COLUMN() -> 75 | CA1: =COLUMN() -> 79 | CE1: =COLUMN() -> 83 | CI1: =COLUMN() -> 87 | CM1: =COLUMN() -> 91 | CQ1: =COLUMN() -> 95 | CU1: =COLUMN() -> 99 | CY1: =COLUMN() -> 103
I2: =LEFT(ADDRESS(1,COLUMN(),4),LEN(ADDRESS(1,COLUMN(),4))-1) -> I | M2: =LEFT(ADDRESS(1,COLUMN(),4),LEN(ADDRESS(1,COLUMN(),4))-1) -> M | Q2: =LEFT(ADDRESS(1,COLUMN(),4),LEN(ADDRESS(1,COLUMN(),4))-1) -> Q | U2: =LEFT(ADDRESS(1,COLUMN(),4),LEN(ADDRESS(1,COLUMN(),4))-1) -> U | AB2: =LEFT(ADDRESS(1,COLUMN(),4),LEN(ADDRESS(1,COLUMN(),4))-1) -> AB | AF2: =LEFT(ADDRESS(1,COLUMN(),4),LEN(ADDRESS(1,COLUMN(),4))-1) -> AF | AI2: =LEFT(ADDRESS(1,COLUMN(),4),LEN(ADDRESS(1,COLUMN(),4))-1) -> AI | AM2: =LEFT(ADDRESS(1,COLUMN(),4),LEN(ADDRESS(1,COLUMN(),4))-1) -> AM | AQ2: =LEFT(ADDRESS(1,COLUMN(),4),LEN(ADDRESS(1,COLUMN(),4))-1) -> AQ | AU2: =LEFT(ADDRESS(1,COLUMN(),4),LEN(ADDRESS(1,COLUMN(),4))-1) -> AU | AY2: =LEFT(ADDRESS(1,COLUMN(),4),LEN(ADDRESS(1,COLUMN(),4))-1) -> AY | BC2: =LEFT(ADDRESS(1,COLUMN(),4),LEN(ADDRESS(1,COLUMN(),4))-1) -> BC | BG2: =LEFT(ADDRESS(1,COLUMN(),4),LEN(ADDRESS(1,COLUMN(),4))-1) -> BG | BK2: =LEFT(ADDRESS(1,COLUMN(),4),LEN(ADDRESS(1,COLUMN(),4))-1) -> BK | BO2: =LEFT(ADDRESS(1,COLUMN(),4),LEN(ADDRESS(1,COLUMN(),4))-1) -> BO | BS2: =LEFT(ADDRESS(1,COLUMN(),4),LEN(ADDRESS(1,COLUMN(),4))-1) -> BS | BW2: =LEFT(ADDRESS(1,COLUMN(),4),LEN(ADDRESS(1,COLUMN(),4))-1) -> BW | CA2: =LEFT(ADDRESS(1,COLUMN(),4),LEN(ADDRESS(1,COLUMN(),4))-1) -> CA | CE2: =LEFT(ADDRESS(1,COLUMN(),4),LEN(ADDRESS(1,COLUMN(),4))-1) -> CE | CI2: =LEFT(ADDRESS(1,COLUMN(),4),LEN(ADDRESS(1,COLUMN(),4))-1) -> CI | CM2: =LEFT(ADDRESS(1,COLUMN(),4),LEN(ADDRESS(1,COLUMN(),4))-1) -> CM | CQ2: =LEFT(ADDRESS(1,COLUMN(),4),LEN(ADDRESS(1,COLUMN(),4))-1) -> CQ | CU2: =LEFT(ADDRESS(1,COLUMN(),4),LEN(ADDRESS(1,COLUMN(),4))-1) -> CU | CY2: =LEFT(ADDRESS(1,COLUMN(),4),LEN(ADDRESS(1,COLUMN(),4))-1) -> CY
F11: =INDIRECT("START!I28") -> Lists | I11: =INDIRECT("START!K28") -> Выпадающие списки финансовой модели
AI12: =START!$I$32 -> Mrkting | AY12: =START!$I$32 -> Mrkting | BC12: =START!$I$32 -> Mrkting | BK12: =START!$I$34 -> Sales | BO12: =START!$I$35 -> Prdction | BS12: =START!$I$33 -> CapEx | BW12: =START!$I$33 -> CapEx | CA12: =START!$I$36 -> HR | CI12: =START!$I$36 -> HR | CM12: =START!$I$29 -> Macro | CQ12: =START!$I$29 -> Macro | CU12: =START!$I$54 -> Calc
I13: минимальный период расчетов | M13: ответ "да/нет" | Q13: период отчетности | U13: тип листа | AB13: тип прогрессии | AF13: кол-во дней в периоде | AI13: каналы привлечения клиентов | AM13: продукция | AQ13: дата старта | AU13: тип учета | AY13: натуральные факторы переменных расходов маркетинга | BC13: денежные факторы переменных расходов маркетинга | BG13: тип зависимости переменных расходов | BK13: типы деятельности сотрудников отдела продаж | BO13: типы деятельности производственных сотрудников | BS13: Ввод в эксплуатацию | BW13: Налоги на внеоборотные активы | CA13: Типы и должности персонала | CE13: Типы оплаты | CI13: Потребность в офисе | CM13: Система налогообложения | CQ13: Налоги и сборы | CU13: Метки расчетов | CY13: Режим расчетов
D14: =INDIRECT("Cntrl!M17") -> 0 | E14: =SUM($F14:$PH14) -> 0 | F14: =IFERROR(_xlfn.SHEET($A$1)-SUMIFS(Cntrl!O$15:O$100000,Cntrl!I$15:I$100000,$F$11),1) -> 0 | I14: =IF(OR(I13=0,I13=""),1,IF(COUNTIF(13:13,I13)=1,0,1)) -> 0 | K14: =SUM(K$15:K$100000) -> 0 | M14: =IF(OR(M13=0,M13=""),1,IF(COUNTIF(13:13,M13)=1,0,1)) -> 0 | O14: =SUM(O$15:O$100000) -> 0 | Q14: =IF(OR(Q13=0,Q13=""),1,IF(COUNTIF(13:13,Q13)=1,0,1)) -> 0 | S14: =SUM(S$15:S$100000) -> 0 | U14: =IF(OR(U13=0,U13=""),1,IF(COUNTIF(13:13,U13)=1,0,1)) -> 0 | W14: =SUM(W$15:W$100000) -> 0 | AD14: =SUM(AD$15:AD$100000) -> 0 | AF14: =IF(OR(AF13=0,AF13=""),1,IF(COUNTIF(13:13,AF13)=1,0,1)) -> 0 | AI14: =IF(OR(AI13=0,AI13=""),1,IF(COUNTIF(13:13,AI13)=1,0,1)) -> 0 | AK14: =SUM(AK$15:AK$100000) -> 0 | AM14: =IF(OR(AM13=0,AM13=""),1,IF(COUNTIF(13:13,AM13)=1,0,1)) -> 0 | AO14: =SUM(AO$15:AO$100000) -> 0 | AQ14: =IF(OR(AQ13=0,AQ13=""),1,IF(COUNTIF(13:13,AQ13)=1,0,1)) -> 0 | AS14: =SUM(AS$15:AS$100000) -> 0 | AU14: =IF(OR(AU13=0,AU13=""),1,IF(COUNTIF(13:13,AU13)=1,0,1)) -> 0 | AW14: =SUM(AW$15:AW$100000) -> 0 | AY14: =IF(OR(AY13=0,AY13=""),1,IF(COUNTIF(13:13,AY13)=1,0,1)) -> 0 | BA14: =SUM(BA$15:BA$100000) -> 0 | BC14: =IF(OR(BC13=0,BC13=""),1,IF(COUNTIF(13:13,BC13)=1,0,1)) -> 0 | BE14: =SUM(BE$15:BE$100000) -> 0 | BG14: =IF(OR(BG13=0,BG13=""),1,IF(COUNTIF(13:13,BG13)=1,0,1)) -> 0 | BI14: =SUM(BI$15:BI$100000) -> 0 | BK14: =IF(OR(BK13=0,BK13=""),1,IF(COUNTIF(13:13,BK13)=1,0,1)) -> 0 | BM14: =SUM(BM$15:BM$100000) -> 0 | BO14: =IF(OR(BO13=0,BO13=""),1,IF(COUNTIF(13:13,BO13)=1,0,1)) -> 0 | BQ14: =SUM(BQ$15:BQ$100000) -> 0 | BS14: =IF(OR(BS13=0,BS13=""),1,IF(COUNTIF(13:13,BS13)=1,0,1)) -> 0 | BU14: =SUM(BU$15:BU$100000) -> 0 | BW14: =IF(OR(BW13=0,BW13=""),1,IF(COUNTIF(13:13,BW13)=1,0,1)) -> 0 | BY14: =SUM(BY$15:BY$100000) -> 0 | CA14: =IF(OR(CA13=0,CA13=""),1,IF(COUNTIF(13:13,CA13)=1,0,1)) -> 0 | CC14: =SUM(CC$15:CC$100000) -> 0 | CE14: =IF(OR(CE13=0,CE13=""),1,IF(COUNTIF(13:13,CE13)=1,0,1)) -> 0 | CG14: =SUM(CG$15:CG$100000) -> 0 | CI14: =IF(OR(CI13=0,CI13=""),1,IF(COUNTIF(13:13,CI13)=1,0,1)) -> 0 | CK14: =SUM(CK$15:CK$100000) -> 0 | CM14: =IF(OR(CM13=0,CM13=""),1,IF(COUNTIF(13:13,CM13)=1,0,1)) -> 0 | CO14: =SUM(CO$15:CO$100000) -> 0 | CQ14: =IF(OR(CQ13=0,CQ13=""),1,IF(COUNTIF(13:13,CQ13)=1,0,1)) -> 0 | CS14: =SUM(CS$15:CS$100000) -> 0 | CU14: =IF(OR(CU13=0,CU13=""),1,IF(COUNTIF(13:13,CU13)=1,0,1)) -> 0 | CW14: =SUM(CW$15:CW$100000) -> 0 | CY14: =IF(OR(CY13=0,CY13=""),1,IF(COUNTIF(13:13,CY13)=1,0,1)) -> 0 | DA14: =SUM(DA$15:DA$100000) -> 0
A15: =ROW() -> 15 | I15: =$F$11&"!"&I$2&$A16&":"&I$2&($A15+MAX(J$15:J$100000)) -> Lists!I16:I22 | M15: =$F$11&"!"&M$2&$A16&":"&M$2&($A15+MAX(N$15:N$100000)) -> Lists!M16:M17 | Q15: =$F$11&"!"&Q$2&$A16&":"&Q$2&($A15+MAX(R$15:R$100000)) -> Lists!Q16:Q17 | U15: =$F$11&"!"&U$2&$A16&":"&U$2&($A15+MAX(V$15:V$100000)) -> Lists!U16:U18 | AB15: =$F$11&"!"&AB$2&$A16&":"&AB$2&($A15+MAX(AC$15:AC$100000)) -> Lists!AB16:AB17 | AF15: =$F$11&"!"&AF$2&$A16&":"&AF$2&($A15+MAX(AG$15:AG$100000)) -> Lists!AF16:AF22 | AI15: =$F$11&"!"&AI$2&$A16&":"&AI$2&($A15+MAX(AJ$15:AJ$100000)) -> Lists!AI16:AI16 | AM15: =$F$11&"!"&AM$2&$A16&":"&AM$2&($A15+MAX(AN$15:AN$100000)) -> Lists!AM16:AM18 | AQ15: =$F$11&"!"&AQ$2&$A16&":"&AQ$2&($A15+MAX(AR$15:AR$100000)) -> Lists!AQ16:AQ75 | AU15: =$F$11&"!"&AU$2&$A16&":"&AU$2&($A15+MAX(AV$15:AV$100000)) -> Lists!AU16:AU20 | AY15: =$F$11&"!"&AY$2&$A16&":"&AY$2&($A15+MAX(AZ$15:AZ$100000)) -> Lists!AY16:AY19 | BC15: =$F$11&"!"&BC$2&$A16&":"&BC$2&($A15+MAX(BD$15:BD$100000)) -> Lists!BC16:BC17 | BG15: =$F$11&"!"&BG$2&$A16&":"&BG$2&($A15+MAX(BH$15:BH$100000)) -> Lists!BG16:BG17 | BK15: =$F$11&"!"&BK$2&$A16&":"&BK$2&($A15+MAX(BL$15:BL$100000)) -> Lists!BK16:BK18 | BO15: =$F$11&"!"&BO$2&$A16&":"&BO$2&($A15+MAX(BP$15:BP$100000)) -> Lists!BO16:BO18 | BS15: =$F$11&"!"&BS$2&$A16&":"&BS$2&($A15+MAX(BT$15:BT$100000)) -> Lists!BS16:BS17 | BW15: =$F$11&"!"&BW$2&$A16&":"&BW$2&($A15+MAX(BX$15:BX$100000)) -> Lists!BW16:BW18 | CA15: =$F$11&"!"&CA$2&$A16&":"&CA$2&($A15+MAX(CB$15:CB$100000)) -> Lists!CA16:CA25 | CE15: =$F$11&"!"&CE$2&$A16&":"&CE$2&($A15+MAX(CF$15:CF$100000)) -> Lists!CE16:CE18 | CI15: =$F$11&"!"&CI$2&$A16&":"&CI$2&($A15+MAX(CJ$15:CJ$100000)) -> Lists!CI16:CI17 | CM15: =$F$11&"!"&CM$2&$A16&":"&CM$2&($A15+MAX(CN$15:CN$100000)) -> Lists!CM16:CM19 | CQ15: =$F$11&"!"&CQ$2&$A16&":"&CQ$2&($A15+MAX(CR$15:CR$100000)) -> Lists!CQ16:CQ19 | CU15: =$F$11&"!"&CU$2&$A16&":"&CU$2&($A15+MAX(CV$15:CV$100000)) -> Lists!CU16:CU29 | CY15: =$F$11&"!"&CY$2&$A16&":"&CY$2&($A15+MAX(CZ$15:CZ$100000)) -> Lists!CY16:CY18
A16: =ROW() -> 16 | I16: день | J16: =MAX(J$15:J15)+1 -> 1 | K16: =IF(OR(I16=0,I16=""),0,IF(COUNTIF(I$15:I$100000,I16)=1,0,1)) -> 0 | M16: да | N16: =MAX(N$15:N15)+1 -> 1 | O16: =IF(OR(M16=0,M16=""),0,IF(COUNTIF(M$15:M$100000,M16)=1,0,1)) -> 0 | Q16: =IF(Periods!$Q$16=$I$16,$I17,IF(OR(Periods!$Q$16=$I$17,Periods!$Q$16=$I$18),$I19,IF(Periods!$Q$16=$I$19,$I20,IF(Periods!$Q$16=$I$20,$I21,IF(Periods!$Q$16=$I$21,$I22,""))))) -> год текущий | R16: =IF(OR(Q16="",Q16=0),"",MAX(R$15:R15)+1) -> 1 | S16: =IF(OR(Q16=0,Q16=""),0,IF(COUNTIF(Q$15:Q$100000,Q16)=1,0,1)) -> 0 | U16: расчетный | V16: =MAX(V$15:V15)+1 -> 1 | W16: =IF(OR(U16=0,U16=""),0,IF(COUNTIF(U$15:U$100000,U16)=1,0,1)) -> 0 | AB16: линейная | AC16: =MAX(AC$15:AC15)+1 -> 1 | AD16: =IF(OR(AB16=0,AB16=""),0,IF(COUNTIF(AB$15:AB$100000,AB16)=1,0,1)) -> 0 | AF16: 1 | AG16: =MAX(AG$15:AG15)+1 -> 1 | AH16: =MAX(AH$15:AH15)+1 -> 1 | AI16: =IF(SUMIFS(Mrkting!$A:$A,Mrkting!$K:$K,AH16)=0,"",INDEX(Mrkting!$L:$L,SUMIFS(Mrkting!$A:$A,Mrkting!$K:$K,AH16))) -> Канал привлечения клиентов | AJ16: =IF(OR(AI16="",AI16=0),"",MAX(AJ$15:AJ15)+1) -> 1 | AK16: =IF(OR(AI16=0,AI16=""),0,IF(COUNTIF(AI$15:AI$100000,AI16)=1,0,1)) -> 0 | AL16: * | AM16: Продукт-1 | AN16: =MAX(AN$15:AN15)+1 -> 1 | AO16: =IF(OR(AM16=0,AM16=""),0,IF(COUNTIF(AM$15:AM$100000,AM16)=1,0,1)) -> 0 | AP16: =MAX(AP$15:AP15)+1 -> 1 | AQ16: =SUMIFS(Periods!$11:$11,Periods!$2:$2,AP16) -> 2021-01-01 | AR16: =IF(OR(AQ16="",AQ16=0),"",MAX(AR$15:AR15)+1) -> 1 | AS16: =IF(OR(AQ16=0,AQ16=""),0,IF(COUNTIF(AQ$15:AQ$100000,AQ16)=1,0,1)) -> 0 | AU16: начисление | AV16: =MAX(AV$15:AV15)+1 -> 1 | AW16: =IF(OR(AU16=0,AU16=""),0,IF(COUNTIF(AU$15:AU$100000,AU16)=1,0,1)) -> 0 | AY16: =Mrkting!$H$19 -> Поток запусков событий | AZ16: =MAX(AZ$15:AZ15)+1 -> 1 | BA16: =IF(OR(AY16=0,AY16=""),0,IF(COUNTIF(AY$15:AY$100000,AY16)=1,0,1)) -> 0 | BC16: =Mrkting!$H$86 -> Общий оборот (GMV) | BD16: =MAX(BD$15:BD15)+1 -> 1 | BE16: =IF(OR(BC16=0,BC16=""),0,IF(COUNTIF(BC$15:BC$100000,BC16)=1,0,1)) -> 0 | BG16: натуральные факторы | BH16: =MAX(BH$15:BH15)+1 -> 1 | BI16: =IF(OR(BG16=0,BG16=""),0,IF(COUNTIF(BG$15:BG$100000,BG16)=1,0,1)) -> 0 | BJ16: * | BK16: информирование об услугах | BL16: =MAX(BL$15:BL15)+1 -> 1 | BM16: =IF(OR(BK16=0,BK16=""),0,IF(COUNTIF(BK$15:BK$100000,BK16)=1,0,1)) -> 0 | BN16: * | BO16: Работы - 1 | BP16: =MAX(BP$15:BP15)+1 -> 1 | BQ16: =IF(OR(BO16=0,BO16=""),0,IF(COUNTIF(BO$15:BO$100000,BO16)=1,0,1)) -> 0 | BS16: в последний период всех капзатрат | BT16: =MAX(BT$15:BT15)+1 -> 1 | BU16: =IF(OR(BS16=0,BS16=""),0,IF(COUNTIF(BS$15:BS$100000,BS16)=1,0,1)) -> 0 | BW16: земельный налог | BX16: =MAX(BX$15:BX15)+1 -> 1 | BY16: =IF(OR(BW16=0,BW16=""),0,IF(COUNTIF(BW$15:BW$100000,BW16)=1,0,1)) -> 0 | CA16: Сотрудники маркетинга | CB16: =MAX(CB$15:CB15)+1 -> 1 | CC16: =IF(OR(CA16=0,CA16=""),0,IF(COUNTIF(CA$15:CA$100000,CA16)=1,0,1)) -> 0 | CE16: аванс-доплата | CF16: =MAX(CF$15:CF15)+1 -> 1 | CG16: =IF(OR(CE16=0,CE16=""),0,IF(COUNTIF(CE$15:CE$100000,CE16)=1,0,1)) -> 0 | CI16: нужен офис | CJ16: =MAX(CJ$15:CJ15)+1 -> 1 | CK16: =IF(OR(CI16=0,CI16=""),0,IF(COUNTIF(CI$15:CI$100000,CI16)=1,0,1)) -> 0 | CM16: ОСНО | CN16: =MAX(CN$15:CN15)+1 -> 1 | CO16: =IF(OR(CM16=0,CM16=""),0,IF(COUNTIF(CM$15:CM$100000,CM16)=1,0,1)) -> 0 | CQ16: НДС | CR16: =MAX(CR$15:CR15)+1 -> 1 | CS16: =IF(OR(CQ16=0,CQ16=""),0,IF(COUNTIF(CQ$15:CQ$100000,CQ16)=1,0,1)) -> 0 | CU16: ндс(+) | CV16: =MAX(CV$15:CV15)+1 -> 1 | CW16: =IF(OR(CU16=0,CU16=""),0,IF(COUNTIF(CU$15:CU$100000,CU16)=1,0,1)) -> 0 | CY16: Модель | CZ16: =MAX(CZ$15:CZ15)+1 -> 1 | DA16: =IF(OR(CY16=0,CY16=""),0,IF(COUNTIF(CY$15:CY$100000,CY16)=1,0,1)) -> 0
A17: =ROW() -> 17 | I17: неделя | J17: =MAX(J$15:J16)+1 -> 2 | K17: =IF(OR(I17=0,I17=""),0,IF(COUNTIF(I$15:I$100000,I17)=1,0,1)) -> 0 | M17: нет | N17: =MAX(N$15:N16)+1 -> 2 | O17: =IF(OR(M17=0,M17=""),0,IF(COUNTIF(M$15:M$100000,M17)=1,0,1)) -> 0 | Q17: =IF(Periods!$Q$16=$I$16,$I18,IF(OR(Periods!$Q$16=$I$17,Periods!$Q$16=$I$18),$I20,IF(Periods!$Q$16=$I$19,$I21,IF(Periods!$Q$16=$I$20,$I22,IF(Periods!$Q$16=$I$21,$I23,""))))) -> год календ. | R17: =IF(OR(Q17="",Q17=0),"",MAX(R$15:R16)+1) -> 2 | S17: =IF(OR(Q17=0,Q17=""),0,IF(COUNTIF(Q$15:Q$100000,Q17)=1,0,1)) -> 0 | U17: отчетный | V17: =MAX(V$15:V16)+1 -> 2 | W17: =IF(OR(U17=0,U17=""),0,IF(COUNTIF(U$15:U$100000,U17)=1,0,1)) -> 0 | AB17: геометрическая | AC17: =MAX(AC$15:AC16)+1 -> 2 | AD17: =IF(OR(AB17=0,AB17=""),0,IF(COUNTIF(AB$15:AB$100000,AB17)=1,0,1)) -> 0 | AF17: 7 | AG17: =MAX(AG$15:AG16)+1 -> 2 | AH17: =MAX(AH$15:AH16)+1 -> 2 | AI17: =IF(SUMIFS(Mrkting!$A:$A,Mrkting!$K:$K,AH17)=0,"",INDEX(Mrkting!$L:$L,SUMIFS(Mrkting!$A:$A,Mrkting!$K:$K,AH17))) ->  | AJ17: =IF(OR(AI17="",AI17=0),"",MAX(AJ$15:AJ16)+1) ->  | AK17: =IF(OR(AI17=0,AI17=""),0,IF(COUNTIF(AI$15:AI$100000,AI17)=1,0,1)) -> 0 | AL17: * | AM17: Продукт-2 | AN17: =MAX(AN$15:AN16)+1 -> 2 | AO17: =IF(OR(AM17=0,AM17=""),0,IF(COUNTIF(AM$15:AM$100000,AM17)=1,0,1)) -> 0 | AP17: =MAX(AP$15:AP16)+1 -> 2 | AQ17: =SUMIFS(Periods!$11:$11,Periods!$2:$2,AP17) -> 2021-04-01 | AR17: =IF(OR(AQ17="",AQ17=0),"",MAX(AR$15:AR16)+1) -> 2 | AS17: =IF(OR(AQ17=0,AQ17=""),0,IF(COUNTIF(AQ$15:AQ$100000,AQ17)=1,0,1)) -> 0 | AU17: учет | AV17: =MAX(AV$15:AV16)+1 -> 2 | AW17: =IF(OR(AU17=0,AU17=""),0,IF(COUNTIF(AU$15:AU$100000,AU17)=1,0,1)) -> 0 | AY17: =Mrkting!$H$54 -> Прогноз трафика | AZ17: =MAX(AZ$15:AZ16)+1 -> 2 | BA17: =IF(OR(AY17=0,AY17=""),0,IF(COUNTIF(AY$15:AY$100000,AY17)=1,0,1)) -> 0 | BC17: =Mrkting!$H$120 -> Общий оборот (GMV) с учетом скидок | BD17: =MAX(BD$15:BD16)+1 -> 2 | BE17: =IF(OR(BC17=0,BC17=""),0,IF(COUNTIF(BC$15:BC$100000,BC17)=1,0,1)) -> 0 | BG17: денежные факторы | BH17: =MAX(BH$15:BH16)+1 -> 2 | BI17: =IF(OR(BG17=0,BG17=""),0,IF(COUNTIF(BG$15:BG$100000,BG17)=1,0,1)) -> 0 | BJ17: * | BK17: информирование о ценах и условиях | BL17: =MAX(BL$15:BL16)+1 -> 2 | BM17: =IF(OR(BK17=0,BK17=""),0,IF(COUNTIF(BK$15:BK$100000,BK17)=1,0,1)) -> 0 | BN17: * | BO17: Работы - 2 | BP17: =MAX(BP$15:BP16)+1 -> 2 | BQ17: =IF(OR(BO17=0,BO17=""),0,IF(COUNTIF(BO$15:BO$100000,BO17)=1,0,1)) -> 0 | BS17: в последний период данной статьи | BT17: =MAX(BT$15:BT16)+1 -> 2 | BU17: =IF(OR(BS17=0,BS17=""),0,IF(COUNTIF(BS$15:BS$100000,BS17)=1,0,1)) -> 0 | BW17: транспортный налог | BX17: =MAX(BX$15:BX16)+1 -> 2 | BY17: =IF(OR(BW17=0,BW17=""),0,IF(COUNTIF(BW$15:BW$100000,BW17)=1,0,1)) -> 0 | CA17: Менеджеры по продажам | CB17: =MAX(CB$15:CB16)+1 -> 2 | CC17: =IF(OR(CA17=0,CA17=""),0,IF(COUNTIF(CA$15:CA$100000,CA17)=1,0,1)) -> 0 | CE17: аванс-платеж | CF17: =MAX(CF$15:CF16)+1 -> 2 | CG17: =IF(OR(CE17=0,CE17=""),0,IF(COUNTIF(CE$15:CE$100000,CE17)=1,0,1)) -> 0 | CI17: не нужен офис | CJ17: =MAX(CJ$15:CJ16)+1 -> 2 | CK17: =IF(OR(CI17=0,CI17=""),0,IF(COUNTIF(CI$15:CI$100000,CI17)=1,0,1)) -> 0 | CM17: УСН(6%) | CN17: =MAX(CN$15:CN16)+1 -> 2 | CO17: =IF(OR(CM17=0,CM17=""),0,IF(COUNTIF(CM$15:CM$100000,CM17)=1,0,1)) -> 0 | CQ17: Соцсборы | CR17: =MAX(CR$15:CR16)+1 -> 2 | CS17: =IF(OR(CQ17=0,CQ17=""),0,IF(COUNTIF(CQ$15:CQ$100000,CQ17)=1,0,1)) -> 0 | CU17: ндс(-) | CV17: =MAX(CV$15:CV16)+1 -> 2 | CW17: 0 | CY17: План | CZ17: =MAX(CZ$15:CZ16)+1 -> 2 | DA17: =IF(OR(CY17=0,CY17=""),0,IF(COUNTIF(CY$15:CY$100000,CY17)=1,0,1)) -> 0
A18: =ROW() -> 18 | I18: декада | J18: =MAX(J$15:J17)+1 -> 3 | K18: 0 | Q18: =IF(Periods!$Q$16=$I$16,$I19,IF(OR(Periods!$Q$16=$I$17,Periods!$Q$16=$I$18),$I21,IF(Periods!$Q$16=$I$19,$I22,IF(Periods!$Q$16=$I$20,$I23,IF(Periods!$Q$16=$I$21,$I24,""))))) -> 0 | R18: =IF(OR(Q18="",Q18=0),"",MAX(R$15:R17)+1) ->  | S18: 0 | U18: технический | V18: =MAX(V$15:V17)+1 -> 3 | W18: =IF(OR(U18=0,U18=""),0,IF(COUNTIF(U$15:U$100000,U18)=1,0,1)) -> 0 | AF18: 10 | AG18: =MAX(AG$15:AG17)+1 -> 3 | AH18: =MAX(AH$15:AH17)+1 -> 3 | AI18: =IF(SUMIFS(Mrkting!$A:$A,Mrkting!$K:$K,AH18)=0,"",INDEX(Mrkting!$L:$L,SUMIFS(Mrkting!$A:$A,Mrkting!$K:$K,AH18))) ->  | AJ18: =IF(OR(AI18="",AI18=0),"",MAX(AJ$15:AJ17)+1) ->  | AK18: 0 | AL18: * | AM18: Продукт-3 | AN18: =MAX(AN$15:AN17)+1 -> 3 | AO18: =IF(OR(AM18=0,AM18=""),0,IF(COUNTIF(AM$15:AM$100000,AM18)=1,0,1)) -> 0 | AP18: =MAX(AP$15:AP17)+1 -> 3 | AQ18: =SUMIFS(Periods!$11:$11,Periods!$2:$2,AP18) -> 2021-07-01 | AR18: =IF(OR(AQ18="",AQ18=0),"",MAX(AR$15:AR17)+1) -> 3 | AS18: 0 | AU18: оплата | AV18: =MAX(AV$15:AV17)+1 -> 3 | AW18: =IF(OR(AU18=0,AU18=""),0,IF(COUNTIF(AU$15:AU$100000,AU18)=1,0,1)) -> 0 | AY18: =Mrkting!$H$56 -> Конверсия в контакт | AZ18: =MAX(AZ$15:AZ17)+1 -> 3 | BA18: =IF(OR(AY18=0,AY18=""),0,IF(COUNTIF(AY$15:AY$100000,AY18)=1,0,1)) -> 0 | BJ18: * | BK18: представительская деятельность | BL18: =MAX(BL$15:BL17)+1 -> 3 | BM18: =IF(OR(BK18=0,BK18=""),0,IF(COUNTIF(BK$15:BK$100000,BK18)=1,0,1)) -> 0 | BN18: * | BO18: Работы - 3 | BP18: =MAX(BP$15:BP17)+1 -> 3 | BQ18: =IF(OR(BO18=0,BO18=""),0,IF(COUNTIF(BO$15:BO$100000,BO18)=1,0,1)) -> 0 | BW18: налог на имущество организаций | BX18: =MAX(BX$15:BX17)+1 -> 3 | BY18: =IF(OR(BW18=0,BW18=""),0,IF(COUNTIF(BW$15:BW$100000,BW18)=1,0,1)) -> 0 | CA18: Производственные рабочие | CB18: =MAX(CB$15:CB17)+1 -> 3 | CC18: =IF(OR(CA18=0,CA18=""),0,IF(COUNTIF(CA$15:CA$100000,CA18)=1,0,1)) -> 0 | CE18: ретро-платеж | CF18: =MAX(CF$15:CF17)+1 -> 3 | CG18: =IF(OR(CE18=0,CE18=""),0,IF(COUNTIF(CE$15:CE$100000,CE18)=1,0,1)) -> 0 | CM18: УСН(15%) | CN18: =MAX(CN$15:CN17)+1 -> 3 | CO18: =IF(OR(CM18=0,CM18=""),0,IF(COUNTIF(CM$15:CM$100000,CM18)=1,0,1)) -> 0 | CQ18: Налог на прибыль | CR18: =MAX(CR$15:CR17)+1 -> 3 | CS18: =IF(OR(CQ18=0,CQ18=""),0,IF(COUNTIF(CQ$15:CQ$100000,CQ18)=1,0,1)) -> 0 | CU18: PL(+) | CV18: =MAX(CV$15:CV17)+1 -> 3 | CW18: 0 | CY18: Факт | CZ18: =MAX(CZ$15:CZ17)+1 -> 3 | DA18: =IF(OR(CY18=0,CY18=""),0,IF(COUNTIF(CY$15:CY$100000,CY18)=1,0,1)) -> 0
A19: =ROW() -> 19 | I19: месяц | J19: =MAX(J$15:J18)+1 -> 4 | K19: 0 | Q19: =IF(Periods!$Q$16=$I$16,$I20,IF(OR(Periods!$Q$16=$I$17,Periods!$Q$16=$I$18),$I22,IF(Periods!$Q$16=$I$19,$I23,IF(Periods!$Q$16=$I$20,$I24,IF(Periods!$Q$16=$I$21,$I25,""))))) -> 0 | R19: =IF(OR(Q19="",Q19=0),"",MAX(R$15:R18)+1) ->  | S19: 0 | AF19: 30 | AG19: =MAX(AG$15:AG18)+1 -> 4 | AH19: =MAX(AH$15:AH18)+1 -> 4 | AI19: =IF(SUMIFS(Mrkting!$A:$A,Mrkting!$K:$K,AH19)=0,"",INDEX(Mrkting!$L:$L,SUMIFS(Mrkting!$A:$A,Mrkting!$K:$K,AH19))) ->  | AJ19: =IF(OR(AI19="",AI19=0),"",MAX(AJ$15:AJ18)+1) ->  | AK19: 0 | AP19: =MAX(AP$15:AP18)+1 -> 4 | AQ19: =SUMIFS(Periods!$11:$11,Periods!$2:$2,AP19) -> 2021-10-01 | AR19: =IF(OR(AQ19="",AQ19=0),"",MAX(AR$15:AR18)+1) -> 4 | AS19: 0 | AU19: списание | AV19: =MAX(AV$15:AV18)+1 -> 4 | AW19: =IF(OR(AU19=0,AU19=""),0,IF(COUNTIF(AU$15:AU$100000,AU19)=1,0,1)) -> 0 | AY19: =Mrkting!$H$65 -> Валовой поток контактов | AZ19: =MAX(AZ$15:AZ18)+1 -> 4 | BA19: =IF(OR(AY19=0,AY19=""),0,IF(COUNTIF(AY$15:AY$100000,AY19)=1,0,1)) -> 0 | BZ19: * | CA19: Генеральный директор | CB19: =MAX(CB$15:CB18)+1 -> 4 | CC19: =IF(OR(CA19=0,CA19=""),0,IF(COUNTIF(CA$15:CA$100000,CA19)=1,0,1)) -> 0 | CM19: ТОСЭР | CN19: =MAX(CN$15:CN18)+1 -> 4 | CO19: =IF(OR(CM19=0,CM19=""),0,IF(COUNTIF(CM$15:CM$100000,CM19)=1,0,1)) -> 0 | CQ19: ТОСЭР | CR19: =MAX(CR$15:CR18)+1 -> 4 | CS19: =IF(OR(CQ19=0,CQ19=""),0,IF(COUNTIF(CQ$15:CQ$100000,CQ19)=1,0,1)) -> 0 | CU19: PL(-) | CV19: =MAX(CV$15:CV18)+1 -> 4 | CW19: 0
A20: =ROW() -> 20 | I20: квартал | J20: =MAX(J$15:J19)+1 -> 5 | K20: 0 | Q20: =IF(Periods!$Q$16=$I$16,$I21,IF(OR(Periods!$Q$16=$I$17,Periods!$Q$16=$I$18),$I23,IF(Periods!$Q$16=$I$19,$I24,IF(Periods!$Q$16=$I$20,$I25,IF(Periods!$Q$16=$I$21,$I26,""))))) -> 0 | R20: =IF(OR(Q20="",Q20=0),"",MAX(R$15:R19)+1) ->  | S20: 0 | AF20: 90 | AG20: =MAX(AG$15:AG19)+1 -> 5 | AH20: =MAX(AH$15:AH19)+1 -> 5 | AI20: =IF(SUMIFS(Mrkting!$A:$A,Mrkting!$K:$K,AH20)=0,"",INDEX(Mrkting!$L:$L,SUMIFS(Mrkting!$A:$A,Mrkting!$K:$K,AH20))) ->  | AJ20: =IF(OR(AI20="",AI20=0),"",MAX(AJ$15:AJ19)+1) ->  | AK20: 0 | AP20: =MAX(AP$15:AP19)+1 -> 5 | AQ20: =SUMIFS(Periods!$11:$11,Periods!$2:$2,AP20) -> 2022-01-01 | AR20: =IF(OR(AQ20="",AQ20=0),"",MAX(AR$15:AR19)+1) -> 5 | AS20: 0 | AU20: калькуляция | AV20: =MAX(AV$15:AV19)+1 -> 5 | AW20: =IF(OR(AU20=0,AU20=""),0,IF(COUNTIF(AU$15:AU$100000,AU20)=1,0,1)) -> 0 | BZ20: * | CA20: Заместитель ГД | CB20: =MAX(CB$15:CB19)+1 -> 5 | CC20: 0 | CU20: PL | CV20: =MAX(CV$15:CV19)+1 -> 5 | CW20: 0
A21: =ROW() -> 21 | I21: год текущий | J21: =MAX(J$15:J20)+1 -> 6 | K21: 0 | Q21: =IF(Periods!$Q$16=$I$16,$I22,IF(OR(Periods!$Q$16=$I$17,Periods!$Q$16=$I$18),$I24,IF(Periods!$Q$16=$I$19,$I25,IF(Periods!$Q$16=$I$20,$I26,IF(Periods!$Q$16=$I$21,$I27,""))))) -> 0 | R21: =IF(OR(Q21="",Q21=0),"",MAX(R$15:R20)+1) ->  | S21: 0 | AF21: 360 | AG21: =MAX(AG$15:AG20)+1 -> 6 | AH21: =MAX(AH$15:AH20)+1 -> 6 | AI21: =IF(SUMIFS(Mrkting!$A:$A,Mrkting!$K:$K,AH21)=0,"",INDEX(Mrkting!$L:$L,SUMIFS(Mrkting!$A:$A,Mrkting!$K:$K,AH21))) ->  | AJ21: =IF(OR(AI21="",AI21=0),"",MAX(AJ$15:AJ20)+1) ->  | AK21: 0 | AP21: =MAX(AP$15:AP20)+1 -> 6 | AQ21: =SUMIFS(Periods!$11:$11,Periods!$2:$2,AP21) -> 2022-04-01 | AR21: =IF(OR(AQ21="",AQ21=0),"",MAX(AR$15:AR20)+1) -> 6 | AS21: 0 | BZ21: * | CA21: Главный бухгалтер | CB21: =MAX(CB$15:CB20)+1 -> 6 | CC21: 0 | CU21: CF(+) | CV21: =MAX(CV$15:CV20)+1 -> 6 | CW21: 0
A22: =ROW() -> 22 | I22: год календ. | J22: =MAX(J$15:J21)+1 -> 7 | K22: 0 | Q22: =IF(Periods!$Q$16=$I$16,$I23,IF(OR(Periods!$Q$16=$I$17,Periods!$Q$16=$I$18),$I25,IF(Periods!$Q$16=$I$19,$I26,IF(Periods!$Q$16=$I$20,$I27,IF(Periods!$Q$16=$I$21,$I28,""))))) -> 0 | R22: =IF(OR(Q22="",Q22=0),"",MAX(R$15:R21)+1) ->  | S22: 0 | AF22: 360 | AG22: =MAX(AG$15:AG21)+1 -> 7 | AH22: =MAX(AH$15:AH21)+1 -> 7 | AI22: =IF(SUMIFS(Mrkting!$A:$A,Mrkting!$K:$K,AH22)=0,"",INDEX(Mrkting!$L:$L,SUMIFS(Mrkting!$A:$A,Mrkting!$K:$K,AH22))) ->  | AJ22: =IF(OR(AI22="",AI22=0),"",MAX(AJ$15:AJ21)+1) ->  | AK22: 0 | AP22: =MAX(AP$15:AP21)+1 -> 7 | AQ22: =SUMIFS(Periods!$11:$11,Periods!$2:$2,AP22) -> 2022-07-01 | AR22: =IF(OR(AQ22="",AQ22=0),"",MAX(AR$15:AR21)+1) -> 7 | AS22: 0 | BZ22: * | CA22: Сотрудники категории - 1 | CB22: =MAX(CB$15:CB21)+1 -> 7 | CC22: 0 | CU22: CF(-) | CV22: =MAX(CV$15:CV21)+1 -> 7 | CW22: 0
A23: =ROW() -> 23 | AH23: =MAX(AH$15:AH22)+1 -> 8 | AI23: =IF(SUMIFS(Mrkting!$A:$A,Mrkting!$K:$K,AH23)=0,"",INDEX(Mrkting!$L:$L,SUMIFS(Mrkting!$A:$A,Mrkting!$K:$K,AH23))) ->  | AJ23: =IF(OR(AI23="",AI23=0),"",MAX(AJ$15:AJ22)+1) ->  | AK23: =IF(OR(AI23=0,AI23=""),0,IF(COUNTIF(AI$15:AI$100000,AI23)=1,0,1)) -> 0 | AP23: =MAX(AP$15:AP22)+1 -> 8 | AQ23: =SUMIFS(Periods!$11:$11,Periods!$2:$2,AP23) -> 2022-10-01 | AR23: =IF(OR(AQ23="",AQ23=0),"",MAX(AR$15:AR22)+1) -> 8 | AS23: =IF(OR(AQ23=0,AQ23=""),0,IF(COUNTIF(AQ$15:AQ$100000,AQ23)=1,0,1)) -> 0 | BZ23: * | CA23: Сотрудники категории - 2 | CB23: =MAX(CB$15:CB22)+1 -> 8 | CC23: 0 | CU23: CF | CV23: =MAX(CV$15:CV22)+1 -> 8 | CW23: 0
A24: =ROW() -> 24 | AH24: =MAX(AH$15:AH23)+1 -> 9 | AI24: =IF(SUMIFS(Mrkting!$A:$A,Mrkting!$K:$K,AH24)=0,"",INDEX(Mrkting!$L:$L,SUMIFS(Mrkting!$A:$A,Mrkting!$K:$K,AH24))) ->  | AJ24: =IF(OR(AI24="",AI24=0),"",MAX(AJ$15:AJ23)+1) ->  | AK24: 0 | AP24: =MAX(AP$15:AP23)+1 -> 9 | AQ24: =SUMIFS(Periods!$11:$11,Periods!$2:$2,AP24) -> 2023-01-01 | AR24: =IF(OR(AQ24="",AQ24=0),"",MAX(AR$15:AR23)+1) -> 9 | AS24: 0 | BZ24: * | CA24: Сотрудники категории - 3 | CB24: =MAX(CB$15:CB23)+1 -> 9 | CC24: 0 | CU24: BS | CV24: =MAX(CV$15:CV23)+1 -> 9 | CW24: 0
A25: =ROW() -> 25 | AH25: =MAX(AH$15:AH24)+1 -> 10 | AI25: =IF(SUMIFS(Mrkting!$A:$A,Mrkting!$K:$K,AH25)=0,"",INDEX(Mrkting!$L:$L,SUMIFS(Mrkting!$A:$A,Mrkting!$K:$K,AH25))) ->  | AJ25: =IF(OR(AI25="",AI25=0),"",MAX(AJ$15:AJ24)+1) ->  | AK25: 0 | AP25: =MAX(AP$15:AP24)+1 -> 10 | AQ25: =SUMIFS(Periods!$11:$11,Periods!$2:$2,AP25) -> 2023-04-01 | AR25: =IF(OR(AQ25="",AQ25=0),"",MAX(AR$15:AR24)+1) -> 10 | AS25: 0 | BZ25: * | CA25: Прочие сотрудники | CB25: =MAX(CB$15:CB24)+1 -> 10 | CC25: 0 | CU25: BS(+) | CV25: =MAX(CV$15:CV24)+1 -> 10 | CW25: 0
A26: =ROW() -> 26 | AH26: =MAX(AH$15:AH25)+1 -> 11 | AI26: =IF(SUMIFS(Mrkting!$A:$A,Mrkting!$K:$K,AH26)=0,"",INDEX(Mrkting!$L:$L,SUMIFS(Mrkting!$A:$A,Mrkting!$K:$K,AH26))) ->  | AJ26: =IF(OR(AI26="",AI26=0),"",MAX(AJ$15:AJ25)+1) ->  | AK26: 0 | AP26: =MAX(AP$15:AP25)+1 -> 11 | AQ26: =SUMIFS(Periods!$11:$11,Periods!$2:$2,AP26) -> 2023-07-01 | AR26: =IF(OR(AQ26="",AQ26=0),"",MAX(AR$15:AR25)+1) -> 11 | AS26: 0 | CU26: BS(-) | CV26: =MAX(CV$15:CV25)+1 -> 11 | CW26: 0
A27: =ROW() -> 27 | AH27: =MAX(AH$15:AH26)+1 -> 12 | AI27: =IF(SUMIFS(Mrkting!$A:$A,Mrkting!$K:$K,AH27)=0,"",INDEX(Mrkting!$L:$L,SUMIFS(Mrkting!$A:$A,Mrkting!$K:$K,AH27))) ->  | AJ27: =IF(OR(AI27="",AI27=0),"",MAX(AJ$15:AJ26)+1) ->  | AK27: 0 | AP27: =MAX(AP$15:AP26)+1 -> 12 | AQ27: =SUMIFS(Periods!$11:$11,Periods!$2:$2,AP27) -> 2023-10-01 | AR27: =IF(OR(AQ27="",AQ27=0),"",MAX(AR$15:AR26)+1) -> 12 | AS27: 0 | CU27: SF(+) | CV27: =MAX(CV$15:CV26)+1 -> 12 | CW27: 0
A28: =ROW() -> 28 | AH28: =MAX(AH$15:AH27)+1 -> 13 | AI28: =IF(SUMIFS(Mrkting!$A:$A,Mrkting!$K:$K,AH28)=0,"",INDEX(Mrkting!$L:$L,SUMIFS(Mrkting!$A:$A,Mrkting!$K:$K,AH28))) ->  | AJ28: =IF(OR(AI28="",AI28=0),"",MAX(AJ$15:AJ27)+1) ->  | AK28: 0 | AP28: =MAX(AP$15:AP27)+1 -> 13 | AQ28: =SUMIFS(Periods!$11:$11,Periods!$2:$2,AP28) -> 2024-01-01 | AR28: =IF(OR(AQ28="",AQ28=0),"",MAX(AR$15:AR27)+1) -> 13 | AS28: 0 | CU28: SF(-) | CV28: =MAX(CV$15:CV27)+1 -> 13 | CW28: 0
A29: =ROW() -> 29 | AH29: =MAX(AH$15:AH28)+1 -> 14 | AI29: =IF(SUMIFS(Mrkting!$A:$A,Mrkting!$K:$K,AH29)=0,"",INDEX(Mrkting!$L:$L,SUMIFS(Mrkting!$A:$A,Mrkting!$K:$K,AH29))) ->  | AJ29: =IF(OR(AI29="",AI29=0),"",MAX(AJ$15:AJ28)+1) ->  | AK29: =IF(OR(AI29=0,AI29=""),0,IF(COUNTIF(AI$15:AI$100000,AI29)=1,0,1)) -> 0 | AP29: =MAX(AP$15:AP28)+1 -> 14 | AQ29: =SUMIFS(Periods!$11:$11,Periods!$2:$2,AP29) -> 2024-04-01 | AR29: =IF(OR(AQ29="",AQ29=0),"",MAX(AR$15:AR28)+1) -> 14 | AS29: 0 | CU29: SF | CV29: =MAX(CV$15:CV28)+1 -> 14 | CW29: 0
A30: =ROW() -> 30 | AH30: =MAX(AH$15:AH29)+1 -> 15 | AI30: =IF(SUMIFS(Mrkting!$A:$A,Mrkting!$K:$K,AH30)=0,"",INDEX(Mrkting!$L:$L,SUMIFS(Mrkting!$A:$A,Mrkting!$K:$K,AH30))) ->  | AJ30: =IF(OR(AI30="",AI30=0),"",MAX(AJ$15:AJ29)+1) ->  | AK30: =IF(OR(AI30=0,AI30=""),0,IF(COUNTIF(AI$15:AI$100000,AI30)=1,0,1)) -> 0 | AP30: =MAX(AP$15:AP29)+1 -> 15 | AQ30: =SUMIFS(Periods!$11:$11,Periods!$2:$2,AP30) -> 2024-07-01 | AR30: =IF(OR(AQ30="",AQ30=0),"",MAX(AR$15:AR29)+1) -> 15 | AS30: 0
A31: =ROW() -> 31 | AP31: =MAX(AP$15:AP30)+1 -> 16 | AQ31: =SUMIFS(Periods!$11:$11,Periods!$2:$2,AP31) -> 2024-10-01 | AR31: =IF(OR(AQ31="",AQ31=0),"",MAX(AR$15:AR30)+1) -> 16 | AS31: =IF(OR(AQ31=0,AQ31=""),0,IF(COUNTIF(AQ$15:AQ$100000,AQ31)=1,0,1)) -> 0
A32: =ROW() -> 32 | AP32: =MAX(AP$15:AP31)+1 -> 17 | AQ32: =SUMIFS(Periods!$11:$11,Periods!$2:$2,AP32) -> 2025-01-01 | AR32: =IF(OR(AQ32="",AQ32=0),"",MAX(AR$15:AR31)+1) -> 17 | AS32: 0
A33: =ROW() -> 33 | AP33: =MAX(AP$15:AP32)+1 -> 18 | AQ33: =SUMIFS(Periods!$11:$11,Periods!$2:$2,AP33) -> 2025-04-01 | AR33: =IF(OR(AQ33="",AQ33=0),"",MAX(AR$15:AR32)+1) -> 18 | AS33: 0
A34: =ROW() -> 34 | AP34: =MAX(AP$15:AP33)+1 -> 19 | AQ34: =SUMIFS(Periods!$11:$11,Periods!$2:$2,AP34) -> 2025-07-01 | AR34: =IF(OR(AQ34="",AQ34=0),"",MAX(AR$15:AR33)+1) -> 19 | AS34: 0
A35: =ROW() -> 35 | AP35: =MAX(AP$15:AP34)+1 -> 20 | AQ35: =SUMIFS(Periods!$11:$11,Periods!$2:$2,AP35) -> 2025-10-01 | AR35: =IF(OR(AQ35="",AQ35=0),"",MAX(AR$15:AR34)+1) -> 20 | AS35: 0
A36: =ROW() -> 36 | AP36: =MAX(AP$15:AP35)+1 -> 21 | AQ36: =SUMIFS(Periods!$11:$11,Periods!$2:$2,AP36) -> 2026-01-01 | AR36: =IF(OR(AQ36="",AQ36=0),"",MAX(AR$15:AR35)+1) -> 21 | AS36: 0
A37: =ROW() -> 37 | AP37: =MAX(AP$15:AP36)+1 -> 22 | AQ37: =SUMIFS(Periods!$11:$11,Periods!$2:$2,AP37) -> 2026-04-01 | AR37: =IF(OR(AQ37="",AQ37=0),"",MAX(AR$15:AR36)+1) -> 22 | AS37: 0
A38: =ROW() -> 38 | AP38: =MAX(AP$15:AP37)+1 -> 23 | AQ38: =SUMIFS(Periods!$11:$11,Periods!$2:$2,AP38) -> 2026-07-01 | AR38: =IF(OR(AQ38="",AQ38=0),"",MAX(AR$15:AR37)+1) -> 23 | AS38: 0
A39: =ROW() -> 39 | AP39: =MAX(AP$15:AP38)+1 -> 24 | AQ39: =SUMIFS(Periods!$11:$11,Periods!$2:$2,AP39) -> 2026-10-01 | AR39: =IF(OR(AQ39="",AQ39=0),"",MAX(AR$15:AR38)+1) -> 24 | AS39: 0
A40: =ROW() -> 40 | AP40: =MAX(AP$15:AP39)+1 -> 25 | AQ40: =SUMIFS(Periods!$11:$11,Periods!$2:$2,AP40) -> 2027-01-01 | AR40: =IF(OR(AQ40="",AQ40=0),"",MAX(AR$15:AR39)+1) -> 25 | AS40: 0
A41: =ROW() -> 41 | AP41: =MAX(AP$15:AP40)+1 -> 26 | AQ41: =SUMIFS(Periods!$11:$11,Periods!$2:$2,AP41) -> 2027-04-01 | AR41: =IF(OR(AQ41="",AQ41=0),"",MAX(AR$15:AR40)+1) -> 26 | AS41: 0
A42: =ROW() -> 42 | AP42: =MAX(AP$15:AP41)+1 -> 27 | AQ42: =SUMIFS(Periods!$11:$11,Periods!$2:$2,AP42) -> 2027-07-01 | AR42: =IF(OR(AQ42="",AQ42=0),"",MAX(AR$15:AR41)+1) -> 27 | AS42: 0
A43: =ROW() -> 43 | I43: разработка финмоделей: https://mngmnt.ru/ | AP43: =MAX(AP$15:AP42)+1 -> 28 | AQ43: =SUMIFS(Periods!$11:$11,Periods!$2:$2,AP43) -> 2027-10-01 | AR43: =IF(OR(AQ43="",AQ43=0),"",MAX(AR$15:AR42)+1) -> 28 | AS43: 0
A44: =ROW() -> 44 | AP44: =MAX(AP$15:AP43)+1 -> 29 | AQ44: =SUMIFS(Periods!$11:$11,Periods!$2:$2,AP44) -> 2028-01-01 | AR44: =IF(OR(AQ44="",AQ44=0),"",MAX(AR$15:AR43)+1) -> 29 | AS44: 0
A45: =ROW() -> 45 | AP45: =MAX(AP$15:AP44)+1 -> 30 | AQ45: =SUMIFS(Periods!$11:$11,Periods!$2:$2,AP45) -> 2028-04-01 | AR45: =IF(OR(AQ45="",AQ45=0),"",MAX(AR$15:AR44)+1) -> 30 | AS45: 0
A46: =ROW() -> 46 | AP46: =MAX(AP$15:AP45)+1 -> 31 | AQ46: =SUMIFS(Periods!$11:$11,Periods!$2:$2,AP46) -> 2028-07-01 | AR46: =IF(OR(AQ46="",AQ46=0),"",MAX(AR$15:AR45)+1) -> 31 | AS46: 0
A47: =ROW() -> 47 | AP47: =MAX(AP$15:AP46)+1 -> 32 | AQ47: =SUMIFS(Periods!$11:$11,Periods!$2:$2,AP47) -> 2028-10-01 | AR47: =IF(OR(AQ47="",AQ47=0),"",MAX(AR$15:AR46)+1) -> 32 | AS47: 0
A48: =ROW() -> 48 | AP48: =MAX(AP$15:AP47)+1 -> 33 | AQ48: =SUMIFS(Periods!$11:$11,Periods!$2:$2,AP48) -> 2029-01-01 | AR48: =IF(OR(AQ48="",AQ48=0),"",MAX(AR$15:AR47)+1) -> 33 | AS48: 0
A49: =ROW() -> 49 | AP49: =MAX(AP$15:AP48)+1 -> 34 | AQ49: =SUMIFS(Periods!$11:$11,Periods!$2:$2,AP49) -> 2029-04-01 | AR49: =IF(OR(AQ49="",AQ49=0),"",MAX(AR$15:AR48)+1) -> 34 | AS49: 0
A50: =ROW() -> 50 | AP50: =MAX(AP$15:AP49)+1 -> 35 | AQ50: =SUMIFS(Periods!$11:$11,Periods!$2:$2,AP50) -> 2029-07-01 | AR50: =IF(OR(AQ50="",AQ50=0),"",MAX(AR$15:AR49)+1) -> 35 | AS50: 0
A51: =ROW() -> 51 | AP51: =MAX(AP$15:AP50)+1 -> 36 | AQ51: =SUMIFS(Periods!$11:$11,Periods!$2:$2,AP51) -> 2029-10-01 | AR51: =IF(OR(AQ51="",AQ51=0),"",MAX(AR$15:AR50)+1) -> 36 | AS51: 0
A52: =ROW() -> 52 | AP52: =MAX(AP$15:AP51)+1 -> 37 | AQ52: =SUMIFS(Periods!$11:$11,Periods!$2:$2,AP52) -> 2030-01-01 | AR52: =IF(OR(AQ52="",AQ52=0),"",MAX(AR$15:AR51)+1) -> 37 | AS52: 0
A53: =ROW() -> 53 | AP53: =MAX(AP$15:AP52)+1 -> 38 | AQ53: =SUMIFS(Periods!$11:$11,Periods!$2:$2,AP53) -> 2030-04-01 | AR53: =IF(OR(AQ53="",AQ53=0),"",MAX(AR$15:AR52)+1) -> 38 | AS53: 0
A54: =ROW() -> 54 | AP54: =MAX(AP$15:AP53)+1 -> 39 | AQ54: =SUMIFS(Periods!$11:$11,Periods!$2:$2,AP54) -> 2030-07-01 | AR54: =IF(OR(AQ54="",AQ54=0),"",MAX(AR$15:AR53)+1) -> 39 | AS54: 0
A55: =ROW() -> 55 | AP55: =MAX(AP$15:AP54)+1 -> 40 | AQ55: =SUMIFS(Periods!$11:$11,Periods!$2:$2,AP55) -> 2030-10-01 | AR55: =IF(OR(AQ55="",AQ55=0),"",MAX(AR$15:AR54)+1) -> 40 | AS55: 0
A56: =ROW() -> 56 | AP56: =MAX(AP$15:AP55)+1 -> 41 | AQ56: =SUMIFS(Periods!$11:$11,Periods!$2:$2,AP56) -> 2031-01-01 | AR56: =IF(OR(AQ56="",AQ56=0),"",MAX(AR$15:AR55)+1) -> 41 | AS56: 0
A57: =ROW() -> 57 | AP57: =MAX(AP$15:AP56)+1 -> 42 | AQ57: =SUMIFS(Periods!$11:$11,Periods!$2:$2,AP57) -> 2031-04-01 | AR57: =IF(OR(AQ57="",AQ57=0),"",MAX(AR$15:AR56)+1) -> 42 | AS57: 0
A58: =ROW() -> 58 | AP58: =MAX(AP$15:AP57)+1 -> 43 | AQ58: =SUMIFS(Periods!$11:$11,Periods!$2:$2,AP58) -> 2031-07-01 | AR58: =IF(OR(AQ58="",AQ58=0),"",MAX(AR$15:AR57)+1) -> 43 | AS58: 0
A59: =ROW() -> 59 | AP59: =MAX(AP$15:AP58)+1 -> 44 | AQ59: =SUMIFS(Periods!$11:$11,Periods!$2:$2,AP59) -> 2031-10-01 | AR59: =IF(OR(AQ59="",AQ59=0),"",MAX(AR$15:AR58)+1) -> 44 | AS59: 0
A60: =ROW() -> 60 | AP60: =MAX(AP$15:AP59)+1 -> 45 | AQ60: =SUMIFS(Periods!$11:$11,Periods!$2:$2,AP60) -> 2032-01-01 | AR60: =IF(OR(AQ60="",AQ60=0),"",MAX(AR$15:AR59)+1) -> 45 | AS60: 0
A61: =ROW() -> 61 | AP61: =MAX(AP$15:AP60)+1 -> 46 | AQ61: =SUMIFS(Periods!$11:$11,Periods!$2:$2,AP61) -> 2032-04-01 | AR61: =IF(OR(AQ61="",AQ61=0),"",MAX(AR$15:AR60)+1) -> 46 | AS61: 0
A62: =ROW() -> 62 | AP62: =MAX(AP$15:AP61)+1 -> 47 | AQ62: =SUMIFS(Periods!$11:$11,Periods!$2:$2,AP62) -> 2032-07-01 | AR62: =IF(OR(AQ62="",AQ62=0),"",MAX(AR$15:AR61)+1) -> 47 | AS62: 0
... 77 more rows

Sheet Macro
Y1: =START!$K$134 -> номер столбца: | AA1: =COLUMN() -> 27 | AB1: =COLUMN() -> 28 | AC1: =COLUMN() -> 29 | AD1: =COLUMN() -> 30 | AE1: =COLUMN() -> 31 | AF1: =COLUMN() -> 32 | AG1: =COLUMN() -> 33 | AH1: =COLUMN() -> 34 | AI1: =COLUMN() -> 35 | AJ1: =COLUMN() -> 36 | AK1: =COLUMN() -> 37 | AL1: =COLUMN() -> 38 | AM1: =COLUMN() -> 39 | AN1: =COLUMN() -> 40 | AO1: =COLUMN() -> 41 | AP1: =COLUMN() -> 42 | AQ1: =COLUMN() -> 43 | AR1: =COLUMN() -> 44 | AS1: =COLUMN() -> 45 | AT1: =COLUMN() -> 46 | AU1: =COLUMN() -> 47 | AV1: =COLUMN() -> 48 | AW1: =COLUMN() -> 49 | AX1: =COLUMN() -> 50 | AY1: =COLUMN() -> 51 | AZ1: =COLUMN() -> 52 | BA1: =COLUMN() -> 53 | BB1: =COLUMN() -> 54 | BC1: =COLUMN() -> 55 | BD1: =COLUMN() -> 56 | BE1: =COLUMN() -> 57 | BF1: =COLUMN() -> 58 | BG1: =COLUMN() -> 59 | BH1: =COLUMN() -> 60 | BI1: =COLUMN() -> 61 | BJ1: =COLUMN() -> 62 | BK1: =COLUMN() -> 63 | BL1: =COLUMN() -> 64 | BM1: =COLUMN() -> 65 | BN1: =COLUMN() -> 66 | BO1: =COLUMN() -> 67 | BP1: =COLUMN() -> 68 | BQ1: =COLUMN() -> 69 | BR1: =COLUMN() -> 70 | BS1: =COLUMN() -> 71 | BT1: =COLUMN() -> 72 | BU1: =COLUMN() -> 73 | BV1: =COLUMN() -> 74 | BW1: =COLUMN() -> 75 | BX1: =COLUMN() -> 76 | BY1: =COLUMN() -> 77 | BZ1: =COLUMN() -> 78 | CA1: =COLUMN() -> 79 | CB1: =COLUMN() -> 80 | CC1: =COLUMN() -> 81 | CD1: =COLUMN() -> 82 | CE1: =COLUMN() -> 83 | CF1: =COLUMN() -> 84 | CG1: =COLUMN() -> 85 | CH1: =COLUMN() -> 86 | CI1: =COLUMN() -> 87 | CJ1: =COLUMN() -> 88 | CK1: =COLUMN() -> 89 | CL1: =COLUMN() -> 90 | CM1: =COLUMN() -> 91 | CN1: =COLUMN() -> 92 | CO1: =COLUMN() -> 93 | CP1: =COLUMN() -> 94 | CQ1: =COLUMN() -> 95 | CR1: =COLUMN() -> 96 | CS1: =COLUMN() -> 97 | CT1: =COLUMN() -> 98 | CU1: =COLUMN() -> 99
Y2: =START!$K$135 -> номер периода модели: | AA2: =MAX($Z2:Z2)+1 -> 1 | AB2: =MAX($Z2:AA2)+1 -> 2 | AC2: =MAX($Z2:AB2)+1 -> 3 | AD2: =MAX($Z2:AC2)+1 -> 4 | AE2: =MAX($Z2:AD2)+1 -> 5 | AF2: =MAX($Z2:AE2)+1 -> 6 | AG2: =MAX($Z2:AF2)+1 -> 7 | AH2: =MAX($Z2:AG2)+1 -> 8 | AI2: =MAX($Z2:AH2)+1 -> 9 | AJ2: =MAX($Z2:AI2)+1 -> 10 | AK2: =MAX($Z2:AJ2)+1 -> 11 | AL2: =MAX($Z2:AK2)+1 -> 12 | AM2: =MAX($Z2:AL2)+1 -> 13 | AN2: =MAX($Z2:AM2)+1 -> 14 | AO2: =MAX($Z2:AN2)+1 -> 15 | AP2: =MAX($Z2:AO2)+1 -> 16 | AQ2: =MAX($Z2:AP2)+1 -> 17 | AR2: =MAX($Z2:AQ2)+1 -> 18 | AS2: =MAX($Z2:AR2)+1 -> 19 | AT2: =MAX($Z2:AS2)+1 -> 20 | AU2: =MAX($Z2:AT2)+1 -> 21 | AV2: =MAX($Z2:AU2)+1 -> 22 | AW2: =MAX($Z2:AV2)+1 -> 23 | AX2: =MAX($Z2:AW2)+1 -> 24 | AY2: =MAX($Z2:AX2)+1 -> 25 | AZ2: =MAX($Z2:AY2)+1 -> 26 | BA2: =MAX($Z2:AZ2)+1 -> 27 | BB2: =MAX($Z2:BA2)+1 -> 28 | BC2: =MAX($Z2:BB2)+1 -> 29 | BD2: =MAX($Z2:BC2)+1 -> 30 | BE2: =MAX($Z2:BD2)+1 -> 31 | BF2: =MAX($Z2:BE2)+1 -> 32 | BG2: =MAX($Z2:BF2)+1 -> 33 | BH2: =MAX($Z2:BG2)+1 -> 34 | BI2: =MAX($Z2:BH2)+1 -> 35 | BJ2: =MAX($Z2:BI2)+1 -> 36 | BK2: =MAX($Z2:BJ2)+1 -> 37 | BL2: =MAX($Z2:BK2)+1 -> 38 | BM2: =MAX($Z2:BL2)+1 -> 39 | BN2: =MAX($Z2:BM2)+1 -> 40 | BO2: =MAX($Z2:BN2)+1 -> 41 | BP2: =MAX($Z2:BO2)+1 -> 42 | BQ2: =MAX($Z2:BP2)+1 -> 43 | BR2: =MAX($Z2:BQ2)+1 -> 44 | BS2: =MAX($Z2:BR2)+1 -> 45 | BT2: =MAX($Z2:BS2)+1 -> 46 | BU2: =MAX($Z2:BT2)+1 -> 47 | BV2: =MAX($Z2:BU2)+1 -> 48 | BW2: =MAX($Z2:BV2)+1 -> 49 | BX2: =MAX($Z2:BW2)+1 -> 50 | BY2: =MAX($Z2:BX2)+1 -> 51 | BZ2: =MAX($Z2:BY2)+1 -> 52 | CA2: =MAX($Z2:BZ2)+1 -> 53 | CB2: =MAX($Z2:CA2)+1 -> 54 | CC2: =MAX($Z2:CB2)+1 -> 55 | CD2: =MAX($Z2:CC2)+1 -> 56 | CE2: =MAX($Z2:CD2)+1 -> 57 | CF2: =MAX($Z2:CE2)+1 -> 58 | CG2: =MAX($Z2:CF2)+1 -> 59 | CH2: =MAX($Z2:CG2)+1 -> 60 | CI2: =MAX($Z2:CH2)+1 -> 61 | CJ2: =MAX($Z2:CI2)+1 -> 62 | CK2: =MAX($Z2:CJ2)+1 -> 63 | CL2: =MAX($Z2:CK2)+1 -> 64 | CM2: =MAX($Z2:CL2)+1 -> 65 | CN2: =MAX($Z2:CM2)+1 -> 66 | CO2: =MAX($Z2:CN2)+1 -> 67 | CP2: =MAX($Z2:CO2)+1 -> 68 | CQ2: =MAX($Z2:CP2)+1 -> 69 | CR2: =MAX($Z2:CQ2)+1 -> 70 | CS2: =MAX($Z2:CR2)+1 -> 71 | CT2: =MAX($Z2:CS2)+1 -> 72 | CU2: =MAX($Z2:CT2)+1 -> 73
Y3: =START!$K$136 -> номер факт-периода: | AA3: =IF($Q$12=Lists!$U$16,IF(Periods!AA28="","",MAX($Z3:Z3)+1),"") -> 1 | AB3: =IF($Q$12=Lists!$U$16,IF(Periods!AB28="","",MAX($Z3:AA3)+1),"") ->  | AC3: =IF($Q$12=Lists!$U$16,IF(Periods!AC28="","",MAX($Z3:AB3)+1),"") ->  | AD3: =IF($Q$12=Lists!$U$16,IF(Periods!AD28="","",MAX($Z3:AC3)+1),"") ->  | AE3: =IF($Q$12=Lists!$U$16,IF(Periods!AE28="","",MAX($Z3:AD3)+1),"") ->  | AF3: =IF($Q$12=Lists!$U$16,IF(Periods!AF28="","",MAX($Z3:AE3)+1),"") ->  | AG3: =IF($Q$12=Lists!$U$16,IF(Periods!AG28="","",MAX($Z3:AF3)+1),"") ->  | AH3: =IF($Q$12=Lists!$U$16,IF(Periods!AH28="","",MAX($Z3:AG3)+1),"") ->  | AI3: =IF($Q$12=Lists!$U$16,IF(Periods!AI28="","",MAX($Z3:AH3)+1),"") ->  | AJ3: =IF($Q$12=Lists!$U$16,IF(Periods!AJ28="","",MAX($Z3:AI3)+1),"") ->  | AK3: =IF($Q$12=Lists!$U$16,IF(Periods!AK28="","",MAX($Z3:AJ3)+1),"") ->  | AL3: =IF($Q$12=Lists!$U$16,IF(Periods!AL28="","",MAX($Z3:AK3)+1),"") ->  | AM3: =IF($Q$12=Lists!$U$16,IF(Periods!AM28="","",MAX($Z3:AL3)+1),"") ->  | AN3: =IF($Q$12=Lists!$U$16,IF(Periods!AN28="","",MAX($Z3:AM3)+1),"") ->  | AO3: =IF($Q$12=Lists!$U$16,IF(Periods!AO28="","",MAX($Z3:AN3)+1),"") ->  | AP3: =IF($Q$12=Lists!$U$16,IF(Periods!AP28="","",MAX($Z3:AO3)+1),"") ->  | AQ3: =IF($Q$12=Lists!$U$16,IF(Periods!AQ28="","",MAX($Z3:AP3)+1),"") ->  | AR3: =IF($Q$12=Lists!$U$16,IF(Periods!AR28="","",MAX($Z3:AQ3)+1),"") ->  | AS3: =IF($Q$12=Lists!$U$16,IF(Periods!AS28="","",MAX($Z3:AR3)+1),"") ->  | AT3: =IF($Q$12=Lists!$U$16,IF(Periods!AT28="","",MAX($Z3:AS3)+1),"") ->  | AU3: =IF($Q$12=Lists!$U$16,IF(Periods!AU28="","",MAX($Z3:AT3)+1),"") ->  | AV3: =IF($Q$12=Lists!$U$16,IF(Periods!AV28="","",MAX($Z3:AU3)+1),"") ->  | AW3: =IF($Q$12=Lists!$U$16,IF(Periods!AW28="","",MAX($Z3:AV3)+1),"") ->  | AX3: =IF($Q$12=Lists!$U$16,IF(Periods!AX28="","",MAX($Z3:AW3)+1),"") ->  | AY3: =IF($Q$12=Lists!$U$16,IF(Periods!AY28="","",MAX($Z3:AX3)+1),"") ->  | AZ3: =IF($Q$12=Lists!$U$16,IF(Periods!AZ28="","",MAX($Z3:AY3)+1),"") ->  | BA3: =IF($Q$12=Lists!$U$16,IF(Periods!BA28="","",MAX($Z3:AZ3)+1),"") ->  | BB3: =IF($Q$12=Lists!$U$16,IF(Periods!BB28="","",MAX($Z3:BA3)+1),"") ->  | BC3: =IF($Q$12=Lists!$U$16,IF(Periods!BC28="","",MAX($Z3:BB3)+1),"") ->  | BD3: =IF($Q$12=Lists!$U$16,IF(Periods!BD28="","",MAX($Z3:BC3)+1),"") ->  | BE3: =IF($Q$12=Lists!$U$16,IF(Periods!BE28="","",MAX($Z3:BD3)+1),"") ->  | BF3: =IF($Q$12=Lists!$U$16,IF(Periods!BF28="","",MAX($Z3:BE3)+1),"") ->  | BG3: =IF($Q$12=Lists!$U$16,IF(Periods!BG28="","",MAX($Z3:BF3)+1),"") ->  | BH3: =IF($Q$12=Lists!$U$16,IF(Periods!BH28="","",MAX($Z3:BG3)+1),"") ->  | BI3: =IF($Q$12=Lists!$U$16,IF(Periods!BI28="","",MAX($Z3:BH3)+1),"") ->  | BJ3: =IF($Q$12=Lists!$U$16,IF(Periods!BJ28="","",MAX($Z3:BI3)+1),"") ->  | BK3: =IF($Q$12=Lists!$U$16,IF(Periods!BK28="","",MAX($Z3:BJ3)+1),"") ->  | BL3: =IF($Q$12=Lists!$U$16,IF(Periods!BL28="","",MAX($Z3:BK3)+1),"") ->  | BM3: =IF($Q$12=Lists!$U$16,IF(Periods!BM28="","",MAX($Z3:BL3)+1),"") ->  | BN3: =IF($Q$12=Lists!$U$16,IF(Periods!BN28="","",MAX($Z3:BM3)+1),"") ->  | BO3: =IF($Q$12=Lists!$U$16,IF(Periods!BO28="","",MAX($Z3:BN3)+1),"") ->  | BP3: =IF($Q$12=Lists!$U$16,IF(Periods!BP28="","",MAX($Z3:BO3)+1),"") ->  | BQ3: =IF($Q$12=Lists!$U$16,IF(Periods!BQ28="","",MAX($Z3:BP3)+1),"") ->  | BR3: =IF($Q$12=Lists!$U$16,IF(Periods!BR28="","",MAX($Z3:BQ3)+1),"") ->  | BS3: =IF($Q$12=Lists!$U$16,IF(Periods!BS28="","",MAX($Z3:BR3)+1),"") ->  | BT3: =IF($Q$12=Lists!$U$16,IF(Periods!BT28="","",MAX($Z3:BS3)+1),"") ->  | BU3: =IF($Q$12=Lists!$U$16,IF(Periods!BU28="","",MAX($Z3:BT3)+1),"") ->  | BV3: =IF($Q$12=Lists!$U$16,IF(Periods!BV28="","",MAX($Z3:BU3)+1),"") ->  | BW3: =IF($Q$12=Lists!$U$16,IF(Periods!BW28="","",MAX($Z3:BV3)+1),"") ->  | BX3: =IF($Q$12=Lists!$U$16,IF(Periods!BX28="","",MAX($Z3:BW3)+1),"") ->  | BY3: =IF($Q$12=Lists!$U$16,IF(Periods!BY28="","",MAX($Z3:BX3)+1),"") ->  | BZ3: =IF($Q$12=Lists!$U$16,IF(Periods!BZ28="","",MAX($Z3:BY3)+1),"") ->  | CA3: =IF($Q$12=Lists!$U$16,IF(Periods!CA28="","",MAX($Z3:BZ3)+1),"") ->  | CB3: =IF($Q$12=Lists!$U$16,IF(Periods!CB28="","",MAX($Z3:CA3)+1),"") ->  | CC3: =IF($Q$12=Lists!$U$16,IF(Periods!CC28="","",MAX($Z3:CB3)+1),"") ->  | CD3: =IF($Q$12=Lists!$U$16,IF(Periods!CD28="","",MAX($Z3:CC3)+1),"") ->  | CE3: =IF($Q$12=Lists!$U$16,IF(Periods!CE28="","",MAX($Z3:CD3)+1),"") ->  | CF3: =IF($Q$12=Lists!$U$16,IF(Periods!CF28="","",MAX($Z3:CE3)+1),"") ->  | CG3: =IF($Q$12=Lists!$U$16,IF(Periods!CG28="","",MAX($Z3:CF3)+1),"") ->  | CH3: =IF($Q$12=Lists!$U$16,IF(Periods!CH28="","",MAX($Z3:CG3)+1),"") ->  | CI3: =IF($Q$12=Lists!$U$16,IF(Periods!CI28="","",MAX($Z3:CH3)+1),"") ->  | CJ3: =IF($Q$12=Lists!$U$16,IF(Periods!CJ28="","",MAX($Z3:CI3)+1),"") ->  | CK3: =IF($Q$12=Lists!$U$16,IF(Periods!CK28="","",MAX($Z3:CJ3)+1),"") ->  | CL3: =IF($Q$12=Lists!$U$16,IF(Periods!CL28="","",MAX($Z3:CK3)+1),"") ->  | CM3: =IF($Q$12=Lists!$U$16,IF(Periods!CM28="","",MAX($Z3:CL3)+1),"") ->  | CN3: =IF($Q$12=Lists!$U$16,IF(Periods!CN28="","",MAX($Z3:CM3)+1),"") ->  | CO3: =IF($Q$12=Lists!$U$16,IF(Periods!CO28="","",MAX($Z3:CN3)+1),"") ->  | CP3: =IF($Q$12=Lists!$U$16,IF(Periods!CP28="","",MAX($Z3:CO3)+1),"") ->  | CQ3: =IF($Q$12=Lists!$U$16,IF(Periods!CQ28="","",MAX($Z3:CP3)+1),"") ->  | CR3: =IF($Q$12=Lists!$U$16,IF(Periods!CR28="","",MAX($Z3:CQ3)+1),"") ->  | CS3: =IF($Q$12=Lists!$U$16,IF(Periods!CS28="","",MAX($Z3:CR3)+1),"") ->  | CT3: =IF($Q$12=Lists!$U$16,IF(Periods!CT28="","",MAX($Z3:CS3)+1),"") ->  | CU3: =IF($Q$12=Lists!$U$16,IF(Periods!CU28="","",MAX($Z3:CT3)+1),"") -> 
Y4: =START!$K$137 -> номер план-периода: | AA4: =IF(OR(AA3<>"",AA11=""),"",MAX($Z4:Z4)+1) ->  | AB4: =IF(OR(AB3<>"",AB11=""),"",MAX($Z4:AA4)+1) -> 1 | AC4: =IF(OR(AC3<>"",AC11=""),"",MAX($Z4:AB4)+1) -> 2 | AD4: =IF(OR(AD3<>"",AD11=""),"",MAX($Z4:AC4)+1) -> 3 | AE4: =IF(OR(AE3<>"",AE11=""),"",MAX($Z4:AD4)+1) -> 4 | AF4: =IF(OR(AF3<>"",AF11=""),"",MAX($Z4:AE4)+1) -> 5 | AG4: =IF(OR(AG3<>"",AG11=""),"",MAX($Z4:AF4)+1) -> 6 | AH4: =IF(OR(AH3<>"",AH11=""),"",MAX($Z4:AG4)+1) -> 7 | AI4: =IF(OR(AI3<>"",AI11=""),"",MAX($Z4:AH4)+1) -> 8 | AJ4: =IF(OR(AJ3<>"",AJ11=""),"",MAX($Z4:AI4)+1) -> 9 | AK4: =IF(OR(AK3<>"",AK11=""),"",MAX($Z4:AJ4)+1) -> 10 | AL4: =IF(OR(AL3<>"",AL11=""),"",MAX($Z4:AK4)+1) -> 11 | AM4: =IF(OR(AM3<>"",AM11=""),"",MAX($Z4:AL4)+1) -> 12 | AN4: =IF(OR(AN3<>"",AN11=""),"",MAX($Z4:AM4)+1) -> 13 | AO4: =IF(OR(AO3<>"",AO11=""),"",MAX($Z4:AN4)+1) -> 14 | AP4: =IF(OR(AP3<>"",AP11=""),"",MAX($Z4:AO4)+1) -> 15 | AQ4: =IF(OR(AQ3<>"",AQ11=""),"",MAX($Z4:AP4)+1) -> 16 | AR4: =IF(OR(AR3<>"",AR11=""),"",MAX($Z4:AQ4)+1) -> 17 | AS4: =IF(OR(AS3<>"",AS11=""),"",MAX($Z4:AR4)+1) -> 18 | AT4: =IF(OR(AT3<>"",AT11=""),"",MAX($Z4:AS4)+1) -> 19 | AU4: =IF(OR(AU3<>"",AU11=""),"",MAX($Z4:AT4)+1) -> 20 | AV4: =IF(OR(AV3<>"",AV11=""),"",MAX($Z4:AU4)+1) -> 21 | AW4: =IF(OR(AW3<>"",AW11=""),"",MAX($Z4:AV4)+1) -> 22 | AX4: =IF(OR(AX3<>"",AX11=""),"",MAX($Z4:AW4)+1) -> 23 | AY4: =IF(OR(AY3<>"",AY11=""),"",MAX($Z4:AX4)+1) -> 24 | AZ4: =IF(OR(AZ3<>"",AZ11=""),"",MAX($Z4:AY4)+1) -> 25 | BA4: =IF(OR(BA3<>"",BA11=""),"",MAX($Z4:AZ4)+1) -> 26 | BB4: =IF(OR(BB3<>"",BB11=""),"",MAX($Z4:BA4)+1) -> 27 | BC4: =IF(OR(BC3<>"",BC11=""),"",MAX($Z4:BB4)+1) -> 28 | BD4: =IF(OR(BD3<>"",BD11=""),"",MAX($Z4:BC4)+1) -> 29 | BE4: =IF(OR(BE3<>"",BE11=""),"",MAX($Z4:BD4)+1) -> 30 | BF4: =IF(OR(BF3<>"",BF11=""),"",MAX($Z4:BE4)+1) -> 31 | BG4: =IF(OR(BG3<>"",BG11=""),"",MAX($Z4:BF4)+1) -> 32 | BH4: =IF(OR(BH3<>"",BH11=""),"",MAX($Z4:BG4)+1) -> 33 | BI4: =IF(OR(BI3<>"",BI11=""),"",MAX($Z4:BH4)+1) -> 34 | BJ4: =IF(OR(BJ3<>"",BJ11=""),"",MAX($Z4:BI4)+1) -> 35 | BK4: =IF(OR(BK3<>"",BK11=""),"",MAX($Z4:BJ4)+1) -> 36 | BL4: =IF(OR(BL3<>"",BL11=""),"",MAX($Z4:BK4)+1) -> 37 | BM4: =IF(OR(BM3<>"",BM11=""),"",MAX($Z4:BL4)+1) -> 38 | BN4: =IF(OR(BN3<>"",BN11=""),"",MAX($Z4:BM4)+1) -> 39 | BO4: =IF(OR(BO3<>"",BO11=""),"",MAX($Z4:BN4)+1) -> 40 | BP4: =IF(OR(BP3<>"",BP11=""),"",MAX($Z4:BO4)+1) -> 41 | BQ4: =IF(OR(BQ3<>"",BQ11=""),"",MAX($Z4:BP4)+1) -> 42 | BR4: =IF(OR(BR3<>"",BR11=""),"",MAX($Z4:BQ4)+1) -> 43 | BS4: =IF(OR(BS3<>"",BS11=""),"",MAX($Z4:BR4)+1) -> 44 | BT4: =IF(OR(BT3<>"",BT11=""),"",MAX($Z4:BS4)+1) -> 45 | BU4: =IF(OR(BU3<>"",BU11=""),"",MAX($Z4:BT4)+1) -> 46 | BV4: =IF(OR(BV3<>"",BV11=""),"",MAX($Z4:BU4)+1) -> 47 | BW4: =IF(OR(BW3<>"",BW11=""),"",MAX($Z4:BV4)+1) -> 48 | BX4: =IF(OR(BX3<>"",BX11=""),"",MAX($Z4:BW4)+1) -> 49 | BY4: =IF(OR(BY3<>"",BY11=""),"",MAX($Z4:BX4)+1) -> 50 | BZ4: =IF(OR(BZ3<>"",BZ11=""),"",MAX($Z4:BY4)+1) -> 51 | CA4: =IF(OR(CA3<>"",CA11=""),"",MAX($Z4:BZ4)+1) -> 52 | CB4: =IF(OR(CB3<>"",CB11=""),"",MAX($Z4:CA4)+1) -> 53 | CC4: =IF(OR(CC3<>"",CC11=""),"",MAX($Z4:CB4)+1) -> 54 | CD4: =IF(OR(CD3<>"",CD11=""),"",MAX($Z4:CC4)+1) -> 55 | CE4: =IF(OR(CE3<>"",CE11=""),"",MAX($Z4:CD4)+1) -> 56 | CF4: =IF(OR(CF3<>"",CF11=""),"",MAX($Z4:CE4)+1) -> 57 | CG4: =IF(OR(CG3<>"",CG11=""),"",MAX($Z4:CF4)+1) -> 58 | CH4: =IF(OR(CH3<>"",CH11=""),"",MAX($Z4:CG4)+1) -> 59 | CI4: =IF(OR(CI3<>"",CI11=""),"",MAX($Z4:CH4)+1) ->  | CJ4: =IF(OR(CJ3<>"",CJ11=""),"",MAX($Z4:CI4)+1) ->  | CK4: =IF(OR(CK3<>"",CK11=""),"",MAX($Z4:CJ4)+1) ->  | CL4: =IF(OR(CL3<>"",CL11=""),"",MAX($Z4:CK4)+1) ->  | CM4: =IF(OR(CM3<>"",CM11=""),"",MAX($Z4:CL4)+1) ->  | CN4: =IF(OR(CN3<>"",CN11=""),"",MAX($Z4:CM4)+1) ->  | CO4: =IF(OR(CO3<>"",CO11=""),"",MAX($Z4:CN4)+1) ->  | CP4: =IF(OR(CP3<>"",CP11=""),"",MAX($Z4:CO4)+1) ->  | CQ4: =IF(OR(CQ3<>"",CQ11=""),"",MAX($Z4:CP4)+1) ->  | CR4: =IF(OR(CR3<>"",CR11=""),"",MAX($Z4:CQ4)+1) ->  | CS4: =IF(OR(CS3<>"",CS11=""),"",MAX($Z4:CR4)+1) ->  | CT4: =IF(OR(CT3<>"",CT11=""),"",MAX($Z4:CS4)+1) ->  | CU4: =IF(OR(CU3<>"",CU11=""),"",MAX($Z4:CT4)+1) -> 
Y5: =START!$K$138 -> число даты начала: | AA5: =IF(AA11="","",DAY(AA11)) -> 1 | AB5: =IF(AB11="","",DAY(AB11)) -> 1 | AC5: 1 | AD5: 1 | AE5: 1 | AF5: 1 | AG5: 1 | AH5: 1 | AI5: 1 | AJ5: 1 | AK5: 1 | AL5: 1 | AM5: 1 | AN5: 1 | AO5: 1 | AP5: 1 | AQ5: 1 | AR5: 1 | AS5: 1 | AT5: 1 | AU5: 1 | AV5: 1 | AW5: 1 | AX5: 1 | AY5: 1 | AZ5: 1 | BA5: 1 | BB5: 1 | BC5: 1 | BD5: 1 | BE5: 1 | BF5: 1 | BG5: 1 | BH5: 1 | BI5: 1 | BJ5: 1 | BK5: 1 | BL5: 1 | BM5: 1 | BN5: 1 | BO5: 1 | BP5: 1 | BQ5: 1 | BR5: 1 | BS5: 1 | BT5: 1 | BU5: 1 | BV5: 1 | BW5: 1 | BX5: 1 | BY5: 1 | BZ5: 1 | CA5: 1 | CB5: 1 | CC5: 1 | CD5: 1 | CE5: 1 | CF5: 1 | CG5: 1 | CH5: 1 | CN5: =IF(CN11="","",DAY(CN11)) -> 
Y6: =START!$K$139 -> номер месяца даты начала: | AA6: =IF(AA11="","",MONTH(AA11)) -> 1 | AB6: =IF(AB11="","",MONTH(AB11)) -> 4 | AC6: 7 | AD6: 10 | AE6: 1 | AF6: 4 | AG6: 7 | AH6: 10 | AI6: 1 | AJ6: 4 | AK6: 7 | AL6: 10 | AM6: 1 | AN6: 4 | AO6: 7 | AP6: 10 | AQ6: 1 | AR6: 4 | AS6: 7 | AT6: 10 | AU6: 1 | AV6: 4 | AW6: 7 | AX6: 10 | AY6: 1 | AZ6: 4 | BA6: 7 | BB6: 10 | BC6: 1 | BD6: 4 | BE6: 7 | BF6: 10 | BG6: 1 | BH6: 4 | BI6: 7 | BJ6: 10 | BK6: 1 | BL6: 4 | BM6: 7 | BN6: 10 | BO6: 1 | BP6: 4 | BQ6: 7 | BR6: 10 | BS6: 1 | BT6: 4 | BU6: 7 | BV6: 10 | BW6: 1 | BX6: 4 | BY6: 7 | BZ6: 10 | CA6: 1 | CB6: 4 | CC6: 7 | CD6: 10 | CE6: 1 | CF6: 4 | CG6: 7 | CH6: 10 | CN6: =IF(CN11="","",MONTH(CN11)) -> 
Y7: =START!$K$140 -> год даты начала: | AA7: =IF(AA11="","",YEAR(AA11)-2000) -> 21 | AB7: =IF(AB11="","",YEAR(AB11)-2000) -> 21 | AC7: 21 | AD7: 21 | AE7: 22 | AF7: 22 | AG7: 22 | AH7: 22 | AI7: 23 | AJ7: 23 | AK7: 23 | AL7: 23 | AM7: 24 | AN7: 24 | AO7: 24 | AP7: 24 | AQ7: 25 | AR7: 25 | AS7: 25 | AT7: 25 | AU7: 26 | AV7: 26 | AW7: 26 | AX7: 26 | AY7: 27 | AZ7: 27 | BA7: 27 | BB7: 27 | BC7: 28 | BD7: 28 | BE7: 28 | BF7: 28 | BG7: 29 | BH7: 29 | BI7: 29 | BJ7: 29 | BK7: 30 | BL7: 30 | BM7: 30 | BN7: 30 | BO7: 31 | BP7: 31 | BQ7: 31 | BR7: 31 | BS7: 32 | BT7: 32 | BU7: 32 | BV7: 32 | BW7: 33 | BX7: 33 | BY7: 33 | BZ7: 33 | CA7: 34 | CB7: 34 | CC7: 34 | CD7: 34 | CE7: 35 | CF7: 35 | CG7: 35 | CH7: 35 | CN7: =IF(CN11="","",YEAR(CN11)-2000) -> 
Y8: =START!$K$141 -> число даты окончания: | AA8: =IF(AA12="","",DAY(AA12)) -> 31 | AB8: =IF(AB12="","",DAY(AB12)) -> 30 | AC8: 30 | AD8: 31 | AE8: 31 | AF8: 30 | AG8: 30 | AH8: 31 | AI8: 31 | AJ8: 30 | AK8: 30 | AL8: 31 | AM8: 31 | AN8: 30 | AO8: 30 | AP8: 31 | AQ8: 31 | AR8: 30 | AS8: 30 | AT8: 31 | AU8: 31 | AV8: 30 | AW8: 30 | AX8: 31 | AY8: 31 | AZ8: 30 | BA8: 30 | BB8: 31 | BC8: 31 | BD8: 30 | BE8: 30 | BF8: 31 | BG8: 31 | BH8: 30 | BI8: 30 | BJ8: 31 | BK8: 31 | BL8: 30 | BM8: 30 | BN8: 31 | BO8: 31 | BP8: 30 | BQ8: 30 | BR8: 31 | BS8: 31 | BT8: 30 | BU8: 30 | BV8: 31 | BW8: 31 | BX8: 30 | BY8: 30 | BZ8: 31 | CA8: 31 | CB8: 30 | CC8: 30 | CD8: 31 | CE8: 31 | CF8: 30 | CG8: 30 | CH8: 31 | CN8: =IF(CN12="","",DAY(CN12)) -> 
Y9: =START!$K$142 -> номер месяца даты окончания: | AA9: =IF(AA12="","",MONTH(AA12)) -> 3 | AB9: =IF(AB12="","",MONTH(AB12)) -> 6 | AC9: 9 | AD9: 12 | AE9: 3 | AF9: 6 | AG9: 9 | AH9: 12 | AI9: 3 | AJ9: 6 | AK9: 9 | AL9: 12 | AM9: 3 | AN9: 6 | AO9: 9 | AP9: 12 | AQ9: 3 | AR9: 6 | AS9: 9 | AT9: 12 | AU9: 3 | AV9: 6 | AW9: 9 | AX9: 12 | AY9: 3 | AZ9: 6 | BA9: 9 | BB9: 12 | BC9: 3 | BD9: 6 | BE9: 9 | BF9: 12 | BG9: 3 | BH9: 6 | BI9: 9 | BJ9: 12 | BK9: 3 | BL9: 6 | BM9: 9 | BN9: 12 | BO9: 3 | BP9: 6 | BQ9: 9 | BR9: 12 | BS9: 3 | BT9: 6 | BU9: 9 | BV9: 12 | BW9: 3 | BX9: 6 | BY9: 9 | BZ9: 12 | CA9: 3 | CB9: 6 | CC9: 9 | CD9: 12 | CE9: 3 | CF9: 6 | CG9: 9 | CH9: 12 | CN9: =IF(CN12="","",MONTH(CN12)) -> 
Y10: =START!$K$143 -> год даты окончания: | AA10: =IF(AA12="","",YEAR(AA12)-2000) -> 21 | AB10: =IF(AB12="","",YEAR(AB12)-2000) -> 21 | AC10: 21 | AD10: 21 | AE10: 22 | AF10: 22 | AG10: 22 | AH10: 22 | AI10: 23 | AJ10: 23 | AK10: 23 | AL10: 23 | AM10: 24 | AN10: 24 | AO10: 24 | AP10: 24 | AQ10: 25 | AR10: 25 | AS10: 25 | AT10: 25 | AU10: 26 | AV10: 26 | AW10: 26 | AX10: 26 | AY10: 27 | AZ10: 27 | BA10: 27 | BB10: 27 | BC10: 28 | BD10: 28 | BE10: 28 | BF10: 28 | BG10: 29 | BH10: 29 | BI10: 29 | BJ10: 29 | BK10: 30 | BL10: 30 | BM10: 30 | BN10: 30 | BO10: 31 | BP10: 31 | BQ10: 31 | BR10: 31 | BS10: 32 | BT10: 32 | BU10: 32 | BV10: 32 | BW10: 33 | BX10: 33 | BY10: 33 | BZ10: 33 | CA10: 34 | CB10: 34 | CC10: 34 | CD10: 34 | CE10: 35 | CF10: 35 | CG10: 35 | CH10: 35 | CN10: =IF(CN12="","",YEAR(CN12)-2000) -> 
F11: =INDIRECT("START!I29") -> Macro | I11: =INDIRECT("START!K29") -> Макропоказатели внешней среды | X11: =IF($Q$12=Lists!$U$16,IF(Periods!X20="","",Periods!X20),IF($Q$12=Lists!$U$17,IF(Periods!X35="","",Periods!X35),"")) -> 2021-01-01 | AA11: =IF($Q$12=Lists!$U$16,IF(Periods!AA20="","",Periods!AA20),IF($Q$12=Lists!$U$17,IF(Periods!AA35="","",Periods!AA35),"")) -> 2021-01-01 | AB11: =IF($Q$12=Lists!$U$16,IF(Periods!AB20="","",Periods!AB20),IF($Q$12=Lists!$U$17,IF(Periods!AB35="","",Periods!AB35),"")) -> 2021-04-01 | AC11: =IF($Q$12=Lists!$U$16,IF(Periods!AC20="","",Periods!AC20),IF($Q$12=Lists!$U$17,IF(Periods!AC35="","",Periods!AC35),"")) -> 2021-07-01 | AD11: =IF($Q$12=Lists!$U$16,IF(Periods!AD20="","",Periods!AD20),IF($Q$12=Lists!$U$17,IF(Periods!AD35="","",Periods!AD35),"")) -> 2021-10-01 | AE11: =IF($Q$12=Lists!$U$16,IF(Periods!AE20="","",Periods!AE20),IF($Q$12=Lists!$U$17,IF(Periods!AE35="","",Periods!AE35),"")) -> 2022-01-01 | AF11: =IF($Q$12=Lists!$U$16,IF(Periods!AF20="","",Periods!AF20),IF($Q$12=Lists!$U$17,IF(Periods!AF35="","",Periods!AF35),"")) -> 2022-04-01 | AG11: =IF($Q$12=Lists!$U$16,IF(Periods!AG20="","",Periods!AG20),IF($Q$12=Lists!$U$17,IF(Periods!AG35="","",Periods!AG35),"")) -> 2022-07-01 | AH11: =IF($Q$12=Lists!$U$16,IF(Periods!AH20="","",Periods!AH20),IF($Q$12=Lists!$U$17,IF(Periods!AH35="","",Periods!AH35),"")) -> 2022-10-01 | AI11: =IF($Q$12=Lists!$U$16,IF(Periods!AI20="","",Periods!AI20),IF($Q$12=Lists!$U$17,IF(Periods!AI35="","",Periods!AI35),"")) -> 2023-01-01 | AJ11: =IF($Q$12=Lists!$U$16,IF(Periods!AJ20="","",Periods!AJ20),IF($Q$12=Lists!$U$17,IF(Periods!AJ35="","",Periods!AJ35),"")) -> 2023-04-01 | AK11: =IF($Q$12=Lists!$U$16,IF(Periods!AK20="","",Periods!AK20),IF($Q$12=Lists!$U$17,IF(Periods!AK35="","",Periods!AK35),"")) -> 2023-07-01 | AL11: =IF($Q$12=Lists!$U$16,IF(Periods!AL20="","",Periods!AL20),IF($Q$12=Lists!$U$17,IF(Periods!AL35="","",Periods!AL35),"")) -> 2023-10-01 | AM11: =IF($Q$12=Lists!$U$16,IF(Periods!AM20="","",Periods!AM20),IF($Q$12=Lists!$U$17,IF(Periods!AM35="","",Periods!AM35),"")) -> 2024-01-01 | AN11: =IF($Q$12=Lists!$U$16,IF(Periods!AN20="","",Periods!AN20),IF($Q$12=Lists!$U$17,IF(Periods!AN35="","",Periods!AN35),"")) -> 2024-04-01 | AO11: =IF($Q$12=Lists!$U$16,IF(Periods!AO20="","",Periods!AO20),IF($Q$12=Lists!$U$17,IF(Periods!AO35="","",Periods!AO35),"")) -> 2024-07-01 | AP11: =IF($Q$12=Lists!$U$16,IF(Periods!AP20="","",Periods!AP20),IF($Q$12=Lists!$U$17,IF(Periods!AP35="","",Periods!AP35),"")) -> 2024-10-01 | AQ11: =IF($Q$12=Lists!$U$16,IF(Periods!AQ20="","",Periods!AQ20),IF($Q$12=Lists!$U$17,IF(Periods!AQ35="","",Periods!AQ35),"")) -> 2025-01-01 | AR11: =IF($Q$12=Lists!$U$16,IF(Periods!AR20="","",Periods!AR20),IF($Q$12=Lists!$U$17,IF(Periods!AR35="","",Periods!AR35),"")) -> 2025-04-01 | AS11: =IF($Q$12=Lists!$U$16,IF(Periods!AS20="","",Periods!AS20),IF($Q$12=Lists!$U$17,IF(Periods!AS35="","",Periods!AS35),"")) -> 2025-07-01 | AT11: =IF($Q$12=Lists!$U$16,IF(Periods!AT20="","",Periods!AT20),IF($Q$12=Lists!$U$17,IF(Periods!AT35="","",Periods!AT35),"")) -> 2025-10-01 | AU11: =IF($Q$12=Lists!$U$16,IF(Periods!AU20="","",Periods!AU20),IF($Q$12=Lists!$U$17,IF(Periods!AU35="","",Periods!AU35),"")) -> 2026-01-01 | AV11: =IF($Q$12=Lists!$U$16,IF(Periods!AV20="","",Periods!AV20),IF($Q$12=Lists!$U$17,IF(Periods!AV35="","",Periods!AV35),"")) -> 2026-04-01 | AW11: =IF($Q$12=Lists!$U$16,IF(Periods!AW20="","",Periods!AW20),IF($Q$12=Lists!$U$17,IF(Periods!AW35="","",Periods!AW35),"")) -> 2026-07-01 | AX11: =IF($Q$12=Lists!$U$16,IF(Periods!AX20="","",Periods!AX20),IF($Q$12=Lists!$U$17,IF(Periods!AX35="","",Periods!AX35),"")) -> 2026-10-01 | AY11: =IF($Q$12=Lists!$U$16,IF(Periods!AY20="","",Periods!AY20),IF($Q$12=Lists!$U$17,IF(Periods!AY35="","",Periods!AY35),"")) -> 2027-01-01 | AZ11: =IF($Q$12=Lists!$U$16,IF(Periods!AZ20="","",Periods!AZ20),IF($Q$12=Lists!$U$17,IF(Periods!AZ35="","",Periods!AZ35),"")) -> 2027-04-01 | BA11: =IF($Q$12=Lists!$U$16,IF(Periods!BA20="","",Periods!BA20),IF($Q$12=Lists!$U$17,IF(Periods!BA35="","",Periods!BA35),"")) -> 2027-07-01 | BB11: =IF($Q$12=Lists!$U$16,IF(Periods!BB20="","",Periods!BB20),IF($Q$12=Lists!$U$17,IF(Periods!BB35="","",Periods!BB35),"")) -> 2027-10-01 | BC11: =IF($Q$12=Lists!$U$16,IF(Periods!BC20="","",Periods!BC20),IF($Q$12=Lists!$U$17,IF(Periods!BC35="","",Periods!BC35),"")) -> 2028-01-01 | BD11: =IF($Q$12=Lists!$U$16,IF(Periods!BD20="","",Periods!BD20),IF($Q$12=Lists!$U$17,IF(Periods!BD35="","",Periods!BD35),"")) -> 2028-04-01 | BE11: =IF($Q$12=Lists!$U$16,IF(Periods!BE20="","",Periods!BE20),IF($Q$12=Lists!$U$17,IF(Periods!BE35="","",Periods!BE35),"")) -> 2028-07-01 | BF11: =IF($Q$12=Lists!$U$16,IF(Periods!BF20="","",Periods!BF20),IF($Q$12=Lists!$U$17,IF(Periods!BF35="","",Periods!BF35),"")) -> 2028-10-01 | BG11: =IF($Q$12=Lists!$U$16,IF(Periods!BG20="","",Periods!BG20),IF($Q$12=Lists!$U$17,IF(Periods!BG35="","",Periods!BG35),"")) -> 2029-01-01 | BH11: =IF($Q$12=Lists!$U$16,IF(Periods!BH20="","",Periods!BH20),IF($Q$12=Lists!$U$17,IF(Periods!BH35="","",Periods!BH35),"")) -> 2029-04-01 | BI11: =IF($Q$12=Lists!$U$16,IF(Periods!BI20="","",Periods!BI20),IF($Q$12=Lists!$U$17,IF(Periods!BI35="","",Periods!BI35),"")) -> 2029-07-01 | BJ11: =IF($Q$12=Lists!$U$16,IF(Periods!BJ20="","",Periods!BJ20),IF($Q$12=Lists!$U$17,IF(Periods!BJ35="","",Periods!BJ35),"")) -> 2029-10-01 | BK11: =IF($Q$12=Lists!$U$16,IF(Periods!BK20="","",Periods!BK20),IF($Q$12=Lists!$U$17,IF(Periods!BK35="","",Periods!BK35),"")) -> 2030-01-01 | BL11: =IF($Q$12=Lists!$U$16,IF(Periods!BL20="","",Periods!BL20),IF($Q$12=Lists!$U$17,IF(Periods!BL35="","",Periods!BL35),"")) -> 2030-04-01 | BM11: =IF($Q$12=Lists!$U$16,IF(Periods!BM20="","",Periods!BM20),IF($Q$12=Lists!$U$17,IF(Periods!BM35="","",Periods!BM35),"")) -> 2030-07-01 | BN11: =IF($Q$12=Lists!$U$16,IF(Periods!BN20="","",Periods!BN20),IF($Q$12=Lists!$U$17,IF(Periods!BN35="","",Periods!BN35),"")) -> 2030-10-01 | BO11: =IF($Q$12=Lists!$U$16,IF(Periods!BO20="","",Periods!BO20),IF($Q$12=Lists!$U$17,IF(Periods!BO35="","",Periods!BO35),"")) -> 2031-01-01 | BP11: =IF($Q$12=Lists!$U$16,IF(Periods!BP20="","",Periods!BP20),IF($Q$12=Lists!$U$17,IF(Periods!BP35="","",Periods!BP35),"")) -> 2031-04-01 | BQ11: =IF($Q$12=Lists!$U$16,IF(Periods!BQ20="","",Periods!BQ20),IF($Q$12=Lists!$U$17,IF(Periods!BQ35="","",Periods!BQ35),"")) -> 2031-07-01 | BR11: =IF($Q$12=Lists!$U$16,IF(Periods!BR20="","",Periods!BR20),IF($Q$12=Lists!$U$17,IF(Periods!BR35="","",Periods!BR35),"")) -> 2031-10-01 | BS11: =IF($Q$12=Lists!$U$16,IF(Periods!BS20="","",Periods!BS20),IF($Q$12=Lists!$U$17,IF(Periods!BS35="","",Periods!BS35),"")) -> 2032-01-01 | BT11: =IF($Q$12=Lists!$U$16,IF(Periods!BT20="","",Periods!BT20),IF($Q$12=Lists!$U$17,IF(Periods!BT35="","",Periods!BT35),"")) -> 2032-04-01 | BU11: =IF($Q$12=Lists!$U$16,IF(Periods!BU20="","",Periods!BU20),IF($Q$12=Lists!$U$17,IF(Periods!BU35="","",Periods!BU35),"")) -> 2032-07-01 | BV11: =IF($Q$12=Lists!$U$16,IF(Periods!BV20="","",Periods!BV20),IF($Q$12=Lists!$U$17,IF(Periods!BV35="","",Periods!BV35),"")) -> 2032-10-01 | BW11: =IF($Q$12=Lists!$U$16,IF(Periods!BW20="","",Periods!BW20),IF($Q$12=Lists!$U$17,IF(Periods!BW35="","",Periods!BW35),"")) -> 2033-01-01 | BX11: =IF($Q$12=Lists!$U$16,IF(Periods!BX20="","",Periods!BX20),IF($Q$12=Lists!$U$17,IF(Periods!BX35="","",Periods!BX35),"")) -> 2033-04-01 | BY11: =IF($Q$12=Lists!$U$16,IF(Periods!BY20="","",Periods!BY20),IF($Q$12=Lists!$U$17,IF(Periods!BY35="","",Periods!BY35),"")) -> 2033-07-01 | BZ11: =IF($Q$12=Lists!$U$16,IF(Periods!BZ20="","",Periods!BZ20),IF($Q$12=Lists!$U$17,IF(Periods!BZ35="","",Periods!BZ35),"")) -> 2033-10-01 | CA11: =IF($Q$12=Lists!$U$16,IF(Periods!CA20="","",Periods!CA20),IF($Q$12=Lists!$U$17,IF(Periods!CA35="","",Periods!CA35),"")) -> 2034-01-01 | CB11: =IF($Q$12=Lists!$U$16,IF(Periods!CB20="","",Periods!CB20),IF($Q$12=Lists!$U$17,IF(Periods!CB35="","",Periods!CB35),"")) -> 2034-04-01 | CC11: =IF($Q$12=Lists!$U$16,IF(Periods!CC20="","",Periods!CC20),IF($Q$12=Lists!$U$17,IF(Periods!CC35="","",Periods!CC35),"")) -> 2034-07-01 | CD11: =IF($Q$12=Lists!$U$16,IF(Periods!CD20="","",Periods!CD20),IF($Q$12=Lists!$U$17,IF(Periods!CD35="","",Periods!CD35),"")) -> 2034-10-01 | CE11: =IF($Q$12=Lists!$U$16,IF(Periods!CE20="","",Periods!CE20),IF($Q$12=Lists!$U$17,IF(Periods!CE35="","",Periods!CE35),"")) -> 2035-01-01 | CF11: =IF($Q$12=Lists!$U$16,IF(Periods!CF20="","",Periods!CF20),IF($Q$12=Lists!$U$17,IF(Periods!CF35="","",Periods!CF35),"")) -> 2035-04-01 | CG11: =IF($Q$12=Lists!$U$16,IF(Periods!CG20="","",Periods!CG20),IF($Q$12=Lists!$U$17,IF(Periods!CG35="","",Periods!CG35),"")) -> 2035-07-01 | CH11: =IF($Q$12=Lists!$U$16,IF(Periods!CH20="","",Periods!CH20),IF($Q$12=Lists!$U$17,IF(Periods!CH35="","",Periods!CH35),"")) -> 2035-10-01 | CI11: =IF($Q$12=Lists!$U$16,IF(Periods!CI20="","",Periods!CI20),IF($Q$12=Lists!$U$17,IF(Periods!CI35="","",Periods!CI35),"")) ->  | CJ11: =IF($Q$12=Lists!$U$16,IF(Periods!CJ20="","",Periods!CJ20),IF($Q$12=Lists!$U$17,IF(Periods!CJ35="","",Periods!CJ35),"")) ->  | CK11: =IF($Q$12=Lists!$U$16,IF(Periods!CK20="","",Periods!CK20),IF($Q$12=Lists!$U$17,IF(Periods!CK35="","",Periods!CK35),"")) ->  | CL11: =IF($Q$12=Lists!$U$16,IF(Periods!CL20="","",Periods!CL20),IF($Q$12=Lists!$U$17,IF(Periods!CL35="","",Periods!CL35),"")) ->  | CM11: =IF($Q$12=Lists!$U$16,IF(Periods!CM20="","",Periods!CM20),IF($Q$12=Lists!$U$17,IF(Periods!CM35="","",Periods!CM35),"")) ->  | CN11: =IF($Q$12=Lists!$U$16,IF(Periods!CN20="","",Periods!CN20),IF($Q$12=Lists!$U$17,IF(Periods!CN35="","",Periods!CN35),"")) ->  | CO11: =IF($Q$12=Lists!$U$16,IF(Periods!CO20="","",Periods!CO20),IF($Q$12=Lists!$U$17,IF(Periods!CO35="","",Periods!CO35),"")) ->  | CP11: =IF($Q$12=Lists!$U$16,IF(Periods!CP20="","",Periods!CP20),IF($Q$12=Lists!$U$17,IF(Periods!CP35="","",Periods!CP35),"")) ->  | CQ11: =IF($Q$12=Lists!$U$16,IF(Periods!CQ20="","",Periods!CQ20),IF($Q$12=Lists!$U$17,IF(Periods!CQ35="","",Periods!CQ35),"")) ->  | CR11: =IF($Q$12=Lists!$U$16,IF(Periods!CR20="","",Periods!CR20),IF($Q$12=Lists!$U$17,IF(Periods!CR35="","",Periods!CR35),"")) ->  | CS11: =IF($Q$12=Lists!$U$16,IF(Periods!CS20="","",Periods!CS20),IF($Q$12=Lists!$U$17,IF(Periods!CS35="","",Periods!CS35),"")) ->  | CT11: =IF($Q$12=Lists!$U$16,IF(Periods!CT20="","",Periods!CT20),IF($Q$12=Lists!$U$17,IF(Periods!CT35="","",Periods!CT35),"")) ->  | CU11: =IF($Q$12=Lists!$U$16,IF(Periods!CU20="","",Periods!CU20),IF($Q$12=Lists!$U$17,IF(Periods!CU35="","",Periods!CU35),"")) -> 
H12: =Lists!$U$13 -> тип листа | Q12: =INDEX(Cntrl!$Q:$Q,SUMIFS(Cntrl!$A:$A,Cntrl!$I:$I,$F$11)) -> расчетный | X12: =IF($Q$12=Lists!$U$16,IF(Periods!X21="","",Periods!X21),IF($Q$12=Lists!$U$17,IF(Periods!X36="","",Periods!X36),"")) -> 2035-12-31 | AA12: =IF($Q$12=Lists!$U$16,IF(Periods!AA21="","",Periods!AA21),IF($Q$12=Lists!$U$17,IF(Periods!AA36="","",Periods!AA36),"")) -> 2021-03-31 | AB12: =IF($Q$12=Lists!$U$16,IF(Periods!AB21="","",Periods!AB21),IF($Q$12=Lists!$U$17,IF(Periods!AB36="","",Periods!AB36),"")) -> 2021-06-30 | AC12: =IF($Q$12=Lists!$U$16,IF(Periods!AC21="","",Periods!AC21),IF($Q$12=Lists!$U$17,IF(Periods!AC36="","",Periods!AC36),"")) -> 2021-09-30 | AD12: =IF($Q$12=Lists!$U$16,IF(Periods!AD21="","",Periods!AD21),IF($Q$12=Lists!$U$17,IF(Periods!AD36="","",Periods!AD36),"")) -> 2021-12-31 | AE12: =IF($Q$12=Lists!$U$16,IF(Periods!AE21="","",Periods!AE21),IF($Q$12=Lists!$U$17,IF(Periods!AE36="","",Periods!AE36),"")) -> 2022-03-31 | AF12: =IF($Q$12=Lists!$U$16,IF(Periods!AF21="","",Periods!AF21),IF($Q$12=Lists!$U$17,IF(Periods!AF36="","",Periods!AF36),"")) -> 2022-06-30 | AG12: =IF($Q$12=Lists!$U$16,IF(Periods!AG21="","",Periods!AG21),IF($Q$12=Lists!$U$17,IF(Periods!AG36="","",Periods!AG36),"")) -> 2022-09-30 | AH12: =IF($Q$12=Lists!$U$16,IF(Periods!AH21="","",Periods!AH21),IF($Q$12=Lists!$U$17,IF(Periods!AH36="","",Periods!AH36),"")) -> 2022-12-31 | AI12: =IF($Q$12=Lists!$U$16,IF(Periods!AI21="","",Periods!AI21),IF($Q$12=Lists!$U$17,IF(Periods!AI36="","",Periods!AI36),"")) -> 2023-03-31 | AJ12: =IF($Q$12=Lists!$U$16,IF(Periods!AJ21="","",Periods!AJ21),IF($Q$12=Lists!$U$17,IF(Periods!AJ36="","",Periods!AJ36),"")) -> 2023-06-30 | AK12: =IF($Q$12=Lists!$U$16,IF(Periods!AK21="","",Periods!AK21),IF($Q$12=Lists!$U$17,IF(Periods!AK36="","",Periods!AK36),"")) -> 2023-09-30 | AL12: =IF($Q$12=Lists!$U$16,IF(Periods!AL21="","",Periods!AL21),IF($Q$12=Lists!$U$17,IF(Periods!AL36="","",Periods!AL36),"")) -> 2023-12-31 | AM12: =IF($Q$12=Lists!$U$16,IF(Periods!AM21="","",Periods!AM21),IF($Q$12=Lists!$U$17,IF(Periods!AM36="","",Periods!AM36),"")) -> 2024-03-31 | AN12: =IF($Q$12=Lists!$U$16,IF(Periods!AN21="","",Periods!AN21),IF($Q$12=Lists!$U$17,IF(Periods!AN36="","",Periods!AN36),"")) -> 2024-06-30 | AO12: =IF($Q$12=Lists!$U$16,IF(Periods!AO21="","",Periods!AO21),IF($Q$12=Lists!$U$17,IF(Periods!AO36="","",Periods!AO36),"")) -> 2024-09-30 | AP12: =IF($Q$12=Lists!$U$16,IF(Periods!AP21="","",Periods!AP21),IF($Q$12=Lists!$U$17,IF(Periods!AP36="","",Periods!AP36),"")) -> 2024-12-31 | AQ12: =IF($Q$12=Lists!$U$16,IF(Periods!AQ21="","",Periods!AQ21),IF($Q$12=Lists!$U$17,IF(Periods!AQ36="","",Periods!AQ36),"")) -> 2025-03-31 | AR12: =IF($Q$12=Lists!$U$16,IF(Periods!AR21="","",Periods!AR21),IF($Q$12=Lists!$U$17,IF(Periods!AR36="","",Periods!AR36),"")) -> 2025-06-30 | AS12: =IF($Q$12=Lists!$U$16,IF(Periods!AS21="","",Periods!AS21),IF($Q$12=Lists!$U$17,IF(Periods!AS36="","",Periods!AS36),"")) -> 2025-09-30 | AT12: =IF($Q$12=Lists!$U$16,IF(Periods!AT21="","",Periods!AT21),IF($Q$12=Lists!$U$17,IF(Periods!AT36="","",Periods!AT36),"")) -> 2025-12-31 | AU12: =IF($Q$12=Lists!$U$16,IF(Periods!AU21="","",Periods!AU21),IF($Q$12=Lists!$U$17,IF(Periods!AU36="","",Periods!AU36),"")) -> 2026-03-31 | AV12: =IF($Q$12=Lists!$U$16,IF(Periods!AV21="","",Periods!AV21),IF($Q$12=Lists!$U$17,IF(Periods!AV36="","",Periods!AV36),"")) -> 2026-06-30 | AW12: =IF($Q$12=Lists!$U$16,IF(Periods!AW21="","",Periods!AW21),IF($Q$12=Lists!$U$17,IF(Periods!AW36="","",Periods!AW36),"")) -> 2026-09-30 | AX12: =IF($Q$12=Lists!$U$16,IF(Periods!AX21="","",Periods!AX21),IF($Q$12=Lists!$U$17,IF(Periods!AX36="","",Periods!AX36),"")) -> 2026-12-31 | AY12: =IF($Q$12=Lists!$U$16,IF(Periods!AY21="","",Periods!AY21),IF($Q$12=Lists!$U$17,IF(Periods!AY36="","",Periods!AY36),"")) -> 2027-03-31 | AZ12: =IF($Q$12=Lists!$U$16,IF(Periods!AZ21="","",Periods!AZ21),IF($Q$12=Lists!$U$17,IF(Periods!AZ36="","",Periods!AZ36),"")) -> 2027-06-30 | BA12: =IF($Q$12=Lists!$U$16,IF(Periods!BA21="","",Periods!BA21),IF($Q$12=Lists!$U$17,IF(Periods!BA36="","",Periods!BA36),"")) -> 2027-09-30 | BB12: =IF($Q$12=Lists!$U$16,IF(Periods!BB21="","",Periods!BB21),IF($Q$12=Lists!$U$17,IF(Periods!BB36="","",Periods!BB36),"")) -> 2027-12-31 | BC12: =IF($Q$12=Lists!$U$16,IF(Periods!BC21="","",Periods!BC21),IF($Q$12=Lists!$U$17,IF(Periods!BC36="","",Periods!BC36),"")) -> 2028-03-31 | BD12: =IF($Q$12=Lists!$U$16,IF(Periods!BD21="","",Periods!BD21),IF($Q$12=Lists!$U$17,IF(Periods!BD36="","",Periods!BD36),"")) -> 2028-06-30 | BE12: =IF($Q$12=Lists!$U$16,IF(Periods!BE21="","",Periods!BE21),IF($Q$12=Lists!$U$17,IF(Periods!BE36="","",Periods!BE36),"")) -> 2028-09-30 | BF12: =IF($Q$12=Lists!$U$16,IF(Periods!BF21="","",Periods!BF21),IF($Q$12=Lists!$U$17,IF(Periods!BF36="","",Periods!BF36),"")) -> 2028-12-31 | BG12: =IF($Q$12=Lists!$U$16,IF(Periods!BG21="","",Periods!BG21),IF($Q$12=Lists!$U$17,IF(Periods!BG36="","",Periods!BG36),"")) -> 2029-03-31 | BH12: =IF($Q$12=Lists!$U$16,IF(Periods!BH21="","",Periods!BH21),IF($Q$12=Lists!$U$17,IF(Periods!BH36="","",Periods!BH36),"")) -> 2029-06-30 | BI12: =IF($Q$12=Lists!$U$16,IF(Periods!BI21="","",Periods!BI21),IF($Q$12=Lists!$U$17,IF(Periods!BI36="","",Periods!BI36),"")) -> 2029-09-30 | BJ12: =IF($Q$12=Lists!$U$16,IF(Periods!BJ21="","",Periods!BJ21),IF($Q$12=Lists!$U$17,IF(Periods!BJ36="","",Periods!BJ36),"")) -> 2029-12-31 | BK12: =IF($Q$12=Lists!$U$16,IF(Periods!BK21="","",Periods!BK21),IF($Q$12=Lists!$U$17,IF(Periods!BK36="","",Periods!BK36),"")) -> 2030-03-31 | BL12: =IF($Q$12=Lists!$U$16,IF(Periods!BL21="","",Periods!BL21),IF($Q$12=Lists!$U$17,IF(Periods!BL36="","",Periods!BL36),"")) -> 2030-06-30 | BM12: =IF($Q$12=Lists!$U$16,IF(Periods!BM21="","",Periods!BM21),IF($Q$12=Lists!$U$17,IF(Periods!BM36="","",Periods!BM36),"")) -> 2030-09-30 | BN12: =IF($Q$12=Lists!$U$16,IF(Periods!BN21="","",Periods!BN21),IF($Q$12=Lists!$U$17,IF(Periods!BN36="","",Periods!BN36),"")) -> 2030-12-31 | BO12: =IF($Q$12=Lists!$U$16,IF(Periods!BO21="","",Periods!BO21),IF($Q$12=Lists!$U$17,IF(Periods!BO36="","",Periods!BO36),"")) -> 2031-03-31 | BP12: =IF($Q$12=Lists!$U$16,IF(Periods!BP21="","",Periods!BP21),IF($Q$12=Lists!$U$17,IF(Periods!BP36="","",Periods!BP36),"")) -> 2031-06-30 | BQ12: =IF($Q$12=Lists!$U$16,IF(Periods!BQ21="","",Periods!BQ21),IF($Q$12=Lists!$U$17,IF(Periods!BQ36="","",Periods!BQ36),"")) -> 2031-09-30 | BR12: =IF($Q$12=Lists!$U$16,IF(Periods!BR21="","",Periods!BR21),IF($Q$12=Lists!$U$17,IF(Periods!BR36="","",Periods!BR36),"")) -> 2031-12-31 | BS12: =IF($Q$12=Lists!$U$16,IF(Periods!BS21="","",Periods!BS21),IF($Q$12=Lists!$U$17,IF(Periods!BS36="","",Periods!BS36),"")) -> 2032-03-31 | BT12: =IF($Q$12=Lists!$U$16,IF(Periods!BT21="","",Periods!BT21),IF($Q$12=Lists!$U$17,IF(Periods!BT36="","",Periods!BT36),"")) -> 2032-06-30 | BU12: =IF($Q$12=Lists!$U$16,IF(Periods!BU21="","",Periods!BU21),IF($Q$12=Lists!$U$17,IF(Periods!BU36="","",Periods!BU36),"")) -> 2032-09-30 | BV12: =IF($Q$12=Lists!$U$16,IF(Periods!BV21="","",Periods!BV21),IF($Q$12=Lists!$U$17,IF(Periods!BV36="","",Periods!BV36),"")) -> 2032-12-31 | BW12: =IF($Q$12=Lists!$U$16,IF(Periods!BW21="","",Periods!BW21),IF($Q$12=Lists!$U$17,IF(Periods!BW36="","",Periods!BW36),"")) -> 2033-03-31 | BX12: =IF($Q$12=Lists!$U$16,IF(Periods!BX21="","",Periods!BX21),IF($Q$12=Lists!$U$17,IF(Periods!BX36="","",Periods!BX36),"")) -> 2033-06-30 | BY12: =IF($Q$12=Lists!$U$16,IF(Periods!BY21="","",Periods!BY21),IF($Q$12=Lists!$U$17,IF(Periods!BY36="","",Periods!BY36),"")) -> 2033-09-30 | BZ12: =IF($Q$12=Lists!$U$16,IF(Periods!BZ21="","",Periods!BZ21),IF($Q$12=Lists!$U$17,IF(Periods!BZ36="","",Periods!BZ36),"")) -> 2033-12-31 | CA12: =IF($Q$12=Lists!$U$16,IF(Periods!CA21="","",Periods!CA21),IF($Q$12=Lists!$U$17,IF(Periods!CA36="","",Periods!CA36),"")) -> 2034-03-31 | CB12: =IF($Q$12=Lists!$U$16,IF(Periods!CB21="","",Periods!CB21),IF($Q$12=Lists!$U$17,IF(Periods!CB36="","",Periods!CB36),"")) -> 2034-06-30 | CC12: =IF($Q$12=Lists!$U$16,IF(Periods!CC21="","",Periods!CC21),IF($Q$12=Lists!$U$17,IF(Periods!CC36="","",Periods!CC36),"")) -> 2034-09-30 | CD12: =IF($Q$12=Lists!$U$16,IF(Periods!CD21="","",Periods!CD21),IF($Q$12=Lists!$U$17,IF(Periods!CD36="","",Periods!CD36),"")) -> 2034-12-31 | CE12: =IF($Q$12=Lists!$U$16,IF(Periods!CE21="","",Periods!CE21),IF($Q$12=Lists!$U$17,IF(Periods!CE36="","",Periods!CE36),"")) -> 2035-03-31 | CF12: =IF($Q$12=Lists!$U$16,IF(Periods!CF21="","",Periods!CF21),IF($Q$12=Lists!$U$17,IF(Periods!CF36="","",Periods!CF36),"")) -> 2035-06-30 | CG12: =IF($Q$12=Lists!$U$16,IF(Periods!CG21="","",Periods!CG21),IF($Q$12=Lists!$U$17,IF(Periods!CG36="","",Periods!CG36),"")) -> 2035-09-30 | CH12: =IF($Q$12=Lists!$U$16,IF(Periods!CH21="","",Periods!CH21),IF($Q$12=Lists!$U$17,IF(Periods!CH36="","",Periods!CH36),"")) -> 2035-12-31 | CI12: =IF($Q$12=Lists!$U$16,IF(Periods!CI21="","",Periods!CI21),IF($Q$12=Lists!$U$17,IF(Periods!CI36="","",Periods!CI36),"")) ->  | CJ12: =IF($Q$12=Lists!$U$16,IF(Periods!CJ21="","",Periods!CJ21),IF($Q$12=Lists!$U$17,IF(Periods!CJ36="","",Periods!CJ36),"")) ->  | CK12: =IF($Q$12=Lists!$U$16,IF(Periods!CK21="","",Periods!CK21),IF($Q$12=Lists!$U$17,IF(Periods!CK36="","",Periods!CK36),"")) ->  | CL12: =IF($Q$12=Lists!$U$16,IF(Periods!CL21="","",Periods!CL21),IF($Q$12=Lists!$U$17,IF(Periods!CL36="","",Periods!CL36),"")) ->  | CM12: =IF($Q$12=Lists!$U$16,IF(Periods!CM21="","",Periods!CM21),IF($Q$12=Lists!$U$17,IF(Periods!CM36="","",Periods!CM36),"")) ->  | CN12: =IF($Q$12=Lists!$U$16,IF(Periods!CN21="","",Periods!CN21),IF($Q$12=Lists!$U$17,IF(Periods!CN36="","",Periods!CN36),"")) ->  | CO12: =IF($Q$12=Lists!$U$16,IF(Periods!CO21="","",Periods!CO21),IF($Q$12=Lists!$U$17,IF(Periods!CO36="","",Periods!CO36),"")) ->  | CP12: =IF($Q$12=Lists!$U$16,IF(Periods!CP21="","",Periods!CP21),IF($Q$12=Lists!$U$17,IF(Periods!CP36="","",Periods!CP36),"")) ->  | CQ12: =IF($Q$12=Lists!$U$16,IF(Periods!CQ21="","",Periods!CQ21),IF($Q$12=Lists!$U$17,IF(Periods!CQ36="","",Periods!CQ36),"")) ->  | CR12: =IF($Q$12=Lists!$U$16,IF(Periods!CR21="","",Periods!CR21),IF($Q$12=Lists!$U$17,IF(Periods!CR36="","",Periods!CR36),"")) ->  | CS12: =IF($Q$12=Lists!$U$16,IF(Periods!CS21="","",Periods!CS21),IF($Q$12=Lists!$U$17,IF(Periods!CS36="","",Periods!CS36),"")) ->  | CT12: =IF($Q$12=Lists!$U$16,IF(Periods!CT21="","",Periods!CT21),IF($Q$12=Lists!$U$17,IF(Periods!CT36="","",Periods!CT36),"")) ->  | CU12: =IF($Q$12=Lists!$U$16,IF(Periods!CU21="","",Periods!CU21),IF($Q$12=Lists!$U$17,IF(Periods!CU36="","",Periods!CU36),"")) -> 
